Workbook

Sheet ACCUEILPRO
A1: Accueil
F7: =ACCUEIL!F7 -> 2022-05-22

Sheet ACCUEILPREM
A1: Accueil
F7: =ACCUEIL!F7 -> 2022-05-22

Sheet ACCUEILGP
A1: Accueil
F7: =ACCUEIL!F7 -> 2022-05-22

Sheet ACCUEIL
F7: 2022-05-22

Sheet Accueilagence
A1: Accueil
E7: =ACCUEIL!F7 -> 2022-05-22

Sheet Accueilsecteur
A1: Accueil
E7: =ACCUEIL!F7 -> 2022-05-22

Sheet AccueilDircom
A1: Accueil
E7: =ACCUEIL!F7 -> 2022-05-22

Sheet DC_FICHE
A1: Accueil
A2: BAROMETRE BDD
A4: UNITE: | B4: DIRECTION REGIONALE | E4: ETP perf : | F4: =VLOOKUP(A5,'RECAP DIRCOM'!$G$6:$I$12,3,FALSE) -> 218.10
A5: =VLOOKUP(B5,LISTES!$M$6:$N$12,2,FALSE) -> 262 | B5: BAS-RHIN
C6: Coefficient du critére | E6: Résultats | I6: Ecart au 1ier | M6: Evolution | O6: Rang
E7: du 1ier | G7: DIRECTION | I7: Du mois | K7: Au 31/12/2019
A9: RANG au CLASSEMENT GENERAL | K9: =VLOOKUP($A$5,#REF!,168,FALSE) ->  | M9: =+K9-O9 ->  | O9: =VLOOKUP($A$5,'RECAP DIRCOM'!$G$6:$CY$312,168,FALSE) -> 
A11: CRITERE CLIENTS | C11: 15% | O11: =VLOOKUP($A$5,'RECAP DIRCOM'!$G$6:$CY$312,23,FALSE) -> 24.25034388
B12: PNB Evolution nette Clients BP | C12: 4% | E12: ='RECAP DIRCOM'!#REF! ->  | G12: =VLOOKUP($A$5,'RECAP DIRCOM'!$G$6:$CY$312,6,FALSE) -> 0.8 | I12: =VLOOKUP($A$5,'RECAP DIRCOM'!$G$6:$CY$312,7,FALSE) -> 500% | K12: =VLOOKUP($A$5,#REF!,7,FALSE) ->  | M12: =+K12-I12 ->  | O12: =VLOOKUP($A$5,'RECAP DIRCOM'!$G$6:$CY$312,8,FALSE) -> 0.6006298297
B13: PNB Evolution nette Clients PREMIUM | C13: 5% | E13: ='RECAP DIRCOM'!#REF! ->  | G13: =VLOOKUP($A$5,'RECAP DIRCOM'!$G$6:$CY$312,10,FALSE) -> 4.0 | I13: =VLOOKUP($A$5,'RECAP DIRCOM'!$G$6:$CY$312,11,FALSE) -> 47% | K13: =VLOOKUP($A$5,#REF!,11,FALSE) ->  | M13: =+K13-I13 ->  | O13: =VLOOKUP($A$5,'RECAP DIRCOM'!$G$6:$CY$312,12,FALSE) -> 0.4672785107
B14: PNB Evolution nette Clients Jeunes Equipés | C14: 3% | E14: ='RECAP DIRCOM'!#REF! ->  | G14: =VLOOKUP($A$5,'RECAP DIRCOM'!$G$6:$CY$312,14,FALSE) -> 0.0 | I14: =VLOOKUP($A$5,'RECAP DIRCOM'!$G$6:$CY$312,15,FALSE) -> 0% | K14: =VLOOKUP($A$5,#REF!,15,FALSE) ->  | M14: =+K14-I14 ->  | O14: =VLOOKUP($A$5,'RECAP DIRCOM'!$G$6:$CY$312,16,FALSE) -> 0
B15: PNB Evolution nette Clients Pro Actifs Equipés | C15: 3% | E15: ='RECAP DIRCOM'!W4 -> 0.0 | G15: =VLOOKUP($A$5,'RECAP DIRCOM'!$G$6:$CY$312,18,FALSE) -> 2183.6 | I15: =VLOOKUP($A$5,'RECAP DIRCOM'!$G$6:$CY$312,19,FALSE) -> 1001% | K15: =VLOOKUP($A$5,#REF!,19,FALSE) ->  | M15: =+K15-I15 ->  | O15: =VLOOKUP($A$5,'RECAP DIRCOM'!$G$6:$CY$312,20,FALSE) -> 0.2402017691
A17: CRITERE BANCARISATION | C17: 15% | O17: =VLOOKUP($A$5,'RECAP DIRCOM'!$G$6:$CY$312,48,FALSE) -> 18520.1301
B18: PNB Ventes nettes forfaits | C18: 4% | E18: ='RECAP DIRCOM'!X4 -> 13.2 | G18: =VLOOKUP($A$5,'RECAP DIRCOM'!$G$6:$CY$312,31,FALSE) -> 0.0 | I18: =VLOOKUP($A$5,'RECAP DIRCOM'!$G$6:$CY$312,32,FALSE) -> 0% | K18: =VLOOKUP($A$5,#REF!,32,FALSE) ->  | M18: =+K18-I18 ->  | O18: =VLOOKUP($A$5,'RECAP DIRCOM'!$G$6:$CY$312,33,FALSE) -> 37166.79626
B19: PNB Ventes nettes IZICARTES Débit Différé | C19: 4% | E19: ='RECAP DIRCOM'!AB4 -> 30.8 | G19: =VLOOKUP($A$5,'RECAP DIRCOM'!$G$6:$CY$312,35,FALSE) -> 0.2 | I19: =VLOOKUP($A$5,'RECAP DIRCOM'!$G$6:$CY$312,36,FALSE) -> 300% | K19: =VLOOKUP($A$5,#REF!,36,FALSE) ->  | M19: =+K19-I19 ->  | O19: =VLOOKUP($A$5,'RECAP DIRCOM'!$G$6:$CY$312,37,FALSE) -> 5480
B20: PNB Ventes nettes cartes HDG Débit Différé | C20: 4% | E20: ='RECAP DIRCOM'!#REF! ->  | G20: =VLOOKUP($A$5,'RECAP DIRCOM'!$G$6:$CY$312,39,FALSE) -> 0.2 | I20: =VLOOKUP($A$5,'RECAP DIRCOM'!$G$6:$CY$312,40,FALSE) -> 300% | K20: =VLOOKUP($A$5,#REF!,40,FALSE) ->  | M20: =+K20-I20 ->  | O20: =VLOOKUP($A$5,'RECAP DIRCOM'!$G$6:$CY$312,41,FALSE) -> 0.189593771
B21: PNB Ventes nettes Forfaits Pro, Carte pro | C21: 3% | E21: ='RECAP DIRCOM'!#REF! ->  | G21: =VLOOKUP($A$5,'RECAP DIRCOM'!$G$6:$CY$312,43,FALSE) -> 3.0 | I21: =VLOOKUP($A$5,'RECAP DIRCOM'!$G$6:$CY$312,44,FALSE) -> 0% | K21: =VLOOKUP($A$5,#REF!,44,FALSE) ->  | M21: =+K21-I21 ->  | O21: =VLOOKUP($A$5,'RECAP DIRCOM'!$G$6:$CY$312,45,FALSE) -> 0
A23: CRITERE EPARGNE | C23: 10% | O23: =VLOOKUP($A$5,'RECAP DIRCOM'!$G$6:$CY$312,69,FALSE) -> 0.3027841246
B24: PNB Epargne Liquide | C24: 3% | E24: ='RECAP DIRCOM'!AM4 -> 204.5 | G24: =VLOOKUP($A$5,'RECAP DIRCOM'!$G$6:$CY$312,56,FALSE) -> 1898.0 | I24: =VLOOKUP($A$5,'RECAP DIRCOM'!$G$6:$CY$312,57,FALSE) -> 870% | K24: =VLOOKUP($A$5,#REF!,57,FALSE) ->  | M24: =+K24-I24 ->  | O24: =VLOOKUP($A$5,'RECAP DIRCOM'!$G$6:$CY$312,58,FALSE) -> 0.3964986214
B25: PNB CA UC + arbitrage | C25: 4% | E25: ='RECAP DIRCOM'!AQ4 -> 32.4 | G25: =VLOOKUP($A$5,'RECAP DIRCOM'!$G$6:$CY$312,60,FALSE) -> 0.4 | I25: =VLOOKUP($A$5,'RECAP DIRCOM'!$G$6:$CY$312,61,FALSE) -> 32% | K25: =VLOOKUP($A$5,#REF!,61,FALSE) ->  | M25: =+K25-I25 ->  | O25: =VLOOKUP($A$5,'RECAP DIRCOM'!$G$6:$CY$312,62,FALSE) -> 6
B26: PNB Excédent assurance vie | C26: 3% | E26: ='RECAP DIRCOM'!#REF! ->  | G26: =VLOOKUP($A$5,'RECAP DIRCOM'!$G$6:$CY$312,64,FALSE) -> 0.0 | I26: =VLOOKUP($A$5,'RECAP DIRCOM'!$G$6:$CY$312,65,FALSE) -> 0% | K26: =VLOOKUP($A$5,#REF!,65,FALSE) ->  | M26: =+K26-I26 ->  | O26: =VLOOKUP($A$5,'RECAP DIRCOM'!$G$6:$CY$312,66,FALSE) -> 0
A28: CRITERE CREDITS | C28: 15% | O28: =VLOOKUP($A$5,'RECAP DIRCOM'!$G$6:$CY$312,102,FALSE) -> 
B29: PNB crédit conso | C29: 4% | E29: ='RECAP DIRCOM'!BB4 -> 160.0 | G29: =VLOOKUP($A$5,'RECAP DIRCOM'!$G$6:$CY$312,77,FALSE) -> 4.0 | I29: =VLOOKUP($A$5,'RECAP DIRCOM'!$G$6:$CY$312,78,FALSE) -> 0% | K29: =VLOOKUP($A$5,#REF!,78,FALSE) ->  | M29: =+K29-I29 ->  | O29: =VLOOKUP($A$5,'RECAP DIRCOM'!$G$6:$CY$312,79,FALSE) -> 0
B30: PNB ADE crédit conso | C30: 1% | E30: ='RECAP DIRCOM'!#REF! ->  | G30: =VLOOKUP($A$5,'RECAP DIRCOM'!$G$6:$CY$312,81,FALSE) -> 0.0 | I30: =VLOOKUP($A$5,'RECAP DIRCOM'!$G$6:$CY$312,82,FALSE) -> 0% | K30: =VLOOKUP($A$5,#REF!,82,FALSE) ->  | O30: =VLOOKUP($A$5,'RECAP DIRCOM'!$G$6:$CY$312,83,FALSE) -> 0
B31: PNB crédit immo | C31: 4% | E31: ='RECAP DIRCOM'!BF4 -> 28.6 | G31: =VLOOKUP($A$5,'RECAP DIRCOM'!$G$6:$CY$312,85,FALSE) -> 0.0 | I31: =VLOOKUP($A$5,'RECAP DIRCOM'!$G$6:$CY$312,86,FALSE) -> 0% | K31: =VLOOKUP($A$5,#REF!,86,FALSE) ->  | O31: =VLOOKUP($A$5,'RECAP DIRCOM'!$G$6:$CY$312,87,FALSE) -> 0
B32: PNB ADE crédit immo | C32: 2% | E32: ='RECAP DIRCOM'!#REF! ->  | G32: =VLOOKUP($A$5,'RECAP DIRCOM'!$G$6:$CY$312,89,FALSE) -> 0.0 | I32: =VLOOKUP($A$5,'RECAP DIRCOM'!$G$6:$CY$312,90,FALSE) -> 0% | K32: =VLOOKUP($A$5,#REF!,90,FALSE) ->  | O32: =VLOOKUP($A$5,'RECAP DIRCOM'!$G$6:$CY$312,91,FALSE) -> 0
B33: PNB SACCEF | C33: 2% | E33: ='RECAP DIRCOM'!#REF! ->  | G33: =VLOOKUP($A$5,'RECAP DIRCOM'!$G$6:$CY$312,93,FALSE) -> 0.0 | I33: =VLOOKUP($A$5,'RECAP DIRCOM'!$G$6:$CY$312,94,FALSE) -> 29% | K33: =VLOOKUP($A$5,#REF!,94,FALSE) ->  | O33: =VLOOKUP($A$5,'RECAP DIRCOM'!$G$6:$CY$312,95,FALSE) -> 0.2363863183
B34: PNB Crédit MLT + Crédit Bail | C34: 2% | E34: ='RECAP DIRCOM'!BJ4 -> 14.4 | G34: =VLOOKUP($A$5,'RECAP DIRCOM'!$G$6:$CY$312,97,FALSE) -> 0.0 | I34: =VLOOKUP($A$5,'RECAP DIRCOM'!$G$6:$CY$312,98,FALSE) ->  | K34: =VLOOKUP($A$5,#REF!,98,FALSE) ->  | O34: =VLOOKUP($A$5,'RECAP DIRCOM'!$G$6:$CY$312,99,FALSE) -> 
A36: CRITERE IARD PREVOYANCE | C36: 15% | O36: =VLOOKUP($A$5,'RECAP DIRCOM'!$G$6:$CY$312,119,FALSE) -> 
B37: PNB Ventes nettes IARD | C37: 9% | E37: ='RECAP DIRCOM'!BU4 -> 84.4 | G37: =VLOOKUP($A$5,'RECAP DIRCOM'!$G$6:$CY$312,110,FALSE) ->  | I37: =VLOOKUP($A$5,'RECAP DIRCOM'!$G$6:$CY$312,111,FALSE) ->  | K37: =VLOOKUP($A$5,#REF!,111,FALSE) ->  | M37: =+K37-I37 ->  | O37: =VLOOKUP($A$5,'RECAP DIRCOM'!$G$6:$CY$312,112,FALSE) -> 
B38: PNB Ventes nettes Prévoyance | C38: 6% | E38: ='RECAP DIRCOM'!BY4 -> 22.7 | G38: =VLOOKUP($A$5,'RECAP DIRCOM'!$G$6:$CY$312,114,FALSE) ->  | I38: =VLOOKUP($A$5,'RECAP DIRCOM'!$G$6:$CY$312,115,FALSE) ->  | K38: =VLOOKUP($A$5,#REF!,115,FALSE) ->  | M38: =+K38-I38 ->  | O38: =VLOOKUP($A$5,'RECAP DIRCOM'!$G$6:$CY$312,116,FALSE) -> 
A40: CRITERE ACCELERATEURS PNB | C40: 15% | O40: =VLOOKUP($A$5,'RECAP DIRCOM'!$G$6:$CY$312,144,FALSE) -> 
B41: PNB Ventes brutes SED Finalisées | C41: 6% | E41: ='RECAP DIRCOM'!#REF! ->  | G41: =VLOOKUP($A$5,'RECAP DIRCOM'!$G$6:$CY$312,127,FALSE) ->  | I41: =VLOOKUP($A$5,'RECAP DIRCOM'!$G$6:$CY$312,128,FALSE) ->  | K41: =VLOOKUP($A$5,#REF!,128,FALSE) ->  | M41: =+K41-I41 ->  | O41: =VLOOKUP($A$5,'RECAP DIRCOM'!$G$6:$CY$312,129,FALSE) -> 
B42: PNB clients équipés E documents | C42: 3% | E42: ='RECAP DIRCOM'!#REF! ->  | G42: =VLOOKUP($A$5,'RECAP DIRCOM'!$G$6:$CY$312,131,FALSE) ->  | I42: =VLOOKUP($A$5,'RECAP DIRCOM'!$G$6:$CY$312,132,FALSE) ->  | K42: =VLOOKUP($A$5,#REF!,132,FALSE) ->  | M42: =+K42-I42 ->  | O42: =VLOOKUP($A$5,'RECAP DIRCOM'!$G$6:$CY$312,133,FALSE) -> 
B43: Economie opt'in | C43: 3% | E43: ='RECAP DIRCOM'!#REF! ->  | G43: =VLOOKUP($A$5,'RECAP DIRCOM'!$G$6:$CY$312,135,FALSE) ->  | I43: =VLOOKUP($A$5,'RECAP DIRCOM'!$G$6:$CY$312,136,FALSE) ->  | K43: =VLOOKUP($A$5,#REF!,136,FALSE) ->  | M43: =+K43-I43 ->  | O43: =VLOOKUP($A$5,'RECAP DIRCOM'!$G$6:$CY$312,137,FALSE) -> 
B44: Remises commerciales | C44: 3% | E44: ='RECAP DIRCOM'!#REF! ->  | G44: =VLOOKUP($A$5,'RECAP DIRCOM'!$G$6:$CY$312,139,FALSE) ->  | I44: =VLOOKUP($A$5,'RECAP DIRCOM'!$G$6:$CY$312,140,FALSE) ->  | K44: =VLOOKUP($A$5,#REF!,140,FALSE) ->  | M44: =+K44-I44 ->  | O44: =VLOOKUP($A$5,'RECAP DIRCOM'!$G$6:$CY$312,141,FALSE) -> 
A46: CRITERE Qualité-Satisfaction Clients | C46: 15% | O46: =VLOOKUP($A$5,'RECAP DIRCOM'!$G$6:$CY$312,159,FALSE) -> 
B47: Objectifs NPS* | C47: 8% | E47: ='RECAP DIRCOM'!K4 -> 23 | G47: =VLOOKUP($A$5,'RECAP DIRCOM'!$G$6:$CY$312,151,FALSE) ->  | I47: =VLOOKUP($A$5,'RECAP DIRCOM'!$G$6:$CY$312,152,FALSE) ->  | K47: =VLOOKUP($A$5,#REF!,152,FALSE) ->  | M47: =+K47-I47 ->  | O47: =VLOOKUP($A$5,'RECAP DIRCOM'!$G$6:$CY$312,153,FALSE) -> 
B48: Enquête Qualité Haute Définition | C48: 7% | E48: ='RECAP DIRCOM'!N4 -> 69% | G48: =VLOOKUP($A$5,'RECAP DIRCOM'!$G$6:$CY$312,154,FALSE) ->  | I48: =VLOOKUP($A$5,'RECAP DIRCOM'!$G$6:$CY$312,155,FALSE) ->  | K48: =VLOOKUP($A$5,#REF!,155,FALSE) ->  | M48: =+K48-I48 ->  | O48: =VLOOKUP($A$5,'RECAP DIRCOM'!$G$6:$CY$312,156,FALSE) -> 

Sheet DC_TOTAL
B1: Accueil | D1: BAROMETRE BDD - DIRECTIONS REGIONALES
D2: TOTAL GENERAL
D3: =ACCUEIL!F7 -> 2022-05-22
D7: TOTAL GENERAL | G7: Total Satisfaction Clients | J7: Total Bancarisation | M7: Total Epargne | P7: Total IARD Prévoyance | S7: Total Crédits
E8: coef | F8: =+I8+L8+O8+R8+U8 -> 100% | H8: coef | I8: =DC_SATISFACTION!L8 -> 20% | K8: coef | L8: =DC_BANCA!N8 -> 20% | N8: coef | O8: =DC_EPARGNE!N8 -> 20% | Q8: coef | R8: =DC_IARD!N8 -> 20% | T8: coef | U8: =DC_CREDIT!R8 -> 20%
A9: eds | B9: Direction | C9: ="ETP perf "&DATEMAJ!$C$28 -> ETP perf 22-mai | D9: Moyenne ecart au 1er | E9: % Ecart au 1er | F9: Rang CEGEE | G9: Moyenne ecart au 1er | H9: % Ecart au 1er | I9: Rang CEGEE | J9: Moyenne ecart au 1er | K9: % Ecart au 1er | L9: Rang CEGEE | M9: Moyenne ecart au 1er | N9: % Ecart au 1er | O9: Rang CEGEE | P9: Moyenne ecart au 1er | Q9: % Ecart au 1er | R9: Rang CEGEE | S9: Moyenne ecart au 1er | T9: % Ecart au 1er | U9: Rang CEGEE
A10: 50 | B10: Moselle | C10: 228 | D10: 5% | E10: 0% | F10: 1 | G10: 24% | H10: 24% | I10: 3 | J10: 0% | K10: 0% | L10: 1 | M10: 0% | N10: 0% | O10: 1 | P10: 0% | Q10: 0% | R10: 1 | S10: 7% | T10: 2% | U10: 2
A11: 262 | B11: Marne-Ardennes | C11: 194 | D11: 12% | E11: 7% | F11: 2 | G11: 14% | H11: 14% | I11: 2 | J11: 6% | K11: 5% | L11: 2 | M11: 40% | N11: 40% | O11: 5 | P11: 3% | Q11: 3% | R11: 2 | S11: 5% | T11: 0% | U11: 1
A12: 264 | B12: Meurthe et Moselle Meuse | C12: 203 | D12: 23% | E12: 18% | F12: 3 | G12: 41% | H12: 41% | I12: 4 | J12: 19% | K12: 18% | L12: 3 | M12: 28% | N12: 28% | O12: 4 | P12: 23% | Q12: 22% | R12: 3 | S12: 9% | T12: 4% | U12: 3
A13: 30 | B13: Vosges | C13: 117 | D13: 26% | E13: 21% | F13: 4 | G13: 0% | H13: 0% | I13: 1 | J13: 41% | K13: 40% | L13: 5 | M13: 19% | N13: 19% | O13: 2 | P13: 38% | Q13: 38% | R13: 6 | S13: 36% | T13: 31% | U13: 5
A14: 110 | B14: Bas-Rhin | C14: 218 | D14: 29% | E14: 24% | F14: 5 | G14: 47% | H14: 47% | I14: 5 | J14: 23% | K14: 22% | L14: 4 | M14: 19% | N14: 19% | O14: 3 | P14: 24% | Q14: 24% | R14: 4 | S14: 37% | T14: 32% | U14: 6
A15: 160 | B15: Aube Haute Marne | C15: 114 | D15: 39% | E15: 34% | F15: 6 | G15: 52% | H15: 52% | I15: 6 | J15: 46% | K15: 45% | L15: 6 | M15: 43% | N15: 43% | O15: 6 | P15: 28% | Q15: 28% | R15: 5 | S15: 34% | T15: 29% | U15: 4
A16: 80 | B16: Haut-Rhin | C16: 125 | D16: 52% | E16: 47% | F16: 7 | G16: 57% | H16: 57% | I16: 7 | J16: 62% | K16: 61% | L16: 7 | M16: 51% | N16: 51% | O16: 7 | P16: 49% | Q16: 48% | R16: 7 | S16: 48% | T16: 42% | U16: 7
B17: Total CEGEE Directions Régionales | C17: =SUM(C10:C16) -> 1198

Sheet DC_BANCA
B1: Accueil | D1: BAROMETRE BDD - DIRECTIONS REGIONALES
D2: BANCARISATION
D3: =ACCUEIL!F7 -> 2022-05-22
D7: Ventes Nettes produits pondérés | H7: Ventes sur client non détenteur de l’univers | L7: Total Bancarisation
D8: =DATEMAJ!C8 -> au 22/05 | F8: coef | G8: ='RECAP DIRCOM'!AA4 -> 12% | H8: =DATEMAJ!C9 -> au 22/05 | J8: coef | K8: ='RECAP DIRCOM'!AE4 -> 8% | M8: coef | N8: ='RECAP DIRCOM'!AH4 -> 20%
B9: Direction | C9: ="ETP perf "&DATEMAJ!$C$28 -> ETP perf 22-mai | D9: VN | E9: VN / ETP | F9: % Ecart au 1er | G9: Rang | H9: VB | I9: VB / ETP | J9: % Ecart au 1er | K9: Rang | L9: Moyenne ecart au 1er | M9: % Ecart au 1er | N9: Rang CEGEE
A10: 50 | B10: Aube Haute Marne | C10: =VLOOKUP($A10,'RECAP DIRCOM'!$G$6:$CU$12,3,FALSE) -> 114 | D10: =VLOOKUP($A10,'RECAP DIRCOM'!$G$6:$CU$12,18,FALSE) -> 584 | E10: =VLOOKUP($A10,'RECAP DIRCOM'!$G$6:$CU$12,19,FALSE) -> 5.14 | F10: =VLOOKUP($A10,'RECAP DIRCOM'!$G$6:$CU$12,20,FALSE) -> 61% | G10: =VLOOKUP($A10,'RECAP DIRCOM'!$G$6:$CU$12,21,FALSE) -> 6 | H10: =VLOOKUP($A10,'RECAP DIRCOM'!$G$6:$CU$12,22,FALSE) -> 2,692 | I10: =VLOOKUP($A10,'RECAP DIRCOM'!$G$6:$CU$12,23,FALSE) -> 23.71 | J10: =VLOOKUP($A10,'RECAP DIRCOM'!$G$6:$CU$12,24,FALSE) -> 23% | K10: =VLOOKUP($A10,'RECAP DIRCOM'!$G$6:$CU$12,25,FALSE) -> 5 | L10: =VLOOKUP($A10,'RECAP DIRCOM'!$G$6:$CU$12,26,FALSE) -> 46% | M10: =VLOOKUP($A10,'RECAP DIRCOM'!$G$6:$CU$12,27,FALSE) -> 45% | N10: =VLOOKUP($A10,'RECAP DIRCOM'!$G$6:$CU$12,28,FALSE) -> 6
A11: 262 | B11: Bas-Rhin | C11: =VLOOKUP($A11,'RECAP DIRCOM'!$G$6:$CU$12,3,FALSE) -> 218 | D11: =VLOOKUP($A11,'RECAP DIRCOM'!$G$6:$CU$12,18,FALSE) -> 2,184 | E11: =VLOOKUP($A11,'RECAP DIRCOM'!$G$6:$CU$12,19,FALSE) -> 10.01 | F11: =VLOOKUP($A11,'RECAP DIRCOM'!$G$6:$CU$12,20,FALSE) -> 24% | G11: =VLOOKUP($A11,'RECAP DIRCOM'!$G$6:$CU$12,21,FALSE) -> 3 | H11: =VLOOKUP($A11,'RECAP DIRCOM'!$G$6:$CU$12,22,FALSE) -> 5,289 | I11: =VLOOKUP($A11,'RECAP DIRCOM'!$G$6:$CU$12,23,FALSE) -> 24.25 | J11: =VLOOKUP($A11,'RECAP DIRCOM'!$G$6:$CU$12,24,FALSE) -> 21% | K11: =VLOOKUP($A11,'RECAP DIRCOM'!$G$6:$CU$12,25,FALSE) -> 4 | L11: =VLOOKUP($A11,'RECAP DIRCOM'!$G$6:$CU$12,26,FALSE) -> 23% | M11: =VLOOKUP($A11,'RECAP DIRCOM'!$G$6:$CU$12,27,FALSE) -> 22% | N11: =VLOOKUP($A11,'RECAP DIRCOM'!$G$6:$CU$12,28,FALSE) -> 4
A12: 264 | B12: Haut-Rhin | C12: =VLOOKUP($A12,'RECAP DIRCOM'!$G$6:$CU$12,3,FALSE) -> 125 | D12: =VLOOKUP($A12,'RECAP DIRCOM'!$G$6:$CU$12,18,FALSE) -> 351 | E12: =VLOOKUP($A12,'RECAP DIRCOM'!$G$6:$CU$12,19,FALSE) -> 2.80 | F12: =VLOOKUP($A12,'RECAP DIRCOM'!$G$6:$CU$12,20,FALSE) -> 79% | G12: =VLOOKUP($A12,'RECAP DIRCOM'!$G$6:$CU$12,21,FALSE) -> 7 | H12: =VLOOKUP($A12,'RECAP DIRCOM'!$G$6:$CU$12,22,FALSE) -> 2,467 | I12: =VLOOKUP($A12,'RECAP DIRCOM'!$G$6:$CU$12,23,FALSE) -> 19.70 | J12: =VLOOKUP($A12,'RECAP DIRCOM'!$G$6:$CU$12,24,FALSE) -> 36% | K12: =VLOOKUP($A12,'RECAP DIRCOM'!$G$6:$CU$12,25,FALSE) -> 7 | L12: =VLOOKUP($A12,'RECAP DIRCOM'!$G$6:$CU$12,26,FALSE) -> 62% | M12: =VLOOKUP($A12,'RECAP DIRCOM'!$G$6:$CU$12,27,FALSE) -> 61% | N12: =VLOOKUP($A12,'RECAP DIRCOM'!$G$6:$CU$12,28,FALSE) -> 7
A13: 30 | B13: Marne-Ardennes | C13: =VLOOKUP($A13,'RECAP DIRCOM'!$G$6:$CU$12,3,FALSE) -> 194 | D13: =VLOOKUP($A13,'RECAP DIRCOM'!$G$6:$CU$12,18,FALSE) -> 2,314 | E13: =VLOOKUP($A13,'RECAP DIRCOM'!$G$6:$CU$12,19,FALSE) -> 11.94 | F13: =VLOOKUP($A13,'RECAP DIRCOM'!$G$6:$CU$12,20,FALSE) -> 9% | G13: =VLOOKUP($A13,'RECAP DIRCOM'!$G$6:$CU$12,21,FALSE) -> 2 | H13: =VLOOKUP($A13,'RECAP DIRCOM'!$G$6:$CU$12,22,FALSE) -> 5,970 | I13: =VLOOKUP($A13,'RECAP DIRCOM'!$G$6:$CU$12,23,FALSE) -> 30.81 | J13: =VLOOKUP($A13,'RECAP DIRCOM'!$G$6:$CU$12,24,FALSE) -> 0% | K13: =VLOOKUP($A13,'RECAP DIRCOM'!$G$6:$CU$12,25,FALSE) -> 1 | L13: =VLOOKUP($A13,'RECAP DIRCOM'!$G$6:$CU$12,26,FALSE) -> 6% | M13: =VLOOKUP($A13,'RECAP DIRCOM'!$G$6:$CU$12,27,FALSE) -> 5% | N13: =VLOOKUP($A13,'RECAP DIRCOM'!$G$6:$CU$12,28,FALSE) -> 2
A14: 110 | B14: Meurthe et Moselle Meuse | C14: =VLOOKUP($A14,'RECAP DIRCOM'!$G$6:$CU$12,3,FALSE) -> 203 | D14: =VLOOKUP($A14,'RECAP DIRCOM'!$G$6:$CU$12,18,FALSE) -> 1,926 | E14: =VLOOKUP($A14,'RECAP DIRCOM'!$G$6:$CU$12,19,FALSE) -> 9.51 | F14: =VLOOKUP($A14,'RECAP DIRCOM'!$G$6:$CU$12,20,FALSE) -> 28% | G14: =VLOOKUP($A14,'RECAP DIRCOM'!$G$6:$CU$12,21,FALSE) -> 4 | H14: =VLOOKUP($A14,'RECAP DIRCOM'!$G$6:$CU$12,22,FALSE) -> 5,931 | I14: =VLOOKUP($A14,'RECAP DIRCOM'!$G$6:$CU$12,23,FALSE) -> 29.28 | J14: =VLOOKUP($A14,'RECAP DIRCOM'!$G$6:$CU$12,24,FALSE) -> 5% | K14: =VLOOKUP($A14,'RECAP DIRCOM'!$G$6:$CU$12,25,FALSE) -> 3 | L14: =VLOOKUP($A14,'RECAP DIRCOM'!$G$6:$CU$12,26,FALSE) -> 19% | M14: =VLOOKUP($A14,'RECAP DIRCOM'!$G$6:$CU$12,27,FALSE) -> 18% | N14: =VLOOKUP($A14,'RECAP DIRCOM'!$G$6:$CU$12,28,FALSE) -> 3
A15: 160 | B15: Moselle | C15: =VLOOKUP($A15,'RECAP DIRCOM'!$G$6:$CU$12,3,FALSE) -> 228 | D15: =VLOOKUP($A15,'RECAP DIRCOM'!$G$6:$CU$12,18,FALSE) -> 3,008 | E15: =VLOOKUP($A15,'RECAP DIRCOM'!$G$6:$CU$12,19,FALSE) -> 13.18 | F15: =VLOOKUP($A15,'RECAP DIRCOM'!$G$6:$CU$12,20,FALSE) -> 0% | G15: =VLOOKUP($A15,'RECAP DIRCOM'!$G$6:$CU$12,21,FALSE) -> 1 | H15: =VLOOKUP($A15,'RECAP DIRCOM'!$G$6:$CU$12,22,FALSE) -> 6,948 | I15: =VLOOKUP($A15,'RECAP DIRCOM'!$G$6:$CU$12,23,FALSE) -> 30.44 | J15: =VLOOKUP($A15,'RECAP DIRCOM'!$G$6:$CU$12,24,FALSE) -> 1% | K15: =VLOOKUP($A15,'RECAP DIRCOM'!$G$6:$CU$12,25,FALSE) -> 2 | L15: =VLOOKUP($A15,'RECAP DIRCOM'!$G$6:$CU$12,26,FALSE) -> 0% | M15: =VLOOKUP($A15,'RECAP DIRCOM'!$G$6:$CU$12,27,FALSE) -> 0% | N15: =VLOOKUP($A15,'RECAP DIRCOM'!$G$6:$CU$12,28,FALSE) -> 1
A16: 80 | B16: Vosges | C16: =VLOOKUP($A16,'RECAP DIRCOM'!$G$6:$CU$12,3,FALSE) -> 117 | D16: =VLOOKUP($A16,'RECAP DIRCOM'!$G$6:$CU$12,18,FALSE) -> 811 | E16: =VLOOKUP($A16,'RECAP DIRCOM'!$G$6:$CU$12,19,FALSE) -> 6.95 | F16: =VLOOKUP($A16,'RECAP DIRCOM'!$G$6:$CU$12,20,FALSE) -> 47% | G16: =VLOOKUP($A16,'RECAP DIRCOM'!$G$6:$CU$12,21,FALSE) -> 5 | H16: =VLOOKUP($A16,'RECAP DIRCOM'!$G$6:$CU$12,22,FALSE) -> 2,500 | I16: =VLOOKUP($A16,'RECAP DIRCOM'!$G$6:$CU$12,23,FALSE) -> 21.43 | J16: =VLOOKUP($A16,'RECAP DIRCOM'!$G$6:$CU$12,24,FALSE) -> 30% | K16: =VLOOKUP($A16,'RECAP DIRCOM'!$G$6:$CU$12,25,FALSE) -> 6 | L16: =VLOOKUP($A16,'RECAP DIRCOM'!$G$6:$CU$12,26,FALSE) -> 41% | M16: =VLOOKUP($A16,'RECAP DIRCOM'!$G$6:$CU$12,27,FALSE) -> 40% | N16: =VLOOKUP($A16,'RECAP DIRCOM'!$G$6:$CU$12,28,FALSE) -> 5
B17: Total CEGEE Directions Régionales | C17: =SUM(C10:C16) -> 1198

Sheet DC_EPARGNE
B1: Accueil | D1: BAROMETRE BDD - DIRECTIONS REGIONALES
D2: EPARGNE
D3: =ACCUEIL!F7 -> 2022-05-22
D7: Excédent Epargne hors DAV pondéré | H7: Ventes sur client non détenteur de l’univers | L7: Total Epargne
D8: =DATEMAJ!C14 -> au 22/05 | F8: coef | G8: ='RECAP DIRCOM'!AP4 -> 12% | H8: =DATEMAJ!C15 -> au 22/05 | J8: coef | K8: ='RECAP DIRCOM'!AT4 -> 8% | M8: coef | N8: ='RECAP DIRCOM'!AW4 -> 20%
B9: Direction | C9: ="ETP perf "&DATEMAJ!$C$28 -> ETP perf 22-mai | D9: Excédent | E9: Excédent / ETP | F9: % Ecart au 1er | G9: Rang | H9: VB | I9: VB / ETP | J9: % Ecart au 1er | K9: Rang | L9: Moyenne ecart au 1er | M9: % Ecart au 1er | N9: Rang CEGEE
A10: 50 | B10: Aube Haute Marne | C10: =VLOOKUP($A10,'RECAP DIRCOM'!$G$6:$CU$12,3,FALSE) -> 114 | D10: =VLOOKUP($A10,'RECAP DIRCOM'!$G$6:$CU$12,33,FALSE) -> 11,436 | E10: =VLOOKUP($A10,'RECAP DIRCOM'!$G$6:$CU$12,34,FALSE) -> 100.71 | F10: =VLOOKUP($A10,'RECAP DIRCOM'!$G$6:$CU$12,35,FALSE) -> 51% | G10: =VLOOKUP($A10,'RECAP DIRCOM'!$G$6:$CU$12,36,FALSE) -> 5 | H10: =VLOOKUP($A10,'RECAP DIRCOM'!$G$6:$CU$12,37,FALSE) -> 2,563 | I10: =VLOOKUP($A10,'RECAP DIRCOM'!$G$6:$CU$12,38,FALSE) -> 22.57 | J10: =VLOOKUP($A10,'RECAP DIRCOM'!$G$6:$CU$12,39,FALSE) -> 30% | K10: =VLOOKUP($A10,'RECAP DIRCOM'!$G$6:$CU$12,40,FALSE) -> 5 | L10: =VLOOKUP($A10,'RECAP DIRCOM'!$G$6:$CU$12,41,FALSE) -> 43% | M10: =VLOOKUP($A10,'RECAP DIRCOM'!$G$6:$CU$12,42,FALSE) -> 43% | N10: =VLOOKUP($A10,'RECAP DIRCOM'!$G$6:$CU$12,43,FALSE) -> 6
A11: 262 | B11: Bas-Rhin | C11: =VLOOKUP($A11,'RECAP DIRCOM'!$G$6:$CU$12,3,FALSE) -> 218 | D11: =VLOOKUP($A11,'RECAP DIRCOM'!$G$6:$CU$12,33,FALSE) -> 37,167 | E11: =VLOOKUP($A11,'RECAP DIRCOM'!$G$6:$CU$12,34,FALSE) -> 170.41 | F11: =VLOOKUP($A11,'RECAP DIRCOM'!$G$6:$CU$12,35,FALSE) -> 17% | G11: =VLOOKUP($A11,'RECAP DIRCOM'!$G$6:$CU$12,36,FALSE) -> 3 | H11: =VLOOKUP($A11,'RECAP DIRCOM'!$G$6:$CU$12,37,FALSE) -> 5,480 | I11: =VLOOKUP($A11,'RECAP DIRCOM'!$G$6:$CU$12,38,FALSE) -> 25.13 | J11: =VLOOKUP($A11,'RECAP DIRCOM'!$G$6:$CU$12,39,FALSE) -> 22% | K11: =VLOOKUP($A11,'RECAP DIRCOM'!$G$6:$CU$12,40,FALSE) -> 3 | L11: =VLOOKUP($A11,'RECAP DIRCOM'!$G$6:$CU$12,41,FALSE) -> 19% | M11: =VLOOKUP($A11,'RECAP DIRCOM'!$G$6:$CU$12,42,FALSE) -> 19% | N11: =VLOOKUP($A11,'RECAP DIRCOM'!$G$6:$CU$12,43,FALSE) -> 3
A12: 264 | B12: Haut-Rhin | C12: =VLOOKUP($A12,'RECAP DIRCOM'!$G$6:$CU$12,3,FALSE) -> 125 | D12: =VLOOKUP($A12,'RECAP DIRCOM'!$G$6:$CU$12,33,FALSE) -> 11,654 | E12: =VLOOKUP($A12,'RECAP DIRCOM'!$G$6:$CU$12,34,FALSE) -> 93.07 | F12: =VLOOKUP($A12,'RECAP DIRCOM'!$G$6:$CU$12,35,FALSE) -> 54% | G12: =VLOOKUP($A12,'RECAP DIRCOM'!$G$6:$CU$12,36,FALSE) -> 6 | H12: =VLOOKUP($A12,'RECAP DIRCOM'!$G$6:$CU$12,37,FALSE) -> 2,235 | I12: =VLOOKUP($A12,'RECAP DIRCOM'!$G$6:$CU$12,38,FALSE) -> 17.85 | J12: =VLOOKUP($A12,'RECAP DIRCOM'!$G$6:$CU$12,39,FALSE) -> 45% | K12: =VLOOKUP($A12,'RECAP DIRCOM'!$G$6:$CU$12,40,FALSE) -> 7 | L12: =VLOOKUP($A12,'RECAP DIRCOM'!$G$6:$CU$12,41,FALSE) -> 51% | M12: =VLOOKUP($A12,'RECAP DIRCOM'!$G$6:$CU$12,42,FALSE) -> 51% | N12: =VLOOKUP($A12,'RECAP DIRCOM'!$G$6:$CU$12,43,FALSE) -> 7
A13: 30 | B13: Marne-Ardennes | C13: =VLOOKUP($A13,'RECAP DIRCOM'!$G$6:$CU$12,3,FALSE) -> 194 | D13: =VLOOKUP($A13,'RECAP DIRCOM'!$G$6:$CU$12,33,FALSE) -> 14,514 | E13: =VLOOKUP($A13,'RECAP DIRCOM'!$G$6:$CU$12,34,FALSE) -> 74.91 | F13: =VLOOKUP($A13,'RECAP DIRCOM'!$G$6:$CU$12,35,FALSE) -> 63% | G13: =VLOOKUP($A13,'RECAP DIRCOM'!$G$6:$CU$12,36,FALSE) -> 7 | H13: =VLOOKUP($A13,'RECAP DIRCOM'!$G$6:$CU$12,37,FALSE) -> 5,985 | I13: =VLOOKUP($A13,'RECAP DIRCOM'!$G$6:$CU$12,38,FALSE) -> 30.89 | J13: =VLOOKUP($A13,'RECAP DIRCOM'!$G$6:$CU$12,39,FALSE) -> 5% | K13: =VLOOKUP($A13,'RECAP DIRCOM'!$G$6:$CU$12,40,FALSE) -> 2 | L13: =VLOOKUP($A13,'RECAP DIRCOM'!$G$6:$CU$12,41,FALSE) -> 40% | M13: =VLOOKUP($A13,'RECAP DIRCOM'!$G$6:$CU$12,42,FALSE) -> 40% | N13: =VLOOKUP($A13,'RECAP DIRCOM'!$G$6:$CU$12,43,FALSE) -> 5
A14: 110 | B14: Meurthe et Moselle Meuse | C14: =VLOOKUP($A14,'RECAP DIRCOM'!$G$6:$CU$12,3,FALSE) -> 203 | D14: =VLOOKUP($A14,'RECAP DIRCOM'!$G$6:$CU$12,33,FALSE) -> 28,379 | E14: =VLOOKUP($A14,'RECAP DIRCOM'!$G$6:$CU$12,34,FALSE) -> 140.10 | F14: =VLOOKUP($A14,'RECAP DIRCOM'!$G$6:$CU$12,35,FALSE) -> 31% | G14: =VLOOKUP($A14,'RECAP DIRCOM'!$G$6:$CU$12,36,FALSE) -> 4 | H14: =VLOOKUP($A14,'RECAP DIRCOM'!$G$6:$CU$12,37,FALSE) -> 5,036 | I14: =VLOOKUP($A14,'RECAP DIRCOM'!$G$6:$CU$12,38,FALSE) -> 24.86 | J14: =VLOOKUP($A14,'RECAP DIRCOM'!$G$6:$CU$12,39,FALSE) -> 23% | K14: =VLOOKUP($A14,'RECAP DIRCOM'!$G$6:$CU$12,40,FALSE) -> 4 | L14: =VLOOKUP($A14,'RECAP DIRCOM'!$G$6:$CU$12,41,FALSE) -> 28% | M14: =VLOOKUP($A14,'RECAP DIRCOM'!$G$6:$CU$12,42,FALSE) -> 28% | N14: =VLOOKUP($A14,'RECAP DIRCOM'!$G$6:$CU$12,43,FALSE) -> 4
A15: 160 | B15: Moselle | C15: =VLOOKUP($A15,'RECAP DIRCOM'!$G$6:$CU$12,3,FALSE) -> 228 | D15: =VLOOKUP($A15,'RECAP DIRCOM'!$G$6:$CU$12,33,FALSE) -> 46,673 | E15: =VLOOKUP($A15,'RECAP DIRCOM'!$G$6:$CU$12,34,FALSE) -> 204.47 | F15: =VLOOKUP($A15,'RECAP DIRCOM'!$G$6:$CU$12,35,FALSE) -> 0% | G15: =VLOOKUP($A15,'RECAP DIRCOM'!$G$6:$CU$12,36,FALSE) -> 1 | H15: =VLOOKUP($A15,'RECAP DIRCOM'!$G$6:$CU$12,37,FALSE) -> 7,392 | I15: =VLOOKUP($A15,'RECAP DIRCOM'!$G$6:$CU$12,38,FALSE) -> 32.38 | J15: =VLOOKUP($A15,'RECAP DIRCOM'!$G$6:$CU$12,39,FALSE) -> 0% | K15: =VLOOKUP($A15,'RECAP DIRCOM'!$G$6:$CU$12,40,FALSE) -> 1 | L15: =VLOOKUP($A15,'RECAP DIRCOM'!$G$6:$CU$12,41,FALSE) -> 0% | M15: =VLOOKUP($A15,'RECAP DIRCOM'!$G$6:$CU$12,42,FALSE) -> 0% | N15: =VLOOKUP($A15,'RECAP DIRCOM'!$G$6:$CU$12,43,FALSE) -> 1
A16: 80 | B16: Vosges | C16: =VLOOKUP($A16,'RECAP DIRCOM'!$G$6:$CU$12,3,FALSE) -> 117 | D16: =VLOOKUP($A16,'RECAP DIRCOM'!$G$6:$CU$12,33,FALSE) -> 21,432 | E16: =VLOOKUP($A16,'RECAP DIRCOM'!$G$6:$CU$12,34,FALSE) -> 183.75 | F16: =VLOOKUP($A16,'RECAP DIRCOM'!$G$6:$CU$12,35,FALSE) -> 10% | G16: =VLOOKUP($A16,'RECAP DIRCOM'!$G$6:$CU$12,36,FALSE) -> 2 | H16: =VLOOKUP($A16,'RECAP DIRCOM'!$G$6:$CU$12,37,FALSE) -> 2,576 | I16: =VLOOKUP($A16,'RECAP DIRCOM'!$G$6:$CU$12,38,FALSE) -> 22.09 | J16: =VLOOKUP($A16,'RECAP DIRCOM'!$G$6:$CU$12,39,FALSE) -> 32% | K16: =VLOOKUP($A16,'RECAP DIRCOM'!$G$6:$CU$12,40,FALSE) -> 6 | L16: =VLOOKUP($A16,'RECAP DIRCOM'!$G$6:$CU$12,41,FALSE) -> 19% | M16: =VLOOKUP($A16,'RECAP DIRCOM'!$G$6:$CU$12,42,FALSE) -> 19% | N16: =VLOOKUP($A16,'RECAP DIRCOM'!$G$6:$CU$12,43,FALSE) -> 2
B17: Total CEGEE Directions Régionales | C17: =SUM(C10:C16) -> 1198

Sheet DC_CREDIT
B1: Accueil | D1: BAROMETRE BDD - DIRECTIONS REGIONALES
D2: CREDITS
D3: =ACCUEIL!F7 -> 2022-05-22
D7: Engagements et ventes accessoires pondérés Immo | H7: Engagements et ventes accessoires pondérés Conso | L7: Ventes sur client non détenteur de l’univers | P7: Total Crédits
D8: =DATEMAJ!C18 -> au 22/05 | F8: coef | G8: ='RECAP DIRCOM'!BE4 -> 6% | H8: =DATEMAJ!C19 -> au 22/05 | J8: coef | K8: ='RECAP DIRCOM'!BI4 -> 6% | L8: =DATEMAJ!C20 -> au 22/05 | N8: coef | O8: ='RECAP DIRCOM'!BM4 -> 8% | Q8: coef | R8: ='RECAP DIRCOM'!BP4 -> 20%
B9: Direction | C9: ="ETP perf "&DATEMAJ!$C$28 -> ETP perf 22-mai | D9: PNB | E9: PNB / ETP | F9: % Ecart au 1er | G9: Rang | H9: PNB | I9: PNB / ETP | J9: % Ecart au 1er | K9: Rang | L9: VB | M9: VB / ETP | N9: % Ecart au 1er | O9: Rang | P9: Moyenne ecart au 1er | Q9: % Ecart au 1er | R9: Rang CEGEE
A10: 50 | B10: Aube Haute Marne | C10: =VLOOKUP($A10,'RECAP DIRCOM'!$G$6:$CU$12,3,FALSE) -> 114 | D10: =VLOOKUP($A10,'RECAP DIRCOM'!$G$6:$CU$12,48,FALSE) -> 8,190 | E10: =VLOOKUP($A10,'RECAP DIRCOM'!$G$6:$CU$12,49,FALSE) -> 72.12 | F10: =VLOOKUP($A10,'RECAP DIRCOM'!$G$6:$CU$12,50,FALSE) -> 55% | G10: =VLOOKUP($A10,'RECAP DIRCOM'!$G$6:$CU$12,51,FALSE) -> 6 | H10: =VLOOKUP($A10,'RECAP DIRCOM'!$G$6:$CU$12,52,FALSE) -> 2,833 | I10: =VLOOKUP($A10,'RECAP DIRCOM'!$G$6:$CU$12,53,FALSE) -> 24.95 | J10: =VLOOKUP($A10,'RECAP DIRCOM'!$G$6:$CU$12,54,FALSE) -> 13% | K10: =VLOOKUP($A10,'RECAP DIRCOM'!$G$6:$CU$12,55,FALSE) -> 3 | L10: =VLOOKUP($A10,'RECAP DIRCOM'!$G$6:$CU$12,56,FALSE) -> 1,057 | M10: =VLOOKUP($A10,'RECAP DIRCOM'!$G$6:$CU$12,57,FALSE) -> 9.31 | N10: =VLOOKUP($A10,'RECAP DIRCOM'!$G$6:$CU$12,58,FALSE) -> 35% | O10: =VLOOKUP($A10,'RECAP DIRCOM'!$G$6:$CU$12,59,FALSE) -> 5 | P10: =VLOOKUP($A10,'RECAP DIRCOM'!$G$6:$CU$12,60,FALSE) -> 34% | Q10: =VLOOKUP($A10,'RECAP DIRCOM'!$G$6:$CU$12,61,FALSE) -> 29% | R10: =VLOOKUP($A10,'RECAP DIRCOM'!$G$6:$CU$12,62,FALSE) -> 4
A11: 262 | B11: Bas-Rhin | C11: =VLOOKUP($A11,'RECAP DIRCOM'!$G$6:$CU$12,3,FALSE) -> 218 | D11: =VLOOKUP($A11,'RECAP DIRCOM'!$G$6:$CU$12,48,FALSE) -> 18,520 | E11: =VLOOKUP($A11,'RECAP DIRCOM'!$G$6:$CU$12,49,FALSE) -> 84.92 | F11: =VLOOKUP($A11,'RECAP DIRCOM'!$G$6:$CU$12,50,FALSE) -> 47% | G11: =VLOOKUP($A11,'RECAP DIRCOM'!$G$6:$CU$12,51,FALSE) -> 4 | H11: =VLOOKUP($A11,'RECAP DIRCOM'!$G$6:$CU$12,52,FALSE) -> 4,741 | I11: =VLOOKUP($A11,'RECAP DIRCOM'!$G$6:$CU$12,53,FALSE) -> 21.74 | J11: =VLOOKUP($A11,'RECAP DIRCOM'!$G$6:$CU$12,54,FALSE) -> 24% | K11: =VLOOKUP($A11,'RECAP DIRCOM'!$G$6:$CU$12,55,FALSE) -> 6 | L11: =VLOOKUP($A11,'RECAP DIRCOM'!$G$6:$CU$12,56,FALSE) -> 1,898 | M11: =VLOOKUP($A11,'RECAP DIRCOM'!$G$6:$CU$12,57,FALSE) -> 8.70 | N11: =VLOOKUP($A11,'RECAP DIRCOM'!$G$6:$CU$12,58,FALSE) -> 40% | O11: =VLOOKUP($A11,'RECAP DIRCOM'!$G$6:$CU$12,59,FALSE) -> 6 | P11: =VLOOKUP($A11,'RECAP DIRCOM'!$G$6:$CU$12,60,FALSE) -> 37% | Q11: =VLOOKUP($A11,'RECAP DIRCOM'!$G$6:$CU$12,61,FALSE) -> 32% | R11: =VLOOKUP($A11,'RECAP DIRCOM'!$G$6:$CU$12,62,FALSE) -> 6
A12: 264 | B12: Haut-Rhin | C12: =VLOOKUP($A12,'RECAP DIRCOM'!$G$6:$CU$12,3,FALSE) -> 125 | D12: =VLOOKUP($A12,'RECAP DIRCOM'!$G$6:$CU$12,48,FALSE) -> 8,180 | E12: =VLOOKUP($A12,'RECAP DIRCOM'!$G$6:$CU$12,49,FALSE) -> 65.32 | F12: =VLOOKUP($A12,'RECAP DIRCOM'!$G$6:$CU$12,50,FALSE) -> 59% | G12: =VLOOKUP($A12,'RECAP DIRCOM'!$G$6:$CU$12,51,FALSE) -> 7 | H12: =VLOOKUP($A12,'RECAP DIRCOM'!$G$6:$CU$12,52,FALSE) -> 2,418 | I12: =VLOOKUP($A12,'RECAP DIRCOM'!$G$6:$CU$12,53,FALSE) -> 19.31 | J12: =VLOOKUP($A12,'RECAP DIRCOM'!$G$6:$CU$12,54,FALSE) -> 32% | K12: =VLOOKUP($A12,'RECAP DIRCOM'!$G$6:$CU$12,55,FALSE) -> 7 | L12: =VLOOKUP($A12,'RECAP DIRCOM'!$G$6:$CU$12,56,FALSE) -> 892 | M12: =VLOOKUP($A12,'RECAP DIRCOM'!$G$6:$CU$12,57,FALSE) -> 7.12 | N12: =VLOOKUP($A12,'RECAP DIRCOM'!$G$6:$CU$12,58,FALSE) -> 51% | O12: =VLOOKUP($A12,'RECAP DIRCOM'!$G$6:$CU$12,59,FALSE) -> 7 | P12: =VLOOKUP($A12,'RECAP DIRCOM'!$G$6:$CU$12,60,FALSE) -> 48% | Q12: =VLOOKUP($A12,'RECAP DIRCOM'!$G$6:$CU$12,61,FALSE) -> 42% | R12: =VLOOKUP($A12,'RECAP DIRCOM'!$G$6:$CU$12,62,FALSE) -> 7
A13: 30 | B13: Marne-Ardennes | C13: =VLOOKUP($A13,'RECAP DIRCOM'!$G$6:$CU$12,3,FALSE) -> 194 | D13: =VLOOKUP($A13,'RECAP DIRCOM'!$G$6:$CU$12,48,FALSE) -> 31,002 | E13: =VLOOKUP($A13,'RECAP DIRCOM'!$G$6:$CU$12,49,FALSE) -> 160.00 | F13: =VLOOKUP($A13,'RECAP DIRCOM'!$G$6:$CU$12,50,FALSE) -> 0% | G13: =VLOOKUP($A13,'RECAP DIRCOM'!$G$6:$CU$12,51,FALSE) -> 1 | H13: =VLOOKUP($A13,'RECAP DIRCOM'!$G$6:$CU$12,52,FALSE) -> 4,571 | I13: =VLOOKUP($A13,'RECAP DIRCOM'!$G$6:$CU$12,53,FALSE) -> 23.59 | J13: =VLOOKUP($A13,'RECAP DIRCOM'!$G$6:$CU$12,54,FALSE) -> 17% | K13: =VLOOKUP($A13,'RECAP DIRCOM'!$G$6:$CU$12,55,FALSE) -> 4 | L13: =VLOOKUP($A13,'RECAP DIRCOM'!$G$6:$CU$12,56,FALSE) -> 2,794 | M13: =VLOOKUP($A13,'RECAP DIRCOM'!$G$6:$CU$12,57,FALSE) -> 14.42 | N13: =VLOOKUP($A13,'RECAP DIRCOM'!$G$6:$CU$12,58,FALSE) -> 0% | O13: =VLOOKUP($A13,'RECAP DIRCOM'!$G$6:$CU$12,59,FALSE) -> 1 | P13: =VLOOKUP($A13,'RECAP DIRCOM'!$G$6:$CU$12,60,FALSE) -> 5% | Q13: =VLOOKUP($A13,'RECAP DIRCOM'!$G$6:$CU$12,61,FALSE) -> 0% | R13: =VLOOKUP($A13,'RECAP DIRCOM'!$G$6:$CU$12,62,FALSE) -> 1
A14: 110 | B14: Meurthe et Moselle Meuse | C14: =VLOOKUP($A14,'RECAP DIRCOM'!$G$6:$CU$12,3,FALSE) -> 203 | D14: =VLOOKUP($A14,'RECAP DIRCOM'!$G$6:$CU$12,48,FALSE) -> 30,409 | E14: =VLOOKUP($A14,'RECAP DIRCOM'!$G$6:$CU$12,49,FALSE) -> 150.12 | F14: =VLOOKUP($A14,'RECAP DIRCOM'!$G$6:$CU$12,50,FALSE) -> 6% | G14: =VLOOKUP($A14,'RECAP DIRCOM'!$G$6:$CU$12,51,FALSE) -> 2 | H14: =VLOOKUP($A14,'RECAP DIRCOM'!$G$6:$CU$12,52,FALSE) -> 5,407 | I14: =VLOOKUP($A14,'RECAP DIRCOM'!$G$6:$CU$12,53,FALSE) -> 26.69 | J14: =VLOOKUP($A14,'RECAP DIRCOM'!$G$6:$CU$12,54,FALSE) -> 7% | K14: =VLOOKUP($A14,'RECAP DIRCOM'!$G$6:$CU$12,55,FALSE) -> 2 | L14: =VLOOKUP($A14,'RECAP DIRCOM'!$G$6:$CU$12,56,FALSE) -> 2,553 | M14: =VLOOKUP($A14,'RECAP DIRCOM'!$G$6:$CU$12,57,FALSE) -> 12.60 | N14: =VLOOKUP($A14,'RECAP DIRCOM'!$G$6:$CU$12,58,FALSE) -> 13% | O14: =VLOOKUP($A14,'RECAP DIRCOM'!$G$6:$CU$12,59,FALSE) -> 3 | P14: =VLOOKUP($A14,'RECAP DIRCOM'!$G$6:$CU$12,60,FALSE) -> 9% | Q14: =VLOOKUP($A14,'RECAP DIRCOM'!$G$6:$CU$12,61,FALSE) -> 4% | R14: =VLOOKUP($A14,'RECAP DIRCOM'!$G$6:$CU$12,62,FALSE) -> 3
A15: 160 | B15: Moselle | C15: =VLOOKUP($A15,'RECAP DIRCOM'!$G$6:$CU$12,3,FALSE) -> 228 | D15: =VLOOKUP($A15,'RECAP DIRCOM'!$G$6:$CU$12,48,FALSE) -> 34,129 | E15: =VLOOKUP($A15,'RECAP DIRCOM'!$G$6:$CU$12,49,FALSE) -> 149.52 | F15: =VLOOKUP($A15,'RECAP DIRCOM'!$G$6:$CU$12,50,FALSE) -> 7% | G15: =VLOOKUP($A15,'RECAP DIRCOM'!$G$6:$CU$12,51,FALSE) -> 3 | H15: =VLOOKUP($A15,'RECAP DIRCOM'!$G$6:$CU$12,52,FALSE) -> 6,525 | I15: =VLOOKUP($A15,'RECAP DIRCOM'!$G$6:$CU$12,53,FALSE) -> 28.58 | J15: =VLOOKUP($A15,'RECAP DIRCOM'!$G$6:$CU$12,54,FALSE) -> 0% | K15: =VLOOKUP($A15,'RECAP DIRCOM'!$G$6:$CU$12,55,FALSE) -> 1 | L15: =VLOOKUP($A15,'RECAP DIRCOM'!$G$6:$CU$12,56,FALSE) -> 2,882 | M15: =VLOOKUP($A15,'RECAP DIRCOM'!$G$6:$CU$12,57,FALSE) -> 12.63 | N15: =VLOOKUP($A15,'RECAP DIRCOM'!$G$6:$CU$12,58,FALSE) -> 12% | O15: =VLOOKUP($A15,'RECAP DIRCOM'!$G$6:$CU$12,59,FALSE) -> 2 | P15: =VLOOKUP($A15,'RECAP DIRCOM'!$G$6:$CU$12,60,FALSE) -> 7% | Q15: =VLOOKUP($A15,'RECAP DIRCOM'!$G$6:$CU$12,61,FALSE) -> 2% | R15: =VLOOKUP($A15,'RECAP DIRCOM'!$G$6:$CU$12,62,FALSE) -> 2
A16: 80 | B16: Vosges | C16: =VLOOKUP($A16,'RECAP DIRCOM'!$G$6:$CU$12,3,FALSE) -> 117 | D16: =VLOOKUP($A16,'RECAP DIRCOM'!$G$6:$CU$12,48,FALSE) -> 8,551 | E16: =VLOOKUP($A16,'RECAP DIRCOM'!$G$6:$CU$12,49,FALSE) -> 73.31 | F16: =VLOOKUP($A16,'RECAP DIRCOM'!$G$6:$CU$12,50,FALSE) -> 54% | G16: =VLOOKUP($A16,'RECAP DIRCOM'!$G$6:$CU$12,51,FALSE) -> 5 | H16: =VLOOKUP($A16,'RECAP DIRCOM'!$G$6:$CU$12,52,FALSE) -> 2,587 | I16: =VLOOKUP($A16,'RECAP DIRCOM'!$G$6:$CU$12,53,FALSE) -> 22.18 | J16: =VLOOKUP($A16,'RECAP DIRCOM'!$G$6:$CU$12,54,FALSE) -> 22% | K16: =VLOOKUP($A16,'RECAP DIRCOM'!$G$6:$CU$12,55,FALSE) -> 5 | L16: =VLOOKUP($A16,'RECAP DIRCOM'!$G$6:$CU$12,56,FALSE) -> 1,116 | M16: =VLOOKUP($A16,'RECAP DIRCOM'!$G$6:$CU$12,57,FALSE) -> 9.57 | N16: =VLOOKUP($A16,'RECAP DIRCOM'!$G$6:$CU$12,58,FALSE) -> 34% | O16: =VLOOKUP($A16,'RECAP DIRCOM'!$G$6:$CU$12,59,FALSE) -> 4 | P16: =VLOOKUP($A16,'RECAP DIRCOM'!$G$6:$CU$12,60,FALSE) -> 36% | Q16: =VLOOKUP($A16,'RECAP DIRCOM'!$G$6:$CU$12,61,FALSE) -> 31% | R16: =VLOOKUP($A16,'RECAP DIRCOM'!$G$6:$CU$12,62,FALSE) -> 5
B17: Total CEGEE Directions Régionales | C17: =SUM(C10:C16) -> 1198

Sheet DC_IARD
B1: Accueil | D1: BAROMETRE BDD - DIRECTIONS REGIONALES
D2: IARD ET PREVOYANCE
D3: =ACCUEIL!F7 -> 2022-05-22
D7: Ventes Nettes produits pondérés | H7: Ventes sur client non détenteur de l’univers | L7: Total IARD Prévoyance
D8: =DATEMAJ!C23 -> au 22/05 | F8: coef | G8: ='RECAP DIRCOM'!BX4 -> 12% | H8: =DATEMAJ!C24 -> au 22/05 | J8: coef | K8: ='RECAP DIRCOM'!CB4 -> 8% | M8: coef | N8: ='RECAP DIRCOM'!CE4 -> 20%
B9: Direction | C9: ="ETP perf "&DATEMAJ!$C$28 -> ETP perf 22-mai | D9: VN | E9: VN / ETP | F9: % Ecart au 1er | G9: Rang | H9: VB | I9: VB / ETP | J9: % Ecart au 1er | K9: Rang | L9: Moyenne ecart au 1er | M9: % Ecart au 1er | N9: Rang CEGEE
A10: 50 | B10: Aube Haute Marne | C10: =VLOOKUP($A10,'RECAP DIRCOM'!$G$6:$CU$12,3,FALSE) -> 114 | D10: =VLOOKUP($A10,'RECAP DIRCOM'!$G$6:$CU$12,67,FALSE) -> 6,514 | E10: =VLOOKUP($A10,'RECAP DIRCOM'!$G$6:$CU$12,68,FALSE) -> 57.37 | F10: =VLOOKUP($A10,'RECAP DIRCOM'!$G$6:$CU$12,69,FALSE) -> 32% | G10: =VLOOKUP($A10,'RECAP DIRCOM'!$G$6:$CU$12,70,FALSE) -> 5 | H10: =VLOOKUP($A10,'RECAP DIRCOM'!$G$6:$CU$12,71,FALSE) -> 1,977 | I10: =VLOOKUP($A10,'RECAP DIRCOM'!$G$6:$CU$12,72,FALSE) -> 17.41 | J10: =VLOOKUP($A10,'RECAP DIRCOM'!$G$6:$CU$12,73,FALSE) -> 23% | K10: =VLOOKUP($A10,'RECAP DIRCOM'!$G$6:$CU$12,74,FALSE) -> 5 | L10: =VLOOKUP($A10,'RECAP DIRCOM'!$G$6:$CU$12,75,FALSE) -> 28% | M10: =VLOOKUP($A10,'RECAP DIRCOM'!$G$6:$CU$12,76,FALSE) -> 28% | N10: =VLOOKUP($A10,'RECAP DIRCOM'!$G$6:$CU$12,77,FALSE) -> 5
A11: 262 | B11: Bas-Rhin | C11: =VLOOKUP($A11,'RECAP DIRCOM'!$G$6:$CU$12,3,FALSE) -> 218 | D11: =VLOOKUP($A11,'RECAP DIRCOM'!$G$6:$CU$12,67,FALSE) -> 12,838 | E11: =VLOOKUP($A11,'RECAP DIRCOM'!$G$6:$CU$12,68,FALSE) -> 58.86 | F11: =VLOOKUP($A11,'RECAP DIRCOM'!$G$6:$CU$12,69,FALSE) -> 30% | G11: =VLOOKUP($A11,'RECAP DIRCOM'!$G$6:$CU$12,70,FALSE) -> 3 | H11: =VLOOKUP($A11,'RECAP DIRCOM'!$G$6:$CU$12,71,FALSE) -> 4,232 | I11: =VLOOKUP($A11,'RECAP DIRCOM'!$G$6:$CU$12,72,FALSE) -> 19.40 | J11: =VLOOKUP($A11,'RECAP DIRCOM'!$G$6:$CU$12,73,FALSE) -> 14% | K11: =VLOOKUP($A11,'RECAP DIRCOM'!$G$6:$CU$12,74,FALSE) -> 4 | L11: =VLOOKUP($A11,'RECAP DIRCOM'!$G$6:$CU$12,75,FALSE) -> 24% | M11: =VLOOKUP($A11,'RECAP DIRCOM'!$G$6:$CU$12,76,FALSE) -> 24% | N11: =VLOOKUP($A11,'RECAP DIRCOM'!$G$6:$CU$12,77,FALSE) -> 4
A12: 264 | B12: Haut-Rhin | C12: =VLOOKUP($A12,'RECAP DIRCOM'!$G$6:$CU$12,3,FALSE) -> 125 | D12: =VLOOKUP($A12,'RECAP DIRCOM'!$G$6:$CU$12,67,FALSE) -> 4,262 | E12: =VLOOKUP($A12,'RECAP DIRCOM'!$G$6:$CU$12,68,FALSE) -> 34.04 | F12: =VLOOKUP($A12,'RECAP DIRCOM'!$G$6:$CU$12,69,FALSE) -> 60% | G12: =VLOOKUP($A12,'RECAP DIRCOM'!$G$6:$CU$12,70,FALSE) -> 7 | H12: =VLOOKUP($A12,'RECAP DIRCOM'!$G$6:$CU$12,71,FALSE) -> 1,928 | I12: =VLOOKUP($A12,'RECAP DIRCOM'!$G$6:$CU$12,72,FALSE) -> 15.40 | J12: =VLOOKUP($A12,'RECAP DIRCOM'!$G$6:$CU$12,73,FALSE) -> 32% | K12: =VLOOKUP($A12,'RECAP DIRCOM'!$G$6:$CU$12,74,FALSE) -> 7 | L12: =VLOOKUP($A12,'RECAP DIRCOM'!$G$6:$CU$12,75,FALSE) -> 49% | M12: =VLOOKUP($A12,'RECAP DIRCOM'!$G$6:$CU$12,76,FALSE) -> 48% | N12: =VLOOKUP($A12,'RECAP DIRCOM'!$G$6:$CU$12,77,FALSE) -> 7
A13: 30 | B13: Marne-Ardennes | C13: =VLOOKUP($A13,'RECAP DIRCOM'!$G$6:$CU$12,3,FALSE) -> 194 | D13: =VLOOKUP($A13,'RECAP DIRCOM'!$G$6:$CU$12,67,FALSE) -> 15,552 | E13: =VLOOKUP($A13,'RECAP DIRCOM'!$G$6:$CU$12,68,FALSE) -> 80.26 | F13: =VLOOKUP($A13,'RECAP DIRCOM'!$G$6:$CU$12,69,FALSE) -> 5% | G13: =VLOOKUP($A13,'RECAP DIRCOM'!$G$6:$CU$12,70,FALSE) -> 2 | H13: =VLOOKUP($A13,'RECAP DIRCOM'!$G$6:$CU$12,71,FALSE) -> 4,389 | I13: =VLOOKUP($A13,'RECAP DIRCOM'!$G$6:$CU$12,72,FALSE) -> 22.65 | J13: =VLOOKUP($A13,'RECAP DIRCOM'!$G$6:$CU$12,73,FALSE) -> 0% | K13: =VLOOKUP($A13,'RECAP DIRCOM'!$G$6:$CU$12,74,FALSE) -> 1 | L13: =VLOOKUP($A13,'RECAP DIRCOM'!$G$6:$CU$12,75,FALSE) -> 3% | M13: =VLOOKUP($A13,'RECAP DIRCOM'!$G$6:$CU$12,76,FALSE) -> 3% | N13: =VLOOKUP($A13,'RECAP DIRCOM'!$G$6:$CU$12,77,FALSE) -> 2
A14: 110 | B14: Meurthe et Moselle Meuse | C14: =VLOOKUP($A14,'RECAP DIRCOM'!$G$6:$CU$12,3,FALSE) -> 203 | D14: =VLOOKUP($A14,'RECAP DIRCOM'!$G$6:$CU$12,67,FALSE) -> 11,883 | E14: =VLOOKUP($A14,'RECAP DIRCOM'!$G$6:$CU$12,68,FALSE) -> 58.66 | F14: =VLOOKUP($A14,'RECAP DIRCOM'!$G$6:$CU$12,69,FALSE) -> 31% | G14: =VLOOKUP($A14,'RECAP DIRCOM'!$G$6:$CU$12,70,FALSE) -> 4 | H14: =VLOOKUP($A14,'RECAP DIRCOM'!$G$6:$CU$12,71,FALSE) -> 4,099 | I14: =VLOOKUP($A14,'RECAP DIRCOM'!$G$6:$CU$12,72,FALSE) -> 20.24 | J14: =VLOOKUP($A14,'RECAP DIRCOM'!$G$6:$CU$12,73,FALSE) -> 11% | K14: =VLOOKUP($A14,'RECAP DIRCOM'!$G$6:$CU$12,74,FALSE) -> 3 | L14: =VLOOKUP($A14,'RECAP DIRCOM'!$G$6:$CU$12,75,FALSE) -> 23% | M14: =VLOOKUP($A14,'RECAP DIRCOM'!$G$6:$CU$12,76,FALSE) -> 22% | N14: =VLOOKUP($A14,'RECAP DIRCOM'!$G$6:$CU$12,77,FALSE) -> 3
A15: 160 | B15: Moselle | C15: =VLOOKUP($A15,'RECAP DIRCOM'!$G$6:$CU$12,3,FALSE) -> 228 | D15: =VLOOKUP($A15,'RECAP DIRCOM'!$G$6:$CU$12,67,FALSE) -> 19,271 | E15: =VLOOKUP($A15,'RECAP DIRCOM'!$G$6:$CU$12,68,FALSE) -> 84.43 | F15: =VLOOKUP($A15,'RECAP DIRCOM'!$G$6:$CU$12,69,FALSE) -> 0% | G15: =VLOOKUP($A15,'RECAP DIRCOM'!$G$6:$CU$12,70,FALSE) -> 1 | H15: =VLOOKUP($A15,'RECAP DIRCOM'!$G$6:$CU$12,71,FALSE) -> 5,129 | I15: =VLOOKUP($A15,'RECAP DIRCOM'!$G$6:$CU$12,72,FALSE) -> 22.47 | J15: =VLOOKUP($A15,'RECAP DIRCOM'!$G$6:$CU$12,73,FALSE) -> 1% | K15: =VLOOKUP($A15,'RECAP DIRCOM'!$G$6:$CU$12,74,FALSE) -> 2 | L15: =VLOOKUP($A15,'RECAP DIRCOM'!$G$6:$CU$12,75,FALSE) -> 0% | M15: =VLOOKUP($A15,'RECAP DIRCOM'!$G$6:$CU$12,76,FALSE) -> 0% | N15: =VLOOKUP($A15,'RECAP DIRCOM'!$G$6:$CU$12,77,FALSE) -> 1
A16: 80 | B16: Vosges | C16: =VLOOKUP($A16,'RECAP DIRCOM'!$G$6:$CU$12,3,FALSE) -> 117 | D16: =VLOOKUP($A16,'RECAP DIRCOM'!$G$6:$CU$12,67,FALSE) -> 5,418 | E16: =VLOOKUP($A16,'RECAP DIRCOM'!$G$6:$CU$12,68,FALSE) -> 46.45 | F16: =VLOOKUP($A16,'RECAP DIRCOM'!$G$6:$CU$12,69,FALSE) -> 45% | G16: =VLOOKUP($A16,'RECAP DIRCOM'!$G$6:$CU$12,70,FALSE) -> 6 | H16: =VLOOKUP($A16,'RECAP DIRCOM'!$G$6:$CU$12,71,FALSE) -> 1,891 | I16: =VLOOKUP($A16,'RECAP DIRCOM'!$G$6:$CU$12,72,FALSE) -> 16.21 | J16: =VLOOKUP($A16,'RECAP DIRCOM'!$G$6:$CU$12,73,FALSE) -> 28% | K16: =VLOOKUP($A16,'RECAP DIRCOM'!$G$6:$CU$12,74,FALSE) -> 6 | L16: =VLOOKUP($A16,'RECAP DIRCOM'!$G$6:$CU$12,75,FALSE) -> 38% | M16: =VLOOKUP($A16,'RECAP DIRCOM'!$G$6:$CU$12,76,FALSE) -> 38% | N16: =VLOOKUP($A16,'RECAP DIRCOM'!$G$6:$CU$12,77,FALSE) -> 6
B17: Total CEGEE Directions Régionales | C17: =SUM(C10:C16) -> 1198

Sheet DC_SATISFACTION
B1: Accueil | D1: BAROMETRE BDD - DIRECTIONS REGIONALES
D2: SATISFACTION
D3: =ACCUEIL!F7 -> 2022-05-22
D7: NPS à froid (SAE) | G7: NPS à chaud (QHD) | J7: Total Satisfaction Clients
D8: =DATEMAJ!E4 -> au 31/03 | E8: coef | F8: ='RECAP DIRCOM'!M4 -> 10% | G8: =DATEMAJ!C5 -> au 31/03 | H8: coef | I8: ='RECAP DIRCOM'!P4 -> 10% | K8: coef | L8: ='RECAP DIRCOM'!S4 -> 20%
B9: Direction | C9: ="ETP perf "&DATEMAJ!$C$28 -> ETP perf 22-mai | E9: % Ecart au 1er | F9: Rang | H9: % Ecart au 1er | I9: Rang | J9: Moyenne ecart au 1er | K9: % Ecart au 1er | L9: Rang CEGEE
A10: 50 | B10: Aube Haute Marne | C10: =VLOOKUP($A10,'RECAP DIRCOM'!$G$6:$CU$12,3,FALSE) -> 114 | D10: =VLOOKUP($A10,'RECAP DIRCOM'!$G$6:$CU$12,5,FALSE) -> 4.25 | E10: =VLOOKUP($A10,'RECAP DIRCOM'!$G$6:$CU$12,6,FALSE) -> 82% | F10: =VLOOKUP($A10,'RECAP DIRCOM'!$G$6:$CU$12,7,FALSE) -> 6 | G10: =VLOOKUP($A10,'RECAP DIRCOM'!$G$6:$CU$12,8,FALSE) -> 54% | H10: =VLOOKUP($A10,'RECAP DIRCOM'!$G$6:$CU$12,9,FALSE) -> 22% | I10: =VLOOKUP($A10,'RECAP DIRCOM'!$G$6:$CU$12,10,FALSE) -> 6 | J10: =VLOOKUP($A10,'RECAP DIRCOM'!$G$6:$CU$12,11,FALSE) -> 52% | K10: =VLOOKUP($A10,'RECAP DIRCOM'!$G$6:$CU$12,12,FALSE) -> 52% | L10: =VLOOKUP($A10,'RECAP DIRCOM'!$G$6:$CU$12,13,FALSE) -> 6
A11: 262 | B11: Bas-Rhin | C11: =VLOOKUP($A11,'RECAP DIRCOM'!$G$6:$CU$12,3,FALSE) -> 218 | D11: =VLOOKUP($A11,'RECAP DIRCOM'!$G$6:$CU$12,5,FALSE) -> 4.5 | E11: =VLOOKUP($A11,'RECAP DIRCOM'!$G$6:$CU$12,6,FALSE) -> 81% | F11: =VLOOKUP($A11,'RECAP DIRCOM'!$G$6:$CU$12,7,FALSE) -> 5 | G11: =VLOOKUP($A11,'RECAP DIRCOM'!$G$6:$CU$12,8,FALSE) -> 60% | H11: =VLOOKUP($A11,'RECAP DIRCOM'!$G$6:$CU$12,9,FALSE) -> 13% | I11: =VLOOKUP($A11,'RECAP DIRCOM'!$G$6:$CU$12,10,FALSE) -> 4 | J11: =VLOOKUP($A11,'RECAP DIRCOM'!$G$6:$CU$12,11,FALSE) -> 47% | K11: =VLOOKUP($A11,'RECAP DIRCOM'!$G$6:$CU$12,12,FALSE) -> 47% | L11: =VLOOKUP($A11,'RECAP DIRCOM'!$G$6:$CU$12,13,FALSE) -> 5
A12: 264 | B12: Haut-Rhin | C12: =VLOOKUP($A12,'RECAP DIRCOM'!$G$6:$CU$12,3,FALSE) -> 125 | D12: =VLOOKUP($A12,'RECAP DIRCOM'!$G$6:$CU$12,5,FALSE) -> 3.25 | E12: =VLOOKUP($A12,'RECAP DIRCOM'!$G$6:$CU$12,6,FALSE) -> 86% | F12: =VLOOKUP($A12,'RECAP DIRCOM'!$G$6:$CU$12,7,FALSE) -> 7 | G12: =VLOOKUP($A12,'RECAP DIRCOM'!$G$6:$CU$12,8,FALSE) -> 50% | H12: =VLOOKUP($A12,'RECAP DIRCOM'!$G$6:$CU$12,9,FALSE) -> 28% | I12: =VLOOKUP($A12,'RECAP DIRCOM'!$G$6:$CU$12,10,FALSE) -> 7 | J12: =VLOOKUP($A12,'RECAP DIRCOM'!$G$6:$CU$12,11,FALSE) -> 57% | K12: =VLOOKUP($A12,'RECAP DIRCOM'!$G$6:$CU$12,12,FALSE) -> 57% | L12: =VLOOKUP($A12,'RECAP DIRCOM'!$G$6:$CU$12,13,FALSE) -> 7
A13: 30 | B13: Marne-Ardennes | C13: =VLOOKUP($A13,'RECAP DIRCOM'!$G$6:$CU$12,3,FALSE) -> 194 | D13: =VLOOKUP($A13,'RECAP DIRCOM'!$G$6:$CU$12,5,FALSE) -> 17.25 | E13: =VLOOKUP($A13,'RECAP DIRCOM'!$G$6:$CU$12,6,FALSE) -> 26% | F13: =VLOOKUP($A13,'RECAP DIRCOM'!$G$6:$CU$12,7,FALSE) -> 2 | G13: =VLOOKUP($A13,'RECAP DIRCOM'!$G$6:$CU$12,8,FALSE) -> 68% | H13: =VLOOKUP($A13,'RECAP DIRCOM'!$G$6:$CU$12,9,FALSE) -> 2% | I13: =VLOOKUP($A13,'RECAP DIRCOM'!$G$6:$CU$12,10,FALSE) -> 2 | J13: =VLOOKUP($A13,'RECAP DIRCOM'!$G$6:$CU$12,11,FALSE) -> 14% | K13: =VLOOKUP($A13,'RECAP DIRCOM'!$G$6:$CU$12,12,FALSE) -> 14% | L13: =VLOOKUP($A13,'RECAP DIRCOM'!$G$6:$CU$12,13,FALSE) -> 2
A14: 110 | B14: Meurthe et Moselle Meuse | C14: =VLOOKUP($A14,'RECAP DIRCOM'!$G$6:$CU$12,3,FALSE) -> 203 | D14: =VLOOKUP($A14,'RECAP DIRCOM'!$G$6:$CU$12,5,FALSE) -> 8.25 | E14: =VLOOKUP($A14,'RECAP DIRCOM'!$G$6:$CU$12,6,FALSE) -> 65% | F14: =VLOOKUP($A14,'RECAP DIRCOM'!$G$6:$CU$12,7,FALSE) -> 4 | G14: =VLOOKUP($A14,'RECAP DIRCOM'!$G$6:$CU$12,8,FALSE) -> 57% | H14: =VLOOKUP($A14,'RECAP DIRCOM'!$G$6:$CU$12,9,FALSE) -> 17% | I14: =VLOOKUP($A14,'RECAP DIRCOM'!$G$6:$CU$12,10,FALSE) -> 5 | J14: =VLOOKUP($A14,'RECAP DIRCOM'!$G$6:$CU$12,11,FALSE) -> 41% | K14: =VLOOKUP($A14,'RECAP DIRCOM'!$G$6:$CU$12,12,FALSE) -> 41% | L14: =VLOOKUP($A14,'RECAP DIRCOM'!$G$6:$CU$12,13,FALSE) -> 4
A15: 160 | B15: Moselle | C15: =VLOOKUP($A15,'RECAP DIRCOM'!$G$6:$CU$12,3,FALSE) -> 228 | D15: =VLOOKUP($A15,'RECAP DIRCOM'!$G$6:$CU$12,5,FALSE) -> 14 | E15: =VLOOKUP($A15,'RECAP DIRCOM'!$G$6:$CU$12,6,FALSE) -> 40% | F15: =VLOOKUP($A15,'RECAP DIRCOM'!$G$6:$CU$12,7,FALSE) -> 3 | G15: =VLOOKUP($A15,'RECAP DIRCOM'!$G$6:$CU$12,8,FALSE) -> 64% | H15: =VLOOKUP($A15,'RECAP DIRCOM'!$G$6:$CU$12,9,FALSE) -> 8% | I15: =VLOOKUP($A15,'RECAP DIRCOM'!$G$6:$CU$12,10,FALSE) -> 3 | J15: =VLOOKUP($A15,'RECAP DIRCOM'!$G$6:$CU$12,11,FALSE) -> 24% | K15: =VLOOKUP($A15,'RECAP DIRCOM'!$G$6:$CU$12,12,FALSE) -> 24% | L15: =VLOOKUP($A15,'RECAP DIRCOM'!$G$6:$CU$12,13,FALSE) -> 3
A16: 80 | B16: Vosges | C16: =VLOOKUP($A16,'RECAP DIRCOM'!$G$6:$CU$12,3,FALSE) -> 117 | D16: =VLOOKUP($A16,'RECAP DIRCOM'!$G$6:$CU$12,5,FALSE) -> 23.25 | E16: =VLOOKUP($A16,'RECAP DIRCOM'!$G$6:$CU$12,6,FALSE) -> 0% | F16: =VLOOKUP($A16,'RECAP DIRCOM'!$G$6:$CU$12,7,FALSE) -> 1 | G16: =VLOOKUP($A16,'RECAP DIRCOM'!$G$6:$CU$12,8,FALSE) -> 69% | H16: =VLOOKUP($A16,'RECAP DIRCOM'!$G$6:$CU$12,9,FALSE) -> 0% | I16: =VLOOKUP($A16,'RECAP DIRCOM'!$G$6:$CU$12,10,FALSE) -> 1 | J16: =VLOOKUP($A16,'RECAP DIRCOM'!$G$6:$CU$12,11,FALSE) -> 0% | K16: =VLOOKUP($A16,'RECAP DIRCOM'!$G$6:$CU$12,12,FALSE) -> 0% | L16: =VLOOKUP($A16,'RECAP DIRCOM'!$G$6:$CU$12,13,FALSE) -> 1
B17: Total CEGEE Directions Régionales | C17: =SUM(C10:C16) -> 1198

Sheet SE_FICHE
A1: Accueil
A2: BAROMETRE BDD
A4: UNITE: | B4: TERRITOIRE | E4: ETP perf : | F4: =VLOOKUP(A5,'RECAP SECT'!$G$6:$I$23,3,FALSE) -> 50.19
A5: =VLOOKUP(B5,LISTES!$H$6:$I$23,2,FALSE) -> 5130 | B5: COLMAR
C6: Coefficient du critére | E6: Résultats | I6: Ecart au 1ier | M6: Evolution | O6: Rang
E7: du 1ier | G7: du territoire | I7: Du mois | K7: Au 31/12/2019
A9: RANG au CLASSEMENT GENERAL | K9: =VLOOKUP($A$5,#REF!,168,FALSE) ->  | M9: =+K9-O9 ->  | O9: =VLOOKUP($A$5,'RECAP SECT'!$G$6:$CY$312,168,FALSE) ->  | S9: =VLOOKUP($A$5,#REF!,154,FALSE) ->  | U9: =+S9-O9 -> 
A11: CRITERE CONQUETE | C11: 15% | O11: =VLOOKUP($A$5,'RECAP SECT'!$G$6:$CY$312,23,FALSE) -> 24.02869097
B12: PNB Evolution nette Clients BP | C12: 4% | E12: ='RECAP SECT'!#REF! ->  | G12: =VLOOKUP($A$5,'RECAP SECT'!$G$6:$CY$312,6,FALSE) -> 0.9 | I12: =VLOOKUP($A$5,'RECAP SECT'!$G$6:$CY$312,7,FALSE) -> 1400% | K12: =VLOOKUP($A$5,#REF!,7,FALSE) ->  | M12: =+K12-I12 ->  | O12: =VLOOKUP($A$5,'RECAP SECT'!$G$6:$CY$312,8,FALSE) -> 0.5261210315 | S12: =VLOOKUP($A$5,#REF!,6,FALSE) ->  | U12: =+S12-I12 -> 
B13: PNB Evolution nette Clients PREMIUM | C13: 5% | E13: ='RECAP SECT'!#REF! ->  | G13: =VLOOKUP($A$5,'RECAP SECT'!$G$6:$CY$312,10,FALSE) -> 15.0 | I13: =VLOOKUP($A$5,'RECAP SECT'!$G$6:$CY$312,11,FALSE) -> 59% | K13: =VLOOKUP($A$5,#REF!,11,FALSE) ->  | M13: =+K13-I13 ->  | O13: =VLOOKUP($A$5,'RECAP SECT'!$G$6:$CY$312,12,FALSE) -> 0.546263742 | S13: =VLOOKUP($A$5,#REF!,9,FALSE) ->  | U13: =+S13-I13 -> 
B14: PNB Evolution nette Clients Jeunes Equipés | C14: 3% | E14: ='RECAP SECT'!#REF! ->  | G14: =VLOOKUP($A$5,'RECAP SECT'!$G$6:$CY$312,14,FALSE) -> 0.0 | I14: =VLOOKUP($A$5,'RECAP SECT'!$G$6:$CY$312,15,FALSE) -> 0% | K14: =VLOOKUP($A$5,#REF!,15,FALSE) ->  | M14: =+K14-I14 ->  | O14: =VLOOKUP($A$5,'RECAP SECT'!$G$6:$CY$312,16,FALSE) -> 0 | S14: =VLOOKUP($A$5,#REF!,12,FALSE) ->  | U14: =+S14-I14 -> 
B15: PNB Evolution nette Clients Pro Actifs Equipés | C15: 3% | E15: ='RECAP SECT'!W4 -> 0.0 | G15: =VLOOKUP($A$5,'RECAP SECT'!$G$6:$CY$312,18,FALSE) -> 318.9 | I15: =VLOOKUP($A$5,'RECAP SECT'!$G$6:$CY$312,19,FALSE) -> 635% | K15: =VLOOKUP($A$5,#REF!,19,FALSE) ->  | M15: =+K15-I15 ->  | O15: =VLOOKUP($A$5,'RECAP SECT'!$G$6:$CY$312,20,FALSE) -> 0.7206754544 | S15: =VLOOKUP($A$5,#REF!,15,FALSE) ->  | U15: =+S15-I15 -> 
A17: CRITERE BANCARISATION | C17: 15% | O17: =VLOOKUP($A$5,'RECAP SECT'!$G$6:$CY$312,48,FALSE) -> 3536.957043
B18: PNB Ventes nettes forfaits | C18: 4% | E18: ='RECAP SECT'!X4 -> 22.7 | G18: =VLOOKUP($A$5,'RECAP SECT'!$G$6:$CY$312,31,FALSE) -> 0.0 | I18: =VLOOKUP($A$5,'RECAP SECT'!$G$6:$CY$312,32,FALSE) -> 0% | K18: =VLOOKUP($A$5,#REF!,32,FALSE) ->  | M18: =+K18-I18 ->  | O18: =VLOOKUP($A$5,'RECAP SECT'!$G$6:$CY$312,33,FALSE) -> 9253.040394 | S18: =VLOOKUP($A$5,#REF!,27,FALSE) ->  | U18: =+S18-I18 -> 
B19: PNB Ventes nettes IZICARTES Débit Différé | C19: 4% | E19: ='RECAP SECT'!AB4 -> 42.7 | G19: =VLOOKUP($A$5,'RECAP SECT'!$G$6:$CY$312,35,FALSE) -> 0.5 | I19: =VLOOKUP($A$5,'RECAP SECT'!$G$6:$CY$312,36,FALSE) -> 1100% | K19: =VLOOKUP($A$5,#REF!,36,FALSE) ->  | M19: =+K19-I19 ->  | O19: =VLOOKUP($A$5,'RECAP SECT'!$G$6:$CY$312,37,FALSE) -> 1107 | S19: =VLOOKUP($A$5,#REF!,30,FALSE) ->  | U19: =+S19-I19 -> 
B20: PNB Ventes nettes cartes HDG Débit Différé | C20: 4% | E20: ='RECAP SECT'!#REF! ->  | G20: =VLOOKUP($A$5,'RECAP SECT'!$G$6:$CY$312,39,FALSE) -> 0.5 | I20: =VLOOKUP($A$5,'RECAP SECT'!$G$6:$CY$312,40,FALSE) -> 1800% | K20: =VLOOKUP($A$5,#REF!,40,FALSE) ->  | M20: =+K20-I20 ->  | O20: =VLOOKUP($A$5,'RECAP SECT'!$G$6:$CY$312,41,FALSE) -> 0.5013913214 | S20: =VLOOKUP($A$5,#REF!,33,FALSE) ->  | U20: =+S20-I20 -> 
B21: PNB Ventes nettes Forfaits Pro, Carte pro | C21: 3% | E21: ='RECAP SECT'!#REF! ->  | G21: =VLOOKUP($A$5,'RECAP SECT'!$G$6:$CY$312,43,FALSE) -> 14.0 | I21: =VLOOKUP($A$5,'RECAP SECT'!$G$6:$CY$312,44,FALSE) -> 0% | K21: =VLOOKUP($A$5,#REF!,44,FALSE) ->  | M21: =+K21-I21 ->  | O21: =VLOOKUP($A$5,'RECAP SECT'!$G$6:$CY$312,45,FALSE) -> 0 | S21: =VLOOKUP($A$5,#REF!,39,FALSE) ->  | U21: =+S21-I21 -> 
A23: CRITERE EPARGNE | C23: 10% | O23: =VLOOKUP($A$5,'RECAP SECT'!$G$6:$CY$312,69,FALSE) -> 0.509130491
B24: PNB Epargne Liquide | C24: 3% | E24: ='RECAP SECT'!AM4 -> 365.8 | G24: =VLOOKUP($A$5,'RECAP SECT'!$G$6:$CY$312,56,FALSE) -> 450.0 | I24: =VLOOKUP($A$5,'RECAP SECT'!$G$6:$CY$312,57,FALSE) -> 897% | K24: =VLOOKUP($A$5,#REF!,57,FALSE) ->  | M24: =+K24-I24 ->  | O24: =VLOOKUP($A$5,'RECAP SECT'!$G$6:$CY$312,58,FALSE) -> 0.5645570024 | S24: =VLOOKUP($A$5,#REF!,51,FALSE) ->  | U24: =+S24-I24 -> 
B25: PNB CA UC + arbitrage | C25: 4% | E25: ='RECAP SECT'!AQ4 -> 45.0 | G25: =VLOOKUP($A$5,'RECAP SECT'!$G$6:$CY$312,60,FALSE) -> 0.5 | I25: =VLOOKUP($A$5,'RECAP SECT'!$G$6:$CY$312,61,FALSE) -> 48% | K25: =VLOOKUP($A$5,#REF!,61,FALSE) ->  | M25: =+K25-I25 ->  | O25: =VLOOKUP($A$5,'RECAP SECT'!$G$6:$CY$312,62,FALSE) -> 18 | S25: =VLOOKUP($A$5,#REF!,57,FALSE) ->  | U25: =+S25-I25 -> 
B26: PNB Excédent assurance vie | C26: 3% | E26: ='RECAP SECT'!#REF! ->  | G26: =VLOOKUP($A$5,'RECAP SECT'!$G$6:$CY$312,64,FALSE) -> 0.0 | I26: =VLOOKUP($A$5,'RECAP SECT'!$G$6:$CY$312,65,FALSE) -> 0% | K26: =VLOOKUP($A$5,#REF!,65,FALSE) ->  | M26: =+K26-I26 ->  | O26: =VLOOKUP($A$5,'RECAP SECT'!$G$6:$CY$312,66,FALSE) -> 0 | S26: =VLOOKUP($A$5,#REF!,60,FALSE) ->  | U26: =+S26-I26 -> 
A28: CRITERE CREDITS | C28: 15% | O28: =VLOOKUP($A$5,'RECAP SECT'!$G$6:$CY$312,102,FALSE) -> 
B29: PNB crédit conso | C29: 4% | E29: ='RECAP SECT'!BB4 -> 243.9 | G29: =VLOOKUP($A$5,'RECAP SECT'!$G$6:$CY$312,77,FALSE) -> 16.0 | I29: =VLOOKUP($A$5,'RECAP SECT'!$G$6:$CY$312,78,FALSE) -> 0% | K29: =VLOOKUP($A$5,#REF!,78,FALSE) ->  | M29: =+K29-I29 ->  | O29: =VLOOKUP($A$5,'RECAP SECT'!$G$6:$CY$312,79,FALSE) -> 0 | S29: =VLOOKUP($A$5,#REF!,75,FALSE) ->  | U29: =+S29-I29 -> 
B30: PNB ADE crédit conso | C30: 1% | E30: ='RECAP SECT'!#REF! ->  | G30: =VLOOKUP($A$5,'RECAP SECT'!$G$6:$CY$312,81,FALSE) -> 0.0 | I30: =VLOOKUP($A$5,'RECAP SECT'!$G$6:$CY$312,82,FALSE) -> 0% | K30: =VLOOKUP($A$5,#REF!,82,FALSE) ->  | O30: =VLOOKUP($A$5,'RECAP SECT'!$G$6:$CY$312,83,FALSE) -> 0 | S30: =VLOOKUP($A$5,#REF!,78,FALSE) -> 
B31: PNB crédit immo | C31: 4% | E31: ='RECAP SECT'!BF4 -> 36.9 | G31: =VLOOKUP($A$5,'RECAP SECT'!$G$6:$CY$312,85,FALSE) -> 0.0 | I31: =VLOOKUP($A$5,'RECAP SECT'!$G$6:$CY$312,86,FALSE) -> 0% | K31: =VLOOKUP($A$5,#REF!,86,FALSE) ->  | O31: =VLOOKUP($A$5,'RECAP SECT'!$G$6:$CY$312,87,FALSE) -> 0 | S31: =VLOOKUP($A$5,#REF!,81,FALSE) -> 
B32: PNB ADE crédit immo | C32: 2% | E32: ='RECAP SECT'!#REF! ->  | G32: =VLOOKUP($A$5,'RECAP SECT'!$G$6:$CY$312,89,FALSE) -> 0.0 | I32: =VLOOKUP($A$5,'RECAP SECT'!$G$6:$CY$312,90,FALSE) -> 0% | K32: =VLOOKUP($A$5,#REF!,90,FALSE) ->  | O32: =VLOOKUP($A$5,'RECAP SECT'!$G$6:$CY$312,91,FALSE) -> 0 | S32: =VLOOKUP($A$5,#REF!,84,FALSE) -> 
B33: PNB SACCEF | C33: 2% | E33: ='RECAP SECT'!#REF! ->  | G33: =VLOOKUP($A$5,'RECAP SECT'!$G$6:$CY$312,93,FALSE) -> 0.0 | I33: =VLOOKUP($A$5,'RECAP SECT'!$G$6:$CY$312,94,FALSE) -> 50% | K33: =VLOOKUP($A$5,#REF!,94,FALSE) ->  | O33: =VLOOKUP($A$5,'RECAP SECT'!$G$6:$CY$312,95,FALSE) -> 0.3588050974 | S33: =VLOOKUP($A$5,#REF!,87,FALSE) -> 
B34: PNB Crédit MLT + Crédit Bail | C34: 2% | E34: ='RECAP SECT'!BJ4 -> 20.6 | G34: =VLOOKUP($A$5,'RECAP SECT'!$G$6:$CY$312,97,FALSE) -> 0.0 | I34: =VLOOKUP($A$5,'RECAP SECT'!$G$6:$CY$312,98,FALSE) ->  | K34: =VLOOKUP($A$5,#REF!,98,FALSE) ->  | O34: =VLOOKUP($A$5,'RECAP SECT'!$G$6:$CY$312,99,FALSE) ->  | S34: =VLOOKUP($A$5,#REF!,90,FALSE) -> 
A36: CRITERE IARD PREVOYANCE | C36: 15% | O36: =VLOOKUP($A$5,'RECAP SECT'!$G$6:$CY$312,119,FALSE) -> 
B37: PNB Ventes nettes IARD | C37: 9% | E37: ='RECAP SECT'!BU4 -> 123.9 | G37: =VLOOKUP($A$5,'RECAP SECT'!$G$6:$CY$312,110,FALSE) ->  | I37: =VLOOKUP($A$5,'RECAP SECT'!$G$6:$CY$312,111,FALSE) ->  | K37: =VLOOKUP($A$5,#REF!,111,FALSE) ->  | M37: =+K37-I37 ->  | O37: =VLOOKUP($A$5,'RECAP SECT'!$G$6:$CY$312,112,FALSE) ->  | S37: =VLOOKUP($A$5,#REF!,102,FALSE) ->  | U37: =+S37-I37 -> 
B38: PNB Ventes nettes Prévoyance | C38: 6% | E38: ='RECAP SECT'!BY4 -> 31.0 | G38: =VLOOKUP($A$5,'RECAP SECT'!$G$6:$CY$312,114,FALSE) ->  | I38: =VLOOKUP($A$5,'RECAP SECT'!$G$6:$CY$312,115,FALSE) ->  | K38: =VLOOKUP($A$5,#REF!,115,FALSE) ->  | M38: =+K38-I38 ->  | O38: =VLOOKUP($A$5,'RECAP SECT'!$G$6:$CY$312,116,FALSE) ->  | S38: =VLOOKUP($A$5,#REF!,105,FALSE) ->  | U38: =+S38-I38 -> 
A40: CRITERE ACCELERATEURS PNB | C40: 15% | O40: =VLOOKUP($A$5,'RECAP SECT'!$G$6:$CY$312,144,FALSE) -> 
B41: PNB Ventes brutes SED Finalisées | C41: 6% | E41: ='RECAP SECT'!#REF! ->  | G41: =VLOOKUP($A$5,'RECAP SECT'!$G$6:$CY$312,127,FALSE) ->  | I41: =VLOOKUP($A$5,'RECAP SECT'!$G$6:$CY$312,128,FALSE) ->  | K41: =VLOOKUP($A$5,#REF!,128,FALSE) ->  | M41: =+K41-I41 ->  | O41: =VLOOKUP($A$5,'RECAP SECT'!$G$6:$CY$312,129,FALSE) ->  | S41: =VLOOKUP($A$5,#REF!,120,FALSE) ->  | U41: =+S41-I41 -> 
B42: PNB clients équipés E documents | C42: 3% | E42: ='RECAP SECT'!#REF! ->  | G42: =VLOOKUP($A$5,'RECAP SECT'!$G$6:$CY$312,131,FALSE) ->  | I42: =VLOOKUP($A$5,'RECAP SECT'!$G$6:$CY$312,132,FALSE) ->  | K42: =VLOOKUP($A$5,#REF!,132,FALSE) ->  | M42: =+K42-I42 ->  | O42: =VLOOKUP($A$5,'RECAP SECT'!$G$6:$CY$312,133,FALSE) ->  | S42: =VLOOKUP($A$5,#REF!,123,FALSE) ->  | U42: =+S42-I42 -> 
B43: Economie opt'in | C43: 3% | E43: ='RECAP SECT'!#REF! ->  | G43: =VLOOKUP($A$5,'RECAP SECT'!$G$6:$CY$312,135,FALSE) ->  | I43: =VLOOKUP($A$5,'RECAP SECT'!$G$6:$CY$312,136,FALSE) ->  | K43: =VLOOKUP($A$5,#REF!,136,FALSE) ->  | M43: =+K43-I43 ->  | O43: =VLOOKUP($A$5,'RECAP SECT'!$G$6:$CY$312,137,FALSE) -> 
B44: Remises commerciales | C44: 3% | E44: ='RECAP SECT'!#REF! ->  | G44: =VLOOKUP($A$5,'RECAP SECT'!$G$6:$CY$312,139,FALSE) ->  | I44: =VLOOKUP($A$5,'RECAP SECT'!$G$6:$CY$312,140,FALSE) ->  | K44: =VLOOKUP($A$5,#REF!,140,FALSE) ->  | M44: =+K44-I44 ->  | O44: =VLOOKUP($A$5,'RECAP SECT'!$G$6:$CY$312,141,FALSE) ->  | S44: =VLOOKUP($A$5,#REF!,126,FALSE) ->  | U44: =+S44-I44 -> 
A46: CRITERE Satisfaction Clients | C46: 15% | O46: =VLOOKUP($A$5,'RECAP SECT'!$G$6:$CY$312,159,FALSE) -> 
B47: Objectifs NPS* | C47: 8% | E47: ='RECAP SECT'!K4 -> 28 | G47: =VLOOKUP($A$5,'RECAP SECT'!$G$6:$CY$312,151,FALSE) ->  | I47: =VLOOKUP($A$5,'RECAP SECT'!$G$6:$CY$312,152,FALSE) ->  | K47: =VLOOKUP($A$5,#REF!,152,FALSE) ->  | M47: =+K47-I47 ->  | O47: =VLOOKUP($A$5,'RECAP SECT'!$G$6:$CY$312,153,FALSE) ->  | S47: =VLOOKUP($A$5,#REF!,138,FALSE) ->  | U47: =+S47-I47 -> 
B48: Enquête Qualité Haute Définition | C48: 7% | E48: ='RECAP SECT'!N4 -> 75% | G48: =VLOOKUP($A$5,'RECAP SECT'!$G$6:$CY$312,154,FALSE) ->  | I48: =VLOOKUP($A$5,'RECAP SECT'!$G$6:$CY$312,155,FALSE) ->  | K48: =VLOOKUP($A$5,#REF!,155,FALSE) ->  | M48: =+K48-I48 ->  | O48: =VLOOKUP($A$5,'RECAP SECT'!$G$6:$CY$312,156,FALSE) ->  | S48: =VLOOKUP($A$5,#REF!,141,FALSE) ->  | U48: =+S48-I48 -> 

Sheet SE_TOTAL
B1: Accueil | F1: BAROMETRE BDD - TERRITOIRES
F2: TOTAL GENERAL
F3: =ACCUEIL!F7 -> 2022-05-22
F7: TOTAL GENERAL | I7: Total Satisfaction Clients | L7: Total Bancarisation | O7: Total Epargne | R7: Total IARD Prévoyance | U7: Total Crédits
G8: coef | H8: =K8+N8+Q8+T8+W8 -> 100% | J8: coef | K8: =SE_SATISFACTION!N8 -> 20% | M8: coef | N8: =SE_BANCA!P8 -> 20% | P8: coef | Q8: =SE_EPARGNE!P8 -> 20% | S8: coef | T8: =SE_IARD!P8 -> 20% | V8: coef | W8: =SE_CREDIT!T8 -> 20%
B9: Direction | C9: eds | D9: Territoire | E9: ="ETP perf "&DATEMAJ!$C$28 -> ETP perf 22-mai | F9: Moyenne ecart au 1er | G9: % Ecart au 1er | H9: Rang CEGEE | I9: Moyenne ecart au 1er | J9: % Ecart au 1er | K9: Rang CEGEE | L9: Moyenne ecart au 1er | M9: % Ecart au 1er | N9: Rang CEGEE | O9: Moyenne ecart au 1er | P9: % Ecart au 1er | Q9: Rang CEGEE | R9: Moyenne ecart au 1er | S9: % Ecart au 1er | T9: Rang CEGEE | U9: Moyenne ecart au 1er | V9: % Ecart au 1er | W9: Rang CEGEE
A10: 50 | B10: MOSELLE | C10: 44 | D10: MOSELLE NORD | E10: 57.4 | F10: 14% | G10: 0% | H10: 1 | I10: 41% | J10: 36% | K10: 12 | L10: 1% | M10: 0% | N10: 1 | O10: 42% | P10: 33% | Q10: 9 | R10: 0% | S10: 0% | T10: 1 | U10: 6% | V10: 0% | W10: 1
A11: 50 | B11: MARNE-ARDENNES | C11: 2 | D11: CHARLEVILLE MEZIERES | E11: 48.8 | F11: 19% | G11: 5% | H11: 2 | I11: 30% | J11: 25% | K11: 6 | L11: 36% | M11: 35% | N11: 8 | O11: 21% | P11: 12% | Q11: 2 | R11: 9% | S11: 9% | T11: 2 | U11: 19% | V11: 13% | W11: 4
A12: 262 | B12: MOSELLE | C12: 42 | D12: MOSELLE EST | E12: 60.5 | F12: 20% | G12: 7% | H12: 3 | I12: 26% | J12: 21% | K12: 4 | L12: 25% | M12: 24% | N12: 3 | O12: 30% | P12: 21% | Q12: 4 | R12: 16% | S12: 16% | T12: 4 | U12: 26% | V12: 20% | W12: 6
A13: 262 | B13: MARNE-ARDENNES | C13: 11 | D13: REIMS | E13: 69.1 | F13: 22% | G13: 8% | H13: 4 | I13: 30% | J13: 25% | K13: 9 | L13: 14% | M13: 13% | N13: 2 | O13: 64% | P13: 55% | Q13: 16 | R13: 15% | S13: 15% | T13: 3 | U13: 8% | V13: 2% | W13: 2
A14: 262 | B14: MOSELLE | C14: 45 | D14: METZ | E14: 72.9 | F14: 24% | G14: 10% | H14: 5 | I14: 30% | J14: 25% | K14: 7 | L14: 42% | M14: 42% | N14: 11 | O14: 9% | P14: 0% | Q14: 1 | R14: 30% | S14: 30% | T14: 8 | U14: 28% | V14: 22% | W14: 8
A15: 264 | B15: BAS-RHIN | C15: 5006 | D15: STRASBOURG | E15: 65.1 | F15: 26% | G15: 12% | H15: 6 | I15: 36% | J15: 31% | K15: 11 | L15: 32% | M15: 31% | N15: 4 | O15: 28% | P15: 19% | Q15: 3 | R15: 17% | S15: 17% | T15: 5 | U15: 38% | V15: 32% | W15: 11
A16: 264 | B16: MARNE-ARDENNES | C16: 6 | D16: CHALONS EN CHAMPAGNE | E16: 38.7 | F16: 28% | G16: 14% | H16: 7 | I16: 7% | J16: 3% | K16: 2 | L16: 32% | M16: 31% | N16: 5 | O16: 64% | P16: 55% | Q16: 15 | R16: 26% | S16: 26% | T16: 7 | U16: 32% | V16: 26% | W16: 9
A17: 30 | B17: MEURTHE ET MOSELLE MEUSE | C17: 26 | D17: NANCY | E17: 55.5 | F17: 29% | G17: 15% | H17: 8 | I17: 46% | J17: 41% | K17: 13 | L17: 34% | M17: 33% | N17: 7 | O17: 35% | P17: 26% | Q17: 7 | R17: 38% | S17: 38% | T17: 12 | U17: 13% | V17: 7% | W17: 3
A18: 30 | B18: AUBE HAUTE MARNE | C18: 21 | D18: CHAUMONT | E18: 33.7 | F18: 31% | G18: 17% | H18: 9 | I18: 30% | J18: 25% | K18: 8 | L18: 45% | M18: 44% | N18: 13 | O18: 33% | P18: 24% | Q18: 6 | R18: 31% | S18: 31% | T18: 9 | U18: 35% | V18: 28% | W18: 10
A19: 30 | B19: MEURTHE ET MOSELLE MEUSE | C19: 31 | D19: VERDUN | E19: 48.2 | F19: 31% | G19: 17% | H19: 10 | I19: 27% | J19: 23% | K19: 5 | L19: 37% | M19: 36% | N19: 10 | O19: 47% | P19: 38% | Q19: 12 | R19: 38% | S19: 38% | T19: 11 | U19: 28% | V19: 22% | W19: 7
A20: 110 | B20: VOSGES | C20: 57 | D20: EPINAL | E20: 53.3 | F20: 32% | G20: 18% | H20: 11 | I20: 16% | J20: 12% | K20: 3 | L20: 50% | M20: 49% | N20: 14 | O20: 31% | P20: 22% | Q20: 5 | R20: 38% | S20: 38% | T20: 13 | U20: 44% | V20: 38% | W20: 15
A21: 110 | B21: MEURTHE ET MOSELLE MEUSE | C21: 27 | D21: PONT A MOUSSON | E21: 59.6 | F21: 34% | G21: 20% | H21: 12 | I21: 62% | J21: 58% | K21: 15 | L21: 34% | M21: 33% | N21: 6 | O21: 50% | P21: 41% | Q21: 13 | R21: 23% | S21: 23% | T21: 6 | U21: 20% | V21: 14% | W21: 5
A22: 110 | B22: VOSGES | C22: 55 | D22: SAINT DIE | E22: 39.8 | F22: 36% | G22: 23% | H22: 13 | I22: 4% | J22: 0% | K22: 1 | L22: 55% | M22: 54% | N22: 15 | O22: 46% | P22: 37% | Q22: 11 | R22: 56% | S22: 56% | T22: 17 | U22: 41% | V22: 35% | W22: 12
A23: 160 | B23: BAS-RHIN | C23: 5060 | D23: HAGUENAU | E23: 56.3 | F23: 37% | G23: 23% | H23: 14 | I23: 34% | J23: 30% | K23: 10 | L23: 44% | M23: 43% | N23: 12 | O23: 38% | P23: 29% | Q23: 8 | R23: 42% | S23: 42% | T23: 15 | U23: 48% | V23: 42% | W23: 17
A24: 160 | B24: BAS-RHIN | C24: 5101 | D24: SELESTAT | E24: 49.2 | F24: 40% | G24: 27% | H24: 15 | I24: 62% | J24: 58% | K24: 16 | L24: 37% | M24: 36% | N24: 9 | O24: 43% | P24: 34% | Q24: 10 | R24: 39% | S24: 39% | T24: 14 | U24: 42% | V24: 35% | W24: 13
A25: 160 | B25: HAUT-RHIN | C25: 5130 | D25: COLMAR | E25: 50.2 | F25: 50% | G25: 36% | H25: 16 | I25: 59% | J25: 55% | K25: 14 | L25: 61% | M25: 60% | N25: 17 | O25: 50% | P25: 41% | Q25: 14 | R25: 45% | S25: 45% | T25: 16 | U25: 54% | V25: 48% | W25: 18
A26: 80 | B26: AUBE HAUTE MARNE | C26: 14 | D26: TROYES | E26: 54.2 | F26: 50% | G26: 37% | H26: 17 | I26: 68% | J26: 64% | K26: 18 | L26: 60% | M26: 59% | N26: 16 | O26: 65% | P26: 56% | Q26: 17 | R26: 37% | S26: 37% | T26: 10 | U26: 42% | V26: 36% | W26: 14
A27: 80 | B27: HAUT-RHIN | C27: 5169 | D27: MULHOUSE | E27: 45.7 | F27: 59% | G27: 45% | H27: 18 | I27: 63% | J27: 59% | K27: 17 | L27: 72% | M27: 71% | N27: 18 | O27: 69% | P27: 60% | Q27: 18 | R27: 61% | S27: 61% | T27: 18 | U27: 48% | V27: 42% | W27: 16
A28: Total CEGEE Directions Régionales | E28: =SUM(E10:E27) -> 958

Sheet SE_BANCA
B1: Accueil | F1: BAROMETRE BDD - TERRITOIRES
F2: BANCARISATION
F3: =ACCUEIL!F7 -> 2022-05-22
F7: Ventes Nettes produits pondérés | J7: Ventes sur client non détenteur de l’univers | N7: Total Bancarisation
F8: =DATEMAJ!C8 -> au 22/05 | H8: coef | I8: ='RECAP DIRCOM'!AA4 -> 12% | J8: =DATEMAJ!C9 -> au 22/05 | L8: coef | M8: ='RECAP DIRCOM'!AE4 -> 8% | O8: coef | P8: ='RECAP DIRCOM'!AH4 -> 20%
B9: Direction | C9: eds | D9: Territoire | E9: ="ETP perf "&DATEMAJ!$C$28 -> ETP perf 22-mai | F9: VN | G9: VN / ETP | H9: % Ecart au 1er | I9: Rang | J9: VB | K9: VB / ETP | L9: % Ecart au 1er | M9: Rang | N9: Moyenne ecart au 1er | O9: % Ecart au 1er | P9: Rang CEGEE
A10: 50 | B10: AUBE HAUTE MARNE | C10: 21 | D10: CHAUMONT | E10: =VLOOKUP($C10,'RECAP SECT'!$G$6:$CU$253,3,FALSE) -> 33.7 | F10: =VLOOKUP($C10,'RECAP SECT'!$G$6:$CU$253,18,FALSE) -> 335 | G10: =VLOOKUP($C10,'RECAP SECT'!$G$6:$CU$253,19,FALSE) -> 9.94 | H10: =VLOOKUP($C10,'RECAP SECT'!$G$6:$CU$253,20,FALSE) -> 56% | I10: =VLOOKUP($C10,'RECAP SECT'!$G$6:$CU$253,21,FALSE) -> 13 | J10: =VLOOKUP($C10,'RECAP SECT'!$G$6:$CU$253,22,FALSE) -> 1,049 | K10: =VLOOKUP($C10,'RECAP SECT'!$G$6:$CU$253,23,FALSE) -> 31.11 | L10: =VLOOKUP($C10,'RECAP SECT'!$G$6:$CU$253,24,FALSE) -> 27% | M10: =VLOOKUP($C10,'RECAP SECT'!$G$6:$CU$253,25,FALSE) -> 10 | N10: =VLOOKUP($C10,'RECAP SECT'!$G$6:$CU$253,26,FALSE) -> 45% | O10: =VLOOKUP($C10,'RECAP SECT'!$G$6:$CU$253,27,FALSE) -> 44% | P10: =VLOOKUP($C10,'RECAP SECT'!$G$6:$CU$253,28,FALSE) -> 13
A11: 50 | B11: AUBE HAUTE MARNE | C11: 14 | D11: TROYES | E11: =VLOOKUP($C11,'RECAP SECT'!$G$6:$CU$253,3,FALSE) -> 54.2 | F11: =VLOOKUP($C11,'RECAP SECT'!$G$6:$CU$253,18,FALSE) -> 249 | G11: =VLOOKUP($C11,'RECAP SECT'!$G$6:$CU$253,19,FALSE) -> 4.59 | H11: =VLOOKUP($C11,'RECAP SECT'!$G$6:$CU$253,20,FALSE) -> 80% | I11: =VLOOKUP($C11,'RECAP SECT'!$G$6:$CU$253,21,FALSE) -> 17 | J11: =VLOOKUP($C11,'RECAP SECT'!$G$6:$CU$253,22,FALSE) -> 1,643 | K11: =VLOOKUP($C11,'RECAP SECT'!$G$6:$CU$253,23,FALSE) -> 30.29 | L11: =VLOOKUP($C11,'RECAP SECT'!$G$6:$CU$253,24,FALSE) -> 29% | M11: =VLOOKUP($C11,'RECAP SECT'!$G$6:$CU$253,25,FALSE) -> 12 | N11: =VLOOKUP($C11,'RECAP SECT'!$G$6:$CU$253,26,FALSE) -> 60% | O11: =VLOOKUP($C11,'RECAP SECT'!$G$6:$CU$253,27,FALSE) -> 59% | P11: =VLOOKUP($C11,'RECAP SECT'!$G$6:$CU$253,28,FALSE) -> 16
A12: 262 | B12: BAS-RHIN | C12: 5060 | D12: HAGUENAU | E12: =VLOOKUP($C12,'RECAP SECT'!$G$6:$CU$253,3,FALSE) -> 56.3 | F12: =VLOOKUP($C12,'RECAP SECT'!$G$6:$CU$253,18,FALSE) -> 680 | G12: =VLOOKUP($C12,'RECAP SECT'!$G$6:$CU$253,19,FALSE) -> 12.08 | H12: =VLOOKUP($C12,'RECAP SECT'!$G$6:$CU$253,20,FALSE) -> 47% | I12: =VLOOKUP($C12,'RECAP SECT'!$G$6:$CU$253,21,FALSE) -> 8 | J12: =VLOOKUP($C12,'RECAP SECT'!$G$6:$CU$253,22,FALSE) -> 1,467 | K12: =VLOOKUP($C12,'RECAP SECT'!$G$6:$CU$253,23,FALSE) -> 26.08 | L12: =VLOOKUP($C12,'RECAP SECT'!$G$6:$CU$253,24,FALSE) -> 39% | M12: =VLOOKUP($C12,'RECAP SECT'!$G$6:$CU$253,25,FALSE) -> 16 | N12: =VLOOKUP($C12,'RECAP SECT'!$G$6:$CU$253,26,FALSE) -> 44% | O12: =VLOOKUP($C12,'RECAP SECT'!$G$6:$CU$253,27,FALSE) -> 43% | P12: =VLOOKUP($C12,'RECAP SECT'!$G$6:$CU$253,28,FALSE) -> 12
A13: 262 | B13: BAS-RHIN | C13: 5101 | D13: SELESTAT | E13: =VLOOKUP($C13,'RECAP SECT'!$G$6:$CU$253,3,FALSE) -> 49.2 | F13: =VLOOKUP($C13,'RECAP SECT'!$G$6:$CU$253,18,FALSE) -> 688 | G13: =VLOOKUP($C13,'RECAP SECT'!$G$6:$CU$253,19,FALSE) -> 13.98 | H13: =VLOOKUP($C13,'RECAP SECT'!$G$6:$CU$253,20,FALSE) -> 39% | I13: =VLOOKUP($C13,'RECAP SECT'!$G$6:$CU$253,21,FALSE) -> 5 | J13: =VLOOKUP($C13,'RECAP SECT'!$G$6:$CU$253,22,FALSE) -> 1,385 | K13: =VLOOKUP($C13,'RECAP SECT'!$G$6:$CU$253,23,FALSE) -> 28.14 | L13: =VLOOKUP($C13,'RECAP SECT'!$G$6:$CU$253,24,FALSE) -> 34% | M13: =VLOOKUP($C13,'RECAP SECT'!$G$6:$CU$253,25,FALSE) -> 14 | N13: =VLOOKUP($C13,'RECAP SECT'!$G$6:$CU$253,26,FALSE) -> 37% | O13: =VLOOKUP($C13,'RECAP SECT'!$G$6:$CU$253,27,FALSE) -> 36% | P13: =VLOOKUP($C13,'RECAP SECT'!$G$6:$CU$253,28,FALSE) -> 9
A14: 262 | B14: BAS-RHIN | C14: 5006 | D14: STRASBOURG | E14: =VLOOKUP($C14,'RECAP SECT'!$G$6:$CU$253,3,FALSE) -> 65.1 | F14: =VLOOKUP($C14,'RECAP SECT'!$G$6:$CU$253,18,FALSE) -> 816 | G14: =VLOOKUP($C14,'RECAP SECT'!$G$6:$CU$253,19,FALSE) -> 12.54 | H14: =VLOOKUP($C14,'RECAP SECT'!$G$6:$CU$253,20,FALSE) -> 45% | I14: =VLOOKUP($C14,'RECAP SECT'!$G$6:$CU$253,21,FALSE) -> 6 | J14: =VLOOKUP($C14,'RECAP SECT'!$G$6:$CU$253,22,FALSE) -> 2,437 | K14: =VLOOKUP($C14,'RECAP SECT'!$G$6:$CU$253,23,FALSE) -> 37.46 | L14: =VLOOKUP($C14,'RECAP SECT'!$G$6:$CU$253,24,FALSE) -> 12% | M14: =VLOOKUP($C14,'RECAP SECT'!$G$6:$CU$253,25,FALSE) -> 4 | N14: =VLOOKUP($C14,'RECAP SECT'!$G$6:$CU$253,26,FALSE) -> 32% | O14: =VLOOKUP($C14,'RECAP SECT'!$G$6:$CU$253,27,FALSE) -> 31% | P14: =VLOOKUP($C14,'RECAP SECT'!$G$6:$CU$253,28,FALSE) -> 4
A15: 264 | B15: HAUT-RHIN | C15: 5130 | D15: COLMAR | E15: =VLOOKUP($C15,'RECAP SECT'!$G$6:$CU$253,3,FALSE) -> 50.2 | F15: =VLOOKUP($C15,'RECAP SECT'!$G$6:$CU$253,18,FALSE) -> 319 | G15: =VLOOKUP($C15,'RECAP SECT'!$G$6:$CU$253,19,FALSE) -> 6.35 | H15: =VLOOKUP($C15,'RECAP SECT'!$G$6:$CU$253,20,FALSE) -> 72% | I15: =VLOOKUP($C15,'RECAP SECT'!$G$6:$CU$253,21,FALSE) -> 16 | J15: =VLOOKUP($C15,'RECAP SECT'!$G$6:$CU$253,22,FALSE) -> 1,206 | K15: =VLOOKUP($C15,'RECAP SECT'!$G$6:$CU$253,23,FALSE) -> 24.03 | L15: =VLOOKUP($C15,'RECAP SECT'!$G$6:$CU$253,24,FALSE) -> 44% | M15: =VLOOKUP($C15,'RECAP SECT'!$G$6:$CU$253,25,FALSE) -> 18 | N15: =VLOOKUP($C15,'RECAP SECT'!$G$6:$CU$253,26,FALSE) -> 61% | O15: =VLOOKUP($C15,'RECAP SECT'!$G$6:$CU$253,27,FALSE) -> 60% | P15: =VLOOKUP($C15,'RECAP SECT'!$G$6:$CU$253,28,FALSE) -> 17
A16: 264 | B16: HAUT-RHIN | C16: 5169 | D16: MULHOUSE | E16: =VLOOKUP($C16,'RECAP SECT'!$G$6:$CU$253,3,FALSE) -> 45.7 | F16: =VLOOKUP($C16,'RECAP SECT'!$G$6:$CU$253,18,FALSE) -> 32 | G16: =VLOOKUP($C16,'RECAP SECT'!$G$6:$CU$253,19,FALSE) -> 0.69 | H16: =VLOOKUP($C16,'RECAP SECT'!$G$6:$CU$253,20,FALSE) -> 97% | I16: =VLOOKUP($C16,'RECAP SECT'!$G$6:$CU$253,21,FALSE) -> 18 | J16: =VLOOKUP($C16,'RECAP SECT'!$G$6:$CU$253,22,FALSE) -> 1,261 | K16: =VLOOKUP($C16,'RECAP SECT'!$G$6:$CU$253,23,FALSE) -> 27.62 | L16: =VLOOKUP($C16,'RECAP SECT'!$G$6:$CU$253,24,FALSE) -> 35% | M16: =VLOOKUP($C16,'RECAP SECT'!$G$6:$CU$253,25,FALSE) -> 15 | N16: =VLOOKUP($C16,'RECAP SECT'!$G$6:$CU$253,26,FALSE) -> 72% | O16: =VLOOKUP($C16,'RECAP SECT'!$G$6:$CU$253,27,FALSE) -> 71% | P16: =VLOOKUP($C16,'RECAP SECT'!$G$6:$CU$253,28,FALSE) -> 18
A17: 30 | B17: MARNE-ARDENNES | C17: 6 | D17: CHALONS EN CHAMPAGNE | E17: =VLOOKUP($C17,'RECAP SECT'!$G$6:$CU$253,3,FALSE) -> 38.7 | F17: =VLOOKUP($C17,'RECAP SECT'!$G$6:$CU$253,18,FALSE) -> 573 | G17: =VLOOKUP($C17,'RECAP SECT'!$G$6:$CU$253,19,FALSE) -> 14.82 | H17: =VLOOKUP($C17,'RECAP SECT'!$G$6:$CU$253,20,FALSE) -> 35% | I17: =VLOOKUP($C17,'RECAP SECT'!$G$6:$CU$253,21,FALSE) -> 4 | J17: =VLOOKUP($C17,'RECAP SECT'!$G$6:$CU$253,22,FALSE) -> 1,194 | K17: =VLOOKUP($C17,'RECAP SECT'!$G$6:$CU$253,23,FALSE) -> 30.85 | L17: =VLOOKUP($C17,'RECAP SECT'!$G$6:$CU$253,24,FALSE) -> 28% | M17: =VLOOKUP($C17,'RECAP SECT'!$G$6:$CU$253,25,FALSE) -> 11 | N17: =VLOOKUP($C17,'RECAP SECT'!$G$6:$CU$253,26,FALSE) -> 32% | O17: =VLOOKUP($C17,'RECAP SECT'!$G$6:$CU$253,27,FALSE) -> 31% | P17: =VLOOKUP($C17,'RECAP SECT'!$G$6:$CU$253,28,FALSE) -> 5
A18: 30 | B18: MARNE-ARDENNES | C18: 2 | D18: CHARLEVILLE MEZIERES | E18: =VLOOKUP($C18,'RECAP SECT'!$G$6:$CU$253,3,FALSE) -> 48.8 | F18: =VLOOKUP($C18,'RECAP SECT'!$G$6:$CU$253,18,FALSE) -> 540 | G18: =VLOOKUP($C18,'RECAP SECT'!$G$6:$CU$253,19,FALSE) -> 11.06 | H18: =VLOOKUP($C18,'RECAP SECT'!$G$6:$CU$253,20,FALSE) -> 51% | I18: =VLOOKUP($C18,'RECAP SECT'!$G$6:$CU$253,21,FALSE) -> 11 | J18: =VLOOKUP($C18,'RECAP SECT'!$G$6:$CU$253,22,FALSE) -> 1,827 | K18: =VLOOKUP($C18,'RECAP SECT'!$G$6:$CU$253,23,FALSE) -> 37.41 | L18: =VLOOKUP($C18,'RECAP SECT'!$G$6:$CU$253,24,FALSE) -> 12% | M18: =VLOOKUP($C18,'RECAP SECT'!$G$6:$CU$253,25,FALSE) -> 5 | N18: =VLOOKUP($C18,'RECAP SECT'!$G$6:$CU$253,26,FALSE) -> 36% | O18: =VLOOKUP($C18,'RECAP SECT'!$G$6:$CU$253,27,FALSE) -> 35% | P18: =VLOOKUP($C18,'RECAP SECT'!$G$6:$CU$253,28,FALSE) -> 8
A19: 30 | B19: MARNE-ARDENNES | C19: 11 | D19: REIMS | E19: =VLOOKUP($C19,'RECAP SECT'!$G$6:$CU$253,3,FALSE) -> 69.1 | F19: =VLOOKUP($C19,'RECAP SECT'!$G$6:$CU$253,18,FALSE) -> 1,201 | G19: =VLOOKUP($C19,'RECAP SECT'!$G$6:$CU$253,19,FALSE) -> 17.38 | H19: =VLOOKUP($C19,'RECAP SECT'!$G$6:$CU$253,20,FALSE) -> 24% | I19: =VLOOKUP($C19,'RECAP SECT'!$G$6:$CU$253,21,FALSE) -> 2 | J19: =VLOOKUP($C19,'RECAP SECT'!$G$6:$CU$253,22,FALSE) -> 2,949 | K19: =VLOOKUP($C19,'RECAP SECT'!$G$6:$CU$253,23,FALSE) -> 42.67 | L19: =VLOOKUP($C19,'RECAP SECT'!$G$6:$CU$253,24,FALSE) -> 0% | M19: =VLOOKUP($C19,'RECAP SECT'!$G$6:$CU$253,25,FALSE) -> 1 | N19: =VLOOKUP($C19,'RECAP SECT'!$G$6:$CU$253,26,FALSE) -> 14% | O19: =VLOOKUP($C19,'RECAP SECT'!$G$6:$CU$253,27,FALSE) -> 13% | P19: =VLOOKUP($C19,'RECAP SECT'!$G$6:$CU$253,28,FALSE) -> 2
A20: 110 | B20: MEURTHE ET MOSELLE MEUSE | C20: 26 | D20: NANCY | E20: =VLOOKUP($C20,'RECAP SECT'!$G$6:$CU$253,3,FALSE) -> 55.5 | F20: =VLOOKUP($C20,'RECAP SECT'!$G$6:$CU$253,18,FALSE) -> 654 | G20: =VLOOKUP($C20,'RECAP SECT'!$G$6:$CU$253,19,FALSE) -> 11.78 | H20: =VLOOKUP($C20,'RECAP SECT'!$G$6:$CU$253,20,FALSE) -> 48% | I20: =VLOOKUP($C20,'RECAP SECT'!$G$6:$CU$253,21,FALSE) -> 9 | J20: =VLOOKUP($C20,'RECAP SECT'!$G$6:$CU$253,22,FALSE) -> 2,051 | K20: =VLOOKUP($C20,'RECAP SECT'!$G$6:$CU$253,23,FALSE) -> 36.96 | L20: =VLOOKUP($C20,'RECAP SECT'!$G$6:$CU$253,24,FALSE) -> 13% | M20: =VLOOKUP($C20,'RECAP SECT'!$G$6:$CU$253,25,FALSE) -> 6 | N20: =VLOOKUP($C20,'RECAP SECT'!$G$6:$CU$253,26,FALSE) -> 34% | O20: =VLOOKUP($C20,'RECAP SECT'!$G$6:$CU$253,27,FALSE) -> 33% | P20: =VLOOKUP($C20,'RECAP SECT'!$G$6:$CU$253,28,FALSE) -> 7
A21: 110 | B21: MEURTHE ET MOSELLE MEUSE | C21: 27 | D21: PONT A MOUSSON | E21: =VLOOKUP($C21,'RECAP SECT'!$G$6:$CU$253,3,FALSE) -> 59.6 | F21: =VLOOKUP($C21,'RECAP SECT'!$G$6:$CU$253,18,FALSE) -> 686 | G21: =VLOOKUP($C21,'RECAP SECT'!$G$6:$CU$253,19,FALSE) -> 11.51 | H21: =VLOOKUP($C21,'RECAP SECT'!$G$6:$CU$253,20,FALSE) -> 49% | I21: =VLOOKUP($C21,'RECAP SECT'!$G$6:$CU$253,21,FALSE) -> 10 | J21: =VLOOKUP($C21,'RECAP SECT'!$G$6:$CU$253,22,FALSE) -> 2,288 | K21: =VLOOKUP($C21,'RECAP SECT'!$G$6:$CU$253,23,FALSE) -> 38.40 | L21: =VLOOKUP($C21,'RECAP SECT'!$G$6:$CU$253,24,FALSE) -> 10% | M21: =VLOOKUP($C21,'RECAP SECT'!$G$6:$CU$253,25,FALSE) -> 3 | N21: =VLOOKUP($C21,'RECAP SECT'!$G$6:$CU$253,26,FALSE) -> 34% | O21: =VLOOKUP($C21,'RECAP SECT'!$G$6:$CU$253,27,FALSE) -> 33% | P21: =VLOOKUP($C21,'RECAP SECT'!$G$6:$CU$253,28,FALSE) -> 6
A22: 110 | B22: MEURTHE ET MOSELLE MEUSE | C22: 31 | D22: VERDUN | E22: =VLOOKUP($C22,'RECAP SECT'!$G$6:$CU$253,3,FALSE) -> 48.2 | F22: =VLOOKUP($C22,'RECAP SECT'!$G$6:$CU$253,18,FALSE) -> 587 | G22: =VLOOKUP($C22,'RECAP SECT'!$G$6:$CU$253,19,FALSE) -> 12.18 | H22: =VLOOKUP($C22,'RECAP SECT'!$G$6:$CU$253,20,FALSE) -> 46% | I22: =VLOOKUP($C22,'RECAP SECT'!$G$6:$CU$253,21,FALSE) -> 7 | J22: =VLOOKUP($C22,'RECAP SECT'!$G$6:$CU$253,22,FALSE) -> 1,592 | K22: =VLOOKUP($C22,'RECAP SECT'!$G$6:$CU$253,23,FALSE) -> 33.05 | L22: =VLOOKUP($C22,'RECAP SECT'!$G$6:$CU$253,24,FALSE) -> 23% | M22: =VLOOKUP($C22,'RECAP SECT'!$G$6:$CU$253,25,FALSE) -> 8 | N22: =VLOOKUP($C22,'RECAP SECT'!$G$6:$CU$253,26,FALSE) -> 37% | O22: =VLOOKUP($C22,'RECAP SECT'!$G$6:$CU$253,27,FALSE) -> 36% | P22: =VLOOKUP($C22,'RECAP SECT'!$G$6:$CU$253,28,FALSE) -> 10
A23: 160 | B23: MOSELLE | C23: 45 | D23: METZ | E23: =VLOOKUP($C23,'RECAP SECT'!$G$6:$CU$253,3,FALSE) -> 72.9 | F23: =VLOOKUP($C23,'RECAP SECT'!$G$6:$CU$253,18,FALSE) -> 738 | G23: =VLOOKUP($C23,'RECAP SECT'!$G$6:$CU$253,19,FALSE) -> 10.13 | H23: =VLOOKUP($C23,'RECAP SECT'!$G$6:$CU$253,20,FALSE) -> 55% | I23: =VLOOKUP($C23,'RECAP SECT'!$G$6:$CU$253,21,FALSE) -> 12 | J23: =VLOOKUP($C23,'RECAP SECT'!$G$6:$CU$253,22,FALSE) -> 2,404 | K23: =VLOOKUP($C23,'RECAP SECT'!$G$6:$CU$253,23,FALSE) -> 32.99 | L23: =VLOOKUP($C23,'RECAP SECT'!$G$6:$CU$253,24,FALSE) -> 23% | M23: =VLOOKUP($C23,'RECAP SECT'!$G$6:$CU$253,25,FALSE) -> 9 | N23: =VLOOKUP($C23,'RECAP SECT'!$G$6:$CU$253,26,FALSE) -> 42% | O23: =VLOOKUP($C23,'RECAP SECT'!$G$6:$CU$253,27,FALSE) -> 42% | P23: =VLOOKUP($C23,'RECAP SECT'!$G$6:$CU$253,28,FALSE) -> 11
A24: 160 | B24: MOSELLE | C24: 42 | D24: MOSELLE EST | E24: =VLOOKUP($C24,'RECAP SECT'!$G$6:$CU$253,3,FALSE) -> 60.5 | F24: =VLOOKUP($C24,'RECAP SECT'!$G$6:$CU$253,18,FALSE) -> 963 | G24: =VLOOKUP($C24,'RECAP SECT'!$G$6:$CU$253,19,FALSE) -> 15.92 | H24: =VLOOKUP($C24,'RECAP SECT'!$G$6:$CU$253,20,FALSE) -> 30% | I24: =VLOOKUP($C24,'RECAP SECT'!$G$6:$CU$253,21,FALSE) -> 3 | J24: =VLOOKUP($C24,'RECAP SECT'!$G$6:$CU$253,22,FALSE) -> 2,141 | K24: =VLOOKUP($C24,'RECAP SECT'!$G$6:$CU$253,23,FALSE) -> 35.40 | L24: =VLOOKUP($C24,'RECAP SECT'!$G$6:$CU$253,24,FALSE) -> 17% | M24: =VLOOKUP($C24,'RECAP SECT'!$G$6:$CU$253,25,FALSE) -> 7 | N24: =VLOOKUP($C24,'RECAP SECT'!$G$6:$CU$253,26,FALSE) -> 25% | O24: =VLOOKUP($C24,'RECAP SECT'!$G$6:$CU$253,27,FALSE) -> 24% | P24: =VLOOKUP($C24,'RECAP SECT'!$G$6:$CU$253,28,FALSE) -> 3
A25: 160 | B25: MOSELLE | C25: 44 | D25: MOSELLE NORD | E25: =VLOOKUP($C25,'RECAP SECT'!$G$6:$CU$253,3,FALSE) -> 57.4 | F25: =VLOOKUP($C25,'RECAP SECT'!$G$6:$CU$253,18,FALSE) -> 1,307 | G25: =VLOOKUP($C25,'RECAP SECT'!$G$6:$CU$253,19,FALSE) -> 22.75 | H25: =VLOOKUP($C25,'RECAP SECT'!$G$6:$CU$253,20,FALSE) -> 0% | I25: =VLOOKUP($C25,'RECAP SECT'!$G$6:$CU$253,21,FALSE) -> 1 | J25: =VLOOKUP($C25,'RECAP SECT'!$G$6:$CU$253,22,FALSE) -> 2,403 | K25: =VLOOKUP($C25,'RECAP SECT'!$G$6:$CU$253,23,FALSE) -> 41.83 | L25: =VLOOKUP($C25,'RECAP SECT'!$G$6:$CU$253,24,FALSE) -> 2% | M25: =VLOOKUP($C25,'RECAP SECT'!$G$6:$CU$253,25,FALSE) -> 2 | N25: =VLOOKUP($C25,'RECAP SECT'!$G$6:$CU$253,26,FALSE) -> 1% | O25: =VLOOKUP($C25,'RECAP SECT'!$G$6:$CU$253,27,FALSE) -> 0% | P25: =VLOOKUP($C25,'RECAP SECT'!$G$6:$CU$253,28,FALSE) -> 1
A26: 80 | B26: VOSGES | C26: 57 | D26: EPINAL | E26: =VLOOKUP($C26,'RECAP SECT'!$G$6:$CU$253,3,FALSE) -> 53.3 | F26: =VLOOKUP($C26,'RECAP SECT'!$G$6:$CU$253,18,FALSE) -> 474 | G26: =VLOOKUP($C26,'RECAP SECT'!$G$6:$CU$253,19,FALSE) -> 8.88 | H26: =VLOOKUP($C26,'RECAP SECT'!$G$6:$CU$253,20,FALSE) -> 61% | I26: =VLOOKUP($C26,'RECAP SECT'!$G$6:$CU$253,21,FALSE) -> 14 | J26: =VLOOKUP($C26,'RECAP SECT'!$G$6:$CU$253,22,FALSE) -> 1,536 | K26: =VLOOKUP($C26,'RECAP SECT'!$G$6:$CU$253,23,FALSE) -> 28.82 | L26: =VLOOKUP($C26,'RECAP SECT'!$G$6:$CU$253,24,FALSE) -> 32% | M26: =VLOOKUP($C26,'RECAP SECT'!$G$6:$CU$253,25,FALSE) -> 13 | N26: =VLOOKUP($C26,'RECAP SECT'!$G$6:$CU$253,26,FALSE) -> 50% | O26: =VLOOKUP($C26,'RECAP SECT'!$G$6:$CU$253,27,FALSE) -> 49% | P26: =VLOOKUP($C26,'RECAP SECT'!$G$6:$CU$253,28,FALSE) -> 14
A27: 80 | B27: VOSGES | C27: 55 | D27: SAINT DIE | E27: =VLOOKUP($C27,'RECAP SECT'!$G$6:$CU$253,3,FALSE) -> 39.8 | F27: =VLOOKUP($C27,'RECAP SECT'!$G$6:$CU$253,18,FALSE) -> 338 | G27: =VLOOKUP($C27,'RECAP SECT'!$G$6:$CU$253,19,FALSE) -> 8.48 | H27: =VLOOKUP($C27,'RECAP SECT'!$G$6:$CU$253,20,FALSE) -> 63% | I27: =VLOOKUP($C27,'RECAP SECT'!$G$6:$CU$253,21,FALSE) -> 15 | J27: =VLOOKUP($C27,'RECAP SECT'!$G$6:$CU$253,22,FALSE) -> 964 | K27: =VLOOKUP($C27,'RECAP SECT'!$G$6:$CU$253,23,FALSE) -> 24.23 | L27: =VLOOKUP($C27,'RECAP SECT'!$G$6:$CU$253,24,FALSE) -> 43% | M27: =VLOOKUP($C27,'RECAP SECT'!$G$6:$CU$253,25,FALSE) -> 17 | N27: =VLOOKUP($C27,'RECAP SECT'!$G$6:$CU$253,26,FALSE) -> 55% | O27: =VLOOKUP($C27,'RECAP SECT'!$G$6:$CU$253,27,FALSE) -> 54% | P27: =VLOOKUP($C27,'RECAP SECT'!$G$6:$CU$253,28,FALSE) -> 15
A28: Total CEGEE Directions Régionales | E28: =SUM(E10:E27) -> 958

Sheet SE_EPARGNE
B1: Accueil | F1: BAROMETRE BDD - TERRITOIRES
F2: EPARGNE
F3: =ACCUEIL!F7 -> 2022-05-22
F7: Excédent Epargne hors DAV pondéré | J7: Ventes sur client non détenteur de l’univers | N7: Total Epargne
F8: =DATEMAJ!C14 -> au 22/05 | H8: coef | I8: ='RECAP DIRCOM'!AP4 -> 12% | J8: =DATEMAJ!C15 -> au 22/05 | L8: coef | M8: ='RECAP DIRCOM'!AT4 -> 8% | O8: coef | P8: ='RECAP DIRCOM'!AW4 -> 20%
A9: eds | B9: Direction | C9: eds | D9: Territoire | E9: ="ETP perf "&DATEMAJ!$C$28 -> ETP perf 22-mai | F9: Excédent | G9: Excédent / ETP | H9: % Ecart au 1er | I9: Rang | J9: VB | K9: VB / ETP | L9: % Ecart au 1er | M9: Rang | N9: Moyenne ecart au 1er | O9: % Ecart au 1er | P9: Rang CEGEE
A10: 50 | B10: AUBE HAUTE MARNE | C10: 21 | D10: CHAUMONT | E10: =VLOOKUP($C10,'RECAP SECT'!$G$6:$CU$253,3,FALSE) -> 33.7 | F10: =VLOOKUP($C10,'RECAP SECT'!$G$6:$CU$253,33,FALSE) -> 8,526 | G10: =VLOOKUP($C10,'RECAP SECT'!$G$6:$CU$253,34,FALSE) -> 252.83 | H10: =VLOOKUP($C10,'RECAP SECT'!$G$6:$CU$253,35,FALSE) -> 31% | I10: =VLOOKUP($C10,'RECAP SECT'!$G$6:$CU$253,36,FALSE) -> 4 | J10: =VLOOKUP($C10,'RECAP SECT'!$G$6:$CU$253,37,FALSE) -> 976 | K10: =VLOOKUP($C10,'RECAP SECT'!$G$6:$CU$253,38,FALSE) -> 28.94 | L10: =VLOOKUP($C10,'RECAP SECT'!$G$6:$CU$253,39,FALSE) -> 36% | M10: =VLOOKUP($C10,'RECAP SECT'!$G$6:$CU$253,40,FALSE) -> 14 | N10: =VLOOKUP($C10,'RECAP SECT'!$G$6:$CU$253,41,FALSE) -> 33% | O10: =VLOOKUP($C10,'RECAP SECT'!$G$6:$CU$253,42,FALSE) -> 24% | P10: =VLOOKUP($C10,'RECAP SECT'!$G$6:$CU$253,43,FALSE) -> 6
A11: 50 | B11: AUBE HAUTE MARNE | C11: 14 | D11: TROYES | E11: =VLOOKUP($C11,'RECAP SECT'!$G$6:$CU$253,3,FALSE) -> 54.2 | F11: =VLOOKUP($C11,'RECAP SECT'!$G$6:$CU$253,33,FALSE) -> 2,910 | G11: =VLOOKUP($C11,'RECAP SECT'!$G$6:$CU$253,34,FALSE) -> 53.65 | H11: =VLOOKUP($C11,'RECAP SECT'!$G$6:$CU$253,35,FALSE) -> 85% | I11: =VLOOKUP($C11,'RECAP SECT'!$G$6:$CU$253,36,FALSE) -> 15 | J11: =VLOOKUP($C11,'RECAP SECT'!$G$6:$CU$253,37,FALSE) -> 1,587 | K11: =VLOOKUP($C11,'RECAP SECT'!$G$6:$CU$253,38,FALSE) -> 29.26 | L11: =VLOOKUP($C11,'RECAP SECT'!$G$6:$CU$253,39,FALSE) -> 35% | M11: =VLOOKUP($C11,'RECAP SECT'!$G$6:$CU$253,40,FALSE) -> 12 | N11: =VLOOKUP($C11,'RECAP SECT'!$G$6:$CU$253,41,FALSE) -> 65% | O11: =VLOOKUP($C11,'RECAP SECT'!$G$6:$CU$253,42,FALSE) -> 56% | P11: =VLOOKUP($C11,'RECAP SECT'!$G$6:$CU$253,43,FALSE) -> 17
A12: 262 | B12: BAS-RHIN | C12: 5060 | D12: HAGUENAU | E12: =VLOOKUP($C12,'RECAP SECT'!$G$6:$CU$253,3,FALSE) -> 56.3 | F12: =VLOOKUP($C12,'RECAP SECT'!$G$6:$CU$253,33,FALSE) -> 13,103 | G12: =VLOOKUP($C12,'RECAP SECT'!$G$6:$CU$253,34,FALSE) -> 232.94 | H12: =VLOOKUP($C12,'RECAP SECT'!$G$6:$CU$253,35,FALSE) -> 36% | I12: =VLOOKUP($C12,'RECAP SECT'!$G$6:$CU$253,36,FALSE) -> 5 | J12: =VLOOKUP($C12,'RECAP SECT'!$G$6:$CU$253,37,FALSE) -> 1,513 | K12: =VLOOKUP($C12,'RECAP SECT'!$G$6:$CU$253,38,FALSE) -> 26.90 | L12: =VLOOKUP($C12,'RECAP SECT'!$G$6:$CU$253,39,FALSE) -> 40% | M12: =VLOOKUP($C12,'RECAP SECT'!$G$6:$CU$253,40,FALSE) -> 15 | N12: =VLOOKUP($C12,'RECAP SECT'!$G$6:$CU$253,41,FALSE) -> 38% | O12: =VLOOKUP($C12,'RECAP SECT'!$G$6:$CU$253,42,FALSE) -> 29% | P12: =VLOOKUP($C12,'RECAP SECT'!$G$6:$CU$253,43,FALSE) -> 8
A13: 262 | B13: BAS-RHIN | C13: 5101 | D13: SELESTAT | E13: =VLOOKUP($C13,'RECAP SECT'!$G$6:$CU$253,3,FALSE) -> 49.2 | F13: =VLOOKUP($C13,'RECAP SECT'!$G$6:$CU$253,33,FALSE) -> 9,126 | G13: =VLOOKUP($C13,'RECAP SECT'!$G$6:$CU$253,34,FALSE) -> 185.46 | H13: =VLOOKUP($C13,'RECAP SECT'!$G$6:$CU$253,35,FALSE) -> 49% | I13: =VLOOKUP($C13,'RECAP SECT'!$G$6:$CU$253,36,FALSE) -> 10 | J13: =VLOOKUP($C13,'RECAP SECT'!$G$6:$CU$253,37,FALSE) -> 1,464 | K13: =VLOOKUP($C13,'RECAP SECT'!$G$6:$CU$253,38,FALSE) -> 29.75 | L13: =VLOOKUP($C13,'RECAP SECT'!$G$6:$CU$253,39,FALSE) -> 34% | M13: =VLOOKUP($C13,'RECAP SECT'!$G$6:$CU$253,40,FALSE) -> 9 | N13: =VLOOKUP($C13,'RECAP SECT'!$G$6:$CU$253,41,FALSE) -> 43% | O13: =VLOOKUP($C13,'RECAP SECT'!$G$6:$CU$253,42,FALSE) -> 34% | P13: =VLOOKUP($C13,'RECAP SECT'!$G$6:$CU$253,43,FALSE) -> 10
A14: 262 | B14: BAS-RHIN | C14: 5006 | D14: STRASBOURG | E14: =VLOOKUP($C14,'RECAP SECT'!$G$6:$CU$253,3,FALSE) -> 65.1 | F14: =VLOOKUP($C14,'RECAP SECT'!$G$6:$CU$253,33,FALSE) -> 14,938 | G14: =VLOOKUP($C14,'RECAP SECT'!$G$6:$CU$253,34,FALSE) -> 229.63 | H14: =VLOOKUP($C14,'RECAP SECT'!$G$6:$CU$253,35,FALSE) -> 37% | I14: =VLOOKUP($C14,'RECAP SECT'!$G$6:$CU$253,36,FALSE) -> 6 | J14: =VLOOKUP($C14,'RECAP SECT'!$G$6:$CU$253,37,FALSE) -> 2,503 | K14: =VLOOKUP($C14,'RECAP SECT'!$G$6:$CU$253,38,FALSE) -> 38.48 | L14: =VLOOKUP($C14,'RECAP SECT'!$G$6:$CU$253,39,FALSE) -> 14% | M14: =VLOOKUP($C14,'RECAP SECT'!$G$6:$CU$253,40,FALSE) -> 4 | N14: =VLOOKUP($C14,'RECAP SECT'!$G$6:$CU$253,41,FALSE) -> 28% | O14: =VLOOKUP($C14,'RECAP SECT'!$G$6:$CU$253,42,FALSE) -> 19% | P14: =VLOOKUP($C14,'RECAP SECT'!$G$6:$CU$253,43,FALSE) -> 3
A15: 264 | B15: HAUT-RHIN | C15: 5130 | D15: COLMAR | E15: =VLOOKUP($C15,'RECAP SECT'!$G$6:$CU$253,3,FALSE) -> 50.2 | F15: =VLOOKUP($C15,'RECAP SECT'!$G$6:$CU$253,33,FALSE) -> 9,253 | G15: =VLOOKUP($C15,'RECAP SECT'!$G$6:$CU$253,34,FALSE) -> 184.36 | H15: =VLOOKUP($C15,'RECAP SECT'!$G$6:$CU$253,35,FALSE) -> 50% | I15: =VLOOKUP($C15,'RECAP SECT'!$G$6:$CU$253,36,FALSE) -> 11 | J15: =VLOOKUP($C15,'RECAP SECT'!$G$6:$CU$253,37,FALSE) -> 1,107 | K15: =VLOOKUP($C15,'RECAP SECT'!$G$6:$CU$253,38,FALSE) -> 22.06 | L15: =VLOOKUP($C15,'RECAP SECT'!$G$6:$CU$253,39,FALSE) -> 51% | M15: =VLOOKUP($C15,'RECAP SECT'!$G$6:$CU$253,40,FALSE) -> 18 | N15: =VLOOKUP($C15,'RECAP SECT'!$G$6:$CU$253,41,FALSE) -> 50% | O15: =VLOOKUP($C15,'RECAP SECT'!$G$6:$CU$253,42,FALSE) -> 41% | P15: =VLOOKUP($C15,'RECAP SECT'!$G$6:$CU$253,43,FALSE) -> 14
A16: 264 | B16: HAUT-RHIN | C16: 5169 | D16: MULHOUSE | E16: =VLOOKUP($C16,'RECAP SECT'!$G$6:$CU$253,3,FALSE) -> 45.7 | F16: =VLOOKUP($C16,'RECAP SECT'!$G$6:$CU$253,33,FALSE) -> 2,401 | G16: =VLOOKUP($C16,'RECAP SECT'!$G$6:$CU$253,34,FALSE) -> 52.58 | H16: =VLOOKUP($C16,'RECAP SECT'!$G$6:$CU$253,35,FALSE) -> 86% | I16: =VLOOKUP($C16,'RECAP SECT'!$G$6:$CU$253,36,FALSE) -> 16 | J16: =VLOOKUP($C16,'RECAP SECT'!$G$6:$CU$253,37,FALSE) -> 1,128 | K16: =VLOOKUP($C16,'RECAP SECT'!$G$6:$CU$253,38,FALSE) -> 24.70 | L16: =VLOOKUP($C16,'RECAP SECT'!$G$6:$CU$253,39,FALSE) -> 45% | M16: =VLOOKUP($C16,'RECAP SECT'!$G$6:$CU$253,40,FALSE) -> 17 | N16: =VLOOKUP($C16,'RECAP SECT'!$G$6:$CU$253,41,FALSE) -> 69% | O16: =VLOOKUP($C16,'RECAP SECT'!$G$6:$CU$253,42,FALSE) -> 60% | P16: =VLOOKUP($C16,'RECAP SECT'!$G$6:$CU$253,43,FALSE) -> 18
A17: 30 | B17: MARNE-ARDENNES | C17: 6 | D17: CHALONS EN CHAMPAGNE | E17: =VLOOKUP($C17,'RECAP SECT'!$G$6:$CU$253,3,FALSE) -> 38.7 | F17: =VLOOKUP($C17,'RECAP SECT'!$G$6:$CU$253,33,FALSE) -> 1,440 | G17: =VLOOKUP($C17,'RECAP SECT'!$G$6:$CU$253,34,FALSE) -> 37.22 | H17: =VLOOKUP($C17,'RECAP SECT'!$G$6:$CU$253,35,FALSE) -> 90% | I17: =VLOOKUP($C17,'RECAP SECT'!$G$6:$CU$253,36,FALSE) -> 17 | J17: =VLOOKUP($C17,'RECAP SECT'!$G$6:$CU$253,37,FALSE) -> 1,318 | K17: =VLOOKUP($C17,'RECAP SECT'!$G$6:$CU$253,38,FALSE) -> 34.06 | L17: =VLOOKUP($C17,'RECAP SECT'!$G$6:$CU$253,39,FALSE) -> 24% | M17: =VLOOKUP($C17,'RECAP SECT'!$G$6:$CU$253,40,FALSE) -> 7 | N17: =VLOOKUP($C17,'RECAP SECT'!$G$6:$CU$253,41,FALSE) -> 64% | O17: =VLOOKUP($C17,'RECAP SECT'!$G$6:$CU$253,42,FALSE) -> 55% | P17: =VLOOKUP($C17,'RECAP SECT'!$G$6:$CU$253,43,FALSE) -> 15
A18: 30 | B18: MARNE-ARDENNES | C18: 2 | D18: CHARLEVILLE MEZIERES | E18: =VLOOKUP($C18,'RECAP SECT'!$G$6:$CU$253,3,FALSE) -> 48.8 | F18: =VLOOKUP($C18,'RECAP SECT'!$G$6:$CU$253,33,FALSE) -> 12,641 | G18: =VLOOKUP($C18,'RECAP SECT'!$G$6:$CU$253,34,FALSE) -> 258.82 | H18: =VLOOKUP($C18,'RECAP SECT'!$G$6:$CU$253,35,FALSE) -> 29% | I18: =VLOOKUP($C18,'RECAP SECT'!$G$6:$CU$253,36,FALSE) -> 3 | J18: =VLOOKUP($C18,'RECAP SECT'!$G$6:$CU$253,37,FALSE) -> 1,980 | K18: =VLOOKUP($C18,'RECAP SECT'!$G$6:$CU$253,38,FALSE) -> 40.54 | L18: =VLOOKUP($C18,'RECAP SECT'!$G$6:$CU$253,39,FALSE) -> 10% | M18: =VLOOKUP($C18,'RECAP SECT'!$G$6:$CU$253,40,FALSE) -> 2 | N18: =VLOOKUP($C18,'RECAP SECT'!$G$6:$CU$253,41,FALSE) -> 21% | O18: =VLOOKUP($C18,'RECAP SECT'!$G$6:$CU$253,42,FALSE) -> 12% | P18: =VLOOKUP($C18,'RECAP SECT'!$G$6:$CU$253,43,FALSE) -> 2
A19: 30 | B19: MARNE-ARDENNES | C19: 11 | D19: REIMS | E19: =VLOOKUP($C19,'RECAP SECT'!$G$6:$CU$253,3,FALSE) -> 69.1 | F19: =VLOOKUP($C19,'RECAP SECT'!$G$6:$CU$253,33,FALSE) -> 433 | G19: =VLOOKUP($C19,'RECAP SECT'!$G$6:$CU$253,34,FALSE) -> 6.26 | H19: =VLOOKUP($C19,'RECAP SECT'!$G$6:$CU$253,35,FALSE) -> 98% | I19: =VLOOKUP($C19,'RECAP SECT'!$G$6:$CU$253,36,FALSE) -> 18 | J19: =VLOOKUP($C19,'RECAP SECT'!$G$6:$CU$253,37,FALSE) -> 2,687 | K19: =VLOOKUP($C19,'RECAP SECT'!$G$6:$CU$253,38,FALSE) -> 38.88 | L19: =VLOOKUP($C19,'RECAP SECT'!$G$6:$CU$253,39,FALSE) -> 14% | M19: =VLOOKUP($C19,'RECAP SECT'!$G$6:$CU$253,40,FALSE) -> 3 | N19: =VLOOKUP($C19,'RECAP SECT'!$G$6:$CU$253,41,FALSE) -> 64% | O19: =VLOOKUP($C19,'RECAP SECT'!$G$6:$CU$253,42,FALSE) -> 55% | P19: =VLOOKUP($C19,'RECAP SECT'!$G$6:$CU$253,43,FALSE) -> 16
A20: 110 | B20: MEURTHE ET MOSELLE MEUSE | C20: 26 | D20: NANCY | E20: =VLOOKUP($C20,'RECAP SECT'!$G$6:$CU$253,3,FALSE) -> 55.5 | F20: =VLOOKUP($C20,'RECAP SECT'!$G$6:$CU$253,33,FALSE) -> 11,934 | G20: =VLOOKUP($C20,'RECAP SECT'!$G$6:$CU$253,34,FALSE) -> 215.06 | H20: =VLOOKUP($C20,'RECAP SECT'!$G$6:$CU$253,35,FALSE) -> 41% | I20: =VLOOKUP($C20,'RECAP SECT'!$G$6:$CU$253,36,FALSE) -> 8 | J20: =VLOOKUP($C20,'RECAP SECT'!$G$6:$CU$253,37,FALSE) -> 1,866 | K20: =VLOOKUP($C20,'RECAP SECT'!$G$6:$CU$253,38,FALSE) -> 33.63 | L20: =VLOOKUP($C20,'RECAP SECT'!$G$6:$CU$253,39,FALSE) -> 25% | M20: =VLOOKUP($C20,'RECAP SECT'!$G$6:$CU$253,40,FALSE) -> 8 | N20: =VLOOKUP($C20,'RECAP SECT'!$G$6:$CU$253,41,FALSE) -> 35% | O20: =VLOOKUP($C20,'RECAP SECT'!$G$6:$CU$253,42,FALSE) -> 26% | P20: =VLOOKUP($C20,'RECAP SECT'!$G$6:$CU$253,43,FALSE) -> 7
A21: 110 | B21: MEURTHE ET MOSELLE MEUSE | C21: 27 | D21: PONT A MOUSSON | E21: =VLOOKUP($C21,'RECAP SECT'!$G$6:$CU$253,3,FALSE) -> 59.6 | F21: =VLOOKUP($C21,'RECAP SECT'!$G$6:$CU$253,33,FALSE) -> 8,616 | G21: =VLOOKUP($C21,'RECAP SECT'!$G$6:$CU$253,34,FALSE) -> 144.62 | H21: =VLOOKUP($C21,'RECAP SECT'!$G$6:$CU$253,35,FALSE) -> 60% | I21: =VLOOKUP($C21,'RECAP SECT'!$G$6:$CU$253,36,FALSE) -> 13 | J21: =VLOOKUP($C21,'RECAP SECT'!$G$6:$CU$253,37,FALSE) -> 1,763 | K21: =VLOOKUP($C21,'RECAP SECT'!$G$6:$CU$253,38,FALSE) -> 29.59 | L21: =VLOOKUP($C21,'RECAP SECT'!$G$6:$CU$253,39,FALSE) -> 34% | M21: =VLOOKUP($C21,'RECAP SECT'!$G$6:$CU$253,40,FALSE) -> 11 | N21: =VLOOKUP($C21,'RECAP SECT'!$G$6:$CU$253,41,FALSE) -> 50% | O21: =VLOOKUP($C21,'RECAP SECT'!$G$6:$CU$253,42,FALSE) -> 41% | P21: =VLOOKUP($C21,'RECAP SECT'!$G$6:$CU$253,43,FALSE) -> 13
A22: 110 | B22: MEURTHE ET MOSELLE MEUSE | C22: 31 | D22: VERDUN | E22: =VLOOKUP($C22,'RECAP SECT'!$G$6:$CU$253,3,FALSE) -> 48.2 | F22: =VLOOKUP($C22,'RECAP SECT'!$G$6:$CU$253,33,FALSE) -> 7,828 | G22: =VLOOKUP($C22,'RECAP SECT'!$G$6:$CU$253,34,FALSE) -> 162.51 | H22: =VLOOKUP($C22,'RECAP SECT'!$G$6:$CU$253,35,FALSE) -> 56% | I22: =VLOOKUP($C22,'RECAP SECT'!$G$6:$CU$253,36,FALSE) -> 12 | J22: =VLOOKUP($C22,'RECAP SECT'!$G$6:$CU$253,37,FALSE) -> 1,407 | K22: =VLOOKUP($C22,'RECAP SECT'!$G$6:$CU$253,38,FALSE) -> 29.21 | L22: =VLOOKUP($C22,'RECAP SECT'!$G$6:$CU$253,39,FALSE) -> 35% | M22: =VLOOKUP($C22,'RECAP SECT'!$G$6:$CU$253,40,FALSE) -> 13 | N22: =VLOOKUP($C22,'RECAP SECT'!$G$6:$CU$253,41,FALSE) -> 47% | O22: =VLOOKUP($C22,'RECAP SECT'!$G$6:$CU$253,42,FALSE) -> 38% | P22: =VLOOKUP($C22,'RECAP SECT'!$G$6:$CU$253,43,FALSE) -> 12
A23: 160 | B23: MOSELLE | C23: 45 | D23: METZ | E23: =VLOOKUP($C23,'RECAP SECT'!$G$6:$CU$253,3,FALSE) -> 72.9 | F23: =VLOOKUP($C23,'RECAP SECT'!$G$6:$CU$253,33,FALSE) -> 26,654 | G23: =VLOOKUP($C23,'RECAP SECT'!$G$6:$CU$253,34,FALSE) -> 365.77 | H23: =VLOOKUP($C23,'RECAP SECT'!$G$6:$CU$253,35,FALSE) -> 0% | I23: =VLOOKUP($C23,'RECAP SECT'!$G$6:$CU$253,36,FALSE) -> 1 | J23: =VLOOKUP($C23,'RECAP SECT'!$G$6:$CU$253,37,FALSE) -> 2,535 | K23: =VLOOKUP($C23,'RECAP SECT'!$G$6:$CU$253,38,FALSE) -> 34.79 | L23: =VLOOKUP($C23,'RECAP SECT'!$G$6:$CU$253,39,FALSE) -> 23% | M23: =VLOOKUP($C23,'RECAP SECT'!$G$6:$CU$253,40,FALSE) -> 6 | N23: =VLOOKUP($C23,'RECAP SECT'!$G$6:$CU$253,41,FALSE) -> 9% | O23: =VLOOKUP($C23,'RECAP SECT'!$G$6:$CU$253,42,FALSE) -> 0% | P23: =VLOOKUP($C23,'RECAP SECT'!$G$6:$CU$253,43,FALSE) -> 1
A24: 160 | B24: MOSELLE | C24: 42 | D24: MOSELLE EST | E24: =VLOOKUP($C24,'RECAP SECT'!$G$6:$CU$253,3,FALSE) -> 60.5 | F24: =VLOOKUP($C24,'RECAP SECT'!$G$6:$CU$253,33,FALSE) -> 13,588 | G24: =VLOOKUP($C24,'RECAP SECT'!$G$6:$CU$253,34,FALSE) -> 224.67 | H24: =VLOOKUP($C24,'RECAP SECT'!$G$6:$CU$253,35,FALSE) -> 39% | I24: =VLOOKUP($C24,'RECAP SECT'!$G$6:$CU$253,36,FALSE) -> 7 | J24: =VLOOKUP($C24,'RECAP SECT'!$G$6:$CU$253,37,FALSE) -> 2,274 | K24: =VLOOKUP($C24,'RECAP SECT'!$G$6:$CU$253,38,FALSE) -> 37.60 | L24: =VLOOKUP($C24,'RECAP SECT'!$G$6:$CU$253,39,FALSE) -> 16% | M24: =VLOOKUP($C24,'RECAP SECT'!$G$6:$CU$253,40,FALSE) -> 5 | N24: =VLOOKUP($C24,'RECAP SECT'!$G$6:$CU$253,41,FALSE) -> 30% | O24: =VLOOKUP($C24,'RECAP SECT'!$G$6:$CU$253,42,FALSE) -> 21% | P24: =VLOOKUP($C24,'RECAP SECT'!$G$6:$CU$253,43,FALSE) -> 4
A25: 160 | B25: MOSELLE | C25: 44 | D25: MOSELLE NORD | E25: =VLOOKUP($C25,'RECAP SECT'!$G$6:$CU$253,3,FALSE) -> 57.4 | F25: =VLOOKUP($C25,'RECAP SECT'!$G$6:$CU$253,33,FALSE) -> 6,431 | G25: =VLOOKUP($C25,'RECAP SECT'!$G$6:$CU$253,34,FALSE) -> 111.96 | H25: =VLOOKUP($C25,'RECAP SECT'!$G$6:$CU$253,35,FALSE) -> 69% | I25: =VLOOKUP($C25,'RECAP SECT'!$G$6:$CU$253,36,FALSE) -> 14 | J25: =VLOOKUP($C25,'RECAP SECT'!$G$6:$CU$253,37,FALSE) -> 2,583 | K25: =VLOOKUP($C25,'RECAP SECT'!$G$6:$CU$253,38,FALSE) -> 44.97 | L25: =VLOOKUP($C25,'RECAP SECT'!$G$6:$CU$253,39,FALSE) -> 0% | M25: =VLOOKUP($C25,'RECAP SECT'!$G$6:$CU$253,40,FALSE) -> 1 | N25: =VLOOKUP($C25,'RECAP SECT'!$G$6:$CU$253,41,FALSE) -> 42% | O25: =VLOOKUP($C25,'RECAP SECT'!$G$6:$CU$253,42,FALSE) -> 33% | P25: =VLOOKUP($C25,'RECAP SECT'!$G$6:$CU$253,43,FALSE) -> 9
A26: 80 | B26: VOSGES | C26: 57 | D26: EPINAL | E26: =VLOOKUP($C26,'RECAP SECT'!$G$6:$CU$253,3,FALSE) -> 53.3 | F26: =VLOOKUP($C26,'RECAP SECT'!$G$6:$CU$253,33,FALSE) -> 13,821 | G26: =VLOOKUP($C26,'RECAP SECT'!$G$6:$CU$253,34,FALSE) -> 259.30 | H26: =VLOOKUP($C26,'RECAP SECT'!$G$6:$CU$253,35,FALSE) -> 29% | I26: =VLOOKUP($C26,'RECAP SECT'!$G$6:$CU$253,36,FALSE) -> 2 | J26: =VLOOKUP($C26,'RECAP SECT'!$G$6:$CU$253,37,FALSE) -> 1,581 | K26: =VLOOKUP($C26,'RECAP SECT'!$G$6:$CU$253,38,FALSE) -> 29.66 | L26: =VLOOKUP($C26,'RECAP SECT'!$G$6:$CU$253,39,FALSE) -> 34% | M26: =VLOOKUP($C26,'RECAP SECT'!$G$6:$CU$253,40,FALSE) -> 10 | N26: =VLOOKUP($C26,'RECAP SECT'!$G$6:$CU$253,41,FALSE) -> 31% | O26: =VLOOKUP($C26,'RECAP SECT'!$G$6:$CU$253,42,FALSE) -> 22% | P26: =VLOOKUP($C26,'RECAP SECT'!$G$6:$CU$253,43,FALSE) -> 5
A27: 80 | B27: VOSGES | C27: 55 | D27: SAINT DIE | E27: =VLOOKUP($C27,'RECAP SECT'!$G$6:$CU$253,3,FALSE) -> 39.8 | F27: =VLOOKUP($C27,'RECAP SECT'!$G$6:$CU$253,33,FALSE) -> 7,611 | G27: =VLOOKUP($C27,'RECAP SECT'!$G$6:$CU$253,34,FALSE) -> 191.28 | H27: =VLOOKUP($C27,'RECAP SECT'!$G$6:$CU$253,35,FALSE) -> 48% | I27: =VLOOKUP($C27,'RECAP SECT'!$G$6:$CU$253,36,FALSE) -> 9 | J27: =VLOOKUP($C27,'RECAP SECT'!$G$6:$CU$253,37,FALSE) -> 995 | K27: =VLOOKUP($C27,'RECAP SECT'!$G$6:$CU$253,38,FALSE) -> 25.01 | L27: =VLOOKUP($C27,'RECAP SECT'!$G$6:$CU$253,39,FALSE) -> 44% | M27: =VLOOKUP($C27,'RECAP SECT'!$G$6:$CU$253,40,FALSE) -> 16 | N27: =VLOOKUP($C27,'RECAP SECT'!$G$6:$CU$253,41,FALSE) -> 46% | O27: =VLOOKUP($C27,'RECAP SECT'!$G$6:$CU$253,42,FALSE) -> 37% | P27: =VLOOKUP($C27,'RECAP SECT'!$G$6:$CU$253,43,FALSE) -> 11
A28: Total CEGEE Directions Régionales | E28: =SUM(E10:E27) -> 958

Sheet SE_CREDIT
B1: Accueil | F1: BAROMETRE BDD - TERRITOIRES
F2: CREDITS
F3: =ACCUEIL!F7 -> 2022-05-22
F7: Engagements et ventes accessoires pondérés Immo | J7: Engagements et ventes accessoires pondérés Conso | N7: Ventes sur client non détenteur de l’univers | R7: Total Crédits
F8: =DATEMAJ!C18 -> au 22/05 | H8: coef | I8: ='RECAP DIRCOM'!BE4 -> 6% | J8: =DATEMAJ!C19 -> au 22/05 | L8: coef | M8: ='RECAP DIRCOM'!BI4 -> 6% | N8: =DATEMAJ!C20 -> au 22/05 | P8: coef | Q8: ='RECAP DIRCOM'!BM4 -> 8% | S8: coef | T8: ='RECAP DIRCOM'!BP4 -> 20%
B9: Direction | C9: eds | D9: Territoire | E9: ="ETP perf "&DATEMAJ!$C$28 -> ETP perf 22-mai | F9: PNB | G9: PNB / ETP | H9: % Ecart au 1er | I9: Rang | J9: PNB | K9: PNB / ETP | L9: % Ecart au 1er | M9: Rang | N9: VB | O9: VB / ETP | P9: % Ecart au 1er | Q9: Rang | R9: Moyenne ecart au 1er | S9: % Ecart au 1er | T9: Rang CEGEE
A10: 50 | B10: AUBE HAUTE MARNE | C10: 21 | D10: CHAUMONT | E10: =VLOOKUP($C10,'RECAP SECT'!$G$6:$CU$253,3,FALSE) -> 33.7 | F10: =VLOOKUP($C10,'RECAP SECT'!$G$6:$CU$253,48,FALSE) -> 2,873 | G10: =VLOOKUP($C10,'RECAP SECT'!$G$6:$CU$253,49,FALSE) -> 85.20 | H10: =VLOOKUP($C10,'RECAP SECT'!$G$6:$CU$253,50,FALSE) -> 65% | I10: =VLOOKUP($C10,'RECAP SECT'!$G$6:$CU$253,51,FALSE) -> 16 | J10: =VLOOKUP($C10,'RECAP SECT'!$G$6:$CU$253,52,FALSE) -> 1,165 | K10: =VLOOKUP($C10,'RECAP SECT'!$G$6:$CU$253,53,FALSE) -> 34.55 | L10: =VLOOKUP($C10,'RECAP SECT'!$G$6:$CU$253,54,FALSE) -> 6% | M10: =VLOOKUP($C10,'RECAP SECT'!$G$6:$CU$253,55,FALSE) -> 3 | N10: =VLOOKUP($C10,'RECAP SECT'!$G$6:$CU$253,56,FALSE) -> 466 | O10: =VLOOKUP($C10,'RECAP SECT'!$G$6:$CU$253,57,FALSE) -> 13.82 | P10: =VLOOKUP($C10,'RECAP SECT'!$G$6:$CU$253,58,FALSE) -> 33% | Q10: =VLOOKUP($C10,'RECAP SECT'!$G$6:$CU$253,59,FALSE) -> 6 | R10: =VLOOKUP($C10,'RECAP SECT'!$G$6:$CU$253,60,FALSE) -> 35% | S10: =VLOOKUP($C10,'RECAP SECT'!$G$6:$CU$253,61,FALSE) -> 28% | T10: =VLOOKUP($C10,'RECAP SECT'!$G$6:$CU$253,62,FALSE) -> 10
A11: 50 | B11: AUBE HAUTE MARNE | C11: 14 | D11: TROYES | E11: =VLOOKUP($C11,'RECAP SECT'!$G$6:$CU$253,3,FALSE) -> 54.2 | F11: =VLOOKUP($C11,'RECAP SECT'!$G$6:$CU$253,48,FALSE) -> 5,317 | G11: =VLOOKUP($C11,'RECAP SECT'!$G$6:$CU$253,49,FALSE) -> 98.02 | H11: =VLOOKUP($C11,'RECAP SECT'!$G$6:$CU$253,50,FALSE) -> 60% | I11: =VLOOKUP($C11,'RECAP SECT'!$G$6:$CU$253,51,FALSE) -> 13 | J11: =VLOOKUP($C11,'RECAP SECT'!$G$6:$CU$253,52,FALSE) -> 1,668 | K11: =VLOOKUP($C11,'RECAP SECT'!$G$6:$CU$253,53,FALSE) -> 30.74 | L11: =VLOOKUP($C11,'RECAP SECT'!$G$6:$CU$253,54,FALSE) -> 17% | M11: =VLOOKUP($C11,'RECAP SECT'!$G$6:$CU$253,55,FALSE) -> 7 | N11: =VLOOKUP($C11,'RECAP SECT'!$G$6:$CU$253,56,FALSE) -> 591 | O11: =VLOOKUP($C11,'RECAP SECT'!$G$6:$CU$253,57,FALSE) -> 10.90 | P11: =VLOOKUP($C11,'RECAP SECT'!$G$6:$CU$253,58,FALSE) -> 47% | Q11: =VLOOKUP($C11,'RECAP SECT'!$G$6:$CU$253,59,FALSE) -> 14 | R11: =VLOOKUP($C11,'RECAP SECT'!$G$6:$CU$253,60,FALSE) -> 42% | S11: =VLOOKUP($C11,'RECAP SECT'!$G$6:$CU$253,61,FALSE) -> 36% | T11: =VLOOKUP($C11,'RECAP SECT'!$G$6:$CU$253,62,FALSE) -> 14
A12: 262 | B12: BAS-RHIN | C12: 5060 | D12: HAGUENAU | E12: =VLOOKUP($C12,'RECAP SECT'!$G$6:$CU$253,3,FALSE) -> 56.3 | F12: =VLOOKUP($C12,'RECAP SECT'!$G$6:$CU$253,48,FALSE) -> 4,461 | G12: =VLOOKUP($C12,'RECAP SECT'!$G$6:$CU$253,49,FALSE) -> 79.30 | H12: =VLOOKUP($C12,'RECAP SECT'!$G$6:$CU$253,50,FALSE) -> 67% | I12: =VLOOKUP($C12,'RECAP SECT'!$G$6:$CU$253,51,FALSE) -> 17 | J12: =VLOOKUP($C12,'RECAP SECT'!$G$6:$CU$253,52,FALSE) -> 1,638 | K12: =VLOOKUP($C12,'RECAP SECT'!$G$6:$CU$253,53,FALSE) -> 29.12 | L12: =VLOOKUP($C12,'RECAP SECT'!$G$6:$CU$253,54,FALSE) -> 21% | M12: =VLOOKUP($C12,'RECAP SECT'!$G$6:$CU$253,55,FALSE) -> 12 | N12: =VLOOKUP($C12,'RECAP SECT'!$G$6:$CU$253,56,FALSE) -> 532 | O12: =VLOOKUP($C12,'RECAP SECT'!$G$6:$CU$253,57,FALSE) -> 9.46 | P12: =VLOOKUP($C12,'RECAP SECT'!$G$6:$CU$253,58,FALSE) -> 54% | Q12: =VLOOKUP($C12,'RECAP SECT'!$G$6:$CU$253,59,FALSE) -> 17 | R12: =VLOOKUP($C12,'RECAP SECT'!$G$6:$CU$253,60,FALSE) -> 48% | S12: =VLOOKUP($C12,'RECAP SECT'!$G$6:$CU$253,61,FALSE) -> 42% | T12: =VLOOKUP($C12,'RECAP SECT'!$G$6:$CU$253,62,FALSE) -> 17
A13: 262 | B13: BAS-RHIN | C13: 5101 | D13: SELESTAT | E13: =VLOOKUP($C13,'RECAP SECT'!$G$6:$CU$253,3,FALSE) -> 49.2 | F13: =VLOOKUP($C13,'RECAP SECT'!$G$6:$CU$253,48,FALSE) -> 5,603 | G13: =VLOOKUP($C13,'RECAP SECT'!$G$6:$CU$253,49,FALSE) -> 113.85 | H13: =VLOOKUP($C13,'RECAP SECT'!$G$6:$CU$253,50,FALSE) -> 53% | I13: =VLOOKUP($C13,'RECAP SECT'!$G$6:$CU$253,51,FALSE) -> 11 | J13: =VLOOKUP($C13,'RECAP SECT'!$G$6:$CU$253,52,FALSE) -> 1,428 | K13: =VLOOKUP($C13,'RECAP SECT'!$G$6:$CU$253,53,FALSE) -> 29.02 | L13: =VLOOKUP($C13,'RECAP SECT'!$G$6:$CU$253,54,FALSE) -> 21% | M13: =VLOOKUP($C13,'RECAP SECT'!$G$6:$CU$253,55,FALSE) -> 13 | N13: =VLOOKUP($C13,'RECAP SECT'!$G$6:$CU$253,56,FALSE) -> 529 | O13: =VLOOKUP($C13,'RECAP SECT'!$G$6:$CU$253,57,FALSE) -> 10.75 | P13: =VLOOKUP($C13,'RECAP SECT'!$G$6:$CU$253,58,FALSE) -> 48% | Q13: =VLOOKUP($C13,'RECAP SECT'!$G$6:$CU$253,59,FALSE) -> 15 | R13: =VLOOKUP($C13,'RECAP SECT'!$G$6:$CU$253,60,FALSE) -> 42% | S13: =VLOOKUP($C13,'RECAP SECT'!$G$6:$CU$253,61,FALSE) -> 35% | T13: =VLOOKUP($C13,'RECAP SECT'!$G$6:$CU$253,62,FALSE) -> 13
A14: 262 | B14: BAS-RHIN | C14: 5006 | D14: STRASBOURG | E14: =VLOOKUP($C14,'RECAP SECT'!$G$6:$CU$253,3,FALSE) -> 65.1 | F14: =VLOOKUP($C14,'RECAP SECT'!$G$6:$CU$253,48,FALSE) -> 8,457 | G14: =VLOOKUP($C14,'RECAP SECT'!$G$6:$CU$253,49,FALSE) -> 130.00 | H14: =VLOOKUP($C14,'RECAP SECT'!$G$6:$CU$253,50,FALSE) -> 47% | I14: =VLOOKUP($C14,'RECAP SECT'!$G$6:$CU$253,51,FALSE) -> 10 | J14: =VLOOKUP($C14,'RECAP SECT'!$G$6:$CU$253,52,FALSE) -> 1,674 | K14: =VLOOKUP($C14,'RECAP SECT'!$G$6:$CU$253,53,FALSE) -> 25.74 | L14: =VLOOKUP($C14,'RECAP SECT'!$G$6:$CU$253,54,FALSE) -> 30% | M14: =VLOOKUP($C14,'RECAP SECT'!$G$6:$CU$253,55,FALSE) -> 16 | N14: =VLOOKUP($C14,'RECAP SECT'!$G$6:$CU$253,56,FALSE) -> 837 | O14: =VLOOKUP($C14,'RECAP SECT'!$G$6:$CU$253,57,FALSE) -> 12.87 | P14: =VLOOKUP($C14,'RECAP SECT'!$G$6:$CU$253,58,FALSE) -> 38% | Q14: =VLOOKUP($C14,'RECAP SECT'!$G$6:$CU$253,59,FALSE) -> 11 | R14: =VLOOKUP($C14,'RECAP SECT'!$G$6:$CU$253,60,FALSE) -> 38% | S14: =VLOOKUP($C14,'RECAP SECT'!$G$6:$CU$253,61,FALSE) -> 32% | T14: =VLOOKUP($C14,'RECAP SECT'!$G$6:$CU$253,62,FALSE) -> 11
A15: 264 | B15: HAUT-RHIN | C15: 5130 | D15: COLMAR | E15: =VLOOKUP($C15,'RECAP SECT'!$G$6:$CU$253,3,FALSE) -> 50.2 | F15: =VLOOKUP($C15,'RECAP SECT'!$G$6:$CU$253,48,FALSE) -> 3,537 | G15: =VLOOKUP($C15,'RECAP SECT'!$G$6:$CU$253,49,FALSE) -> 70.47 | H15: =VLOOKUP($C15,'RECAP SECT'!$G$6:$CU$253,50,FALSE) -> 71% | I15: =VLOOKUP($C15,'RECAP SECT'!$G$6:$CU$253,51,FALSE) -> 18 | J15: =VLOOKUP($C15,'RECAP SECT'!$G$6:$CU$253,52,FALSE) -> 1,248 | K15: =VLOOKUP($C15,'RECAP SECT'!$G$6:$CU$253,53,FALSE) -> 24.87 | L15: =VLOOKUP($C15,'RECAP SECT'!$G$6:$CU$253,54,FALSE) -> 33% | M15: =VLOOKUP($C15,'RECAP SECT'!$G$6:$CU$253,55,FALSE) -> 18 | N15: =VLOOKUP($C15,'RECAP SECT'!$G$6:$CU$253,56,FALSE) -> 450 | O15: =VLOOKUP($C15,'RECAP SECT'!$G$6:$CU$253,57,FALSE) -> 8.97 | P15: =VLOOKUP($C15,'RECAP SECT'!$G$6:$CU$253,58,FALSE) -> 56% | Q15: =VLOOKUP($C15,'RECAP SECT'!$G$6:$CU$253,59,FALSE) -> 18 | R15: =VLOOKUP($C15,'RECAP SECT'!$G$6:$CU$253,60,FALSE) -> 54% | S15: =VLOOKUP($C15,'RECAP SECT'!$G$6:$CU$253,61,FALSE) -> 48% | T15: =VLOOKUP($C15,'RECAP SECT'!$G$6:$CU$253,62,FALSE) -> 18
A16: 264 | B16: HAUT-RHIN | C16: 5169 | D16: MULHOUSE | E16: =VLOOKUP($C16,'RECAP SECT'!$G$6:$CU$253,3,FALSE) -> 45.7 | F16: =VLOOKUP($C16,'RECAP SECT'!$G$6:$CU$253,48,FALSE) -> 4,643 | G16: =VLOOKUP($C16,'RECAP SECT'!$G$6:$CU$253,49,FALSE) -> 101.68 | H16: =VLOOKUP($C16,'RECAP SECT'!$G$6:$CU$253,50,FALSE) -> 58% | I16: =VLOOKUP($C16,'RECAP SECT'!$G$6:$CU$253,51,FALSE) -> 12 | J16: =VLOOKUP($C16,'RECAP SECT'!$G$6:$CU$253,52,FALSE) -> 1,170 | K16: =VLOOKUP($C16,'RECAP SECT'!$G$6:$CU$253,53,FALSE) -> 25.62 | L16: =VLOOKUP($C16,'RECAP SECT'!$G$6:$CU$253,54,FALSE) -> 31% | M16: =VLOOKUP($C16,'RECAP SECT'!$G$6:$CU$253,55,FALSE) -> 17 | N16: =VLOOKUP($C16,'RECAP SECT'!$G$6:$CU$253,56,FALSE) -> 442 | O16: =VLOOKUP($C16,'RECAP SECT'!$G$6:$CU$253,57,FALSE) -> 9.68 | P16: =VLOOKUP($C16,'RECAP SECT'!$G$6:$CU$253,58,FALSE) -> 53% | Q16: =VLOOKUP($C16,'RECAP SECT'!$G$6:$CU$253,59,FALSE) -> 16 | R16: =VLOOKUP($C16,'RECAP SECT'!$G$6:$CU$253,60,FALSE) -> 48% | S16: =VLOOKUP($C16,'RECAP SECT'!$G$6:$CU$253,61,FALSE) -> 42% | T16: =VLOOKUP($C16,'RECAP SECT'!$G$6:$CU$253,62,FALSE) -> 16
A17: 30 | B17: MARNE-ARDENNES | C17: 6 | D17: CHALONS EN CHAMPAGNE | E17: =VLOOKUP($C17,'RECAP SECT'!$G$6:$CU$253,3,FALSE) -> 38.7 | F17: =VLOOKUP($C17,'RECAP SECT'!$G$6:$CU$253,48,FALSE) -> 5,351 | G17: =VLOOKUP($C17,'RECAP SECT'!$G$6:$CU$253,49,FALSE) -> 138.26 | H17: =VLOOKUP($C17,'RECAP SECT'!$G$6:$CU$253,50,FALSE) -> 43% | I17: =VLOOKUP($C17,'RECAP SECT'!$G$6:$CU$253,51,FALSE) -> 8 | J17: =VLOOKUP($C17,'RECAP SECT'!$G$6:$CU$253,52,FALSE) -> 1,182 | K17: =VLOOKUP($C17,'RECAP SECT'!$G$6:$CU$253,53,FALSE) -> 30.54 | L17: =VLOOKUP($C17,'RECAP SECT'!$G$6:$CU$253,54,FALSE) -> 17% | M17: =VLOOKUP($C17,'RECAP SECT'!$G$6:$CU$253,55,FALSE) -> 8 | N17: =VLOOKUP($C17,'RECAP SECT'!$G$6:$CU$253,56,FALSE) -> 527 | O17: =VLOOKUP($C17,'RECAP SECT'!$G$6:$CU$253,57,FALSE) -> 13.62 | P17: =VLOOKUP($C17,'RECAP SECT'!$G$6:$CU$253,58,FALSE) -> 34% | Q17: =VLOOKUP($C17,'RECAP SECT'!$G$6:$CU$253,59,FALSE) -> 8 | R17: =VLOOKUP($C17,'RECAP SECT'!$G$6:$CU$253,60,FALSE) -> 32% | S17: =VLOOKUP($C17,'RECAP SECT'!$G$6:$CU$253,61,FALSE) -> 26% | T17: =VLOOKUP($C17,'RECAP SECT'!$G$6:$CU$253,62,FALSE) -> 9
A18: 30 | B18: MARNE-ARDENNES | C18: 2 | D18: CHARLEVILLE MEZIERES | E18: =VLOOKUP($C18,'RECAP SECT'!$G$6:$CU$253,3,FALSE) -> 48.8 | F18: =VLOOKUP($C18,'RECAP SECT'!$G$6:$CU$253,48,FALSE) -> 9,405 | G18: =VLOOKUP($C18,'RECAP SECT'!$G$6:$CU$253,49,FALSE) -> 192.57 | H18: =VLOOKUP($C18,'RECAP SECT'!$G$6:$CU$253,50,FALSE) -> 21% | I18: =VLOOKUP($C18,'RECAP SECT'!$G$6:$CU$253,51,FALSE) -> 5 | J18: =VLOOKUP($C18,'RECAP SECT'!$G$6:$CU$253,52,FALSE) -> 1,429 | K18: =VLOOKUP($C18,'RECAP SECT'!$G$6:$CU$253,53,FALSE) -> 29.27 | L18: =VLOOKUP($C18,'RECAP SECT'!$G$6:$CU$253,54,FALSE) -> 21% | M18: =VLOOKUP($C18,'RECAP SECT'!$G$6:$CU$253,55,FALSE) -> 11 | N18: =VLOOKUP($C18,'RECAP SECT'!$G$6:$CU$253,56,FALSE) -> 844 | O18: =VLOOKUP($C18,'RECAP SECT'!$G$6:$CU$253,57,FALSE) -> 17.28 | P18: =VLOOKUP($C18,'RECAP SECT'!$G$6:$CU$253,58,FALSE) -> 16% | Q18: =VLOOKUP($C18,'RECAP SECT'!$G$6:$CU$253,59,FALSE) -> 4 | R18: =VLOOKUP($C18,'RECAP SECT'!$G$6:$CU$253,60,FALSE) -> 19% | S18: =VLOOKUP($C18,'RECAP SECT'!$G$6:$CU$253,61,FALSE) -> 13% | T18: =VLOOKUP($C18,'RECAP SECT'!$G$6:$CU$253,62,FALSE) -> 4
A19: 30 | B19: MARNE-ARDENNES | C19: 11 | D19: REIMS | E19: =VLOOKUP($C19,'RECAP SECT'!$G$6:$CU$253,3,FALSE) -> 69.1 | F19: =VLOOKUP($C19,'RECAP SECT'!$G$6:$CU$253,48,FALSE) -> 16,247 | G19: =VLOOKUP($C19,'RECAP SECT'!$G$6:$CU$253,49,FALSE) -> 235.09 | H19: =VLOOKUP($C19,'RECAP SECT'!$G$6:$CU$253,50,FALSE) -> 4% | I19: =VLOOKUP($C19,'RECAP SECT'!$G$6:$CU$253,51,FALSE) -> 2 | J19: =VLOOKUP($C19,'RECAP SECT'!$G$6:$CU$253,52,FALSE) -> 1,960 | K19: =VLOOKUP($C19,'RECAP SECT'!$G$6:$CU$253,53,FALSE) -> 28.36 | L19: =VLOOKUP($C19,'RECAP SECT'!$G$6:$CU$253,54,FALSE) -> 23% | M19: =VLOOKUP($C19,'RECAP SECT'!$G$6:$CU$253,55,FALSE) -> 14 | N19: =VLOOKUP($C19,'RECAP SECT'!$G$6:$CU$253,56,FALSE) -> 1,423 | O19: =VLOOKUP($C19,'RECAP SECT'!$G$6:$CU$253,57,FALSE) -> 20.59 | P19: =VLOOKUP($C19,'RECAP SECT'!$G$6:$CU$253,58,FALSE) -> 0% | Q19: =VLOOKUP($C19,'RECAP SECT'!$G$6:$CU$253,59,FALSE) -> 1 | R19: =VLOOKUP($C19,'RECAP SECT'!$G$6:$CU$253,60,FALSE) -> 8% | S19: =VLOOKUP($C19,'RECAP SECT'!$G$6:$CU$253,61,FALSE) -> 2% | T19: =VLOOKUP($C19,'RECAP SECT'!$G$6:$CU$253,62,FALSE) -> 2
A20: 110 | B20: MEURTHE ET MOSELLE MEUSE | C20: 26 | D20: NANCY | E20: =VLOOKUP($C20,'RECAP SECT'!$G$6:$CU$253,3,FALSE) -> 55.5 | F20: =VLOOKUP($C20,'RECAP SECT'!$G$6:$CU$253,48,FALSE) -> 12,129 | G20: =VLOOKUP($C20,'RECAP SECT'!$G$6:$CU$253,49,FALSE) -> 218.58 | H20: =VLOOKUP($C20,'RECAP SECT'!$G$6:$CU$253,50,FALSE) -> 10% | I20: =VLOOKUP($C20,'RECAP SECT'!$G$6:$CU$253,51,FALSE) -> 3 | J20: =VLOOKUP($C20,'RECAP SECT'!$G$6:$CU$253,52,FALSE) -> 1,827 | K20: =VLOOKUP($C20,'RECAP SECT'!$G$6:$CU$253,53,FALSE) -> 32.93 | L20: =VLOOKUP($C20,'RECAP SECT'!$G$6:$CU$253,54,FALSE) -> 11% | M20: =VLOOKUP($C20,'RECAP SECT'!$G$6:$CU$253,55,FALSE) -> 5 | N20: =VLOOKUP($C20,'RECAP SECT'!$G$6:$CU$253,56,FALSE) -> 961 | O20: =VLOOKUP($C20,'RECAP SECT'!$G$6:$CU$253,57,FALSE) -> 17.32 | P20: =VLOOKUP($C20,'RECAP SECT'!$G$6:$CU$253,58,FALSE) -> 16% | Q20: =VLOOKUP($C20,'RECAP SECT'!$G$6:$CU$253,59,FALSE) -> 3 | R20: =VLOOKUP($C20,'RECAP SECT'!$G$6:$CU$253,60,FALSE) -> 13% | S20: =VLOOKUP($C20,'RECAP SECT'!$G$6:$CU$253,61,FALSE) -> 7% | T20: =VLOOKUP($C20,'RECAP SECT'!$G$6:$CU$253,62,FALSE) -> 3
A21: 110 | B21: MEURTHE ET MOSELLE MEUSE | C21: 27 | D21: PONT A MOUSSON | E21: =VLOOKUP($C21,'RECAP SECT'!$G$6:$CU$253,3,FALSE) -> 59.6 | F21: =VLOOKUP($C21,'RECAP SECT'!$G$6:$CU$253,48,FALSE) -> 11,629 | G21: =VLOOKUP($C21,'RECAP SECT'!$G$6:$CU$253,49,FALSE) -> 195.18 | H21: =VLOOKUP($C21,'RECAP SECT'!$G$6:$CU$253,50,FALSE) -> 20% | I21: =VLOOKUP($C21,'RECAP SECT'!$G$6:$CU$253,51,FALSE) -> 4 | J21: =VLOOKUP($C21,'RECAP SECT'!$G$6:$CU$253,52,FALSE) -> 1,801 | K21: =VLOOKUP($C21,'RECAP SECT'!$G$6:$CU$253,53,FALSE) -> 30.23 | L21: =VLOOKUP($C21,'RECAP SECT'!$G$6:$CU$253,54,FALSE) -> 18% | M21: =VLOOKUP($C21,'RECAP SECT'!$G$6:$CU$253,55,FALSE) -> 9 | N21: =VLOOKUP($C21,'RECAP SECT'!$G$6:$CU$253,56,FALSE) -> 968 | O21: =VLOOKUP($C21,'RECAP SECT'!$G$6:$CU$253,57,FALSE) -> 16.25 | P21: =VLOOKUP($C21,'RECAP SECT'!$G$6:$CU$253,58,FALSE) -> 21% | Q21: =VLOOKUP($C21,'RECAP SECT'!$G$6:$CU$253,59,FALSE) -> 5 | R21: =VLOOKUP($C21,'RECAP SECT'!$G$6:$CU$253,60,FALSE) -> 20% | S21: =VLOOKUP($C21,'RECAP SECT'!$G$6:$CU$253,61,FALSE) -> 14% | T21: =VLOOKUP($C21,'RECAP SECT'!$G$6:$CU$253,62,FALSE) -> 5
A22: 110 | B22: MEURTHE ET MOSELLE MEUSE | C22: 31 | D22: VERDUN | E22: =VLOOKUP($C22,'RECAP SECT'!$G$6:$CU$253,3,FALSE) -> 48.2 | F22: =VLOOKUP($C22,'RECAP SECT'!$G$6:$CU$253,48,FALSE) -> 6,651 | G22: =VLOOKUP($C22,'RECAP SECT'!$G$6:$CU$253,49,FALSE) -> 138.08 | H22: =VLOOKUP($C22,'RECAP SECT'!$G$6:$CU$253,50,FALSE) -> 43% | I22: =VLOOKUP($C22,'RECAP SECT'!$G$6:$CU$253,51,FALSE) -> 9 | J22: =VLOOKUP($C22,'RECAP SECT'!$G$6:$CU$253,52,FALSE) -> 1,779 | K22: =VLOOKUP($C22,'RECAP SECT'!$G$6:$CU$253,53,FALSE) -> 36.93 | L22: =VLOOKUP($C22,'RECAP SECT'!$G$6:$CU$253,54,FALSE) -> 0% | M22: =VLOOKUP($C22,'RECAP SECT'!$G$6:$CU$253,55,FALSE) -> 1 | N22: =VLOOKUP($C22,'RECAP SECT'!$G$6:$CU$253,56,FALSE) -> 624 | O22: =VLOOKUP($C22,'RECAP SECT'!$G$6:$CU$253,57,FALSE) -> 12.95 | P22: =VLOOKUP($C22,'RECAP SECT'!$G$6:$CU$253,58,FALSE) -> 37% | Q22: =VLOOKUP($C22,'RECAP SECT'!$G$6:$CU$253,59,FALSE) -> 10 | R22: =VLOOKUP($C22,'RECAP SECT'!$G$6:$CU$253,60,FALSE) -> 28% | S22: =VLOOKUP($C22,'RECAP SECT'!$G$6:$CU$253,61,FALSE) -> 22% | T22: =VLOOKUP($C22,'RECAP SECT'!$G$6:$CU$253,62,FALSE) -> 7
A23: 160 | B23: MOSELLE | C23: 45 | D23: METZ | E23: =VLOOKUP($C23,'RECAP SECT'!$G$6:$CU$253,3,FALSE) -> 72.9 | F23: =VLOOKUP($C23,'RECAP SECT'!$G$6:$CU$253,48,FALSE) -> 11,438 | G23: =VLOOKUP($C23,'RECAP SECT'!$G$6:$CU$253,49,FALSE) -> 156.97 | H23: =VLOOKUP($C23,'RECAP SECT'!$G$6:$CU$253,50,FALSE) -> 36% | I23: =VLOOKUP($C23,'RECAP SECT'!$G$6:$CU$253,51,FALSE) -> 6 | J23: =VLOOKUP($C23,'RECAP SECT'!$G$6:$CU$253,52,FALSE) -> 2,344 | K23: =VLOOKUP($C23,'RECAP SECT'!$G$6:$CU$253,53,FALSE) -> 32.17 | L23: =VLOOKUP($C23,'RECAP SECT'!$G$6:$CU$253,54,FALSE) -> 13% | M23: =VLOOKUP($C23,'RECAP SECT'!$G$6:$CU$253,55,FALSE) -> 6 | N23: =VLOOKUP($C23,'RECAP SECT'!$G$6:$CU$253,56,FALSE) -> 1,000 | O23: =VLOOKUP($C23,'RECAP SECT'!$G$6:$CU$253,57,FALSE) -> 13.72 | P23: =VLOOKUP($C23,'RECAP SECT'!$G$6:$CU$253,58,FALSE) -> 33% | Q23: =VLOOKUP($C23,'RECAP SECT'!$G$6:$CU$253,59,FALSE) -> 7 | R23: =VLOOKUP($C23,'RECAP SECT'!$G$6:$CU$253,60,FALSE) -> 28% | S23: =VLOOKUP($C23,'RECAP SECT'!$G$6:$CU$253,61,FALSE) -> 22% | T23: =VLOOKUP($C23,'RECAP SECT'!$G$6:$CU$253,62,FALSE) -> 8
A24: 160 | B24: MOSELLE | C24: 42 | D24: MOSELLE EST | E24: =VLOOKUP($C24,'RECAP SECT'!$G$6:$CU$253,3,FALSE) -> 60.5 | F24: =VLOOKUP($C24,'RECAP SECT'!$G$6:$CU$253,48,FALSE) -> 8,681 | G24: =VLOOKUP($C24,'RECAP SECT'!$G$6:$CU$253,49,FALSE) -> 143.53 | H24: =VLOOKUP($C24,'RECAP SECT'!$G$6:$CU$253,50,FALSE) -> 41% | I24: =VLOOKUP($C24,'RECAP SECT'!$G$6:$CU$253,51,FALSE) -> 7 | J24: =VLOOKUP($C24,'RECAP SECT'!$G$6:$CU$253,52,FALSE) -> 2,216 | K24: =VLOOKUP($C24,'RECAP SECT'!$G$6:$CU$253,53,FALSE) -> 36.64 | L24: =VLOOKUP($C24,'RECAP SECT'!$G$6:$CU$253,54,FALSE) -> 1% | M24: =VLOOKUP($C24,'RECAP SECT'!$G$6:$CU$253,55,FALSE) -> 2 | N24: =VLOOKUP($C24,'RECAP SECT'!$G$6:$CU$253,56,FALSE) -> 815 | O24: =VLOOKUP($C24,'RECAP SECT'!$G$6:$CU$253,57,FALSE) -> 13.48 | P24: =VLOOKUP($C24,'RECAP SECT'!$G$6:$CU$253,58,FALSE) -> 35% | Q24: =VLOOKUP($C24,'RECAP SECT'!$G$6:$CU$253,59,FALSE) -> 9 | R24: =VLOOKUP($C24,'RECAP SECT'!$G$6:$CU$253,60,FALSE) -> 26% | S24: =VLOOKUP($C24,'RECAP SECT'!$G$6:$CU$253,61,FALSE) -> 20% | T24: =VLOOKUP($C24,'RECAP SECT'!$G$6:$CU$253,62,FALSE) -> 6
A25: 160 | B25: MOSELLE | C25: 44 | D25: MOSELLE NORD | E25: =VLOOKUP($C25,'RECAP SECT'!$G$6:$CU$253,3,FALSE) -> 57.4 | F25: =VLOOKUP($C25,'RECAP SECT'!$G$6:$CU$253,48,FALSE) -> 14,010 | G25: =VLOOKUP($C25,'RECAP SECT'!$G$6:$CU$253,49,FALSE) -> 243.91 | H25: =VLOOKUP($C25,'RECAP SECT'!$G$6:$CU$253,50,FALSE) -> 0% | I25: =VLOOKUP($C25,'RECAP SECT'!$G$6:$CU$253,51,FALSE) -> 1 | J25: =VLOOKUP($C25,'RECAP SECT'!$G$6:$CU$253,52,FALSE) -> 1,964 | K25: =VLOOKUP($C25,'RECAP SECT'!$G$6:$CU$253,53,FALSE) -> 34.19 | L25: =VLOOKUP($C25,'RECAP SECT'!$G$6:$CU$253,54,FALSE) -> 7% | M25: =VLOOKUP($C25,'RECAP SECT'!$G$6:$CU$253,55,FALSE) -> 4 | N25: =VLOOKUP($C25,'RECAP SECT'!$G$6:$CU$253,56,FALSE) -> 1,067 | O25: =VLOOKUP($C25,'RECAP SECT'!$G$6:$CU$253,57,FALSE) -> 18.58 | P25: =VLOOKUP($C25,'RECAP SECT'!$G$6:$CU$253,58,FALSE) -> 10% | Q25: =VLOOKUP($C25,'RECAP SECT'!$G$6:$CU$253,59,FALSE) -> 2 | R25: =VLOOKUP($C25,'RECAP SECT'!$G$6:$CU$253,60,FALSE) -> 6% | S25: =VLOOKUP($C25,'RECAP SECT'!$G$6:$CU$253,61,FALSE) -> 0% | T25: =VLOOKUP($C25,'RECAP SECT'!$G$6:$CU$253,62,FALSE) -> 1
A26: 80 | B26: VOSGES | C26: 57 | D26: EPINAL | E26: =VLOOKUP($C26,'RECAP SECT'!$G$6:$CU$253,3,FALSE) -> 53.3 | F26: =VLOOKUP($C26,'RECAP SECT'!$G$6:$CU$253,48,FALSE) -> 5,114 | G26: =VLOOKUP($C26,'RECAP SECT'!$G$6:$CU$253,49,FALSE) -> 95.95 | H26: =VLOOKUP($C26,'RECAP SECT'!$G$6:$CU$253,50,FALSE) -> 61% | I26: =VLOOKUP($C26,'RECAP SECT'!$G$6:$CU$253,51,FALSE) -> 14 | J26: =VLOOKUP($C26,'RECAP SECT'!$G$6:$CU$253,52,FALSE) -> 1,393 | K26: =VLOOKUP($C26,'RECAP SECT'!$G$6:$CU$253,53,FALSE) -> 26.13 | L26: =VLOOKUP($C26,'RECAP SECT'!$G$6:$CU$253,54,FALSE) -> 29% | M26: =VLOOKUP($C26,'RECAP SECT'!$G$6:$CU$253,55,FALSE) -> 15 | N26: =VLOOKUP($C26,'RECAP SECT'!$G$6:$CU$253,56,FALSE) -> 624 | O26: =VLOOKUP($C26,'RECAP SECT'!$G$6:$CU$253,57,FALSE) -> 11.71 | P26: =VLOOKUP($C26,'RECAP SECT'!$G$6:$CU$253,58,FALSE) -> 43% | Q26: =VLOOKUP($C26,'RECAP SECT'!$G$6:$CU$253,59,FALSE) -> 13 | R26: =VLOOKUP($C26,'RECAP SECT'!$G$6:$CU$253,60,FALSE) -> 44% | S26: =VLOOKUP($C26,'RECAP SECT'!$G$6:$CU$253,61,FALSE) -> 38% | T26: =VLOOKUP($C26,'RECAP SECT'!$G$6:$CU$253,62,FALSE) -> 15
A27: 80 | B27: VOSGES | C27: 55 | D27: SAINT DIE | E27: =VLOOKUP($C27,'RECAP SECT'!$G$6:$CU$253,3,FALSE) -> 39.8 | F27: =VLOOKUP($C27,'RECAP SECT'!$G$6:$CU$253,48,FALSE) -> 3,437 | G27: =VLOOKUP($C27,'RECAP SECT'!$G$6:$CU$253,49,FALSE) -> 86.38 | H27: =VLOOKUP($C27,'RECAP SECT'!$G$6:$CU$253,50,FALSE) -> 65% | I27: =VLOOKUP($C27,'RECAP SECT'!$G$6:$CU$253,51,FALSE) -> 15 | J27: =VLOOKUP($C27,'RECAP SECT'!$G$6:$CU$253,52,FALSE) -> 1,194 | K27: =VLOOKUP($C27,'RECAP SECT'!$G$6:$CU$253,53,FALSE) -> 30.00 | L27: =VLOOKUP($C27,'RECAP SECT'!$G$6:$CU$253,54,FALSE) -> 19% | M27: =VLOOKUP($C27,'RECAP SECT'!$G$6:$CU$253,55,FALSE) -> 10 | N27: =VLOOKUP($C27,'RECAP SECT'!$G$6:$CU$253,56,FALSE) -> 492 | O27: =VLOOKUP($C27,'RECAP SECT'!$G$6:$CU$253,57,FALSE) -> 12.36 | P27: =VLOOKUP($C27,'RECAP SECT'!$G$6:$CU$253,58,FALSE) -> 40% | Q27: =VLOOKUP($C27,'RECAP SECT'!$G$6:$CU$253,59,FALSE) -> 12 | R27: =VLOOKUP($C27,'RECAP SECT'!$G$6:$CU$253,60,FALSE) -> 41% | S27: =VLOOKUP($C27,'RECAP SECT'!$G$6:$CU$253,61,FALSE) -> 35% | T27: =VLOOKUP($C27,'RECAP SECT'!$G$6:$CU$253,62,FALSE) -> 12
A28: Total CEGEE Directions Régionales | E28: =SUM(E10:E27) -> 958

Sheet SE_IARD
B1: Accueil | F1: BAROMETRE BDD - TERRITOIRES
F2: IARD ET PREVOYANCE
F3: =ACCUEIL!F7 -> 2022-05-22
F7: Ventes Nettes produits pondérés | J7: Ventes sur client non détenteur de l’univers | N7: Total IARD Prévoyance
F8: =DATEMAJ!C23 -> au 22/05 | H8: coef | I8: ='RECAP DIRCOM'!BX4 -> 12% | J8: =DATEMAJ!C24 -> au 22/05 | L8: coef | M8: ='RECAP DIRCOM'!CB4 -> 8% | O8: coef | P8: ='RECAP DIRCOM'!CE4 -> 20%
B9: Direction | C9: eds | D9: Territoire | E9: ="ETP perf "&DATEMAJ!$C$28 -> ETP perf 22-mai | F9: VN | G9: VN / ETP | H9: % Ecart au 1er | I9: Rang | J9: VB | K9: VB / ETP | L9: % Ecart au 1er | M9: Rang | N9: Moyenne ecart au 1er | O9: % Ecart au 1er | P9: Rang CEGEE
A10: 50 | B10: AUBE HAUTE MARNE | C10: 21 | D10: CHAUMONT | E10: =VLOOKUP($C10,'RECAP SECT'!$G$6:$CU$253,3,FALSE) -> 33.7 | F10: =VLOOKUP($C10,'RECAP SECT'!$G$6:$CU$253,67,FALSE) -> 2,744 | G10: =VLOOKUP($C10,'RECAP SECT'!$G$6:$CU$253,68,FALSE) -> 81.38 | H10: =VLOOKUP($C10,'RECAP SECT'!$G$6:$CU$253,69,FALSE) -> 34% | I10: =VLOOKUP($C10,'RECAP SECT'!$G$6:$CU$253,70,FALSE) -> 8 | J10: =VLOOKUP($C10,'RECAP SECT'!$G$6:$CU$253,71,FALSE) -> 761 | K10: =VLOOKUP($C10,'RECAP SECT'!$G$6:$CU$253,72,FALSE) -> 22.57 | L10: =VLOOKUP($C10,'RECAP SECT'!$G$6:$CU$253,73,FALSE) -> 27% | M10: =VLOOKUP($C10,'RECAP SECT'!$G$6:$CU$253,74,FALSE) -> 10 | N10: =VLOOKUP($C10,'RECAP SECT'!$G$6:$CU$253,75,FALSE) -> 31% | O10: =VLOOKUP($C10,'RECAP SECT'!$G$6:$CU$253,76,FALSE) -> 31% | P10: =VLOOKUP($C10,'RECAP SECT'!$G$6:$CU$253,77,FALSE) -> 9
A11: 50 | B11: AUBE HAUTE MARNE | C11: 14 | D11: TROYES | E11: =VLOOKUP($C11,'RECAP SECT'!$G$6:$CU$253,3,FALSE) -> 54.2 | F11: =VLOOKUP($C11,'RECAP SECT'!$G$6:$CU$253,67,FALSE) -> 3,770 | G11: =VLOOKUP($C11,'RECAP SECT'!$G$6:$CU$253,68,FALSE) -> 69.51 | H11: =VLOOKUP($C11,'RECAP SECT'!$G$6:$CU$253,69,FALSE) -> 44% | I11: =VLOOKUP($C11,'RECAP SECT'!$G$6:$CU$253,70,FALSE) -> 11 | J11: =VLOOKUP($C11,'RECAP SECT'!$G$6:$CU$253,71,FALSE) -> 1,216 | K11: =VLOOKUP($C11,'RECAP SECT'!$G$6:$CU$253,72,FALSE) -> 22.42 | L11: =VLOOKUP($C11,'RECAP SECT'!$G$6:$CU$253,73,FALSE) -> 28% | M11: =VLOOKUP($C11,'RECAP SECT'!$G$6:$CU$253,74,FALSE) -> 12 | N11: =VLOOKUP($C11,'RECAP SECT'!$G$6:$CU$253,75,FALSE) -> 37% | O11: =VLOOKUP($C11,'RECAP SECT'!$G$6:$CU$253,76,FALSE) -> 37% | P11: =VLOOKUP($C11,'RECAP SECT'!$G$6:$CU$253,77,FALSE) -> 10
A12: 262 | B12: BAS-RHIN | C12: 5060 | D12: HAGUENAU | E12: =VLOOKUP($C12,'RECAP SECT'!$G$6:$CU$253,3,FALSE) -> 56.3 | F12: =VLOOKUP($C12,'RECAP SECT'!$G$6:$CU$253,67,FALSE) -> 3,663 | G12: =VLOOKUP($C12,'RECAP SECT'!$G$6:$CU$253,68,FALSE) -> 65.12 | H12: =VLOOKUP($C12,'RECAP SECT'!$G$6:$CU$253,69,FALSE) -> 47% | I12: =VLOOKUP($C12,'RECAP SECT'!$G$6:$CU$253,70,FALSE) -> 14 | J12: =VLOOKUP($C12,'RECAP SECT'!$G$6:$CU$253,71,FALSE) -> 1,154 | K12: =VLOOKUP($C12,'RECAP SECT'!$G$6:$CU$253,72,FALSE) -> 20.52 | L12: =VLOOKUP($C12,'RECAP SECT'!$G$6:$CU$253,73,FALSE) -> 34% | M12: =VLOOKUP($C12,'RECAP SECT'!$G$6:$CU$253,74,FALSE) -> 16 | N12: =VLOOKUP($C12,'RECAP SECT'!$G$6:$CU$253,75,FALSE) -> 42% | O12: =VLOOKUP($C12,'RECAP SECT'!$G$6:$CU$253,76,FALSE) -> 42% | P12: =VLOOKUP($C12,'RECAP SECT'!$G$6:$CU$253,77,FALSE) -> 15
A13: 262 | B13: BAS-RHIN | C13: 5101 | D13: SELESTAT | E13: =VLOOKUP($C13,'RECAP SECT'!$G$6:$CU$253,3,FALSE) -> 49.2 | F13: =VLOOKUP($C13,'RECAP SECT'!$G$6:$CU$253,67,FALSE) -> 3,325 | G13: =VLOOKUP($C13,'RECAP SECT'!$G$6:$CU$253,68,FALSE) -> 67.57 | H13: =VLOOKUP($C13,'RECAP SECT'!$G$6:$CU$253,69,FALSE) -> 45% | I13: =VLOOKUP($C13,'RECAP SECT'!$G$6:$CU$253,70,FALSE) -> 13 | J13: =VLOOKUP($C13,'RECAP SECT'!$G$6:$CU$253,71,FALSE) -> 1,074 | K13: =VLOOKUP($C13,'RECAP SECT'!$G$6:$CU$253,72,FALSE) -> 21.82 | L13: =VLOOKUP($C13,'RECAP SECT'!$G$6:$CU$253,73,FALSE) -> 29% | M13: =VLOOKUP($C13,'RECAP SECT'!$G$6:$CU$253,74,FALSE) -> 13 | N13: =VLOOKUP($C13,'RECAP SECT'!$G$6:$CU$253,75,FALSE) -> 39% | O13: =VLOOKUP($C13,'RECAP SECT'!$G$6:$CU$253,76,FALSE) -> 39% | P13: =VLOOKUP($C13,'RECAP SECT'!$G$6:$CU$253,77,FALSE) -> 14
A14: 262 | B14: BAS-RHIN | C14: 5006 | D14: STRASBOURG | E14: =VLOOKUP($C14,'RECAP SECT'!$G$6:$CU$253,3,FALSE) -> 65.1 | F14: =VLOOKUP($C14,'RECAP SECT'!$G$6:$CU$253,67,FALSE) -> 5,850 | G14: =VLOOKUP($C14,'RECAP SECT'!$G$6:$CU$253,68,FALSE) -> 89.93 | H14: =VLOOKUP($C14,'RECAP SECT'!$G$6:$CU$253,69,FALSE) -> 27% | I14: =VLOOKUP($C14,'RECAP SECT'!$G$6:$CU$253,70,FALSE) -> 5 | J14: =VLOOKUP($C14,'RECAP SECT'!$G$6:$CU$253,71,FALSE) -> 2,004 | K14: =VLOOKUP($C14,'RECAP SECT'!$G$6:$CU$253,72,FALSE) -> 30.81 | L14: =VLOOKUP($C14,'RECAP SECT'!$G$6:$CU$253,73,FALSE) -> 0% | M14: =VLOOKUP($C14,'RECAP SECT'!$G$6:$CU$253,74,FALSE) -> 2 | N14: =VLOOKUP($C14,'RECAP SECT'!$G$6:$CU$253,75,FALSE) -> 17% | O14: =VLOOKUP($C14,'RECAP SECT'!$G$6:$CU$253,76,FALSE) -> 17% | P14: =VLOOKUP($C14,'RECAP SECT'!$G$6:$CU$253,77,FALSE) -> 5
A15: 264 | B15: HAUT-RHIN | C15: 5130 | D15: COLMAR | E15: =VLOOKUP($C15,'RECAP SECT'!$G$6:$CU$253,3,FALSE) -> 50.2 | F15: =VLOOKUP($C15,'RECAP SECT'!$G$6:$CU$253,67,FALSE) -> 3,053 | G15: =VLOOKUP($C15,'RECAP SECT'!$G$6:$CU$253,68,FALSE) -> 60.83 | H15: =VLOOKUP($C15,'RECAP SECT'!$G$6:$CU$253,69,FALSE) -> 51% | I15: =VLOOKUP($C15,'RECAP SECT'!$G$6:$CU$253,70,FALSE) -> 16 | J15: =VLOOKUP($C15,'RECAP SECT'!$G$6:$CU$253,71,FALSE) -> 988 | K15: =VLOOKUP($C15,'RECAP SECT'!$G$6:$CU$253,72,FALSE) -> 19.69 | L15: =VLOOKUP($C15,'RECAP SECT'!$G$6:$CU$253,73,FALSE) -> 36% | M15: =VLOOKUP($C15,'RECAP SECT'!$G$6:$CU$253,74,FALSE) -> 17 | N15: =VLOOKUP($C15,'RECAP SECT'!$G$6:$CU$253,75,FALSE) -> 45% | O15: =VLOOKUP($C15,'RECAP SECT'!$G$6:$CU$253,76,FALSE) -> 45% | P15: =VLOOKUP($C15,'RECAP SECT'!$G$6:$CU$253,77,FALSE) -> 16
A16: 264 | B16: HAUT-RHIN | C16: 5169 | D16: MULHOUSE | E16: =VLOOKUP($C16,'RECAP SECT'!$G$6:$CU$253,3,FALSE) -> 45.7 | F16: =VLOOKUP($C16,'RECAP SECT'!$G$6:$CU$253,67,FALSE) -> 1,209 | G16: =VLOOKUP($C16,'RECAP SECT'!$G$6:$CU$253,68,FALSE) -> 26.48 | H16: =VLOOKUP($C16,'RECAP SECT'!$G$6:$CU$253,69,FALSE) -> 79% | I16: =VLOOKUP($C16,'RECAP SECT'!$G$6:$CU$253,70,FALSE) -> 18 | J16: =VLOOKUP($C16,'RECAP SECT'!$G$6:$CU$253,71,FALSE) -> 940 | K16: =VLOOKUP($C16,'RECAP SECT'!$G$6:$CU$253,72,FALSE) -> 20.59 | L16: =VLOOKUP($C16,'RECAP SECT'!$G$6:$CU$253,73,FALSE) -> 33% | M16: =VLOOKUP($C16,'RECAP SECT'!$G$6:$CU$253,74,FALSE) -> 15 | N16: =VLOOKUP($C16,'RECAP SECT'!$G$6:$CU$253,75,FALSE) -> 61% | O16: =VLOOKUP($C16,'RECAP SECT'!$G$6:$CU$253,76,FALSE) -> 61% | P16: =VLOOKUP($C16,'RECAP SECT'!$G$6:$CU$253,77,FALSE) -> 18
A17: 30 | B17: MARNE-ARDENNES | C17: 6 | D17: CHALONS EN CHAMPAGNE | E17: =VLOOKUP($C17,'RECAP SECT'!$G$6:$CU$253,3,FALSE) -> 38.7 | F17: =VLOOKUP($C17,'RECAP SECT'!$G$6:$CU$253,67,FALSE) -> 3,402 | G17: =VLOOKUP($C17,'RECAP SECT'!$G$6:$CU$253,68,FALSE) -> 87.91 | H17: =VLOOKUP($C17,'RECAP SECT'!$G$6:$CU$253,69,FALSE) -> 29% | I17: =VLOOKUP($C17,'RECAP SECT'!$G$6:$CU$253,70,FALSE) -> 6 | J17: =VLOOKUP($C17,'RECAP SECT'!$G$6:$CU$253,71,FALSE) -> 949 | K17: =VLOOKUP($C17,'RECAP SECT'!$G$6:$CU$253,72,FALSE) -> 24.52 | L17: =VLOOKUP($C17,'RECAP SECT'!$G$6:$CU$253,73,FALSE) -> 21% | M17: =VLOOKUP($C17,'RECAP SECT'!$G$6:$CU$253,74,FALSE) -> 7 | N17: =VLOOKUP($C17,'RECAP SECT'!$G$6:$CU$253,75,FALSE) -> 26% | O17: =VLOOKUP($C17,'RECAP SECT'!$G$6:$CU$253,76,FALSE) -> 26% | P17: =VLOOKUP($C17,'RECAP SECT'!$G$6:$CU$253,77,FALSE) -> 7
A18: 30 | B18: MARNE-ARDENNES | C18: 2 | D18: CHARLEVILLE MEZIERES | E18: =VLOOKUP($C18,'RECAP SECT'!$G$6:$CU$253,3,FALSE) -> 48.8 | F18: =VLOOKUP($C18,'RECAP SECT'!$G$6:$CU$253,67,FALSE) -> 5,614 | G18: =VLOOKUP($C18,'RECAP SECT'!$G$6:$CU$253,68,FALSE) -> 114.95 | H18: =VLOOKUP($C18,'RECAP SECT'!$G$6:$CU$253,69,FALSE) -> 7% | I18: =VLOOKUP($C18,'RECAP SECT'!$G$6:$CU$253,70,FALSE) -> 2 | J18: =VLOOKUP($C18,'RECAP SECT'!$G$6:$CU$253,71,FALSE) -> 1,349 | K18: =VLOOKUP($C18,'RECAP SECT'!$G$6:$CU$253,72,FALSE) -> 27.62 | L18: =VLOOKUP($C18,'RECAP SECT'!$G$6:$CU$253,73,FALSE) -> 11% | M18: =VLOOKUP($C18,'RECAP SECT'!$G$6:$CU$253,74,FALSE) -> 5 | N18: =VLOOKUP($C18,'RECAP SECT'!$G$6:$CU$253,75,FALSE) -> 9% | O18: =VLOOKUP($C18,'RECAP SECT'!$G$6:$CU$253,76,FALSE) -> 9% | P18: =VLOOKUP($C18,'RECAP SECT'!$G$6:$CU$253,77,FALSE) -> 2
A19: 30 | B19: MARNE-ARDENNES | C19: 11 | D19: REIMS | E19: =VLOOKUP($C19,'RECAP SECT'!$G$6:$CU$253,3,FALSE) -> 69.1 | F19: =VLOOKUP($C19,'RECAP SECT'!$G$6:$CU$253,67,FALSE) -> 6,536 | G19: =VLOOKUP($C19,'RECAP SECT'!$G$6:$CU$253,68,FALSE) -> 94.57 | H19: =VLOOKUP($C19,'RECAP SECT'!$G$6:$CU$253,69,FALSE) -> 24% | I19: =VLOOKUP($C19,'RECAP SECT'!$G$6:$CU$253,70,FALSE) -> 4 | J19: =VLOOKUP($C19,'RECAP SECT'!$G$6:$CU$253,71,FALSE) -> 2,091 | K19: =VLOOKUP($C19,'RECAP SECT'!$G$6:$CU$253,72,FALSE) -> 30.26 | L19: =VLOOKUP($C19,'RECAP SECT'!$G$6:$CU$253,73,FALSE) -> 2% | M19: =VLOOKUP($C19,'RECAP SECT'!$G$6:$CU$253,74,FALSE) -> 3 | N19: =VLOOKUP($C19,'RECAP SECT'!$G$6:$CU$253,75,FALSE) -> 15% | O19: =VLOOKUP($C19,'RECAP SECT'!$G$6:$CU$253,76,FALSE) -> 15% | P19: =VLOOKUP($C19,'RECAP SECT'!$G$6:$CU$253,77,FALSE) -> 3
A20: 110 | B20: MEURTHE ET MOSELLE MEUSE | C20: 26 | D20: NANCY | E20: =VLOOKUP($C20,'RECAP SECT'!$G$6:$CU$253,3,FALSE) -> 55.5 | F20: =VLOOKUP($C20,'RECAP SECT'!$G$6:$CU$253,67,FALSE) -> 3,552 | G20: =VLOOKUP($C20,'RECAP SECT'!$G$6:$CU$253,68,FALSE) -> 64.01 | H20: =VLOOKUP($C20,'RECAP SECT'!$G$6:$CU$253,69,FALSE) -> 48% | I20: =VLOOKUP($C20,'RECAP SECT'!$G$6:$CU$253,70,FALSE) -> 15 | J20: =VLOOKUP($C20,'RECAP SECT'!$G$6:$CU$253,71,FALSE) -> 1,341 | K20: =VLOOKUP($C20,'RECAP SECT'!$G$6:$CU$253,72,FALSE) -> 24.17 | L20: =VLOOKUP($C20,'RECAP SECT'!$G$6:$CU$253,73,FALSE) -> 22% | M20: =VLOOKUP($C20,'RECAP SECT'!$G$6:$CU$253,74,FALSE) -> 9 | N20: =VLOOKUP($C20,'RECAP SECT'!$G$6:$CU$253,75,FALSE) -> 38% | O20: =VLOOKUP($C20,'RECAP SECT'!$G$6:$CU$253,76,FALSE) -> 38% | P20: =VLOOKUP($C20,'RECAP SECT'!$G$6:$CU$253,77,FALSE) -> 12
A21: 110 | B21: MEURTHE ET MOSELLE MEUSE | C21: 27 | D21: PONT A MOUSSON | E21: =VLOOKUP($C21,'RECAP SECT'!$G$6:$CU$253,3,FALSE) -> 59.6 | F21: =VLOOKUP($C21,'RECAP SECT'!$G$6:$CU$253,67,FALSE) -> 5,030 | G21: =VLOOKUP($C21,'RECAP SECT'!$G$6:$CU$253,68,FALSE) -> 84.42 | H21: =VLOOKUP($C21,'RECAP SECT'!$G$6:$CU$253,69,FALSE) -> 32% | I21: =VLOOKUP($C21,'RECAP SECT'!$G$6:$CU$253,70,FALSE) -> 7 | J21: =VLOOKUP($C21,'RECAP SECT'!$G$6:$CU$253,71,FALSE) -> 1,673 | K21: =VLOOKUP($C21,'RECAP SECT'!$G$6:$CU$253,72,FALSE) -> 28.08 | L21: =VLOOKUP($C21,'RECAP SECT'!$G$6:$CU$253,73,FALSE) -> 9% | M21: =VLOOKUP($C21,'RECAP SECT'!$G$6:$CU$253,74,FALSE) -> 4 | N21: =VLOOKUP($C21,'RECAP SECT'!$G$6:$CU$253,75,FALSE) -> 23% | O21: =VLOOKUP($C21,'RECAP SECT'!$G$6:$CU$253,76,FALSE) -> 23% | P21: =VLOOKUP($C21,'RECAP SECT'!$G$6:$CU$253,77,FALSE) -> 6
A22: 110 | B22: MEURTHE ET MOSELLE MEUSE | C22: 31 | D22: VERDUN | E22: =VLOOKUP($C22,'RECAP SECT'!$G$6:$CU$253,3,FALSE) -> 48.2 | F22: =VLOOKUP($C22,'RECAP SECT'!$G$6:$CU$253,67,FALSE) -> 3,301 | G22: =VLOOKUP($C22,'RECAP SECT'!$G$6:$CU$253,68,FALSE) -> 68.53 | H22: =VLOOKUP($C22,'RECAP SECT'!$G$6:$CU$253,69,FALSE) -> 45% | I22: =VLOOKUP($C22,'RECAP SECT'!$G$6:$CU$253,70,FALSE) -> 12 | J22: =VLOOKUP($C22,'RECAP SECT'!$G$6:$CU$253,71,FALSE) -> 1,085 | K22: =VLOOKUP($C22,'RECAP SECT'!$G$6:$CU$253,72,FALSE) -> 22.52 | L22: =VLOOKUP($C22,'RECAP SECT'!$G$6:$CU$253,73,FALSE) -> 27% | M22: =VLOOKUP($C22,'RECAP SECT'!$G$6:$CU$253,74,FALSE) -> 11 | N22: =VLOOKUP($C22,'RECAP SECT'!$G$6:$CU$253,75,FALSE) -> 38% | O22: =VLOOKUP($C22,'RECAP SECT'!$G$6:$CU$253,76,FALSE) -> 38% | P22: =VLOOKUP($C22,'RECAP SECT'!$G$6:$CU$253,77,FALSE) -> 11
A23: 160 | B23: MOSELLE | C23: 45 | D23: METZ | E23: =VLOOKUP($C23,'RECAP SECT'!$G$6:$CU$253,3,FALSE) -> 72.9 | F23: =VLOOKUP($C23,'RECAP SECT'!$G$6:$CU$253,67,FALSE) -> 5,857 | G23: =VLOOKUP($C23,'RECAP SECT'!$G$6:$CU$253,68,FALSE) -> 80.38 | H23: =VLOOKUP($C23,'RECAP SECT'!$G$6:$CU$253,69,FALSE) -> 35% | I23: =VLOOKUP($C23,'RECAP SECT'!$G$6:$CU$253,70,FALSE) -> 9 | J23: =VLOOKUP($C23,'RECAP SECT'!$G$6:$CU$253,71,FALSE) -> 1,766 | K23: =VLOOKUP($C23,'RECAP SECT'!$G$6:$CU$253,72,FALSE) -> 24.23 | L23: =VLOOKUP($C23,'RECAP SECT'!$G$6:$CU$253,73,FALSE) -> 22% | M23: =VLOOKUP($C23,'RECAP SECT'!$G$6:$CU$253,74,FALSE) -> 8 | N23: =VLOOKUP($C23,'RECAP SECT'!$G$6:$CU$253,75,FALSE) -> 30% | O23: =VLOOKUP($C23,'RECAP SECT'!$G$6:$CU$253,76,FALSE) -> 30% | P23: =VLOOKUP($C23,'RECAP SECT'!$G$6:$CU$253,77,FALSE) -> 8
A24: 160 | B24: MOSELLE | C24: 42 | D24: MOSELLE EST | E24: =VLOOKUP($C24,'RECAP SECT'!$G$6:$CU$253,3,FALSE) -> 60.5 | F24: =VLOOKUP($C24,'RECAP SECT'!$G$6:$CU$253,67,FALSE) -> 6,296 | G24: =VLOOKUP($C24,'RECAP SECT'!$G$6:$CU$253,68,FALSE) -> 104.10 | H24: =VLOOKUP($C24,'RECAP SECT'!$G$6:$CU$253,69,FALSE) -> 16% | I24: =VLOOKUP($C24,'RECAP SECT'!$G$6:$CU$253,70,FALSE) -> 3 | J24: =VLOOKUP($C24,'RECAP SECT'!$G$6:$CU$253,71,FALSE) -> 1,585 | K24: =VLOOKUP($C24,'RECAP SECT'!$G$6:$CU$253,72,FALSE) -> 26.21 | L24: =VLOOKUP($C24,'RECAP SECT'!$G$6:$CU$253,73,FALSE) -> 15% | M24: =VLOOKUP($C24,'RECAP SECT'!$G$6:$CU$253,74,FALSE) -> 6 | N24: =VLOOKUP($C24,'RECAP SECT'!$G$6:$CU$253,75,FALSE) -> 16% | O24: =VLOOKUP($C24,'RECAP SECT'!$G$6:$CU$253,76,FALSE) -> 16% | P24: =VLOOKUP($C24,'RECAP SECT'!$G$6:$CU$253,77,FALSE) -> 4
A25: 160 | B25: MOSELLE | C25: 44 | D25: MOSELLE NORD | E25: =VLOOKUP($C25,'RECAP SECT'!$G$6:$CU$253,3,FALSE) -> 57.4 | F25: =VLOOKUP($C25,'RECAP SECT'!$G$6:$CU$253,67,FALSE) -> 7,118 | G25: =VLOOKUP($C25,'RECAP SECT'!$G$6:$CU$253,68,FALSE) -> 123.92 | H25: =VLOOKUP($C25,'RECAP SECT'!$G$6:$CU$253,69,FALSE) -> 0% | I25: =VLOOKUP($C25,'RECAP SECT'!$G$6:$CU$253,70,FALSE) -> 1 | J25: =VLOOKUP($C25,'RECAP SECT'!$G$6:$CU$253,71,FALSE) -> 1,778 | K25: =VLOOKUP($C25,'RECAP SECT'!$G$6:$CU$253,72,FALSE) -> 30.95 | L25: =VLOOKUP($C25,'RECAP SECT'!$G$6:$CU$253,73,FALSE) -> 0% | M25: =VLOOKUP($C25,'RECAP SECT'!$G$6:$CU$253,74,FALSE) -> 1 | N25: =VLOOKUP($C25,'RECAP SECT'!$G$6:$CU$253,75,FALSE) -> 0% | O25: =VLOOKUP($C25,'RECAP SECT'!$G$6:$CU$253,76,FALSE) -> 0% | P25: =VLOOKUP($C25,'RECAP SECT'!$G$6:$CU$253,77,FALSE) -> 1
A26: 80 | B26: VOSGES | C26: 57 | D26: EPINAL | E26: =VLOOKUP($C26,'RECAP SECT'!$G$6:$CU$253,3,FALSE) -> 53.3 | F26: =VLOOKUP($C26,'RECAP SECT'!$G$6:$CU$253,67,FALSE) -> 3,765 | G26: =VLOOKUP($C26,'RECAP SECT'!$G$6:$CU$253,68,FALSE) -> 70.64 | H26: =VLOOKUP($C26,'RECAP SECT'!$G$6:$CU$253,69,FALSE) -> 43% | I26: =VLOOKUP($C26,'RECAP SECT'!$G$6:$CU$253,70,FALSE) -> 10 | J26: =VLOOKUP($C26,'RECAP SECT'!$G$6:$CU$253,71,FALSE) -> 1,150 | K26: =VLOOKUP($C26,'RECAP SECT'!$G$6:$CU$253,72,FALSE) -> 21.58 | L26: =VLOOKUP($C26,'RECAP SECT'!$G$6:$CU$253,73,FALSE) -> 30% | M26: =VLOOKUP($C26,'RECAP SECT'!$G$6:$CU$253,74,FALSE) -> 14 | N26: =VLOOKUP($C26,'RECAP SECT'!$G$6:$CU$253,75,FALSE) -> 38% | O26: =VLOOKUP($C26,'RECAP SECT'!$G$6:$CU$253,76,FALSE) -> 38% | P26: =VLOOKUP($C26,'RECAP SECT'!$G$6:$CU$253,77,FALSE) -> 13
A27: 80 | B27: VOSGES | C27: 55 | D27: SAINT DIE | E27: =VLOOKUP($C27,'RECAP SECT'!$G$6:$CU$253,3,FALSE) -> 39.8 | F27: =VLOOKUP($C27,'RECAP SECT'!$G$6:$CU$253,67,FALSE) -> 1,653 | G27: =VLOOKUP($C27,'RECAP SECT'!$G$6:$CU$253,68,FALSE) -> 41.54 | H27: =VLOOKUP($C27,'RECAP SECT'!$G$6:$CU$253,69,FALSE) -> 66% | I27: =VLOOKUP($C27,'RECAP SECT'!$G$6:$CU$253,70,FALSE) -> 17 | J27: =VLOOKUP($C27,'RECAP SECT'!$G$6:$CU$253,71,FALSE) -> 741 | K27: =VLOOKUP($C27,'RECAP SECT'!$G$6:$CU$253,72,FALSE) -> 18.62 | L27: =VLOOKUP($C27,'RECAP SECT'!$G$6:$CU$253,73,FALSE) -> 40% | M27: =VLOOKUP($C27,'RECAP SECT'!$G$6:$CU$253,74,FALSE) -> 18 | N27: =VLOOKUP($C27,'RECAP SECT'!$G$6:$CU$253,75,FALSE) -> 56% | O27: =VLOOKUP($C27,'RECAP SECT'!$G$6:$CU$253,76,FALSE) -> 56% | P27: =VLOOKUP($C27,'RECAP SECT'!$G$6:$CU$253,77,FALSE) -> 17
A28: Total CEGEE Directions Régionales | E28: =SUM(E10:E27) -> 958

Sheet SE_SATISFACTION
B1: Accueil | F1: BAROMETRE BDD - TERRITOIRES
F2: SATISFACTION
F3: =ACCUEIL!F7 -> 2022-05-22
F7: NPS à froid (SAE) | I7: NPS à chaud (QHD) | L7: Total Satisfaction Clients
F8: =DATEMAJ!E4 -> au 31/03 | G8: coef | H8: ='RECAP DIRCOM'!M4 -> 10% | I8: =DATEMAJ!C5 -> au 31/03 | J8: coef | K8: ='RECAP DIRCOM'!P4 -> 10% | M8: coef | N8: ='RECAP DIRCOM'!S4 -> 20%
B9: Direction | C9: eds | D9: Territoire | E9: ="ETP perf "&DATEMAJ!$C$28 -> ETP perf 22-mai | G9: % Ecart au 1er | H9: Rang | J9: % Ecart au 1er | K9: Rang | L9: Moyenne ecart au 1er | M9: % Ecart au 1er | N9: Rang CEGEE
A10: 50 | B10: AUBE HAUTE MARNE | C10: 21 | D10: CHAUMONT | E10: =VLOOKUP($C10,'RECAP SECT'!$G$6:$CU$253,3,FALSE) -> 33.7 | F10: =VLOOKUP($C10,'RECAP SECT'!$G$6:$CU$253,5,FALSE) -> 15.25 | G10: =VLOOKUP($C10,'RECAP SECT'!$G$6:$CU$253,6,FALSE) -> 45% | H10: =VLOOKUP($C10,'RECAP SECT'!$G$6:$CU$253,7,FALSE) -> 7 | I10: =VLOOKUP($C10,'RECAP SECT'!$G$6:$CU$253,8,FALSE) -> 64% | J10: =VLOOKUP($C10,'RECAP SECT'!$G$6:$CU$253,9,FALSE) -> 15% | K10: =VLOOKUP($C10,'RECAP SECT'!$G$6:$CU$253,10,FALSE) -> 7 | L10: =VLOOKUP($C10,'RECAP SECT'!$G$6:$CU$253,11,FALSE) -> 30% | M10: =VLOOKUP($C10,'RECAP SECT'!$G$6:$CU$253,12,FALSE) -> 25% | N10: =VLOOKUP($C10,'RECAP SECT'!$G$6:$CU$253,13,FALSE) -> 8
A11: 50 | B11: AUBE HAUTE MARNE | C11: 14 | D11: TROYES | E11: =VLOOKUP($C11,'RECAP SECT'!$G$6:$CU$253,3,FALSE) -> 54.2 | F11: =VLOOKUP($C11,'RECAP SECT'!$G$6:$CU$253,5,FALSE) -> 0 | G11: =VLOOKUP($C11,'RECAP SECT'!$G$6:$CU$253,6,FALSE) -> 100% | H11: =VLOOKUP($C11,'RECAP SECT'!$G$6:$CU$253,7,FALSE) -> 17 | I11: =VLOOKUP($C11,'RECAP SECT'!$G$6:$CU$253,8,FALSE) -> 47% | J11: =VLOOKUP($C11,'RECAP SECT'!$G$6:$CU$253,9,FALSE) -> 37% | K11: =VLOOKUP($C11,'RECAP SECT'!$G$6:$CU$253,10,FALSE) -> 18 | L11: =VLOOKUP($C11,'RECAP SECT'!$G$6:$CU$253,11,FALSE) -> 68% | M11: =VLOOKUP($C11,'RECAP SECT'!$G$6:$CU$253,12,FALSE) -> 64% | N11: =VLOOKUP($C11,'RECAP SECT'!$G$6:$CU$253,13,FALSE) -> 18
A12: 262 | B12: BAS-RHIN | C12: 5060 | D12: HAGUENAU | E12: =VLOOKUP($C12,'RECAP SECT'!$G$6:$CU$253,3,FALSE) -> 56.3 | F12: =VLOOKUP($C12,'RECAP SECT'!$G$6:$CU$253,5,FALSE) -> 13.75 | G12: =VLOOKUP($C12,'RECAP SECT'!$G$6:$CU$253,6,FALSE) -> 50% | H12: =VLOOKUP($C12,'RECAP SECT'!$G$6:$CU$253,7,FALSE) -> 10 | I12: =VLOOKUP($C12,'RECAP SECT'!$G$6:$CU$253,8,FALSE) -> 62% | J12: =VLOOKUP($C12,'RECAP SECT'!$G$6:$CU$253,9,FALSE) -> 18% | K12: =VLOOKUP($C12,'RECAP SECT'!$G$6:$CU$253,10,FALSE) -> 11 | L12: =VLOOKUP($C12,'RECAP SECT'!$G$6:$CU$253,11,FALSE) -> 34% | M12: =VLOOKUP($C12,'RECAP SECT'!$G$6:$CU$253,12,FALSE) -> 30% | N12: =VLOOKUP($C12,'RECAP SECT'!$G$6:$CU$253,13,FALSE) -> 10
A13: 262 | B13: BAS-RHIN | C13: 5101 | D13: SELESTAT | E13: =VLOOKUP($C13,'RECAP SECT'!$G$6:$CU$253,3,FALSE) -> 49.2 | F13: =VLOOKUP($C13,'RECAP SECT'!$G$6:$CU$253,5,FALSE) -> 0 | G13: =VLOOKUP($C13,'RECAP SECT'!$G$6:$CU$253,6,FALSE) -> 100% | H13: =VLOOKUP($C13,'RECAP SECT'!$G$6:$CU$253,7,FALSE) -> 17 | I13: =VLOOKUP($C13,'RECAP SECT'!$G$6:$CU$253,8,FALSE) -> 57% | J13: =VLOOKUP($C13,'RECAP SECT'!$G$6:$CU$253,9,FALSE) -> 25% | K13: =VLOOKUP($C13,'RECAP SECT'!$G$6:$CU$253,10,FALSE) -> 14 | L13: =VLOOKUP($C13,'RECAP SECT'!$G$6:$CU$253,11,FALSE) -> 62% | M13: =VLOOKUP($C13,'RECAP SECT'!$G$6:$CU$253,12,FALSE) -> 58% | N13: =VLOOKUP($C13,'RECAP SECT'!$G$6:$CU$253,13,FALSE) -> 16
A14: 262 | B14: BAS-RHIN | C14: 5006 | D14: STRASBOURG | E14: =VLOOKUP($C14,'RECAP SECT'!$G$6:$CU$253,3,FALSE) -> 65.1 | F14: =VLOOKUP($C14,'RECAP SECT'!$G$6:$CU$253,5,FALSE) -> 12.25 | G14: =VLOOKUP($C14,'RECAP SECT'!$G$6:$CU$253,6,FALSE) -> 56% | H14: =VLOOKUP($C14,'RECAP SECT'!$G$6:$CU$253,7,FALSE) -> 11 | I14: =VLOOKUP($C14,'RECAP SECT'!$G$6:$CU$253,8,FALSE) -> 63% | J14: =VLOOKUP($C14,'RECAP SECT'!$G$6:$CU$253,9,FALSE) -> 16% | K14: =VLOOKUP($C14,'RECAP SECT'!$G$6:$CU$253,10,FALSE) -> 9 | L14: =VLOOKUP($C14,'RECAP SECT'!$G$6:$CU$253,11,FALSE) -> 36% | M14: =VLOOKUP($C14,'RECAP SECT'!$G$6:$CU$253,12,FALSE) -> 31% | N14: =VLOOKUP($C14,'RECAP SECT'!$G$6:$CU$253,13,FALSE) -> 11
A15: 264 | B15: HAUT-RHIN | C15: 5130 | D15: COLMAR | E15: =VLOOKUP($C15,'RECAP SECT'!$G$6:$CU$253,3,FALSE) -> 50.2 | F15: =VLOOKUP($C15,'RECAP SECT'!$G$6:$CU$253,5,FALSE) -> 3.25 | G15: =VLOOKUP($C15,'RECAP SECT'!$G$6:$CU$253,6,FALSE) -> 88% | H15: =VLOOKUP($C15,'RECAP SECT'!$G$6:$CU$253,7,FALSE) -> 14 | I15: =VLOOKUP($C15,'RECAP SECT'!$G$6:$CU$253,8,FALSE) -> 53% | J15: =VLOOKUP($C15,'RECAP SECT'!$G$6:$CU$253,9,FALSE) -> 30% | K15: =VLOOKUP($C15,'RECAP SECT'!$G$6:$CU$253,10,FALSE) -> 15 | L15: =VLOOKUP($C15,'RECAP SECT'!$G$6:$CU$253,11,FALSE) -> 59% | M15: =VLOOKUP($C15,'RECAP SECT'!$G$6:$CU$253,12,FALSE) -> 55% | N15: =VLOOKUP($C15,'RECAP SECT'!$G$6:$CU$253,13,FALSE) -> 14
A16: 264 | B16: HAUT-RHIN | C16: 5169 | D16: MULHOUSE | E16: =VLOOKUP($C16,'RECAP SECT'!$G$6:$CU$253,3,FALSE) -> 45.7 | F16: =VLOOKUP($C16,'RECAP SECT'!$G$6:$CU$253,5,FALSE) -> 3 | G16: =VLOOKUP($C16,'RECAP SECT'!$G$6:$CU$253,6,FALSE) -> 89% | H16: =VLOOKUP($C16,'RECAP SECT'!$G$6:$CU$253,7,FALSE) -> 15 | I16: =VLOOKUP($C16,'RECAP SECT'!$G$6:$CU$253,8,FALSE) -> 47% | J16: =VLOOKUP($C16,'RECAP SECT'!$G$6:$CU$253,9,FALSE) -> 37% | K16: =VLOOKUP($C16,'RECAP SECT'!$G$6:$CU$253,10,FALSE) -> 17 | L16: =VLOOKUP($C16,'RECAP SECT'!$G$6:$CU$253,11,FALSE) -> 63% | M16: =VLOOKUP($C16,'RECAP SECT'!$G$6:$CU$253,12,FALSE) -> 59% | N16: =VLOOKUP($C16,'RECAP SECT'!$G$6:$CU$253,13,FALSE) -> 17
A17: 30 | B17: MARNE-ARDENNES | C17: 6 | D17: CHALONS EN CHAMPAGNE | E17: =VLOOKUP($C17,'RECAP SECT'!$G$6:$CU$253,3,FALSE) -> 38.7 | F17: =VLOOKUP($C17,'RECAP SECT'!$G$6:$CU$253,5,FALSE) -> 23.75 | G17: =VLOOKUP($C17,'RECAP SECT'!$G$6:$CU$253,6,FALSE) -> 14% | H17: =VLOOKUP($C17,'RECAP SECT'!$G$6:$CU$253,7,FALSE) -> 2 | I17: =VLOOKUP($C17,'RECAP SECT'!$G$6:$CU$253,8,FALSE) -> 75% | J17: =VLOOKUP($C17,'RECAP SECT'!$G$6:$CU$253,9,FALSE) -> 0% | K17: =VLOOKUP($C17,'RECAP SECT'!$G$6:$CU$253,10,FALSE) -> 1 | L17: =VLOOKUP($C17,'RECAP SECT'!$G$6:$CU$253,11,FALSE) -> 7% | M17: =VLOOKUP($C17,'RECAP SECT'!$G$6:$CU$253,12,FALSE) -> 3% | N17: =VLOOKUP($C17,'RECAP SECT'!$G$6:$CU$253,13,FALSE) -> 2
A18: 30 | B18: MARNE-ARDENNES | C18: 2 | D18: CHARLEVILLE MEZIERES | E18: =VLOOKUP($C18,'RECAP SECT'!$G$6:$CU$253,3,FALSE) -> 48.8 | F18: =VLOOKUP($C18,'RECAP SECT'!$G$6:$CU$253,5,FALSE) -> 14.5 | G18: =VLOOKUP($C18,'RECAP SECT'!$G$6:$CU$253,6,FALSE) -> 48% | H18: =VLOOKUP($C18,'RECAP SECT'!$G$6:$CU$253,7,FALSE) -> 9 | I18: =VLOOKUP($C18,'RECAP SECT'!$G$6:$CU$253,8,FALSE) -> 67% | J18: =VLOOKUP($C18,'RECAP SECT'!$G$6:$CU$253,9,FALSE) -> 11% | K18: =VLOOKUP($C18,'RECAP SECT'!$G$6:$CU$253,10,FALSE) -> 5 | L18: =VLOOKUP($C18,'RECAP SECT'!$G$6:$CU$253,11,FALSE) -> 30% | M18: =VLOOKUP($C18,'RECAP SECT'!$G$6:$CU$253,12,FALSE) -> 25% | N18: =VLOOKUP($C18,'RECAP SECT'!$G$6:$CU$253,13,FALSE) -> 6
A19: 30 | B19: MARNE-ARDENNES | C19: 11 | D19: REIMS | E19: =VLOOKUP($C19,'RECAP SECT'!$G$6:$CU$253,3,FALSE) -> 69.1 | F19: =VLOOKUP($C19,'RECAP SECT'!$G$6:$CU$253,5,FALSE) -> 15 | G19: =VLOOKUP($C19,'RECAP SECT'!$G$6:$CU$253,6,FALSE) -> 46% | H19: =VLOOKUP($C19,'RECAP SECT'!$G$6:$CU$253,7,FALSE) -> 8 | I19: =VLOOKUP($C19,'RECAP SECT'!$G$6:$CU$253,8,FALSE) -> 65% | J19: =VLOOKUP($C19,'RECAP SECT'!$G$6:$CU$253,9,FALSE) -> 14% | K19: =VLOOKUP($C19,'RECAP SECT'!$G$6:$CU$253,10,FALSE) -> 6 | L19: =VLOOKUP($C19,'RECAP SECT'!$G$6:$CU$253,11,FALSE) -> 30% | M19: =VLOOKUP($C19,'RECAP SECT'!$G$6:$CU$253,12,FALSE) -> 25% | N19: =VLOOKUP($C19,'RECAP SECT'!$G$6:$CU$253,13,FALSE) -> 9
A20: 110 | B20: MEURTHE ET MOSELLE MEUSE | C20: 26 | D20: NANCY | E20: =VLOOKUP($C20,'RECAP SECT'!$G$6:$CU$253,3,FALSE) -> 55.5 | F20: =VLOOKUP($C20,'RECAP SECT'!$G$6:$CU$253,5,FALSE) -> 8.25 | G20: =VLOOKUP($C20,'RECAP SECT'!$G$6:$CU$253,6,FALSE) -> 70% | H20: =VLOOKUP($C20,'RECAP SECT'!$G$6:$CU$253,7,FALSE) -> 13 | I20: =VLOOKUP($C20,'RECAP SECT'!$G$6:$CU$253,8,FALSE) -> 59% | J20: =VLOOKUP($C20,'RECAP SECT'!$G$6:$CU$253,9,FALSE) -> 22% | K20: =VLOOKUP($C20,'RECAP SECT'!$G$6:$CU$253,10,FALSE) -> 13 | L20: =VLOOKUP($C20,'RECAP SECT'!$G$6:$CU$253,11,FALSE) -> 46% | M20: =VLOOKUP($C20,'RECAP SECT'!$G$6:$CU$253,12,FALSE) -> 41% | N20: =VLOOKUP($C20,'RECAP SECT'!$G$6:$CU$253,13,FALSE) -> 13
A21: 110 | B21: MEURTHE ET MOSELLE MEUSE | C21: 27 | D21: PONT A MOUSSON | E21: =VLOOKUP($C21,'RECAP SECT'!$G$6:$CU$253,3,FALSE) -> 59.6 | F21: =VLOOKUP($C21,'RECAP SECT'!$G$6:$CU$253,5,FALSE) -> 2.25 | G21: =VLOOKUP($C21,'RECAP SECT'!$G$6:$CU$253,6,FALSE) -> 92% | H21: =VLOOKUP($C21,'RECAP SECT'!$G$6:$CU$253,7,FALSE) -> 16 | I21: =VLOOKUP($C21,'RECAP SECT'!$G$6:$CU$253,8,FALSE) -> 51% | J21: =VLOOKUP($C21,'RECAP SECT'!$G$6:$CU$253,9,FALSE) -> 32% | K21: =VLOOKUP($C21,'RECAP SECT'!$G$6:$CU$253,10,FALSE) -> 16 | L21: =VLOOKUP($C21,'RECAP SECT'!$G$6:$CU$253,11,FALSE) -> 62% | M21: =VLOOKUP($C21,'RECAP SECT'!$G$6:$CU$253,12,FALSE) -> 58% | N21: =VLOOKUP($C21,'RECAP SECT'!$G$6:$CU$253,13,FALSE) -> 15
A22: 110 | B22: MEURTHE ET MOSELLE MEUSE | C22: 31 | D22: VERDUN | E22: =VLOOKUP($C22,'RECAP SECT'!$G$6:$CU$253,3,FALSE) -> 48.2 | F22: =VLOOKUP($C22,'RECAP SECT'!$G$6:$CU$253,5,FALSE) -> 17 | G22: =VLOOKUP($C22,'RECAP SECT'!$G$6:$CU$253,6,FALSE) -> 39% | H22: =VLOOKUP($C22,'RECAP SECT'!$G$6:$CU$253,7,FALSE) -> 4 | I22: =VLOOKUP($C22,'RECAP SECT'!$G$6:$CU$253,8,FALSE) -> 64% | J22: =VLOOKUP($C22,'RECAP SECT'!$G$6:$CU$253,9,FALSE) -> 15% | K22: =VLOOKUP($C22,'RECAP SECT'!$G$6:$CU$253,10,FALSE) -> 8 | L22: =VLOOKUP($C22,'RECAP SECT'!$G$6:$CU$253,11,FALSE) -> 27% | M22: =VLOOKUP($C22,'RECAP SECT'!$G$6:$CU$253,12,FALSE) -> 23% | N22: =VLOOKUP($C22,'RECAP SECT'!$G$6:$CU$253,13,FALSE) -> 5
A23: 160 | B23: MOSELLE | C23: 45 | D23: METZ | E23: =VLOOKUP($C23,'RECAP SECT'!$G$6:$CU$253,3,FALSE) -> 72.9 | F23: =VLOOKUP($C23,'RECAP SECT'!$G$6:$CU$253,5,FALSE) -> 16.5 | G23: =VLOOKUP($C23,'RECAP SECT'!$G$6:$CU$253,6,FALSE) -> 41% | H23: =VLOOKUP($C23,'RECAP SECT'!$G$6:$CU$253,7,FALSE) -> 5 | I23: =VLOOKUP($C23,'RECAP SECT'!$G$6:$CU$253,8,FALSE) -> 61% | J23: =VLOOKUP($C23,'RECAP SECT'!$G$6:$CU$253,9,FALSE) -> 19% | K23: =VLOOKUP($C23,'RECAP SECT'!$G$6:$CU$253,10,FALSE) -> 12 | L23: =VLOOKUP($C23,'RECAP SECT'!$G$6:$CU$253,11,FALSE) -> 30% | M23: =VLOOKUP($C23,'RECAP SECT'!$G$6:$CU$253,12,FALSE) -> 25% | N23: =VLOOKUP($C23,'RECAP SECT'!$G$6:$CU$253,13,FALSE) -> 7
A24: 160 | B24: MOSELLE | C24: 42 | D24: MOSELLE EST | E24: =VLOOKUP($C24,'RECAP SECT'!$G$6:$CU$253,3,FALSE) -> 60.5 | F24: =VLOOKUP($C24,'RECAP SECT'!$G$6:$CU$253,5,FALSE) -> 16.25 | G24: =VLOOKUP($C24,'RECAP SECT'!$G$6:$CU$253,6,FALSE) -> 41% | H24: =VLOOKUP($C24,'RECAP SECT'!$G$6:$CU$253,7,FALSE) -> 6 | I24: =VLOOKUP($C24,'RECAP SECT'!$G$6:$CU$253,8,FALSE) -> 68% | J24: =VLOOKUP($C24,'RECAP SECT'!$G$6:$CU$253,9,FALSE) -> 10% | K24: =VLOOKUP($C24,'RECAP SECT'!$G$6:$CU$253,10,FALSE) -> 4 | L24: =VLOOKUP($C24,'RECAP SECT'!$G$6:$CU$253,11,FALSE) -> 26% | M24: =VLOOKUP($C24,'RECAP SECT'!$G$6:$CU$253,12,FALSE) -> 21% | N24: =VLOOKUP($C24,'RECAP SECT'!$G$6:$CU$253,13,FALSE) -> 4
A25: 160 | B25: MOSELLE | C25: 44 | D25: MOSELLE NORD | E25: =VLOOKUP($C25,'RECAP SECT'!$G$6:$CU$253,3,FALSE) -> 57.4 | F25: =VLOOKUP($C25,'RECAP SECT'!$G$6:$CU$253,5,FALSE) -> 9.5 | G25: =VLOOKUP($C25,'RECAP SECT'!$G$6:$CU$253,6,FALSE) -> 66% | H25: =VLOOKUP($C25,'RECAP SECT'!$G$6:$CU$253,7,FALSE) -> 12 | I25: =VLOOKUP($C25,'RECAP SECT'!$G$6:$CU$253,8,FALSE) -> 63% | J25: =VLOOKUP($C25,'RECAP SECT'!$G$6:$CU$253,9,FALSE) -> 16% | K25: =VLOOKUP($C25,'RECAP SECT'!$G$6:$CU$253,10,FALSE) -> 10 | L25: =VLOOKUP($C25,'RECAP SECT'!$G$6:$CU$253,11,FALSE) -> 41% | M25: =VLOOKUP($C25,'RECAP SECT'!$G$6:$CU$253,12,FALSE) -> 36% | N25: =VLOOKUP($C25,'RECAP SECT'!$G$6:$CU$253,13,FALSE) -> 12
A26: 80 | B26: VOSGES | C26: 57 | D26: EPINAL | E26: =VLOOKUP($C26,'RECAP SECT'!$G$6:$CU$253,3,FALSE) -> 53.3 | F26: =VLOOKUP($C26,'RECAP SECT'!$G$6:$CU$253,5,FALSE) -> 21 | G26: =VLOOKUP($C26,'RECAP SECT'!$G$6:$CU$253,6,FALSE) -> 24% | H26: =VLOOKUP($C26,'RECAP SECT'!$G$6:$CU$253,7,FALSE) -> 3 | I26: =VLOOKUP($C26,'RECAP SECT'!$G$6:$CU$253,8,FALSE) -> 69% | J26: =VLOOKUP($C26,'RECAP SECT'!$G$6:$CU$253,9,FALSE) -> 8% | K26: =VLOOKUP($C26,'RECAP SECT'!$G$6:$CU$253,10,FALSE) -> 2 | L26: =VLOOKUP($C26,'RECAP SECT'!$G$6:$CU$253,11,FALSE) -> 16% | M26: =VLOOKUP($C26,'RECAP SECT'!$G$6:$CU$253,12,FALSE) -> 12% | N26: =VLOOKUP($C26,'RECAP SECT'!$G$6:$CU$253,13,FALSE) -> 3
A27: 80 | B27: VOSGES | C27: 55 | D27: SAINT DIE | E27: =VLOOKUP($C27,'RECAP SECT'!$G$6:$CU$253,3,FALSE) -> 39.8 | F27: =VLOOKUP($C27,'RECAP SECT'!$G$6:$CU$253,5,FALSE) -> 27.75 | G27: =VLOOKUP($C27,'RECAP SECT'!$G$6:$CU$253,6,FALSE) -> 0% | H27: =VLOOKUP($C27,'RECAP SECT'!$G$6:$CU$253,7,FALSE) -> 1 | I27: =VLOOKUP($C27,'RECAP SECT'!$G$6:$CU$253,8,FALSE) -> 68% | J27: =VLOOKUP($C27,'RECAP SECT'!$G$6:$CU$253,9,FALSE) -> 9% | K27: =VLOOKUP($C27,'RECAP SECT'!$G$6:$CU$253,10,FALSE) -> 3 | L27: =VLOOKUP($C27,'RECAP SECT'!$G$6:$CU$253,11,FALSE) -> 4% | M27: =VLOOKUP($C27,'RECAP SECT'!$G$6:$CU$253,12,FALSE) -> 0% | N27: =VLOOKUP($C27,'RECAP SECT'!$G$6:$CU$253,13,FALSE) -> 1
A28: Total CEGEE Directions Régionales | E28: =SUM(E10:E27) -> 958

Sheet AG_CLASS
B1: Accueil | H1: BAROMETRE BDD - AGENCES
H2: CLASSEMENTS
H3: =ACCUEIL!F7 -> 2022-05-22
H8: CLASSEMENT GENERAL | I8: CRITERE Satisfaction Clients | J8: NPS à froid (SAE) | K8: NPS à chaud (QHD) | L8: CRITERE BANCARISATION | M8: Ventes Nettes produits pondérés | N8: Ventes sur client non détenteur de l’univers | O8: CRITERE EPARGNE | P8: Excédent Epargne hors DAV pondéré | Q8: Ventes sur client non détenteur de l’univers | R8: CRITERE IARD PREVOYANCE | S8: Ventes Nettes produits pondérés | T8: Ventes sur client non détenteur de l’univers | U8: CRITERE CREDITS | V8: Engagements et ventes accessoires pondérés Immo | W8: Engagements et ventes accessoires pondérés Conso | X8: Ventes sur client non détenteur de l’univers
B9: Direction | C9: eds | D9: Territoire | E9: eds | F9: Agence | G9: ="ETP perf "&DATEMAJ!$C$28 -> ETP perf 22-mai | H9: Rang | I9: Rang | J9: Rang | K9: Rang | L9: Rang | M9: Rang | N9: Rang | O9: Rang | P9: Rang | Q9: Rang | R9: Rang | S9: Rang | T9: Rang | U9: Rang | V9: Rang | W9: Rang | X9: Rang
A10: 50 | B10: MEURTHE ET MOSELLE MEUSE | C10: 26 | D10: NANCY | E10: 454171 | F10: BLAMONT | G10: 0.6 | H10: 1 | I10: 244 | J10: 62 | K10: 249 | L10: 1 | M10: 1 | N10: 1 | O10: 6 | P10: 28 | Q10: 4 | R10: 2 | S10: 3 | T10: 1 | U10: 1 | V10: 1 | W10: 2 | X10: 1
A11: 50 | B11: MOSELLE | C11: 44 | D11: MOSELLE NORD | E11: 557508 | F11: NILVANGE | G11: 1.7 | H11: 2 | I11: 109 | J11: 134 | K11: 55 | L11: 2 | M11: 2 | N11: 2 | O11: 4 | P11: 177 | Q11: 1 | R11: 1 | S11: 1 | T11: 2 | U11: 3 | V11: 2 | W11: 25 | X11: 2
A12: 50 | B12: MOSELLE | C12: 42 | D12: MOSELLE EST | E12: 457163 | F12: BEHREN LES FORBACH | G12: 1.9 | H12: 3 | I12: 8 | J12: 17 | K12: 6 | L12: 3 | M12: 5 | N12: 3 | O12: 19 | P12: 87 | Q12: 5 | R12: 42 | S12: 112 | T12: 8 | U12: 4 | V12: 3 | W12: 4 | X12: 4
A13: 50 | B13: MARNE ARDENNES | C13: 2 | D13: CHARLEVILLE MEZIERES | E13: 508820 | F13: VOUZIERS | G13: 2.9 | H13: 4 | I13: 12 | J13: 6 | K13: 102 | L13: 66 | M13: 79 | N13: 71 | O13: 16 | P13: 16 | Q13: 122 | R13: 3 | S13: 2 | T13: 7 | U13: 64 | V13: 106 | W13: 10 | X13: 83
A14: 50 | B14: MOSELLE | C14: 45 | D14: METZ | E14: 457443 | F14: METZ REPUBLIQUE | G14: 3.7 | H14: 5 | I14: 13 | J14: 18 | K14: 14 | L14: 192 | M14: 181 | N14: 197 | O14: 1 | P14: 1 | Q14: 126 | R14: 23 | S14: 20 | T14: 59 | U14: 185 | V14: 174 | W14: 137 | X14: 182
A15: 50 | B15: MARNE ARDENNES | C15: 11 | D15: REIMS | E15: 551305 | F15: REIMS HIPPODROME | G15: 5.4 | H15: 6 | I15: 71 | J15: 71 | K15: 71 | L15: 26 | M15: 59 | N15: 7 | O15: 11 | P15: 15 | Q15: 61 | R15: 9 | S15: 9 | T15: 14 | U15: 13 | V15: 16 | W15: 93 | X15: 11
A16: 50 | B16: MEURTHE ET MOSELLE MEUSE | C16: 26 | D16: NANCY | E16: 554601 | F16: SAINT MAX | G16: 3.7 | H16: 7 | I16: 7 | J16: 10 | K16: 24 | L16: 63 | M16: 65 | N16: 86 | O16: 31 | P16: 25 | Q16: 107 | R16: 29 | S16: 24 | T16: 68 | U16: 48 | V16: 43 | W16: 97 | X16: 75
A17: 50 | B17: MARNE ARDENNES | C17: 2 | D17: CHARLEVILLE MEZIERES | E17: 408801 | F17: CHARLEVILLE JEAN JAURES | G17: 8.8 | H17: 8 | I17: 34 | J17: 49 | K17: 12 | L17: 45 | M17: 46 | N17: 37 | O17: 37 | P17: 54 | Q17: 19 | R17: 26 | S17: 25 | T17: 54 | U17: 19 | V17: 14 | W17: 180 | X17: 17
A18: 50 | B18: VOSGES | C18: 57 | D18: EPINAL | E18: 488288 | F18: EPINAL LEOPOLD BOURG | G18: 2.0 | H18: 9 | I18: 39 | J18: 67 | K18: 5 | L18: 39 | M18: 31 | N18: 77 | O18: 8 | P18: 5 | Q18: 55 | R18: 51 | S18: 28 | T18: 182 | U18: 49 | V18: 65 | W18: 49 | X18: 46
A19: 50 | B19: MOSELLE | C19: 44 | D19: MOSELLE NORD | E19: 557660 | F19: UCKANGE | G19: 1.7 | H19: 10 | I19: 239 | J19: 182 | K19: 234 | L19: 6 | M19: 9 | N19: 6 | O19: 39 | P19: 197 | Q19: 2 | R19: 4 | S19: 4 | T19: 4 | U19: 6 | V19: 8 | W19: 45 | X19: 5
A20: 50 | B20: MARNE ARDENNES | C20: 6 | D20: CHALONS EN CHAMPAGNE | E20: 551330 | F20: MONTMIRAIL | G20: 2.8 | H20: 11 | I20: 30 | J20: 37 | K20: 29 | L20: 19 | M20: 12 | N20: 60 | O20: 81 | P20: 84 | Q20: 76 | R20: 16 | S20: 16 | T20: 26 | U20: 84 | V20: 83 | W20: 193 | X20: 51
A21: 50 | B21: MOSELLE | C21: 42 | D21: MOSELLE EST | E21: 457165 | F21: BITCHE | G21: 2.4 | H21: 12 | I21: 92 | J21: 116 | K21: 51 | L21: 5 | M21: 3 | N21: 51 | O21: 71 | P21: 116 | Q21: 13 | R21: 8 | S21: 7 | T21: 32 | U21: 104 | V21: 111 | W21: 36 | X21: 151
A22: 50 | B22: BAS RHIN | C22: 5101 | D22: SELESTAT | E22: 4113 | F22: BARR | G22: 2.9 | H22: 13 | I22: 3 | J22: 7 | K22: 2 | L22: 11 | M22: 10 | N22: 47 | O22: 193 | P22: 228 | Q22: 22 | R22: 115 | S22: 97 | T22: 169 | U22: 50 | V22: 25 | W22: 246 | X22: 54
A23: 50 | B23: MARNE ARDENNES | C23: 11 | D23: REIMS | E23: 551349 | F23: REIMS SAINT REMI | G23: 2.9 | H23: 14 | I23: 84 | J23: 68 | K23: 120 | L23: 4 | M23: 4 | N23: 8 | O23: 230 | P23: 239 | Q23: 12 | R23: 15 | S23: 29 | T23: 15 | U23: 8 | V23: 6 | W23: 82 | X23: 10
A24: 50 | B24: MOSELLE | C24: 45 | D24: METZ | E24: 457574 | F24: ROMBAS | G24: 3.2 | H24: 15 | I24: 18 | J24: 20 | K24: 28 | L24: 72 | M24: 72 | N24: 119 | O24: 42 | P24: 62 | Q24: 27 | R24: 19 | S24: 13 | T24: 81 | U24: 162 | V24: 173 | W24: 111 | X24: 154
A25: 50 | B25: MOSELLE | C25: 45 | D25: METZ | E25: 457453 | F25: MONTIGNY LES METZ | G25: 6.9 | H25: 16 | I25: 9 | J25: 15 | K25: 11 | L25: 53 | M25: 43 | N25: 111 | O25: 69 | P25: 103 | Q25: 15 | R25: 111 | S25: 91 | T25: 161 | U25: 44 | V25: 47 | W25: 56 | X25: 71
A26: 50 | B26: MARNE ARDENNES | C26: 2 | D26: CHARLEVILLE MEZIERES | E26: 508839 | F26: GIVET | G26: 3.3 | H26: 17 | I26: 58 | J26: 52 | K26: 78 | L26: 40 | M26: 54 | N26: 25 | O26: 156 | P26: 186 | Q26: 32 | R26: 12 | S26: 8 | T26: 36 | U26: 20 | V26: 18 | W26: 23 | X26: 33
A27: 50 | B27: BAS RHIN | C27: 5006 | D27: STRASBOURG | E27: 4038 | F27: OBERHAUSBERGEN | G27: 3.0 | H27: 18 | I27: 43 | J27: 39 | K27: 95 | L27: 34 | M27: 49 | N27: 19 | O27: 7 | P27: 8 | Q27: 20 | R27: 170 | S27: 209 | T27: 35 | U27: 43 | V27: 45 | W27: 75 | X27: 62
A28: 262 | B28: BAS RHIN | C28: 5006 | D28: STRASBOURG | E28: 4010 | F28: STRASBOURG MEINAU | G28: 2.7 | H28: 19 | I28: 21 | J28: 5 | K28: 159 | L28: 103 | M28: 152 | N28: 45 | O28: 97 | P28: 96 | Q28: 82 | R28: 10 | S28: 12 | T28: 11 | U28: 148 | V28: 184 | W28: 18 | X28: 203
A29: 262 | B29: BAS RHIN | C29: 5006 | D29: STRASBOURG | E29: 4037 | F29: MUNDOLSHEIM | G29: 3.7 | H29: 20 | I29: 55 | J29: 44 | K29: 85 | L29: 33 | M29: 42 | N29: 21 | O29: 111 | P29: 144 | Q29: 28 | R29: 22 | S29: 31 | T29: 25 | U29: 27 | V29: 39 | W29: 172 | X29: 16
A30: 262 | B30: MOSELLE | C30: 44 | D30: MOSELLE NORD | E30: 457348 | F30: HAGONDANGE | G30: 7.8 | H30: 21 | I30: 38 | J30: 28 | K30: 105 | L30: 41 | M30: 37 | N30: 54 | O30: 104 | P30: 101 | Q30: 86 | R30: 38 | S30: 34 | T30: 70 | U30: 40 | V30: 44 | W30: 87 | X30: 53
A31: 262 | B31: MEURTHE ET MOSELLE MEUSE | C31: 26 | D31: NANCY | E31: 554476 | F31: NANCY ARTEM | G31: 2.8 | H31: 22 | I31: 54 | J31: 61 | K31: 40 | L31: 18 | M31: 24 | N31: 17 | O31: 194 | P31: 195 | Q31: 154 | R31: 136 | S31: 127 | T31: 158 | U31: 5 | V31: 4 | W31: 136 | X31: 6
A32: 262 | B32: MOSELLE | C32: 44 | D32: MOSELLE NORD | E32: 557113 | F32: AUDUN LE TICHE | G32: 2.2 | H32: 23 | I32: 115 | J32: 182 | K32: 18 | L32: 25 | M32: 41 | N32: 13 | O32: 59 | P32: 120 | Q32: 9 | R32: 21 | S32: 36 | T32: 18 | U32: 16 | V32: 12 | W32: 58 | X32: 28
A33: 262 | B33: MOSELLE | C33: 45 | D33: METZ | E33: 557447 | F33: METZ SAINT MAXIMIN | G33: 1.9 | H33: 24 | I33: 135 | J33: 120 | K33: 154 | L33: 46 | M33: 66 | N33: 16 | O33: 55 | P33: 146 | Q33: 6 | R33: 5 | S33: 6 | T33: 10 | U33: 37 | V33: 34 | W33: 31 | X33: 98
A34: 262 | B34: MEURTHE ET MOSELLE MEUSE | C34: 31 | D34: VERDUN | E34: 455676 | F34: VAUCOULEURS | G34: 0.3 | H34: 25 | I34: 145 | J34: 182 | K34: 94 | L34: 249 | M34: 249 | N34: 22 | O34: 48 | P34: 205 | Q34: 3 | R34: 6 | S34: 49 | T34: 3 | U34: 2 | V34: 20 | W34: 1 | X34: 3
A35: 262 | B35: MARNE ARDENNES | C35: 11 | D35: REIMS | E35: 551365 | F35: DORMANS | G35: 2.6 | H35: 26 | I35: 63 | J35: 52 | K35: 97 | L35: 20 | M35: 16 | N35: 44 | O35: 80 | P35: 100 | Q35: 39 | R35: 54 | S35: 55 | T35: 56 | U35: 55 | V35: 70 | W35: 186 | X35: 24
A36: 262 | B36: MARNE ARDENNES | C36: 6 | D36: CHALONS EN CHAMPAGNE | E36: 451120 | F36: SARRY | G36: 2.3 | H36: 27 | I36: 19 | J36: 25 | K36: 7 | L36: 24 | M36: 20 | N36: 62 | O36: 126 | P36: 131 | Q36: 85 | R36: 141 | S36: 131 | T36: 166 | U36: 76 | V36: 54 | W36: 145 | X36: 100
A37: 262 | B37: VOSGES | C37: 55 | D37: SAINT DIE | E37: 488246 | F37: CORNIMONT LA BRESSE | G37: 2.5 | H37: 28 | I37: 2 | J37: 2 | K37: 35 | L37: 70 | M37: 71 | N37: 114 | O37: 183 | P37: 149 | Q37: 238 | R37: 78 | S37: 53 | T37: 162 | U37: 165 | V37: 224 | W37: 24 | X37: 160
A38: 262 | B38: MOSELLE | C38: 44 | D38: MOSELLE NORD | E38: 457350 | F38: HAYANGE | G38: 6.8 | H38: 29 | I38: 93 | J38: 66 | K38: 153 | L38: 17 | M38: 15 | N38: 45 | O38: 77 | P38: 121 | Q38: 16 | R38: 33 | S38: 35 | T38: 43 | U38: 42 | V38: 36 | W38: 155 | X38: 50
A39: 262 | B39: MEURTHE ET MOSELLE MEUSE | C39: 27 | D39: PONT A MOUSSON | E39: 554506 | F39: CHALIGNY NEUVES MAISONS | G39: 3.5 | H39: 30 | I39: 163 | J39: 140 | K39: 181 | L39: 7 | M39: 8 | N39: 9 | O39: 201 | P39: 220 | Q39: 49 | R39: 7 | S39: 5 | T39: 17 | U39: 14 | V39: 24 | W39: 34 | X39: 12
A40: 262 | B40: MOSELLE | C40: 42 | D40: MOSELLE EST | E40: 557250 | F40: CREUTZWALD | G40: 2.4 | H40: 31 | I40: 23 | J40: 21 | K40: 36 | L40: 137 | M40: 158 | N40: 104 | O40: 138 | P40: 165 | Q40: 37 | R40: 32 | S40: 17 | T40: 124 | U40: 51 | V40: 48 | W40: 11 | X40: 137
A41: 262 | B41: MEURTHE ET MOSELLE MEUSE | C41: 26 | D41: NANCY | E41: 554356 | F41: JARVILLE LA MALGRANGE | G41: 4.3 | H41: 32 | I41: 126 | J41: 128 | K41: 106 | L41: 9 | M41: 7 | N41: 40 | O41: 142 | P41: 151 | Q41: 68 | R41: 37 | S41: 42 | T41: 44 | U41: 21 | V41: 17 | W41: 162 | X41: 15
A42: 262 | B42: VOSGES | C42: 57 | D42: EPINAL | E42: 588336 | F42: GOLBEY | G42: 2.8 | H42: 33 | I42: 22 | J42: 18 | K42: 69 | L42: 96 | M42: 92 | N42: 132 | O42: 49 | P42: 51 | Q42: 89 | R42: 86 | S42: 73 | T42: 138 | U42: 124 | V42: 147 | W42: 150 | X42: 84
A43: 262 | B43: MARNE ARDENNES | C43: 6 | D43: CHALONS EN CHAMPAGNE | E43: 551110 | F43: CHALONS ROOSEVELT | G43: 3.9 | H43: 34 | I43: 17 | J43: 12 | K43: 53 | L43: 75 | M43: 82 | N43: 95 | O43: 218 | P43: 226 | Q43: 77 | R43: 40 | S43: 32 | T43: 100 | U43: 87 | V43: 89 | W43: 138 | X43: 60
A44: 262 | B44: MEURTHE ET MOSELLE MEUSE | C44: 31 | D44: VERDUN | E44: 455678 | F44: VERDUN CENTRALE | G44: 8.7 | H44: 35 | I44: 20 | J44: 11 | K44: 84 | L44: 61 | M44: 70 | N44: 53 | O44: 179 | P44: 180 | Q44: 118 | R44: 139 | S44: 142 | T44: 131 | U44: 25 | V44: 29 | W44: 66 | X44: 29
A45: 262 | B45: MOSELLE | C45: 45 | D45: METZ | E45: 557434 | F45: MARLY | G45: 3.1 | H45: 36 | I45: 25 | J45: 21 | K45: 59 | L45: 157 | M45: 136 | N45: 196 | O45: 13 | P45: 7 | Q45: 191 | R45: 178 | S45: 146 | T45: 211 | U45: 69 | V45: 60 | W45: 195 | X45: 49
A46: 262 | B46: BAS RHIN | C46: 5060 | D46: HAGUENAU | E46: 4031 | F46: TRUCHTERSHEIM | G46: 2.3 | H46: 37 | I46: 1 | J46: 1 | K46: 50 | L46: 106 | M46: 69 | N46: 236 | O46: 20 | P46: 13 | Q46: 228 | R46: 238 | S46: 239 | T46: 243 | U46: 227 | V46: 161 | W46: 244 | X46: 233
A47: 262 | B47: MOSELLE | C47: 45 | D47: METZ | E47: 557439 | F47: METZ POMPIDOU | G47: 2.6 | H47: 38 | I47: 37 | J47: 35 | K47: 91 | L47: 102 | M47: 137 | N47: 57 | O47: 21 | P47: 19 | Q47: 98 | R47: 107 | S47: 123 | T47: 75 | U47: 111 | V47: 103 | W47: 86 | X47: 126
A48: 262 | B48: BAS RHIN | C48: 5060 | D48: HAGUENAU | E48: 4079 | F48: SOULTZ SOUS FORETS | G48: 1.9 | H48: 39 | I48: 46 | J48: 84 | K48: 4 | L48: 54 | M48: 44 | N48: 116 | O48: 38 | P48: 34 | Q48: 115 | R48: 76 | S48: 77 | T48: 91 | U48: 160 | V48: 135 | W48: 100 | X48: 200
A49: 262 | B49: MARNE ARDENNES | C49: 11 | D49: REIMS | E49: 551340 | F49: BETHENY | G49: 2.7 | H49: 40 | I49: 53 | J49: 47 | K49: 67 | L49: 44 | M49: 47 | N49: 36 | O49: 144 | P49: 188 | Q49: 18 | R49: 150 | S49: 148 | T49: 141 | U49: 12 | V49: 7 | W49: 171 | X49: 30
A50: 262 | B50: MOSELLE | C50: 42 | D50: MOSELLE EST | E50: 557668 | F50: VALMONT | G50: 2.5 | H50: 41 | I50: 47 | J50: 32 | K50: 139 | L50: 122 | M50: 124 | N50: 125 | O50: 12 | P50: 14 | Q50: 106 | R50: 80 | S50: 68 | T50: 117 | U50: 161 | V50: 201 | W50: 40 | X50: 184
A51: 262 | B51: MEURTHE ET MOSELLE MEUSE | C51: 26 | D51: NANCY | E51: 454481 | F51: NANCY PLACE DOMBASLE | G51: 7.7 | H51: 42 | I51: 212 | J51: 175 | K51: 204 | L51: 59 | M51: 85 | N51: 26 | O51: 5 | P51: 4 | Q51: 10 | R51: 90 | S51: 113 | T51: 67 | U51: 10 | V51: 5 | W51: 96 | X51: 13
A52: 262 | B52: MARNE ARDENNES | C52: 11 | D52: REIMS | E52: 551367 | F52: AY CHAMPAGNE | G52: 2.7 | H52: 43 | I52: 35 | J52: 33 | K52: 93 | L52: 93 | M52: 118 | N52: 68 | O52: 94 | P52: 70 | Q52: 200 | R52: 70 | S52: 74 | T52: 73 | U52: 59 | V52: 38 | W52: 232 | X52: 52
A53: 262 | B53: MEURTHE ET MOSELLE MEUSE | C53: 31 | D53: VERDUN | E53: 555679 | F53: VERDUN MAZEL | G53: 3.6 | H53: 44 | I53: 11 | J53: 12 | K53: 17 | L53: 109 | M53: 96 | N53: 151 | O53: 119 | P53: 97 | Q53: 149 | R53: 110 | S53: 90 | T53: 163 | U53: 157 | V53: 131 | W53: 187 | X53: 133
A54: 262 | B54: BAS RHIN | C54: 5006 | D54: STRASBOURG | E54: 4048 | F54: STRASBOURG KOENIGSHOFFEN | G54: 2.2 | H54: 45 | I54: 162 | J54: 182 | K54: 140 | L54: 13 | M54: 18 | N54: 27 | O54: 32 | P54: 57 | Q54: 11 | R54: 31 | S54: 84 | T54: 5 | U54: 58 | V54: 88 | W54: 64 | X54: 35
A55: 262 | B55: VOSGES | C55: 57 | D55: EPINAL | E55: 488561 | F55: REMIREMONT | G55: 7.1 | H55: 46 | I55: 4 | J55: 4 | K55: 46 | L55: 138 | M55: 102 | N55: 219 | O55: 152 | P55: 133 | Q55: 171 | R55: 103 | S55: 56 | T55: 231 | U55: 196 | V55: 176 | W55: 221 | X55: 149
A56: 262 | B56: MEURTHE ET MOSELLE MEUSE | C56: 27 | D56: PONT A MOUSSON | E56: 554531 | F56: POMPEY | G56: 2.6 | H56: 47 | I56: 220 | J56: 182 | K56: 210 | L56: 10 | M56: 30 | N56: 4 | O56: 63 | P56: 128 | Q56: 8 | R56: 46 | S56: 95 | T56: 13 | U56: 7 | V56: 9 | W56: 14 | X56: 9
A57: 262 | B57: MARNE ARDENNES | C57: 11 | D57: REIMS | E57: 451350 | F57: REIMS CENTRE VILLE | G57: 6.7 | H57: 48 | I57: 155 | J57: 155 | K57: 141 | L57: 16 | M57: 22 | N57: 18 | O57: 170 | P57: 202 | Q57: 38 | R57: 36 | S57: 43 | T57: 39 | U57: 11 | V57: 13 | W57: 35 | X57: 8
A58: 262 | B58: MOSELLE | C58: 42 | D58: MOSELLE EST | E58: 557210 | F58: CHATEAU SALINS | G58: 1.0 | H58: 49 | I58: 141 | J58: 182 | K58: 82 | L58: 101 | M58: 157 | N58: 35 | O58: 14 | P58: 10 | Q58: 160 | R58: 25 | S58: 37 | T58: 21 | U58: 38 | V58: 119 | W58: 3 | X58: 89
A59: 262 | B59: BAS RHIN | C59: 5006 | D59: STRASBOURG | E59: 4043 | F59: STRASBOURG HALLES | G59: 7.4 | H59: 50 | I59: 139 | J59: 182 | K59: 68 | L59: 47 | M59: 55 | N59: 32 | O59: 60 | P59: 78 | Q59: 21 | R59: 11 | S59: 14 | T59: 12 | U59: 121 | V59: 104 | W59: 234 | X59: 76
A60: 262 | B60: AUBE HAUTE MARNE | C60: 14 | D60: TROYES | E60: 510570 | F60: NOGENT SUR SEINE | G60: 4.7 | H60: 51 | I60: 5 | J60: 3 | K60: 79 | L60: 92 | M60: 95 | N60: 100 | O60: 221 | P60: 222 | Q60: 96 | R60: 123 | S60: 96 | T60: 194 | U60: 129 | V60: 90 | W60: 176 | X60: 146
A61: 262 | B61: MARNE ARDENNES | C61: 11 | D61: REIMS | E61: 451301 | F61: REIMS HOTEL DE VILLE | G61: 7.4 | H61: 52 | I61: 95 | J61: 104 | K61: 77 | L61: 76 | M61: 80 | N61: 106 | O61: 147 | P61: 169 | Q61: 46 | R61: 13 | S61: 10 | T61: 37 | U61: 45 | V61: 42 | W61: 123 | X61: 58
A62: 262 | B62: MARNE ARDENNES | C62: 6 | D62: CHALONS EN CHAMPAGNE | E62: 451115 | F62: MOURMELON LE GRAND | G62: 2.7 | H62: 53 | I62: 73 | J62: 116 | K62: 9 | L62: 51 | M62: 62 | N62: 48 | O62: 82 | P62: 117 | Q62: 23 | R62: 52 | S62: 57 | T62: 41 | U62: 112 | V62: 186 | W62: 15 | X62: 120
A63: 262 | B63: MOSELLE | C63: 42 | D63: MOSELLE EST | E63: 457308 | F63: FORBACH CENTRALE | G63: 9.3 | H63: 54 | I63: 94 | J63: 93 | K63: 108 | L63: 32 | M63: 26 | N63: 69 | O63: 88 | P63: 81 | Q63: 93 | R63: 50 | S63: 44 | T63: 76 | U63: 100 | V63: 116 | W63: 33 | X63: 124
A64: 262 | B64: MOSELLE | C64: 42 | D64: MOSELLE EST | E64: 457583 | F64: SAINT AVOLD | G64: 7.1 | H64: 55 | I64: 66 | J64: 68 | K64: 60 | L64: 35 | M64: 25 | N64: 90 | O64: 84 | P64: 91 | Q64: 67 | R64: 83 | S64: 88 | T64: 85 | U64: 140 | V64: 148 | W64: 121 | X64: 123
A65: 262 | B65: MEURTHE ET MOSELLE MEUSE | C65: 31 | D65: VERDUN | E65: 554413 | F65: LONGWY BAS | G65: 3.6 | H65: 56 | I65: 24 | J65: 23 | K65: 45 | L65: 86 | M65: 81 | N65: 129 | O65: 112 | P65: 89 | Q65: 172 | R65: 131 | S65: 106 | T65: 197 | U65: 98 | V65: 67 | W65: 84 | X65: 185
A66: 262 | B66: AUBE HAUTE MARNE | C66: 21 | D66: CHAUMONT | E66: 510590 | F66: CHAUMONT REPUBLIQUE | G66: 2.8 | H66: 57 | I66: 76 | J66: 77 | K66: 88 | L66: 189 | M66: 200 | N66: 107 | O66: 46 | P66: 55 | Q66: 60 | R66: 27 | S66: 21 | T66: 80 | U66: 56 | V66: 105 | W66: 17 | X66: 38
A67: 262 | B67: VOSGES | C67: 55 | D67: SAINT DIE | E67: 588666 | F67: VAGNEY | G67: 3.2 | H67: 58 | I67: 16 | J67: 14 | K67: 43 | L67: 133 | M67: 89 | N67: 230 | O67: 58 | P67: 39 | Q67: 158 | R67: 199 | S67: 175 | T67: 241 | U67: 159 | V67: 188 | W67: 72 | X67: 163
A68: 262 | B68: MOSELLE | C68: 45 | D68: METZ | E68: 457446 | F68: METZ SAINT LOUIS | G68: 5.4 | H68: 59 | I68: 101 | J68: 114 | K68: 74 | L68: 55 | M68: 64 | N68: 52 | O68: 96 | P68: 122 | Q68: 30 | R68: 71 | S68: 65 | T68: 98 | U68: 30 | V68: 22 | W68: 131 | X68: 40
A69: 262 | B69: MARNE ARDENNES | C69: 11 | D69: REIMS | E69: 451361 | F69: PIERRY LECLERC | G69: 1.9 | H69: 60 | I69: 112 | J69: 116 | K69: 110 | L69: 38 | M69: 32 | N69: 70 | O69: 36 | P69: 31 | Q69: 80 | R69: 113 | S69: 98 | T69: 156 | U69: 71 | V69: 53 | W69: 212 | X69: 64
A70: 262 | B70: AUBE HAUTE MARNE | C70: 21 | D70: CHAUMONT | E70: 451154 | F70: JOINVILLE | G70: 1.8 | H70: 61 | I70: 29 | J70: 33 | K70: 52 | L70: 60 | M70: 73 | N70: 43 | O70: 243 | P70: 241 | Q70: 199 | R70: 18 | S70: 26 | T70: 29 | U70: 85 | V70: 151 | W70: 94 | X70: 37
A71: 262 | B71: MARNE ARDENNES | C71: 6 | D71: CHALONS EN CHAMPAGNE | E71: 551354 | F71: VERTUS | G71: 2.0 | H71: 62 | I71: 14 | J71: 25 | K71: 1 | L71: 141 | M71: 103 | N71: 222 | O71: 65 | P71: 53 | Q71: 134 | R71: 215 | S71: 220 | T71: 145 | U71: 149 | V71: 175 | W71: 78 | X71: 153
A72: 262 | B72: MEURTHE ET MOSELLE MEUSE | C72: 27 | D72: PONT A MOUSSON | E72: 554516 | F72: PAGNY SUR MOSELLE | G72: 2.8 | H72: 63 | I72: 51 | J72: 29 | K72: 152 | L72: 143 | M72: 129 | N72: 162 | O72: 79 | P72: 64 | Q72: 182 | R72: 61 | S72: 67 | T72: 53 | U72: 108 | V72: 73 | W72: 134 | X72: 158
A73: 262 | B73: BAS RHIN | C73: 5101 | D73: SELESTAT | E73: 4104 | F73: ERSTEIN | G73: 4.4 | H73: 64 | I73: 205 | J73: 182 | K73: 195 | L73: 8 | M73: 6 | N73: 66 | O73: 103 | P73: 99 | Q73: 87 | R73: 34 | S73: 15 | T73: 153 | U73: 46 | V73: 30 | W73: 152 | X73: 66
A74: 262 | B74: MARNE ARDENNES | C74: 2 | D74: CHARLEVILLE MEZIERES | E74: 408862 | F74: REVIN | G74: 3.3 | H74: 65 | I74: 27 | J74: 29 | K74: 48 | L74: 165 | M74: 167 | N74: 141 | O74: 134 | P74: 147 | Q74: 72 | R74: 68 | S74: 64 | T74: 79 | U74: 127 | V74: 124 | W74: 181 | X74: 88
A75: 264 | B75: BAS RHIN | C75: 5060 | D75: HAGUENAU | E75: 4092 | F75: HOCHFELDEN | G75: 2.0 | H75: 66 | I75: 83 | J75: 93 | K75: 70 | L75: 67 | M75: 74 | N75: 93 | O75: 70 | P75: 44 | Q75: 218 | R75: 77 | S75: 79 | T75: 89 | U75: 79 | V75: 56 | W75: 168 | X75: 87
A76: 264 | B76: MEURTHE ET MOSELLE MEUSE | C76: 31 | D76: VERDUN | E76: 454414 | F76: LONGWY HAUT | G76: 3.2 | H76: 67 | I76: 97 | J76: 84 | K76: 123 | L76: 80 | M76: 90 | N76: 75 | O76: 93 | P76: 73 | Q76: 156 | R76: 53 | S76: 52 | T76: 51 | U76: 66 | V76: 81 | W76: 63 | X76: 68
A77: 264 | B77: MOSELLE | C77: 44 | D77: MOSELLE NORD | E77: 457632 | F77: THIONVILLE CENTRALE | G77: 10.9 | H77: 68 | I77: 130 | J77: 155 | K77: 81 | L77: 36 | M77: 27 | N77: 65 | O77: 175 | P77: 211 | Q77: 43 | R77: 30 | S77: 30 | T77: 57 | U77: 41 | V77: 35 | W77: 135 | X77: 55
A78: 264 | B78: MOSELLE | C78: 42 | D78: MOSELLE EST | E78: 557523 | F78: PHALSBOURG | G78: 2.2 | H78: 69 | I78: 65 | J78: 52 | K78: 100 | L78: 216 | M78: 229 | N78: 109 | O78: 25 | P78: 29 | Q78: 62 | R78: 44 | S78: 27 | T78: 167 | U78: 177 | V78: 172 | W78: 60 | X78: 213
A79: 264 | B79: MOSELLE | C79: 44 | D79: MOSELLE NORD | E79: 557303 | F79: FAMECK | G79: 2.5 | H79: 70 | I79: 45 | J79: 56 | K79: 33 | L79: 144 | M79: 216 | N79: 11 | O79: 110 | P79: 139 | Q79: 42 | R79: 177 | S79: 188 | T79: 129 | U79: 24 | V79: 46 | W79: 46 | X79: 18
A80: 264 | B80: BAS RHIN | C80: 5060 | D80: HAGUENAU | E80: 4071 | F80: WISSEMBOURG | G80: 6.7 | H80: 71 | I80: 31 | J80: 41 | K80: 25 | L80: 147 | M80: 144 | N80: 144 | O80: 74 | P80: 71 | Q80: 95 | R80: 108 | S80: 114 | T80: 97 | U80: 228 | V80: 232 | W80: 146 | X80: 216
A81: 264 | B81: MEURTHE ET MOSELLE MEUSE | C81: 26 | D81: NANCY | E81: 554636 | F81: TOMBLAINE | G81: 2.8 | H81: 72 | I81: 52 | J81: 78 | K81: 13 | L81: 99 | M81: 106 | N81: 113 | O81: 56 | P81: 63 | Q81: 58 | R81: 151 | S81: 168 | T81: 107 | U81: 131 | V81: 162 | W81: 122 | X81: 96
A82: 264 | B82: MOSELLE | C82: 45 | D82: METZ | E82: 557105 | F82: ARS SUR MOSELLE | G82: 3.8 | H82: 73 | I82: 64 | J82: 36 | K82: 157 | L82: 89 | M82: 93 | N82: 89 | O82: 143 | P82: 154 | Q82: 69 | R82: 129 | S82: 150 | T82: 77 | U82: 32 | V82: 33 | W82: 51 | X82: 56
A83: 264 | B83: MARNE ARDENNES | C83: 11 | D83: REIMS | E83: 451370 | F83: EPERNAY | G83: 8.7 | H83: 74 | I83: 59 | J83: 68 | K83: 39 | L83: 65 | M83: 63 | N83: 101 | O83: 161 | P83: 182 | Q83: 59 | R83: 119 | S83: 125 | T83: 115 | U83: 61 | V83: 68 | W83: 115 | X83: 45
A84: 264 | B84: MOSELLE | C84: 44 | D84: MOSELLE NORD | E84: 557352 | F84: HETTANGE GRANDE | G84: 2.9 | H84: 75 | I84: 140 | J84: 139 | K84: 125 | L84: 29 | M84: 38 | N84: 23 | O84: 132 | P84: 150 | Q84: 54 | R84: 101 | S84: 121 | T84: 66 | U84: 17 | V84: 49 | W84: 6 | X84: 21
A85: 264 | B85: HAUT RHIN | C85: 5130 | D85: COLMAR | E85: 4143 | F85: MUNSTER | G85: 4.4 | H85: 76 | I85: 117 | J85: 158 | K85: 47 | L85: 48 | M85: 21 | N85: 202 | O85: 23 | P85: 18 | Q85: 196 | R85: 114 | S85: 83 | T85: 199 | U85: 163 | V85: 180 | W85: 69 | X85: 179
A86: 264 | B86: VOSGES | C86: 55 | D86: SAINT DIE | E86: 588186 | F86: BRUYERES | G86: 3.5 | H86: 77 | I86: 32 | J86: 23 | K86: 96 | L86: 115 | M86: 110 | N86: 143 | O86: 139 | P86: 141 | Q86: 99 | R86: 163 | S86: 196 | T86: 72 | U86: 91 | V86: 130 | W86: 118 | X86: 42
A87: 264 | B87: BAS RHIN | C87: 5006 | D87: STRASBOURG | E87: 4047 | F87: STRASBOURG CRONENBOURG | G87: 4.5 | H87: 78 | I87: 77 | J87: 87 | K87: 72 | L87: 58 | M87: 56 | N87: 102 | O87: 141 | P87: 155 | Q87: 57 | R87: 89 | S87: 94 | T87: 92 | U87: 95 | V87: 64 | W87: 178 | X87: 114
A88: 264 | B88: VOSGES | C88: 57 | D88: EPINAL | E88: 488706 | F88: VITTEL | G88: 2.7 | H88: 79 | I88: 40 | J88: 45 | K88: 37 | L88: 161 | M88: 148 | N88: 186 | O88: 133 | P88: 102 | Q88: 210 | R88: 85 | S88: 100 | T88: 69 | U88: 106 | V88: 182 | W88: 76 | X88: 63
A89: 264 | B89: MOSELLE | C89: 42 | D89: MOSELLE EST | E89: 557305 | F89: FAULQUEMONT | G89: 4.4 | H89: 80 | I89: 168 | J89: 104 | K89: 218 | L89: 27 | M89: 33 | N89: 33 | O89: 150 | P89: 168 | Q89: 50 | R89: 55 | S89: 61 | T89: 46 | U89: 18 | V89: 23 | W89: 101 | X89: 14
A90: 264 | B90: MARNE ARDENNES | C90: 6 | D90: CHALONS EN CHAMPAGNE | E90: 551103 | F90: FAGNIERES LECLERC | G90: 2.9 | H90: 81 | I90: 61 | J90: 78 | K90: 30 | L90: 198 | M90: 192 | N90: 180 | O90: 185 | P90: 213 | Q90: 47 | R90: 20 | S90: 18 | T90: 52 | U90: 78 | V90: 91 | W90: 43 | X90: 86
A91: 264 | B91: MARNE ARDENNES | C91: 2 | D91: CHARLEVILLE MEZIERES | E91: 408840 | F91: RETHEL | G91: 4.2 | H91: 82 | I91: 147 | J91: 128 | K91: 158 | L91: 37 | M91: 23 | N91: 108 | O91: 121 | P91: 110 | Q91: 120 | R91: 47 | S91: 38 | T91: 103 | U91: 72 | V91: 87 | W91: 55 | X91: 73
A92: 264 | B92: MARNE ARDENNES | C92: 2 | D92: CHARLEVILLE MEZIERES | E92: 508802 | F92: CHARLEVILLE NEVERS | G92: 2.9 | H92: 83 | I92: 41 | J92: 57 | K92: 27 | L92: 203 | M92: 190 | N92: 203 | O92: 120 | P92: 93 | Q92: 178 | R92: 60 | S92: 39 | T92: 148 | U92: 153 | V92: 120 | W92: 109 | X92: 192
A93: 264 | B93: BAS RHIN | C93: 5006 | D93: STRASBOURG | E93: 4006 | F93: STRASBOURG NEUDORF | G93: 7.9 | H93: 84 | I93: 10 | J93: 16 | K93: 10 | L93: 178 | M93: 182 | N93: 139 | O93: 223 | P93: 214 | Q93: 202 | R93: 104 | S93: 105 | T93: 123 | U93: 212 | V93: 205 | W93: 209 | X93: 178
A94: 264 | B94: MOSELLE | C94: 42 | D94: MOSELLE EST | E94: 457543 | F94: PUTTELANGE AUX LACS | G94: 2.5 | H94: 85 | I94: 103 | J94: 96 | K94: 117 | L94: 135 | M94: 145 | N94: 122 | O94: 102 | P94: 127 | Q94: 34 | R94: 41 | S94: 46 | T94: 40 | U94: 81 | V94: 74 | W94: 191 | X94: 57
A95: 264 | B95: MARNE ARDENNES | C95: 2 | D95: CHARLEVILLE MEZIERES | E95: 508833 | F95: VILLERS SEMEUSE CORA | G95: 3.4 | H95: 86 | I95: 184 | J95: 182 | K95: 172 | L95: 136 | M95: 164 | N95: 79 | O95: 52 | P95: 68 | Q95: 36 | R95: 14 | S95: 11 | T95: 38 | U95: 35 | V95: 41 | W95: 44 | X95: 65
A96: 264 | B96: MARNE ARDENNES | C96: 6 | D96: CHALONS EN CHAMPAGNE | E96: 551128 | F96: SAINTE MENEHOULD | G96: 3.3 | H96: 87 | I96: 42 | J96: 38 | K96: 92 | L96: 74 | M96: 39 | N96: 241 | O96: 219 | P96: 201 | Q96: 209 | R96: 56 | S96: 40 | T96: 139 | U96: 207 | V96: 202 | W96: 71 | X96: 237
A97: 30 | B97: BAS RHIN | C97: 5006 | D97: STRASBOURG | E97: 4027 | F97: SCHILTIGHEIM CENTRE | G97: 3.1 | H97: 88 | I97: 169 | J97: 180 | K97: 156 | L97: 30 | M97: 28 | N97: 42 | O97: 35 | P97: 37 | Q97: 53 | R97: 79 | S97: 119 | T97: 31 | U97: 126 | V97: 133 | W97: 67 | X97: 145
A98: 30 | B98: MOSELLE | C98: 45 | D98: METZ | E98: 557441 | F98: METZ PLAPPEVILLE | G98: 2.1 | H98: 89 | I98: 178 | J98: 140 | K98: 198 | L98: 124 | M98: 153 | N98: 83 | O98: 2 | P98: 2 | Q98: 79 | R98: 160 | S98: 162 | T98: 142 | U98: 117 | V98: 150 | W98: 61 | X98: 112
A99: 30 | B99: AUBE HAUTE MARNE | C99: 21 | D99: CHAUMONT | E99: 410541 | F99: LANGRES | G99: 8.2 | H99: 90 | I99: 68 | J99: 65 | K99: 83 | L99: 90 | M99: 77 | N99: 165 | O99: 125 | P99: 107 | Q99: 151 | R99: 94 | S99: 76 | T99: 143 | U99: 147 | V99: 206 | W99: 79 | X99: 116
A100: 30 | B100: VOSGES | C100: 57 | D100: EPINAL | E100: 588201 | F100: CHANTRAINE | G100: 3.6 | H100: 91 | I100: 89 | J100: 89 | K100: 103 | L100: 64 | M100: 57 | N100: 127 | O100: 41 | P100: 46 | Q100: 74 | R100: 183 | S100: 153 | T100: 213 | U100: 132 | V100: 108 | W100: 149 | X100: 134
A101: 30 | B101: MOSELLE | C101: 45 | D101: METZ | E101: 557612 | F101: SAINTE MARIE AUX CHENES | G101: 3.7 | H101: 92 | I101: 26 | J101: 42 | K101: 3 | L101: 232 | M101: 213 | N101: 244 | O101: 29 | P101: 17 | Q101: 246 | R101: 165 | S101: 129 | T101: 222 | U101: 224 | V101: 234 | W101: 215 | X101: 169
A102: 30 | B102: MOSELLE | C102: 44 | D102: MOSELLE NORD | E102: 457306 | F102: FLORANGE | G102: 4.9 | H102: 93 | I102: 230 | J102: 182 | K102: 225 | L102: 12 | M102: 13 | N102: 30 | O102: 91 | P102: 124 | Q102: 25 | R102: 93 | S102: 117 | T102: 58 | U102: 15 | V102: 11 | W102: 88 | X102: 23
A103: 30 | B103: VOSGES | C103: 57 | D103: EPINAL | E103: 588716 | F103: XERTIGNY | G103: 2.7 | H103: 94 | I103: 36 | J103: 47 | K103: 26 | L103: 193 | M103: 174 | N103: 223 | O103: 107 | P103: 80 | Q103: 173 | R103: 82 | S103: 45 | T103: 216 | U103: 214 | V103: 171 | W103: 132 | X103: 243
A104: 30 | B104: MARNE ARDENNES | C104: 11 | D104: REIMS | E104: 551314 | F104: FISMES | G104: 2.6 | H104: 95 | I104: 87 | J104: 125 | K104: 16 | L104: 42 | M104: 51 | N104: 28 | O104: 155 | P104: 185 | Q104: 33 | R104: 172 | S104: 199 | T104: 71 | U104: 67 | V104: 62 | W104: 188 | X104: 48
A105: 30 | B105: VOSGES | C105: 55 | D105: SAINT DIE | E105: 488326 | F105: GERARDMER | G105: 3.7 | H105: 96 | I105: 69 | J105: 49 | K105: 116 | L105: 153 | M105: 143 | N105: 175 | O105: 50 | P105: 41 | Q105: 129 | R105: 173 | S105: 176 | T105: 160 | U105: 96 | V105: 99 | W105: 98 | X105: 101
A106: 30 | B106: MARNE ARDENNES | C106: 11 | D106: REIMS | E106: 551306 | F106: REIMS SAINT MARCEAUX | G106: 4.5 | H106: 97 | I106: 125 | J106: 182 | K106: 31 | L106: 15 | M106: 14 | N106: 41 | O106: 240 | P106: 243 | Q106: 45 | R106: 59 | S106: 60 | T106: 49 | U106: 26 | V106: 27 | W106: 183 | X106: 26
A107: 30 | B107: MARNE ARDENNES | C107: 6 | D107: CHALONS EN CHAMPAGNE | E107: 451101 | F107: CHALONS VIVIERS | G107: 9.7 | H107: 98 | I107: 44 | J107: 62 | K107: 23 | L107: 114 | M107: 99 | N107: 169 | O107: 197 | P107: 212 | Q107: 84 | R107: 98 | S107: 99 | T107: 104 | U107: 116 | V107: 102 | W107: 156 | X107: 103
A108: 30 | B108: MEURTHE ET MOSELLE MEUSE | C108: 31 | D108: VERDUN | E108: 455151 | F108: BAR LE DUC | G108: 10.0 | H108: 99 | I108: 67 | J108: 76 | K108: 54 | L108: 108 | M108: 88 | N108: 182 | O108: 130 | P108: 109 | Q108: 163 | R108: 95 | S108: 75 | T108: 151 | U108: 152 | V108: 178 | W108: 74 | X108: 159
A109: 30 | B109: MEURTHE ET MOSELLE MEUSE | C109: 27 | D109: PONT A MOUSSON | E109: 554381 | F109: LAXOU ARISTIDE BRIAND | G109: 2.4 | H109: 100 | I109: 202 | J109: 182 | K109: 190 | L109: 21 | M109: 29 | N109: 14 | O109: 213 | P109: 229 | Q109: 41 | R109: 35 | S109: 48 | T109: 20 | U109: 22 | V109: 21 | W109: 62 | X109: 27
A110: 30 | B110: MOSELLE | C110: 42 | D110: MOSELLE EST | E110: 457617 | F110: SARREGUEMINES | G110: 7.1 | H110: 101 | I110: 127 | J110: 119 | K110: 136 | L110: 84 | M110: 86 | N110: 97 | O110: 83 | P110: 92 | Q110: 63 | R110: 84 | S110: 82 | T110: 102 | U110: 65 | V110: 63 | W110: 108 | X110: 70
A111: 30 | B111: MOSELLE | C111: 44 | D111: MOSELLE NORD | E111: 457158 | F111: YUTZ | G111: 4.3 | H111: 102 | I111: 167 | J111: 182 | K111: 149 | L111: 52 | M111: 36 | N111: 154 | O111: 115 | P111: 94 | Q111: 161 | R111: 24 | S111: 22 | T111: 60 | U111: 101 | V111: 101 | W111: 27 | X111: 156
A112: 30 | B112: HAUT RHIN | C112: 5130 | D112: COLMAR | E112: 4132 | F112: COLMAR MARAICHERS | G112: 3.7 | H112: 103 | I112: 74 | J112: 57 | K112: 114 | L112: 113 | M112: 112 | N112: 134 | O112: 76 | P112: 72 | Q112: 100 | R112: 87 | S112: 58 | T112: 181 | U112: 229 | V112: 239 | W112: 139 | X112: 215
A113: 30 | B113: VOSGES | C113: 55 | D113: SAINT DIE | E113: 588551 | F113: RAMBERVILLERS | G113: 2.6 | H113: 104 | I113: 33 | J113: 29 | K113: 73 | L113: 208 | M113: 219 | N113: 99 | O113: 85 | P113: 61 | Q113: 213 | R113: 231 | S113: 227 | T113: 230 | U113: 33 | V113: 57 | W113: 70 | X113: 22
A114: 30 | B114: MEURTHE ET MOSELLE MEUSE | C114: 27 | D114: PONT A MOUSSON | E114: 554376 | F114: LAXOU BOUFFLERS | G114: 3.1 | H114: 105 | I114: 240 | J114: 182 | K114: 237 | L114: 14 | M114: 35 | N114: 5 | O114: 189 | P114: 198 | Q114: 113 | R114: 63 | S114: 138 | T114: 9 | U114: 9 | V114: 10 | W114: 47 | X114: 7
A115: 30 | B115: VOSGES | C115: 57 | D115: EPINAL | E115: 588396 | F115: LE VAL D AJOL | G115: 2.6 | H115: 106 | I115: 28 | J115: 39 | K115: 19 | L115: 169 | M115: 147 | N115: 206 | O115: 177 | P115: 167 | Q115: 153 | R115: 125 | S115: 85 | T115: 218 | U115: 208 | V115: 145 | W115: 243 | X115: 196
A116: 30 | B116: BAS RHIN | C116: 5101 | D116: SELESTAT | E116: 4126 | F116: MUTZIG | G116: 2.7 | H116: 107 | I116: 153 | J116: 182 | K116: 112 | L116: 28 | M116: 17 | N116: 140 | O116: 28 | P116: 26 | Q116: 94 | R116: 190 | S116: 180 | T116: 202 | U116: 138 | V116: 94 | W116: 245 | X116: 110
A117: 30 | B117: MOSELLE | C117: 44 | D117: MOSELLE NORD | E117: 457192 | F117: CATTENOM | G117: 1.6 | H117: 108 | I117: 149 | J117: 182 | K117: 99 | L117: 62 | M117: 50 | N117: 133 | O117: 123 | P117: 161 | Q117: 24 | R117: 81 | S117: 59 | T117: 149 | U117: 47 | V117: 31 | W117: 107 | X117: 81
A118: 30 | B118: BAS RHIN | C118: 5060 | D118: HAGUENAU | E118: 4057 | F118: BISCHWILLER | G118: 7.1 | H118: 109 | I118: 79 | J118: 98 | K118: 49 | L118: 56 | M118: 34 | N118: 189 | O118: 160 | P118: 140 | Q118: 185 | R118: 92 | S118: 78 | T118: 136 | U118: 230 | V118: 245 | W118: 99 | X118: 232
A119: 30 | B119: MOSELLE | C119: 44 | D119: MOSELLE NORD | E119: 557347 | F119: GUENANGE | G119: 4.6 | H119: 110 | I119: 193 | J119: 176 | K119: 184 | L119: 23 | M119: 19 | N119: 80 | O119: 198 | P119: 210 | Q119: 97 | R119: 58 | S119: 54 | T119: 63 | U119: 29 | V119: 28 | W119: 140 | X119: 32
A120: 30 | B120: VOSGES | C120: 57 | D120: EPINAL | E120: 588631 | F120: THAON LES VOSGES | G120: 4.0 | H120: 111 | I120: 136 | J120: 134 | K120: 119 | L120: 78 | M120: 76 | N120: 126 | O120: 182 | P120: 175 | Q120: 135 | R120: 39 | S120: 50 | T120: 21 | U120: 80 | V120: 100 | W120: 21 | X120: 93
A121: 30 | B121: MARNE ARDENNES | C121: 2 | D121: CHARLEVILLE MEZIERES | E121: 408822 | F121: CHARLEVILLE MEZIERES | G121: 5.3 | H121: 112 | I121: 209 | J121: 182 | K121: 200 | L121: 162 | M121: 199 | N121: 34 | O121: 22 | P121: 58 | Q121: 7 | R121: 57 | S121: 81 | T121: 24 | U121: 36 | V121: 51 | W121: 218 | X121: 19
A122: 30 | B122: BAS RHIN | C122: 5006 | D122: STRASBOURG | E122: 4054 | F122: STRASBOURG MONTAGNE VERTE | G122: 2.6 | H122: 113 | I122: 150 | J122: 182 | K122: 101 | L122: 57 | M122: 83 | N122: 31 | O122: 95 | P122: 112 | Q122: 51 | R122: 49 | S122: 66 | T122: 23 | U122: 203 | V122: 241 | W122: 141 | X122: 122
A123: 30 | B123: MOSELLE | C123: 45 | D123: METZ | E123: 557444 | F123: SAINT JULIEN LES METZ | G123: 3.7 | H123: 114 | I123: 235 | J123: 182 | K123: 230 | L123: 50 | M123: 52 | N123: 49 | O123: 34 | P123: 40 | Q123: 31 | R123: 64 | S123: 115 | T123: 16 | U123: 68 | V123: 78 | W123: 16 | X123: 109
A124: 30 | B124: MARNE ARDENNES | C124: 6 | D124: CHALONS EN CHAMPAGNE | E124: 451381 | F124: SEZANNE | G124: 5.3 | H124: 115 | I124: 91 | J124: 108 | K124: 63 | L124: 118 | M124: 107 | N124: 158 | O124: 44 | P124: 35 | Q124: 147 | R124: 210 | S124: 201 | T124: 207 | U124: 103 | V124: 69 | W124: 190 | X124: 119
A125: 30 | B125: MOSELLE | C125: 42 | D125: MOSELLE EST | E125: 557503 | F125: NEUNKIRCH | G125: 3.5 | H125: 116 | I125: 6 | J125: 9 | K125: 8 | L125: 218 | M125: 203 | N125: 229 | O125: 207 | P125: 190 | Q125: 206 | R125: 222 | S125: 204 | T125: 244 | U125: 190 | V125: 167 | W125: 128 | X125: 206
A126: 30 | B126: MEURTHE ET MOSELLE MEUSE | C126: 31 | D126: VERDUN | E126: 554700 | F126: VILLERUPT | G126: 2.8 | H126: 117 | I126: 50 | J126: 57 | K126: 44 | L126: 105 | M126: 105 | N126: 128 | O126: 171 | P126: 193 | Q126: 71 | R126: 157 | S126: 152 | T126: 154 | U126: 204 | V126: 196 | W126: 113 | X126: 224
A127: 30 | B127: MEURTHE ET MOSELLE MEUSE | C127: 27 | D127: PONT A MOUSSON | E127: 454535 | F127: PONT A MOUSSON CENTRALE | G127: 5.5 | H127: 118 | I127: 231 | J127: 166 | K127: 232 | L127: 43 | M127: 58 | N127: 24 | O127: 117 | P127: 77 | Q127: 222 | R127: 73 | S127: 86 | T127: 64 | U127: 23 | V127: 15 | W127: 163 | X127: 25
A128: 30 | B128: AUBE HAUTE MARNE | C128: 14 | D128: TROYES | E128: 510513 | F128: TROYES 1ER MAI | G128: 2.2 | H128: 119 | I128: 221 | J128: 170 | K128: 219 | L128: 73 | M128: 140 | N128: 15 | O128: 75 | P128: 118 | Q128: 17 | R128: 17 | S128: 23 | T128: 34 | U128: 115 | V128: 93 | W128: 91 | X128: 157
A129: 30 | B129: MEURTHE ET MOSELLE MEUSE | C129: 27 | D129: PONT A MOUSSON | E129: 454651 | F129: TOUL | G129: 9.7 | H129: 120 | I129: 197 | J129: 123 | K129: 226 | L129: 116 | M129: 139 | N129: 84 | O129: 86 | P129: 83 | Q129: 81 | R129: 65 | S129: 80 | T129: 42 | U129: 28 | V129: 26 | W129: 85 | X129: 43
A130: 30 | B130: BAS RHIN | C130: 5060 | D130: HAGUENAU | E130: 4041 | F130: HOERDT | G130: 1.6 | H130: 121 | I130: 121 | J130: 150 | K130: 62 | L130: 148 | M130: 128 | N130: 190 | O130: 15 | P130: 11 | Q130: 159 | R130: 201 | S130: 183 | T130: 238 | U130: 166 | V130: 97 | W130: 184 | X130: 197
A131: 30 | B131: BAS RHIN | C131: 5006 | D131: STRASBOURG | E131: 4020 | F131: STRASBOURG ROBERTSAU | G131: 5.3 | H131: 122 | I131: 158 | J131: 182 | K131: 130 | L131: 188 | M131: 173 | N131: 214 | O131: 3 | P131: 3 | Q131: 131 | R131: 185 | S131: 159 | T131: 212 | U131: 221 | V131: 221 | W131: 117 | X131: 228
A132: 30 | B132: MEURTHE ET MOSELLE MEUSE | C132: 31 | D132: VERDUN | E132: 555406 | F132: LIGNY EN BARROIS | G132: 2.5 | H132: 123 | I132: 90 | J132: 104 | K132: 64 | L132: 82 | M132: 84 | N132: 116 | O132: 43 | P132: 38 | Q132: 133 | R132: 216 | S132: 210 | T132: 191 | U132: 209 | V132: 222 | W132: 159 | X132: 175
A133: 30 | B133: MEURTHE ET MOSELLE MEUSE | C133: 27 | D133: PONT A MOUSSON | E133: 554686 | F133: VEZELISE | G133: 1.9 | H133: 124 | I133: 104 | J133: 150 | K133: 22 | L133: 85 | M133: 98 | N133: 74 | O133: 72 | P133: 59 | Q133: 141 | R133: 189 | S133: 186 | T133: 179 | U133: 205 | V133: 200 | W133: 142 | X133: 204
A134: 30 | B134: BAS RHIN | C134: 5060 | D134: HAGUENAU | E134: 4085 | F134: INGWILLER | G134: 3.4 | H134: 125 | I134: 96 | J134: 62 | K134: 160 | L134: 131 | M134: 126 | N134: 142 | O134: 131 | P134: 106 | Q134: 170 | R134: 134 | S134: 135 | T134: 134 | U134: 137 | V134: 168 | W134: 42 | X134: 166
A135: 30 | B135: HAUT RHIN | C135: 5130 | D135: COLMAR | E135: 4157 | F135: NEUF BRISACH | G135: 3.3 | H135: 126 | I135: 124 | J135: 82 | K135: 186 | L135: 199 | M135: 195 | N135: 146 | O135: 67 | P135: 65 | Q135: 90 | R135: 66 | S135: 47 | T135: 128 | U135: 191 | V135: 207 | W135: 127 | X135: 173
A136: 110 | B136: MEURTHE ET MOSELLE MEUSE | C136: 26 | D136: NANCY | E136: 554116 | F136: BACCARAT | G136: 2.8 | H136: 127 | I136: 48 | J136: 71 | K136: 15 | L136: 79 | M136: 68 | N136: 164 | O136: 211 | P136: 189 | Q136: 225 | R136: 209 | S136: 205 | T136: 168 | U136: 183 | V136: 118 | W136: 165 | X136: 213
A137: 110 | B137: BAS RHIN | C137: 5006 | D137: STRASBOURG | E137: 4019 | F137: STRASBOURG ANVERS | G137: 4.6 | H137: 128 | I137: 189 | J137: 162 | K137: 193 | L137: 49 | M137: 45 | N137: 56 | O137: 148 | P137: 176 | Q137: 35 | R137: 97 | S137: 108 | T137: 86 | U137: 62 | V137: 32 | W137: 230 | X137: 74
A138: 110 | B138: VOSGES | C138: 57 | D138: EPINAL | E138: 488281 | F138: ELOYES | G138: 3.1 | H138: 129 | I138: 98 | J138: 104 | K138: 86 | L138: 194 | M138: 177 | N138: 217 | O138: 30 | P138: 24 | Q138: 119 | R138: 198 | S138: 182 | T138: 225 | U138: 206 | V138: 223 | W138: 50 | X138: 231
A139: 110 | B139: MEURTHE ET MOSELLE MEUSE | C139: 26 | D139: NANCY | E139: 554486 | F139: NANCY POINT CENTRAL | G139: 2.7 | H139: 130 | I139: 182 | J139: 127 | K139: 211 | L139: 167 | M139: 188 | N139: 72 | O139: 18 | P139: 21 | Q139: 48 | R139: 133 | S139: 143 | T139: 114 | U139: 90 | V139: 72 | W139: 59 | X139: 141
A140: 110 | B140: MEURTHE ET MOSELLE MEUSE | C140: 31 | D140: VERDUN | E140: 455298 | F140: ETAIN | G140: 0.9 | H140: 131 | I140: 132 | J140: 120 | K140: 147 | L140: 173 | M140: 198 | N140: 55 | O140: 176 | P140: 225 | Q140: 14 | R140: 69 | S140: 101 | T140: 30 | U140: 60 | V140: 66 | W140: 65 | X140: 67
A141: 110 | B141: BAS RHIN | C141: 5101 | D141: SELESTAT | E141: 4107 | F141: VILLE | G141: 2.0 | H141: 132 | I141: 225 | J141: 182 | K141: 220 | L141: 22 | M141: 11 | N141: 176 | O141: 26 | P141: 20 | Q141: 174 | R141: 135 | S141: 124 | T141: 177 | U141: 234 | V141: 246 | W141: 119 | X141: 222
A142: 110 | B142: MEURTHE ET MOSELLE MEUSE | C142: 27 | D142: PONT A MOUSSON | E142: 554416 | F142: LUDRES | G142: 3.7 | H142: 133 | I142: 75 | J142: 78 | K142: 66 | L142: 130 | M142: 111 | N142: 178 | O142: 224 | P142: 217 | Q142: 180 | R142: 168 | S142: 134 | T142: 217 | U142: 99 | V142: 75 | W142: 203 | X142: 91
A143: 110 | B143: MEURTHE ET MOSELLE MEUSE | C143: 31 | D143: VERDUN | E143: 554412 | F143: LONGUYON | G143: 2.9 | H143: 134 | I143: 86 | J143: 71 | K143: 115 | L143: 111 | M143: 134 | N143: 78 | O143: 164 | P143: 143 | Q143: 184 | R143: 176 | S143: 155 | T143: 196 | U143: 188 | V143: 143 | W143: 192 | X143: 188
A144: 110 | B144: MARNE ARDENNES | C144: 2 | D144: CHARLEVILLE MEZIERES | E144: 408806 | F144: SEDAN | G144: 7.7 | H144: 135 | I144: 80 | J144: 97 | K144: 58 | L144: 160 | M144: 162 | N144: 149 | O144: 149 | P144: 153 | Q144: 92 | R144: 207 | S144: 192 | T144: 237 | U144: 94 | V144: 85 | W144: 161 | X144: 79
A145: 110 | B145: AUBE HAUTE MARNE | C145: 21 | D145: CHAUMONT | E145: 410566 | F145: CHAUMONT HOTEL DE VILLE | G145: 10.4 | H145: 136 | I145: 107 | J145: 103 | K145: 118 | L145: 171 | M145: 168 | N145: 168 | O145: 64 | P145: 48 | Q145: 143 | R145: 191 | S145: 177 | T145: 205 | U145: 171 | V145: 194 | W145: 105 | X145: 155
A146: 110 | B146: MOSELLE | C146: 42 | D146: MOSELLE EST | E146: 457614 | F146: SARREBOURG | G146: 8.6 | H146: 137 | I146: 118 | J146: 134 | K146: 80 | L146: 145 | M146: 113 | N146: 205 | O146: 135 | P146: 136 | Q146: 109 | R146: 102 | S146: 69 | T146: 188 | U146: 186 | V146: 152 | W146: 124 | X146: 209
A147: 110 | B147: AUBE HAUTE MARNE | C147: 21 | D147: CHAUMONT | E147: 451156 | F147: SAINT DIZIER CENTRE | G147: 8.5 | H147: 138 | I147: 137 | J147: 123 | K147: 145 | L147: 129 | M147: 154 | N147: 94 | O147: 145 | P147: 135 | Q147: 139 | R147: 100 | S147: 107 | T147: 93 | U147: 133 | V147: 198 | W147: 110 | X147: 80
A148: 110 | B148: BAS RHIN | C148: 5101 | D148: SELESTAT | E148: 4007 | F148: ILLKIRCH CENTRE | G148: 6.5 | H148: 139 | I148: 192 | J148: 182 | K148: 178 | L148: 126 | M148: 109 | N148: 173 | O148: 140 | P148: 119 | Q148: 157 | R148: 28 | S148: 19 | T148: 87 | U148: 164 | V148: 137 | W148: 116 | X148: 189
A149: 110 | B149: MARNE ARDENNES | C149: 11 | D149: REIMS | E149: 551369 | F149: DAMERY | G149: 1.9 | H149: 140 | I149: 165 | J149: 144 | K149: 176 | L149: 31 | M149: 40 | N149: 20 | O149: 216 | P149: 192 | Q149: 231 | R149: 166 | S149: 202 | T149: 48 | U149: 54 | V149: 59 | W149: 177 | X149: 31
A150: 110 | B150: MOSELLE | C150: 45 | D150: METZ | E150: 557432 | F150: MAIZIERES LES METZ | G150: 2.8 | H150: 141 | I150: 183 | J150: 182 | K150: 171 | L150: 107 | M150: 151 | N150: 50 | O150: 114 | P150: 98 | Q150: 136 | R150: 153 | S150: 156 | T150: 133 | U150: 31 | V150: 19 | W150: 179 | X150: 39
A151: 110 | B151: MOSELLE | C151: 45 | D151: METZ | E151: 557440 | F151: METZ MOZART | G151: 2.7 | H151: 142 | I151: 156 | J151: 182 | K151: 126 | L151: 140 | M151: 115 | N151: 192 | O151: 113 | P151: 111 | Q151: 108 | R151: 91 | S151: 62 | T151: 183 | U151: 122 | V151: 109 | W151: 157 | X151: 113
A152: 110 | B152: VOSGES | C152: 57 | D152: EPINAL | E152: 488286 | F152: EPINAL ARISTIDE BRIAND | G152: 8.0 | H152: 143 | I152: 187 | J152: 182 | K152: 175 | L152: 91 | M152: 100 | N152: 88 | O152: 51 | P152: 56 | Q152: 64 | R152: 140 | S152: 161 | T152: 101 | U152: 154 | V152: 144 | W152: 223 | X152: 105
A153: 110 | B153: BAS RHIN | C153: 5006 | D153: STRASBOURG | E153: 4039 | F153: REICHSTETT | G153: 1.6 | H153: 144 | I153: 159 | J153: 182 | K153: 132 | L153: 187 | M153: 169 | N153: 221 | O153: 54 | P153: 52 | Q153: 102 | R153: 112 | S153: 92 | T153: 173 | U153: 134 | V153: 113 | W153: 207 | X153: 102
A154: 110 | B154: MOSELLE | C154: 45 | D154: METZ | E154: 557436 | F154: METZ CATHEDRALE | G154: 3.5 | H154: 145 | I154: 236 | J154: 182 | K154: 231 | L154: 112 | M154: 122 | N154: 112 | O154: 33 | P154: 23 | Q154: 137 | R154: 72 | S154: 63 | T154: 118 | U154: 146 | V154: 115 | W154: 194 | X154: 127
A155: 110 | B155: MEURTHE ET MOSELLE MEUSE | C155: 26 | D155: NANCY | E155: 554266 | F155: DOMBASLE SUR MEURTHE | G155: 3.2 | H155: 146 | I155: 181 | J155: 182 | K155: 169 | L155: 238 | M155: 234 | N155: 216 | O155: 9 | P155: 6 | Q155: 114 | R155: 143 | S155: 165 | T155: 98 | U155: 89 | V155: 86 | W155: 20 | X155: 150
A156: 110 | B156: MEURTHE ET MOSELLE MEUSE | C156: 27 | D156: PONT A MOUSSON | E156: 554196 | F156: CHAMPIGNEULLES | G156: 2.4 | H156: 147 | I156: 196 | J156: 182 | K156: 182 | L156: 179 | M156: 166 | N156: 213 | O156: 109 | P156: 86 | Q156: 166 | R156: 45 | S156: 41 | T156: 88 | U156: 105 | V156: 61 | W156: 235 | X156: 115
A157: 110 | B157: MEURTHE ET MOSELLE MEUSE | C157: 26 | D157: NANCY | E157: 454426 | F157: LUNEVILLE CARNOT | G157: 7.6 | H157: 148 | I157: 216 | J157: 176 | K157: 209 | L157: 98 | M157: 114 | N157: 87 | O157: 47 | P157: 43 | Q157: 117 | R157: 175 | S157: 189 | T157: 120 | U157: 57 | V157: 77 | W157: 54 | X157: 47
A158: 110 | B158: HAUT RHIN | C158: 5169 | D158: MULHOUSE | E158: 4178 | F158: SAINT LOUIS | G158: 6.4 | H158: 149 | I158: 176 | J158: 158 | K158: 183 | L158: 163 | M158: 163 | N158: 155 | O158: 40 | P158: 30 | Q158: 150 | R158: 109 | S158: 104 | T158: 137 | U158: 195 | V158: 107 | W158: 214 | X158: 223
A159: 110 | B159: BAS RHIN | C159: 5101 | D159: SELESTAT | E159: 4121 | F159: SCHIRMECK | G159: 2.8 | H159: 150 | I159: 116 | J159: 182 | K159: 21 | L159: 71 | M159: 67 | N159: 130 | O159: 226 | P159: 224 | Q159: 124 | R159: 193 | S159: 173 | T159: 226 | U159: 82 | V159: 71 | W159: 95 | X159: 104
A160: 110 | B160: VOSGES | C160: 55 | D160: SAINT DIE | E160: 588316 | F160: FRAIZE | G160: 3.6 | H160: 151 | I160: 138 | J160: 182 | K160: 61 | L160: 213 | M160: 201 | N160: 207 | O160: 122 | P160: 115 | Q160: 123 | R160: 74 | S160: 51 | T160: 159 | U160: 141 | V160: 153 | W160: 133 | X160: 117
A161: 110 | B161: AUBE HAUTE MARNE | C161: 14 | D161: TROYES | E161: 410550 | F161: BAR SUR AUBE | G161: 4.8 | H161: 152 | I161: 70 | J161: 43 | K161: 133 | L161: 200 | M161: 193 | N161: 174 | O161: 206 | P161: 179 | Q161: 229 | R161: 164 | S161: 164 | T161: 155 | U161: 172 | V161: 165 | W161: 90 | X161: 194
A162: 110 | B162: MOSELLE | C162: 42 | D162: MOSELLE EST | E162: 457258 | F162: DIEUZE | G162: 3.1 | H162: 153 | I162: 62 | J162: 71 | K162: 41 | L162: 174 | M162: 161 | N162: 212 | O162: 169 | P162: 134 | Q162: 240 | R162: 202 | S162: 197 | T162: 190 | U162: 236 | V162: 229 | W162: 211 | X162: 220
A163: 110 | B163: MARNE ARDENNES | C163: 11 | D163: REIMS | E163: 551310 | F163: REIMS CHATILLONS | G163: 4.0 | H163: 154 | I163: 166 | J163: 182 | K163: 148 | L163: 104 | M163: 108 | N163: 120 | O163: 100 | P163: 85 | Q163: 125 | R163: 147 | S163: 163 | T163: 110 | U163: 109 | V163: 122 | W163: 182 | X163: 61
A164: 110 | B164: MEURTHE ET MOSELLE MEUSE | C164: 27 | D164: PONT A MOUSSON | E164: 554496 | F164: NANCY TROIS MAISONS | G164: 2.1 | H164: 155 | I164: 208 | J164: 182 | K164: 199 | L164: 121 | M164: 155 | N164: 67 | O164: 136 | P164: 123 | Q164: 140 | R164: 62 | S164: 71 | T164: 47 | U164: 77 | V164: 96 | W164: 37 | X164: 82
A165: 110 | B165: MEURTHE ET MOSELLE MEUSE | C165: 31 | D165: VERDUN | E165: 455566 | F165: REVIGNY SUR ORNAIN | G165: 2.7 | H165: 156 | I165: 105 | J165: 89 | K165: 142 | L165: 158 | M165: 130 | N165: 214 | O165: 153 | P165: 129 | Q165: 181 | R165: 167 | S165: 144 | T165: 201 | U165: 192 | V165: 219 | W165: 30 | X165: 225
A166: 110 | B166: MEURTHE ET MOSELLE MEUSE | C166: 26 | D166: NANCY | E166: 554296 | F166: ESSEY LES NANCY | G166: 3.6 | H166: 157 | I166: 81 | J166: 108 | K166: 32 | L166: 164 | M166: 170 | N166: 124 | O166: 192 | P166: 174 | Q166: 192 | R166: 203 | S166: 194 | T166: 203 | U166: 158 | V166: 208 | W166: 154 | X166: 92
A167: 110 | B167: BAS RHIN | C167: 5006 | D167: STRASBOURG | E167: 4023 | F167: STRASBOURG VOSGES | G167: 2.7 | H167: 158 | I167: 222 | J167: 182 | K167: 212 | L167: 134 | M167: 150 | N167: 110 | O167: 27 | P167: 27 | Q167: 78 | R167: 148 | S167: 132 | T167: 172 | U167: 114 | V167: 40 | W167: 241 | X167: 219
A168: 110 | B168: MOSELLE | C168: 42 | D168: MOSELLE EST | E168: 457435 | F168: MERLEBACH | G168: 2.6 | H168: 159 | I168: 154 | J168: 176 | K168: 113 | L168: 172 | M168: 211 | N168: 29 | O168: 167 | P168: 206 | Q168: 29 | R168: 75 | S168: 118 | T168: 28 | U168: 119 | V168: 230 | W168: 13 | X168: 99
A169: 110 | B169: VOSGES | C169: 55 | D169: SAINT DIE | E169: 588461 | F169: MOYENMOUTIER | G169: 4.9 | H169: 160 | I169: 122 | J169: 91 | K169: 170 | L169: 88 | M169: 48 | N169: 245 | O169: 165 | P169: 138 | Q169: 221 | R169: 162 | S169: 145 | T169: 186 | U169: 225 | V169: 244 | W169: 129 | X169: 210
A170: 110 | B170: MOSELLE | C170: 45 | D170: METZ | E170: 557559 | F170: REMILLY | G170: 3.4 | H170: 161 | I170: 143 | J170: 111 | K170: 185 | L170: 181 | M170: 172 | N170: 185 | O170: 129 | P170: 108 | Q170: 165 | R170: 154 | S170: 167 | T170: 127 | U170: 75 | V170: 92 | W170: 26 | X170: 90
A171: 110 | B171: MEURTHE ET MOSELLE MEUSE | C171: 27 | D171: PONT A MOUSSON | E171: 554357 | F171: JOEUF | G171: 3.3 | H171: 162 | I171: 100 | J171: 100 | K171: 98 | L171: 170 | M171: 180 | N171: 103 | O171: 200 | P171: 194 | Q171: 164 | R171: 188 | S171: 198 | T171: 122 | U171: 128 | V171: 155 | W171: 39 | X171: 162
A172: 110 | B172: MOSELLE | C172: 45 | D172: METZ | E172: 557445 | F172: METZ SAINT LIVIER | G172: 2.7 | H172: 163 | I172: 15 | J172: 8 | K172: 87 | L172: 236 | M172: 217 | N172: 246 | O172: 209 | P172: 184 | Q172: 227 | R172: 241 | S172: 237 | T172: 247 | U172: 233 | V172: 190 | W172: 237 | X172: 242
A173: 110 | B173: MARNE ARDENNES | C173: 11 | D173: REIMS | E173: 451336 | F173: TINQUEUX | G173: 4.5 | H173: 164 | I173: 114 | J173: 87 | K173: 166 | L173: 100 | M173: 117 | N173: 85 | O173: 238 | P173: 240 | Q173: 70 | R173: 145 | S173: 187 | T173: 65 | U173: 52 | V173: 52 | W173: 125 | X173: 44
A174: 110 | B174: MEURTHE ET MOSELLE MEUSE | C174: 27 | D174: PONT A MOUSSON | E174: 554257 | F174: DIEULOUARD | G174: 2.7 | H174: 165 | I174: 111 | J174: 100 | K174: 128 | L174: 168 | M174: 132 | N174: 225 | O174: 73 | P174: 42 | Q174: 244 | R174: 194 | S174: 166 | T174: 235 | U174: 247 | V174: 235 | W174: 238 | X174: 247
A175: 110 | B175: MOSELLE | C175: 45 | D175: METZ | E175: 557712 | F175: WOIPPY | G175: 4.2 | H175: 166 | I175: 188 | J175: 122 | K175: 222 | L175: 94 | M175: 104 | N175: 105 | O175: 154 | P175: 172 | Q175: 52 | R175: 88 | S175: 87 | T175: 105 | U175: 145 | V175: 117 | W175: 174 | X175: 138
A176: 110 | B176: BAS RHIN | C176: 5101 | D176: SELESTAT | E176: 4109 | F176: MARCKOLSHEIM | G176: 2.7 | H176: 167 | I176: 131 | J176: 171 | K176: 56 | L176: 95 | M176: 87 | N176: 145 | O176: 210 | P176: 219 | Q176: 73 | R176: 146 | S176: 160 | T176: 112 | U176: 176 | V176: 159 | W176: 164 | X176: 161
A177: 110 | B177: VOSGES | C177: 55 | D177: SAINT DIE | E177: 488586 | F177: SAINT DIE | G177: 11.2 | H177: 168 | I177: 60 | J177: 52 | K177: 89 | L177: 202 | M177: 186 | N177: 220 | O177: 172 | P177: 148 | Q177: 214 | R177: 224 | S177: 218 | T177: 215 | U177: 218 | V177: 203 | W177: 204 | X177: 195
A178: 110 | B178: HAUT RHIN | C178: 5130 | D178: COLMAR | E178: 4130 | F178: COLMAR REPUBLIQUE | G178: 6.4 | H178: 169 | I178: 191 | J178: 113 | K178: 235 | L178: 155 | M178: 130 | N178: 208 | O178: 163 | P178: 142 | Q178: 193 | R178: 48 | S178: 33 | T178: 132 | U178: 174 | V178: 163 | W178: 130 | X178: 176
A179: 110 | B179: VOSGES | C179: 57 | D179: EPINAL | E179: 488451 | F179: MIRECOURT | G179: 3.8 | H179: 170 | I179: 56 | J179: 46 | K179: 76 | L179: 207 | M179: 197 | N179: 167 | O179: 195 | P179: 207 | Q179: 103 | R179: 228 | S179: 235 | T179: 179 | U179: 189 | V179: 149 | W179: 217 | X179: 171
A180: 110 | B180: BAS RHIN | C180: 5101 | D180: SELESTAT | E180: 4101 | F180: SELESTAT CENTRE | G180: 7.4 | H180: 171 | I180: 190 | J180: 168 | K180: 188 | L180: 68 | M180: 53 | N180: 183 | O180: 178 | P180: 162 | Q180: 186 | R180: 117 | S180: 128 | T180: 96 | U180: 136 | V180: 169 | W180: 52 | X180: 144
A181: 110 | B181: HAUT RHIN | C181: 5169 | D181: MULHOUSE | E181: 4180 | F181: RIEDISHEIM | G181: 3.3 | H181: 172 | I181: 119 | J181: 114 | K181: 131 | L181: 151 | M181: 116 | N181: 226 | O181: 215 | P181: 200 | Q181: 197 | R181: 120 | S181: 93 | T181: 198 | U181: 199 | V181: 114 | W181: 206 | X181: 227
A182: 160 | B182: MEURTHE ET MOSELLE MEUSE | C182: 26 | D182: NANCY | E182: 554166 | F182: BLAINVILLE | G182: 2.5 | H182: 173 | I182: 171 | J182: 168 | K182: 168 | L182: 117 | M182: 123 | N182: 118 | O182: 158 | P182: 137 | Q182: 194 | R182: 124 | S182: 103 | T182: 187 | U182: 125 | V182: 157 | W182: 112 | X182: 94
A183: 160 | B183: AUBE HAUTE MARNE | C183: 14 | D183: TROYES | E183: 510523 | F183: LA CHAPELLE ST LUC | G183: 4.2 | H183: 174 | I183: 232 | J183: 182 | K183: 227 | L183: 190 | M183: 212 | N183: 59 | O183: 90 | P183: 113 | Q183: 40 | R183: 43 | S183: 70 | T183: 19 | U183: 130 | V183: 181 | W183: 102 | X183: 95
A184: 160 | B184: MARNE ARDENNES | C184: 2 | D184: CHARLEVILLE MEZIERES | E184: 508815 | F184: CARIGNAN | G184: 2.7 | H184: 175 | I184: 123 | J184: 134 | K184: 90 | L184: 123 | M184: 142 | N184: 96 | O184: 128 | P184: 132 | Q184: 91 | R184: 230 | S184: 233 | T184: 195 | U184: 181 | V184: 98 | W184: 226 | X184: 199
A185: 160 | B185: MOSELLE | C185: 45 | D185: METZ | E185: 557459 | F185: MOULINS LES METZ | G185: 2.4 | H185: 176 | I185: 49 | J185: 27 | K185: 150 | L185: 231 | M185: 210 | N185: 248 | O185: 227 | P185: 215 | Q185: 243 | R185: 187 | S185: 158 | T185: 219 | U185: 222 | V185: 179 | W185: 197 | X185: 230
A186: 160 | B186: MARNE ARDENNES | C186: 11 | D186: REIMS | E186: 551309 | F186: REIMS EUROPE | G186: 2.9 | H186: 177 | I186: 108 | J186: 93 | K186: 143 | L186: 220 | M186: 235 | N186: 98 | O186: 181 | P186: 181 | Q186: 128 | R186: 152 | S186: 193 | T186: 55 | U186: 144 | V186: 112 | W186: 219 | X186: 118
A187: 160 | B187: MEURTHE ET MOSELLE MEUSE | C187: 31 | D187: VERDUN | E187: 455456 | F187: MONTMEDY | G187: 1.5 | H187: 178 | I187: 200 | J187: 150 | K187: 207 | L187: 127 | M187: 165 | N187: 64 | O187: 10 | P187: 9 | Q187: 101 | R187: 242 | S187: 246 | T187: 147 | U187: 169 | V187: 185 | W187: 151 | X187: 130
A188: 160 | B188: BAS RHIN | C188: 5060 | D188: HAGUENAU | E188: 4060 | F188: HAGUENAU HOUBLON | G188: 8.4 | H188: 179 | I188: 174 | J188: 162 | K188: 177 | L188: 156 | M188: 138 | N188: 191 | O188: 101 | P188: 74 | Q188: 169 | R188: 132 | S188: 122 | T188: 170 | U188: 197 | V188: 212 | W188: 103 | X188: 190
A189: 160 | B189: MOSELLE | C189: 45 | D189: METZ | E189: 557433 | F189: MARANGE SILVANGE | G189: 2.9 | H189: 180 | I189: 211 | J189: 182 | K189: 201 | L189: 149 | M189: 146 | N189: 157 | O189: 108 | P189: 90 | Q189: 142 | R189: 126 | S189: 111 | T189: 173 | U189: 97 | V189: 177 | W189: 9 | X189: 128
A190: 160 | B190: VOSGES | C190: 57 | D190: EPINAL | E190: 588501 | F190: NEUFCHATEAU | G190: 5.6 | H190: 181 | I190: 113 | J190: 100 | K190: 134 | L190: 227 | M190: 222 | N190: 201 | O190: 127 | P190: 95 | Q190: 211 | R190: 159 | S190: 147 | T190: 171 | U190: 223 | V190: 217 | W190: 233 | X190: 183
A191: 160 | B191: MOSELLE | C191: 44 | D191: MOSELLE NORD | E191: 557307 | F191: FONTOY | G191: 1.8 | H191: 182 | I191: 129 | J191: 150 | K191: 75 | L191: 197 | M191: 187 | N191: 192 | O191: 116 | P191: 75 | Q191: 226 | R191: 236 | S191: 229 | T191: 240 | U191: 74 | V191: 55 | W191: 22 | X191: 180
A192: 160 | B192: BAS RHIN | C192: 5060 | D192: HAGUENAU | E192: 4082 | F192: BOUXWILLER | G192: 2.4 | H192: 183 | I192: 88 | J192: 125 | K192: 20 | L192: 176 | M192: 175 | N192: 156 | O192: 246 | P192: 246 | Q192: 212 | R192: 67 | S192: 72 | T192: 61 | U192: 92 | V192: 80 | W192: 143 | X192: 85
A193: 160 | B193: AUBE HAUTE MARNE | C193: 14 | D193: TROYES | E193: 410571 | F193: ROMILLY SUR SEINE | G193: 4.8 | H193: 184 | I193: 110 | J193: 83 | K193: 164 | L193: 184 | M193: 191 | N193: 131 | O193: 235 | P193: 236 | Q193: 83 | R193: 121 | S193: 126 | T193: 119 | U193: 110 | V193: 129 | W193: 48 | X193: 125
A194: 160 | B194: HAUT RHIN | C194: 5130 | D194: COLMAR | E194: 4144 | F194: RIBEAUVILLE | G194: 4.0 | H194: 185 | I194: 152 | J194: 180 | K194: 111 | L194: 128 | M194: 101 | N194: 204 | O194: 180 | P194: 159 | Q194: 201 | R194: 118 | S194: 102 | T194: 178 | U194: 232 | V194: 225 | W194: 225 | X194: 211
A195: 160 | B195: HAUT RHIN | C195: 5130 | D195: COLMAR | E195: 4147 | F195: GUEBWILLER | G195: 4.4 | H195: 186 | I195: 175 | J195: 182 | K195: 163 | L195: 139 | M195: 121 | N195: 171 | O195: 137 | P195: 114 | Q195: 189 | R195: 144 | S195: 157 | T195: 116 | U195: 178 | V195: 139 | W195: 208 | X195: 152
A196: 160 | B196: VOSGES | C196: 57 | D196: EPINAL | E196: 588206 | F196: CHARMES | G196: 2.6 | H196: 187 | I196: 134 | J196: 182 | K196: 57 | L196: 223 | M196: 230 | N196: 135 | O196: 66 | P196: 45 | Q196: 187 | R196: 206 | S196: 214 | T196: 109 | U196: 210 | V196: 247 | W196: 104 | X196: 132
A197: 160 | B197: MARNE ARDENNES | C197: 11 | D197: REIMS | E197: 551341 | F197: REIMS JEAN JAURES | G197: 2.6 | H197: 188 | I197: 180 | J197: 134 | K197: 202 | L197: 150 | M197: 184 | N197: 58 | O197: 105 | P197: 105 | Q197: 75 | R197: 213 | S197: 228 | T197: 90 | U197: 83 | V197: 82 | W197: 220 | X197: 41
A198: 160 | B198: VOSGES | C198: 55 | D198: SAINT DIE | E198: 588386 | F198: LE THILLOT | G198: 2.1 | H198: 189 | I198: 102 | J198: 128 | K198: 34 | L198: 159 | M198: 120 | N198: 231 | O198: 208 | P198: 204 | Q198: 145 | R198: 218 | S198: 203 | T198: 228 | U198: 198 | V198: 209 | W198: 185 | X198: 142
A199: 160 | B199: BAS RHIN | C199: 5101 | D199: SELESTAT | E199: 4127 | F199: ROSHEIM | G199: 1.7 | H199: 190 | I199: 161 | J199: 182 | K199: 138 | L199: 182 | M199: 160 | N199: 228 | O199: 57 | P199: 32 | Q199: 224 | R199: 205 | S199: 191 | T199: 227 | U199: 216 | V199: 193 | W199: 240 | X199: 181
A200: 160 | B200: MARNE ARDENNES | C200: 2 | D200: CHARLEVILLE MEZIERES | E200: 508819 | F200: MOUZON | G200: 1.8 | H200: 191 | I200: 82 | J200: 71 | K200: 109 | L200: 244 | M200: 247 | N200: 73 | O200: 98 | P200: 88 | Q200: 112 | R200: 237 | S200: 244 | T200: 94 | U200: 93 | V200: 160 | W200: 239 | X200: 20
A201: 160 | B201: AUBE HAUTE MARNE | C201: 14 | D201: TROYES | E201: 510520 | F201: SAINT ANDRE LES VERGERS | G201: 3.7 | H201: 192 | I201: 242 | J201: 182 | K201: 242 | L201: 154 | M201: 159 | N201: 150 | O201: 45 | P201: 33 | Q201: 175 | R201: 99 | S201: 110 | T201: 84 | U201: 170 | V201: 192 | W201: 81 | X201: 174
A202: 160 | B202: HAUT RHIN | C202: 5169 | D202: MULHOUSE | E202: 4170 | F202: MULHOUSE REUNION | G202: 7.3 | H202: 193 | I202: 199 | J202: 140 | K202: 214 | L202: 120 | M202: 141 | N202: 91 | O202: 196 | P202: 203 | Q202: 111 | R202: 96 | S202: 140 | T202: 33 | U202: 139 | V202: 126 | W202: 114 | X202: 148
A203: 160 | B203: BAS RHIN | C203: 5060 | D203: HAGUENAU | E203: 4087 | F203: SAVERNE | G203: 6.0 | H203: 194 | I203: 228 | J203: 140 | K203: 241 | L203: 77 | M203: 60 | N203: 195 | O203: 162 | P203: 152 | Q203: 146 | R203: 106 | S203: 89 | T203: 157 | U203: 168 | V203: 146 | W203: 106 | X203: 198
A204: 160 | B204: MEURTHE ET MOSELLE MEUSE | C204: 31 | D204: VERDUN | E204: 555624 | F204: STENAY | G204: 2.7 | H204: 195 | I204: 206 | J204: 182 | K204: 196 | L204: 83 | M204: 91 | N204: 82 | O204: 191 | P204: 187 | Q204: 155 | R204: 204 | S204: 208 | T204: 125 | U204: 53 | V204: 110 | W204: 5 | X204: 97
... 55 more rows

Sheet AG_FICHE
A1: Accueil
A2: BAROMETRE GRAND PUBLIC
A4: UNITE: | B4: Agence | E4: ETP perf : | F4: =VLOOKUP(A5,'RECAP AG'!$G$6:$CY$256,3,FALSE) -> 4.92
A5: =VLOOKUP(B5,LISTES!$C$6:$D$254,2,FALSE) -> 4189 | B5: ALTKIRCH
C6: Coefficient du critère | E6: Résultats | I6: Ecart au 1ier | K6: =IF(OR(A5=4017,A5=4022),"Rang estimé","Rang") -> Rang
E7: du 1ier | G7: de l'Agence
A9: RANG GRAND PUBLIC | K9: =VLOOKUP($A$5,'RECAP AG'!$G$6:$CY$256,96,FALSE) -> 249
A11: SATISFACTION CLIENTS | C11: 20% | K11: =VLOOKUP($A$5,'RECAP AG'!$G$6:$CY$256,13,FALSE) -> 249
B12: NPS à froid (SAE) | C12: 10% | E12: =+'RECAP AG'!K4 -> 62 | G12: =VLOOKUP($A$5,'RECAP AG'!$G$6:$CY$256,5,FALSE) -> 0.0 | I12: =VLOOKUP($A$5,'RECAP AG'!$G$6:$CY$256,6,FALSE) -> 100% | K12: =VLOOKUP($A$5,'RECAP AG'!$G$6:$CY$256,7,FALSE) -> 182
B13: NPS à chaud (QHD) | C13: 10% | E13: =+'RECAP AG'!N4 -> 87% | G13: =VLOOKUP($A$5,'RECAP AG'!$G$6:$CY$256,8,FALSE) -> 15% | I13: =VLOOKUP($A$5,'RECAP AG'!$G$6:$CY$256,9,FALSE) -> 83% | K13: =VLOOKUP($A$5,'RECAP AG'!$G$6:$CY$256,10,FALSE) -> 248
A15: BANCARISATION | C15: 20% | K15: =VLOOKUP($A$5,'RECAP AG'!$G$6:$CY$256,28,FALSE) -> 247
B16: Ventes Nettes produits pondérés | C16: 12% | E16: ='RECAP AG'!X4 -> 73.6 | G16: =VLOOKUP($A$5,'RECAP AG'!$G$6:$CY$256,19,FALSE) -> -13.0 | I16: =VLOOKUP($A$5,'RECAP AG'!$G$6:$CY$256,20,FALSE) -> 118% | K16: =VLOOKUP($A$5,'RECAP AG'!$G$6:$CY$256,21,FALSE) -> 246
B17: Ventes sur client non détenteur de l’univers | C17: 8% | E17: ='RECAP AG'!AB4 -> 154.5 | G17: =VLOOKUP($A$5,'RECAP AG'!$G$6:$CY$256,23,FALSE) -> 19.3 | I17: =VLOOKUP($A$5,'RECAP AG'!$G$6:$CY$256,24,FALSE) -> 88% | K17: =VLOOKUP($A$5,'RECAP AG'!$G$6:$CY$256,25,FALSE) -> 235
A19: EPARGNE | C19: 20% | K19: =VLOOKUP($A$5,'RECAP AG'!$G$6:$CY$256,43,FALSE) -> 231
B20: Excédent Epargne hors DAV pondéré | C20: 12% | E20: ='RECAP AG'!AM4 -> 1689.5 | G20: =VLOOKUP($A$5,'RECAP AG'!$G$6:$CY$256,34,FALSE) -> -202.1 | I20: =VLOOKUP($A$5,'RECAP AG'!$G$6:$CY$256,35,FALSE) -> 93% | K20: =VLOOKUP($A$5,'RECAP AG'!$G$6:$CY$256,36,FALSE) -> 231
B21: Ventes sur client non détenteur de l’univers | C21: 8% | E21: ='RECAP AG'!AQ4 -> 169.0 | G21: =VLOOKUP($A$5,'RECAP AG'!$G$6:$CY$256,38,FALSE) -> 18.3 | I21: =VLOOKUP($A$5,'RECAP AG'!$G$6:$CY$256,39,FALSE) -> 89% | K21: =VLOOKUP($A$5,'RECAP AG'!$G$6:$CY$256,40,FALSE) -> 238
A23: IARD PREVOYANCE | C23: 20% | K23: =VLOOKUP($A$5,'RECAP AG'!$G$6:$CY$256,77,FALSE) -> 245
B24: Ventes Nettes produits pondérés | C24: 12% | E24: ='RECAP AG'!BU4 -> 412.6 | G24: =VLOOKUP($A$5,'RECAP AG'!$G$6:$CY$256,68,FALSE) -> -38.4 | I24: =VLOOKUP($A$5,'RECAP AG'!$G$6:$CY$256,69,FALSE) -> 109% | K24: =VLOOKUP($A$5,'RECAP AG'!$G$6:$CY$256,70,FALSE) -> 245
B25: Ventes sur client non détenteur de l’univers | C25: 8% | E25: ='RECAP AG'!BY4 -> 105.5 | G25: =VLOOKUP($A$5,'RECAP AG'!$G$6:$CY$256,72,FALSE) -> 16.5 | I25: =VLOOKUP($A$5,'RECAP AG'!$G$6:$CY$256,73,FALSE) -> 84% | K25: =VLOOKUP($A$5,'RECAP AG'!$G$6:$CY$256,74,FALSE) -> 214
A27: CREDITS | C27: 20% | K27: =VLOOKUP($A$5,'RECAP AG'!$G$6:$CY$256,62,FALSE) -> 241
B28: Engagements et ventes accessoires pondérés Immo | C28: 6% | E28: ='RECAP AG'!BB4 -> 740.3 | G28: =VLOOKUP($A$5,'RECAP AG'!$G$6:$CY$256,49,FALSE) -> 37.5 | I28: =VLOOKUP($A$5,'RECAP AG'!$G$6:$CY$256,50,FALSE) -> 95% | K28: =VLOOKUP($A$5,'RECAP AG'!$G$6:$CY$256,51,FALSE) -> 237
B29: Engagements et ventes accessoires pondérés Conso | C29: 6% | E29: ='RECAP AG'!BF4 -> 226.2 | G29: =VLOOKUP($A$5,'RECAP AG'!$G$6:$CY$256,53,FALSE) -> 21.7 | I29: =VLOOKUP($A$5,'RECAP AG'!$G$6:$CY$256,54,FALSE) -> 90% | K29: =VLOOKUP($A$5,'RECAP AG'!$G$6:$CY$256,55,FALSE) -> 198
B30: Ventes sur client non détenteur de l’univers | C30: 8% | E30: ='RECAP AG'!BJ4 -> 81.8 | G30: =VLOOKUP($A$5,'RECAP AG'!$G$6:$CY$256,57,FALSE) -> 6.9 | I30: =VLOOKUP($A$5,'RECAP AG'!$G$6:$CY$256,58,FALSE) -> 92% | K30: =VLOOKUP($A$5,'RECAP AG'!$G$6:$CY$256,59,FALSE) -> 236

Sheet AG_TOTAL
B1: Accueil | H1: BAROMETRE BDD - AGENCES
H2: TOTAL GENERAL
H3: =ACCUEIL!F7 -> 2022-05-22
H7: TOTAL GENERAL | K7: Total Satisfaction Clients | N7: Total Bancarisation | Q7: Total Epargne | T7: Total IARD Prévoyance | W7: Total Crédits
I8: coef | J8: =M8+P8+S8+V8+Y8 -> 100% | L8: coef | M8: =AG_SATISFACTION!P8 -> 20% | O8: coef | P8: =AG_BANCA!R8 -> 20% | R8: coef | S8: =AG_EPARGNE!R8 -> 20% | U8: coef | V8: =AG_IARD!R8 -> 20% | X8: coef | Y8: =AG_CREDIT!V8 -> 20%
B9: Direction | C9: eds | D9: Territoire | E9: eds | F9: Agence | G9: ="ETP perf "&DATEMAJ!$C$28 -> ETP perf 22-mai | H9: Moyenne ecart au 1er | I9: % Ecart au 1er | J9: Rang CEGEE | K9: Moyenne ecart au 1er | L9: % Ecart au 1er | M9: Rang CEGEE | N9: Moyenne ecart au 1er | O9: % Ecart au 1er | P9: Rang CEGEE | Q9: Moyenne ecart au 1er | R9: % Ecart au 1er | S9: Rang CEGEE | T9: Moyenne ecart au 1er | U9: % Ecart au 1er | V9: Rang CEGEE | W9: Moyenne ecart au 1er | X9: % Ecart au 1er | Y9: Rang CEGEE
A10: 50 | B10: MEURTHE ET MOSELLE MEUSE | C10: 26 | D10: NANCY | E10: 454171 | F10: BLAMONT | G10: 0.6 | H10: 24% | I10: 0% | J10: 1 | K10: 82% | L10: 75% | M10: 244 | N10: 0% | O10: 0% | P10: 1 | Q10: 53% | R10: 20% | S10: 6 | T10: 28% | U10: 24% | V10: 2 | W10: 1% | X10: 0% | Y10: 1
A11: 50 | B11: MOSELLE | C11: 44 | D11: MOSELLE NORD | E11: 557508 | F11: NILVANGE | G11: 1.7 | H11: 25% | I11: 1% | J11: 2 | K11: 53% | L11: 46% | M11: 109 | N11: 18% | O11: 18% | P11: 2 | Q11: 50% | R11: 17% | S11: 4 | T11: 4% | U11: 0% | V11: 1 | W11: 47% | X11: 46% | Y11: 3
A12: 50 | B12: MOSELLE | C12: 42 | D12: MOSELLE EST | E12: 457163 | F12: BEHREN LES FORBACH | G12: 1.9 | H12: 41% | I12: 18% | J12: 3 | K12: 18% | L12: 10% | M12: 8 | N12: 52% | O12: 52% | P12: 3 | Q12: 62% | R12: 29% | S12: 19 | T12: 70% | U12: 67% | V12: 42 | W12: 51% | X12: 50% | Y12: 4
A13: 50 | B13: MARNE ARDENNES | C13: 2 | D13: CHARLEVILLE MEZIERES | E13: 508820 | F13: VOUZIERS | G13: 2.9 | H13: 46% | I13: 22% | J13: 4 | K13: 20% | L13: 13% | M13: 12 | N13: 78% | O13: 78% | P13: 66 | Q13: 61% | R13: 28% | S13: 16 | T13: 36% | U13: 32% | V13: 3 | W13: 81% | X13: 79% | Y13: 64
A14: 50 | B14: MOSELLE | C14: 45 | D14: METZ | E14: 457443 | F14: METZ REPUBLIQUE | G14: 3.7 | H14: 50% | I14: 26% | J14: 5 | K14: 20% | L14: 13% | M14: 13 | N14: 89% | O14: 89% | P14: 192 | Q14: 33% | R14: 0% | S14: 1 | T14: 66% | U14: 62% | V14: 23 | W14: 88% | X14: 86% | Y14: 185
A15: 50 | B15: MARNE ARDENNES | C15: 11 | D15: REIMS | E15: 551305 | F15: REIMS HIPPODROME | G15: 5.4 | H15: 51% | I15: 27% | J15: 6 | K15: 43% | L15: 36% | M15: 71 | N15: 69% | O15: 69% | P15: 26 | Q15: 58% | R15: 25% | S15: 11 | T15: 58% | U15: 54% | V15: 9 | W15: 70% | X15: 69% | Y15: 13
A16: 50 | B16: MEURTHE ET MOSELLE MEUSE | C16: 26 | D16: NANCY | E16: 554601 | F16: SAINT MAX | G16: 3.7 | H16: 52% | I16: 28% | J16: 7 | K16: 17% | L16: 10% | M16: 7 | N16: 77% | O16: 77% | P16: 63 | Q16: 65% | R16: 32% | S16: 31 | T16: 67% | U16: 63% | V16: 29 | W16: 79% | X16: 77% | Y16: 48
A17: 50 | B17: MARNE ARDENNES | C17: 2 | D17: CHARLEVILLE MEZIERES | E17: 408801 | F17: CHARLEVILLE JEAN JAURES | G17: 8.8 | H17: 53% | I17: 29% | J17: 8 | K17: 32% | L17: 25% | M17: 34 | N17: 72% | O17: 72% | P17: 45 | Q17: 66% | R17: 33% | S17: 37 | T17: 66% | U17: 63% | V17: 26 | W17: 73% | X17: 71% | Y17: 19
A18: 50 | B18: VOSGES | C18: 57 | D18: EPINAL | E18: 488288 | F18: EPINAL LEOPOLD BOURG | G18: 2.0 | H18: 53% | I18: 29% | J18: 9 | K18: 34% | L18: 27% | M18: 39 | N18: 72% | O18: 72% | P18: 39 | Q18: 56% | R18: 23% | S18: 8 | T18: 71% | U18: 68% | V18: 51 | W18: 79% | X18: 77% | Y18: 49
A19: 50 | B19: MOSELLE | C19: 44 | D19: MOSELLE NORD | E19: 557660 | F19: UCKANGE | G19: 1.7 | H19: 54% | I19: 30% | J19: 10 | K19: 79% | L19: 72% | M19: 239 | N19: 58% | O19: 58% | P19: 6 | Q19: 67% | R19: 35% | S19: 39 | T19: 47% | U19: 44% | V19: 4 | W19: 62% | X19: 60% | Y19: 6
A20: 50 | B20: MARNE ARDENNES | C20: 6 | D20: CHALONS EN CHAMPAGNE | E20: 551330 | F20: MONTMIRAIL | G20: 2.8 | H20: 54% | I20: 30% | J20: 11 | K20: 30% | L20: 23% | M20: 30 | N20: 66% | O20: 66% | P20: 19 | Q20: 73% | R20: 40% | S20: 81 | T20: 63% | U20: 59% | V20: 16 | W20: 82% | X20: 81% | Y20: 84
A21: 50 | B21: MOSELLE | C21: 42 | D21: MOSELLE EST | E21: 457165 | F21: BITCHE | G21: 2.4 | H21: 54% | I21: 31% | J21: 12 | K21: 49% | L21: 41% | M21: 92 | N21: 56% | O21: 56% | P21: 5 | Q21: 72% | R21: 39% | S21: 71 | T21: 57% | U21: 53% | V21: 8 | W21: 84% | X21: 82% | Y21: 104
A22: 50 | B22: BAS RHIN | C22: 5101 | D22: SELESTAT | E22: 4113 | F22: BARR | G22: 2.9 | H22: 54% | I22: 31% | J22: 13 | K22: 11% | L22: 3% | M22: 3 | N22: 64% | O22: 64% | P22: 11 | Q22: 84% | R22: 51% | S22: 193 | T22: 80% | U22: 76% | V22: 115 | W22: 79% | X22: 77% | Y22: 50
A23: 50 | B23: MARNE ARDENNES | C23: 11 | D23: REIMS | E23: 551349 | F23: REIMS SAINT REMI | G23: 2.9 | H23: 54% | I23: 31% | J23: 14 | K23: 47% | L23: 39% | M23: 84 | N23: 52% | O23: 52% | P23: 4 | Q23: 91% | R23: 58% | S23: 230 | T23: 63% | U23: 59% | V23: 15 | W23: 65% | X23: 63% | Y23: 8
A24: 50 | B24: MOSELLE | C24: 45 | D24: METZ | E24: 457574 | F24: ROMBAS | G24: 3.2 | H24: 55% | I24: 31% | J24: 15 | K24: 23% | L24: 15% | M24: 18 | N24: 78% | O24: 78% | P24: 72 | Q24: 68% | R24: 35% | S24: 42 | T24: 65% | U24: 61% | V24: 19 | W24: 87% | X24: 85% | Y24: 162
A25: 50 | B25: MOSELLE | C25: 45 | D25: METZ | E25: 457453 | F25: MONTIGNY LES METZ | G25: 6.9 | H25: 55% | I25: 31% | J25: 16 | K25: 18% | L25: 10% | M25: 9 | N25: 75% | O25: 75% | P25: 53 | Q25: 71% | R25: 38% | S25: 69 | T25: 79% | U25: 75% | V25: 111 | W25: 78% | X25: 77% | Y25: 44
A26: 50 | B26: MARNE ARDENNES | C26: 2 | D26: CHARLEVILLE MEZIERES | E26: 508839 | F26: GIVET | G26: 3.3 | H26: 56% | I26: 32% | J26: 17 | K26: 40% | L26: 32% | M26: 58 | N26: 72% | O26: 72% | P26: 40 | Q26: 80% | R26: 47% | S26: 156 | T26: 60% | U26: 56% | V26: 12 | W26: 73% | X26: 71% | Y26: 20
A27: 50 | B27: BAS RHIN | C27: 5006 | D27: STRASBOURG | E27: 4038 | F27: OBERHAUSBERGEN | G27: 3.0 | H27: 56% | I27: 32% | J27: 18 | K27: 36% | L27: 29% | M27: 43 | N27: 71% | O27: 71% | P27: 34 | Q27: 54% | R27: 21% | S27: 7 | T27: 84% | U27: 81% | V27: 170 | W27: 78% | X27: 77% | Y27: 43
A28: 262 | B28: BAS RHIN | C28: 5006 | D28: STRASBOURG | E28: 4010 | F28: STRASBOURG MEINAU | G28: 2.7 | H28: 56% | I28: 32% | J28: 19 | K28: 25% | L28: 17% | M28: 21 | N28: 82% | O28: 82% | P28: 103 | Q28: 74% | R28: 41% | S28: 97 | T28: 58% | U28: 55% | V28: 10 | W28: 86% | X28: 85% | Y28: 148
A29: 262 | B29: BAS RHIN | C29: 5006 | D29: STRASBOURG | E29: 4037 | F29: MUNDOLSHEIM | G29: 3.7 | H29: 56% | I29: 32% | J29: 20 | K29: 38% | L29: 31% | M29: 55 | N29: 70% | O29: 70% | P29: 33 | Q29: 76% | R29: 43% | S29: 111 | T29: 65% | U29: 62% | V29: 22 | W29: 75% | X29: 74% | Y29: 27
A30: 262 | B30: MOSELLE | C30: 44 | D30: MOSELLE NORD | E30: 457348 | F30: HAGONDANGE | G30: 7.8 | H30: 56% | I30: 33% | J30: 21 | K30: 34% | L30: 26% | M30: 38 | N30: 72% | O30: 72% | P30: 41 | Q30: 75% | R30: 42% | S30: 104 | T30: 69% | U30: 65% | V30: 38 | W30: 78% | X30: 76% | Y30: 40
A31: 262 | B31: MEURTHE ET MOSELLE MEUSE | C31: 26 | D31: NANCY | E31: 554476 | F31: NANCY ARTEM | G31: 2.8 | H31: 57% | I31: 33% | J31: 22 | K31: 38% | L31: 31% | M31: 54 | N31: 66% | O31: 66% | P31: 18 | Q31: 84% | R31: 51% | S31: 194 | T31: 82% | U31: 78% | V31: 136 | W31: 58% | X31: 56% | Y31: 5
A32: 262 | B32: MOSELLE | C32: 44 | D32: MOSELLE NORD | E32: 557113 | F32: AUDUN LE TICHE | G32: 2.2 | H32: 57% | I32: 33% | J32: 23 | K32: 54% | L32: 46% | M32: 115 | N32: 69% | O32: 69% | P32: 25 | Q32: 70% | R32: 37% | S32: 59 | T32: 65% | U32: 62% | V32: 21 | W32: 72% | X32: 70% | Y32: 16
A33: 262 | B33: MOSELLE | C33: 45 | D33: METZ | E33: 557447 | F33: METZ SAINT MAXIMIN | G33: 1.9 | H33: 57% | I33: 33% | J33: 24 | K33: 58% | L33: 51% | M33: 135 | N33: 73% | O33: 73% | P33: 46 | Q33: 69% | R33: 37% | S33: 55 | T33: 52% | U33: 48% | V33: 5 | W33: 78% | X33: 76% | Y33: 37
A34: 262 | B34: MEURTHE ET MOSELLE MEUSE | C34: 31 | D34: VERDUN | E34: 455676 | F34: VAUCOULEURS | G34: 0.3 | H34: 57% | I34: 33% | J34: 25 | K34: 61% | L34: 53% | M34: 145 | N34: 112% | O34: 112% | P34: 249 | Q34: 69% | R34: 36% | S34: 48 | T34: 54% | U34: 50% | V34: 6 | W34: 35% | X34: 33% | Y34: 2
A35: 262 | B35: MARNE ARDENNES | C35: 11 | D35: REIMS | E35: 551365 | F35: DORMANS | G35: 2.6 | H35: 57% | I35: 33% | J35: 26 | K35: 41% | L35: 33% | M35: 63 | N35: 66% | O35: 66% | P35: 20 | Q35: 73% | R35: 40% | S35: 80 | T35: 72% | U35: 68% | V35: 54 | W35: 79% | X35: 78% | Y35: 55
A36: 262 | B36: MARNE ARDENNES | C36: 6 | D36: CHALONS EN CHAMPAGNE | E36: 451120 | F36: SARRY | G36: 2.3 | H36: 57% | I36: 34% | J36: 27 | K36: 23% | L36: 15% | M36: 19 | N36: 69% | O36: 69% | P36: 24 | Q36: 77% | R36: 44% | S36: 126 | T36: 82% | U36: 79% | V36: 141 | W36: 81% | X36: 80% | Y36: 76
A37: 262 | B37: VOSGES | C37: 55 | D37: SAINT DIE | E37: 488246 | F37: CORNIMONT LA BRESSE | G37: 2.5 | H37: 57% | I37: 34% | J37: 28 | K37: 10% | L37: 2% | M37: 2 | N37: 78% | O37: 78% | P37: 70 | Q37: 83% | R37: 50% | S37: 183 | T37: 76% | U37: 72% | V37: 78 | W37: 87% | X37: 85% | Y37: 165
A38: 262 | B38: MOSELLE | C38: 44 | D38: MOSELLE NORD | E38: 457350 | F38: HAYANGE | G38: 6.8 | H38: 57% | I38: 34% | J38: 29 | K38: 49% | L38: 41% | M38: 93 | N38: 66% | O38: 66% | P38: 17 | Q38: 73% | R38: 40% | S38: 77 | T38: 68% | U38: 64% | V38: 33 | W38: 78% | X38: 77% | Y38: 42
A39: 262 | B39: MEURTHE ET MOSELLE MEUSE | C39: 27 | D39: PONT A MOUSSON | E39: 554506 | F39: CHALIGNY NEUVES MAISONS | G39: 3.5 | H39: 58% | I39: 34% | J39: 30 | K39: 66% | L39: 58% | M39: 163 | N39: 59% | O39: 59% | P39: 7 | Q39: 84% | R39: 52% | S39: 201 | T39: 54% | U39: 51% | V39: 7 | W39: 71% | X39: 70% | Y39: 14
A40: 262 | B40: MOSELLE | C40: 42 | D40: MOSELLE EST | E40: 557250 | F40: CREUTZWALD | G40: 2.4 | H40: 58% | I40: 34% | J40: 31 | K40: 26% | L40: 19% | M40: 23 | N40: 84% | O40: 84% | P40: 137 | Q40: 78% | R40: 45% | S40: 138 | T40: 68% | U40: 64% | V40: 32 | W40: 79% | X40: 77% | Y40: 51
A41: 262 | B41: MEURTHE ET MOSELLE MEUSE | C41: 26 | D41: NANCY | E41: 554356 | F41: JARVILLE LA MALGRANGE | G41: 4.3 | H41: 58% | I41: 34% | J41: 32 | K41: 56% | L41: 49% | M41: 126 | N41: 60% | O41: 60% | P41: 9 | Q41: 78% | R41: 45% | S41: 142 | T41: 69% | U41: 65% | V41: 37 | W41: 73% | X41: 72% | Y41: 21
A42: 262 | B42: VOSGES | C42: 57 | D42: EPINAL | E42: 588336 | F42: GOLBEY | G42: 2.8 | H42: 58% | I42: 35% | J42: 33 | K42: 26% | L42: 18% | M42: 22 | N42: 81% | O42: 81% | P42: 96 | Q42: 69% | R42: 36% | S42: 49 | T42: 77% | U42: 73% | V42: 86 | W42: 85% | X42: 83% | Y42: 124
A43: 262 | B43: MARNE ARDENNES | C43: 6 | D43: CHALONS EN CHAMPAGNE | E43: 551110 | F43: CHALONS ROOSEVELT | G43: 3.9 | H43: 59% | I43: 35% | J43: 34 | K43: 23% | L43: 15% | M43: 17 | N43: 79% | O43: 79% | P43: 75 | Q43: 86% | R43: 53% | S43: 218 | T43: 69% | U43: 66% | V43: 40 | W43: 82% | X43: 81% | Y43: 87
A44: 262 | B44: MEURTHE ET MOSELLE MEUSE | C44: 31 | D44: VERDUN | E44: 455678 | F44: VERDUN CENTRALE | G44: 8.7 | H44: 59% | I44: 35% | J44: 35 | K44: 24% | L44: 17% | M44: 20 | N44: 76% | O44: 76% | P44: 61 | Q44: 82% | R44: 49% | S44: 179 | T44: 82% | U44: 78% | V44: 139 | W44: 74% | X44: 73% | Y44: 25
A45: 262 | B45: MOSELLE | C45: 45 | D45: METZ | E45: 557434 | F45: MARLY | G45: 3.1 | H45: 59% | I45: 35% | J45: 36 | K45: 28% | L45: 21% | M45: 25 | N45: 86% | O45: 86% | P45: 157 | Q45: 60% | R45: 27% | S45: 13 | T45: 85% | U45: 81% | V45: 178 | W45: 81% | X45: 79% | Y45: 69
A46: 262 | B46: BAS RHIN | C46: 5060 | D46: HAGUENAU | E46: 4031 | F46: TRUCHTERSHEIM | G46: 2.3 | H46: 59% | I46: 35% | J46: 37 | K46: 8% | L46: 0% | M46: 1 | N46: 82% | O46: 82% | P46: 106 | Q46: 62% | R46: 29% | S46: 20 | T46: 97% | U46: 94% | V46: 238 | W46: 91% | X46: 89% | Y46: 227
A47: 262 | B47: MOSELLE | C47: 45 | D47: METZ | E47: 557439 | F47: METZ POMPIDOU | G47: 2.6 | H47: 59% | I47: 35% | J47: 38 | K47: 33% | L47: 26% | M47: 37 | N47: 82% | O47: 82% | P47: 102 | Q47: 62% | R47: 29% | S47: 21 | T47: 79% | U47: 75% | V47: 107 | W47: 84% | X47: 83% | Y47: 111
A48: 262 | B48: BAS RHIN | C48: 5060 | D48: HAGUENAU | E48: 4079 | F48: SOULTZ SOUS FORETS | G48: 1.9 | H48: 59% | I48: 35% | J48: 39 | K48: 37% | L48: 29% | M48: 46 | N48: 75% | O48: 75% | P48: 54 | Q48: 67% | R48: 34% | S48: 38 | T48: 75% | U48: 72% | V48: 76 | W48: 87% | X48: 85% | Y48: 160
A49: 262 | B49: MARNE ARDENNES | C49: 11 | D49: REIMS | E49: 551340 | F49: BETHENY | G49: 2.7 | H49: 59% | I49: 35% | J49: 40 | K49: 38% | L49: 31% | M49: 53 | N49: 72% | O49: 72% | P49: 44 | Q49: 78% | R49: 46% | S49: 144 | T49: 83% | U49: 79% | V49: 150 | W49: 70% | X49: 69% | Y49: 12
A50: 262 | B50: MOSELLE | C50: 42 | D50: MOSELLE EST | E50: 557668 | F50: VALMONT | G50: 2.5 | H50: 59% | I50: 35% | J50: 41 | K50: 37% | L50: 30% | M50: 47 | N50: 83% | O50: 83% | P50: 122 | Q50: 59% | R50: 26% | S50: 12 | T50: 76% | U50: 72% | V50: 80 | W50: 87% | X50: 85% | Y50: 161
A51: 262 | B51: MEURTHE ET MOSELLE MEUSE | C51: 26 | D51: NANCY | E51: 454481 | F51: NANCY PLACE DOMBASLE | G51: 7.7 | H51: 59% | I51: 36% | J51: 42 | K51: 73% | L51: 66% | M51: 212 | N51: 76% | O51: 76% | P51: 59 | Q51: 50% | R51: 17% | S51: 5 | T51: 77% | U51: 73% | V51: 90 | W51: 66% | X51: 64% | Y51: 10
A52: 262 | B52: MARNE ARDENNES | C52: 11 | D52: REIMS | E52: 551367 | F52: AY CHAMPAGNE | G52: 2.7 | H52: 59% | I52: 36% | J52: 43 | K52: 33% | L52: 25% | M52: 35 | N52: 81% | O52: 81% | P52: 93 | Q52: 74% | R52: 41% | S52: 94 | T52: 75% | U52: 71% | V52: 70 | W52: 80% | X52: 78% | Y52: 59
A53: 262 | B53: MEURTHE ET MOSELLE MEUSE | C53: 31 | D53: VERDUN | E53: 555679 | F53: VERDUN MAZEL | G53: 3.6 | H53: 59% | I53: 36% | J53: 44 | K53: 19% | L53: 11% | M53: 11 | N53: 82% | O53: 82% | P53: 109 | Q53: 76% | R53: 43% | S53: 119 | T53: 79% | U53: 75% | V53: 110 | W53: 86% | X53: 85% | Y53: 157
A54: 262 | B54: BAS RHIN | C54: 5006 | D54: STRASBOURG | E54: 4048 | F54: STRASBOURG KOENIGSHOFFEN | G54: 2.2 | H54: 59% | I54: 36% | J54: 45 | K54: 65% | L54: 58% | M54: 162 | N54: 65% | O54: 65% | P54: 13 | Q54: 65% | R54: 32% | S54: 32 | T54: 67% | U54: 64% | V54: 31 | W54: 79% | X54: 78% | Y54: 58
A55: 262 | B55: VOSGES | C55: 57 | D55: EPINAL | E55: 488561 | F55: REMIREMONT | G55: 7.1 | H55: 59% | I55: 36% | J55: 46 | K55: 13% | L55: 5% | M55: 4 | N55: 84% | O55: 84% | P55: 138 | Q55: 79% | R55: 47% | S55: 152 | T55: 78% | U55: 75% | V55: 103 | W55: 88% | X55: 87% | Y55: 196
A56: 262 | B56: MEURTHE ET MOSELLE MEUSE | C56: 27 | D56: PONT A MOUSSON | E56: 554531 | F56: POMPEY | G56: 2.6 | H56: 60% | I56: 36% | J56: 47 | K56: 75% | L56: 67% | M56: 220 | N56: 64% | O56: 64% | P56: 10 | Q56: 70% | R56: 37% | S56: 63 | T56: 71% | U56: 67% | V56: 46 | W56: 64% | X56: 62% | Y56: 7
A57: 262 | B57: MARNE ARDENNES | C57: 11 | D57: REIMS | E57: 451350 | F57: REIMS CENTRE VILLE | G57: 6.7 | H57: 60% | I57: 36% | J57: 48 | K57: 63% | L57: 55% | M57: 155 | N57: 66% | O57: 66% | P57: 16 | Q57: 81% | R57: 49% | S57: 170 | T57: 68% | U57: 65% | V57: 36 | W57: 66% | X57: 65% | Y57: 11
A58: 262 | B58: MOSELLE | C58: 42 | D58: MOSELLE EST | E58: 557210 | F58: CHATEAU SALINS | G58: 1.0 | H58: 60% | I58: 36% | J58: 49 | K58: 60% | L58: 52% | M58: 141 | N58: 81% | O58: 81% | P58: 101 | Q58: 60% | R58: 27% | S58: 14 | T58: 66% | U58: 63% | V58: 25 | W58: 78% | X58: 76% | Y58: 38
A59: 262 | B59: BAS RHIN | C59: 5006 | D59: STRASBOURG | E59: 4043 | F59: STRASBOURG HALLES | G59: 7.4 | H59: 60% | I59: 36% | J59: 50 | K59: 59% | L59: 52% | M59: 139 | N59: 73% | O59: 73% | P59: 47 | Q59: 70% | R59: 37% | S59: 60 | T59: 59% | U59: 56% | V59: 11 | W59: 85% | X59: 83% | Y59: 121
A60: 262 | B60: AUBE HAUTE MARNE | C60: 14 | D60: TROYES | E60: 510570 | F60: NOGENT SUR SEINE | G60: 4.7 | H60: 60% | I60: 36% | J60: 51 | K60: 14% | L60: 6% | M60: 5 | N60: 80% | O60: 80% | P60: 92 | Q60: 86% | R60: 54% | S60: 221 | T60: 80% | U60: 77% | V60: 123 | W60: 85% | X60: 84% | Y60: 129
A61: 262 | B61: MARNE ARDENNES | C61: 11 | D61: REIMS | E61: 451301 | F61: REIMS HOTEL DE VILLE | G61: 7.4 | H61: 60% | I61: 36% | J61: 52 | K61: 49% | L61: 42% | M61: 95 | N61: 79% | O61: 79% | P61: 76 | Q61: 79% | R61: 46% | S61: 147 | T61: 61% | U61: 58% | V61: 13 | W61: 78% | X61: 77% | Y61: 45
A62: 262 | B62: MARNE ARDENNES | C62: 6 | D62: CHALONS EN CHAMPAGNE | E62: 451115 | F62: MOURMELON LE GRAND | G62: 2.7 | H62: 60% | I62: 37% | J62: 53 | K62: 44% | L62: 36% | M62: 73 | N62: 75% | O62: 75% | P62: 51 | Q62: 73% | R62: 40% | S62: 82 | T62: 71% | U62: 68% | V62: 52 | W62: 84% | X62: 83% | Y62: 112
A63: 262 | B63: MOSELLE | C63: 42 | D63: MOSELLE EST | E63: 457308 | F63: FORBACH CENTRALE | G63: 9.3 | H63: 60% | I63: 37% | J63: 54 | K63: 49% | L63: 42% | M63: 94 | N63: 70% | O63: 70% | P63: 32 | Q63: 73% | R63: 41% | S63: 88 | T63: 71% | U63: 68% | V63: 50 | W63: 83% | X63: 82% | Y63: 100
A64: 262 | B64: MOSELLE | C64: 42 | D64: MOSELLE EST | E64: 457583 | F64: SAINT AVOLD | G64: 7.1 | H64: 60% | I64: 37% | J64: 55 | K64: 42% | L64: 34% | M64: 66 | N64: 71% | O64: 71% | P64: 35 | Q64: 73% | R64: 40% | S64: 84 | T64: 76% | U64: 73% | V64: 83 | W64: 86% | X64: 84% | Y64: 140
A65: 262 | B65: MEURTHE ET MOSELLE MEUSE | C65: 31 | D65: VERDUN | E65: 554413 | F65: LONGWY BAS | G65: 3.6 | H65: 61% | I65: 37% | J65: 56 | K65: 28% | L65: 20% | M65: 24 | N65: 80% | O65: 80% | P65: 86 | Q65: 76% | R65: 43% | S65: 112 | T65: 81% | U65: 77% | V65: 131 | W65: 83% | X65: 82% | Y65: 98
A66: 262 | B66: AUBE HAUTE MARNE | C66: 21 | D66: CHAUMONT | E66: 510590 | F66: CHAUMONT REPUBLIQUE | G66: 2.8 | H66: 61% | I66: 37% | J66: 57 | K66: 45% | L66: 37% | M66: 76 | N66: 89% | O66: 89% | P66: 189 | Q66: 69% | R66: 36% | S66: 46 | T66: 67% | U66: 63% | V66: 27 | W66: 79% | X66: 78% | Y66: 56
A67: 262 | B67: VOSGES | C67: 55 | D67: SAINT DIE | E67: 588666 | F67: VAGNEY | G67: 3.2 | H67: 61% | I67: 37% | J67: 58 | K67: 22% | L67: 14% | M67: 16 | N67: 84% | O67: 84% | P67: 133 | Q67: 69% | R67: 37% | S67: 58 | T67: 88% | U67: 84% | V67: 199 | W67: 87% | X67: 85% | Y67: 159
A68: 262 | B68: MOSELLE | C68: 45 | D68: METZ | E68: 457446 | F68: METZ SAINT LOUIS | G68: 5.4 | H68: 61% | I68: 37% | J68: 59 | K68: 50% | L68: 43% | M68: 101 | N68: 75% | O68: 75% | P68: 55 | Q68: 74% | R68: 41% | S68: 96 | T68: 75% | U68: 71% | V68: 71 | W68: 76% | X68: 74% | Y68: 30
A69: 262 | B69: MARNE ARDENNES | C69: 11 | D69: REIMS | E69: 451361 | F69: PIERRY LECLERC | G69: 1.9 | H69: 61% | I69: 37% | J69: 60 | K69: 53% | L69: 46% | M69: 112 | N69: 72% | O69: 72% | P69: 38 | Q69: 66% | R69: 33% | S69: 36 | T69: 79% | U69: 76% | V69: 113 | W69: 81% | X69: 80% | Y69: 71
A70: 262 | B70: AUBE HAUTE MARNE | C70: 21 | D70: CHAUMONT | E70: 451154 | F70: JOINVILLE | G70: 1.8 | H70: 61% | I70: 37% | J70: 61 | K70: 30% | L70: 22% | M70: 29 | N70: 76% | O70: 76% | P70: 60 | Q70: 99% | R70: 66% | S70: 243 | T70: 65% | U70: 61% | V70: 18 | W70: 82% | X70: 81% | Y70: 85
A71: 262 | B71: MARNE ARDENNES | C71: 6 | D71: CHALONS EN CHAMPAGNE | E71: 551354 | F71: VERTUS | G71: 2.0 | H71: 61% | I71: 38% | J71: 62 | K71: 21% | L71: 13% | M71: 14 | N71: 84% | O71: 84% | P71: 141 | Q71: 70% | R71: 37% | S71: 65 | T71: 91% | U71: 87% | V71: 215 | W71: 86% | X71: 85% | Y71: 149
A72: 262 | B72: MEURTHE ET MOSELLE MEUSE | C72: 27 | D72: PONT A MOUSSON | E72: 554516 | F72: PAGNY SUR MOSELLE | G72: 2.8 | H72: 61% | I72: 38% | J72: 63 | K72: 38% | L72: 30% | M72: 51 | N72: 85% | O72: 85% | P72: 143 | Q72: 73% | R72: 40% | S72: 79 | T72: 73% | U72: 69% | V72: 61 | W72: 84% | X72: 82% | Y72: 108
A73: 262 | B73: BAS RHIN | C73: 5101 | D73: SELESTAT | E73: 4104 | F73: ERSTEIN | G73: 4.4 | H73: 61% | I73: 38% | J73: 64 | K73: 72% | L73: 64% | M73: 205 | N73: 60% | O73: 60% | P73: 8 | Q73: 75% | R73: 42% | S73: 103 | T73: 68% | U73: 64% | V73: 34 | W73: 78% | X73: 77% | Y73: 46
A74: 262 | B74: MARNE ARDENNES | C74: 2 | D74: CHARLEVILLE MEZIERES | E74: 408862 | F74: REVIN | G74: 3.3 | H74: 61% | I74: 38% | J74: 65 | K74: 29% | L74: 22% | M74: 27 | N74: 86% | O74: 86% | P74: 165 | Q74: 78% | R74: 45% | S74: 134 | T74: 74% | U74: 70% | V74: 68 | W74: 85% | X74: 84% | Y74: 127
A75: 264 | B75: BAS RHIN | C75: 5060 | D75: HAGUENAU | E75: 4092 | F75: HOCHFELDEN | G75: 2.0 | H75: 61% | I75: 38% | J75: 66 | K75: 46% | L75: 39% | M75: 83 | N75: 78% | O75: 78% | P75: 67 | Q75: 71% | R75: 38% | S75: 70 | T75: 76% | U75: 72% | V75: 77 | W75: 82% | X75: 80% | Y75: 79
A76: 264 | B76: MEURTHE ET MOSELLE MEUSE | C76: 31 | D76: VERDUN | E76: 454414 | F76: LONGWY HAUT | G76: 3.2 | H76: 62% | I76: 38% | J76: 67 | K76: 49% | L76: 42% | M76: 97 | N76: 79% | O76: 79% | P76: 80 | Q76: 74% | R76: 41% | S76: 93 | T76: 71% | U76: 68% | V76: 53 | W76: 81% | X76: 79% | Y76: 66
A77: 264 | B77: MOSELLE | C77: 44 | D77: MOSELLE NORD | E77: 457632 | F77: THIONVILLE CENTRALE | G77: 10.9 | H77: 62% | I77: 38% | J77: 68 | K77: 57% | L77: 50% | M77: 130 | N77: 71% | O77: 71% | P77: 36 | Q77: 82% | R77: 49% | S77: 175 | T77: 67% | U77: 64% | V77: 30 | W77: 78% | X77: 76% | Y77: 41
A78: 264 | B78: MOSELLE | C78: 42 | D78: MOSELLE EST | E78: 557523 | F78: PHALSBOURG | G78: 2.2 | H78: 62% | I78: 38% | J78: 69 | K78: 41% | L78: 34% | M78: 65 | N78: 93% | O78: 93% | P78: 216 | Q78: 64% | R78: 31% | S78: 25 | T78: 70% | U78: 67% | V78: 44 | W78: 87% | X78: 86% | Y78: 177
A79: 264 | B79: MOSELLE | C79: 44 | D79: MOSELLE NORD | E79: 557303 | F79: FAMECK | G79: 2.5 | H79: 62% | I79: 38% | J79: 70 | K79: 37% | L79: 29% | M79: 45 | N79: 85% | O79: 85% | P79: 144 | Q79: 76% | R79: 43% | S79: 110 | T79: 85% | U79: 81% | V79: 177 | W79: 74% | X79: 73% | Y79: 24
A80: 264 | B80: BAS RHIN | C80: 5060 | D80: HAGUENAU | E80: 4071 | F80: WISSEMBOURG | G80: 6.7 | H80: 62% | I80: 38% | J80: 71 | K80: 31% | L80: 23% | M80: 31 | N80: 85% | O80: 85% | P80: 147 | Q80: 72% | R80: 39% | S80: 74 | T80: 79% | U80: 75% | V80: 108 | W80: 91% | X80: 89% | Y80: 228
A81: 264 | B81: MEURTHE ET MOSELLE MEUSE | C81: 26 | D81: NANCY | E81: 554636 | F81: TOMBLAINE | G81: 2.8 | H81: 62% | I81: 38% | J81: 72 | K81: 38% | L81: 30% | M81: 52 | N81: 81% | O81: 81% | P81: 99 | Q81: 69% | R81: 37% | S81: 56 | T81: 83% | U81: 79% | V81: 151 | W81: 85% | X81: 84% | Y81: 131
A82: 264 | B82: MOSELLE | C82: 45 | D82: METZ | E82: 557105 | F82: ARS SUR MOSELLE | G82: 3.8 | H82: 62% | I82: 39% | J82: 73 | K82: 41% | L82: 33% | M82: 64 | N82: 80% | O82: 80% | P82: 89 | Q82: 78% | R82: 46% | S82: 143 | T82: 81% | U82: 77% | V82: 129 | W82: 77% | X82: 75% | Y82: 32
A83: 264 | B83: MARNE ARDENNES | C83: 11 | D83: REIMS | E83: 451370 | F83: EPERNAY | G83: 8.7 | H83: 62% | I83: 39% | J83: 74 | K83: 40% | L83: 32% | M83: 59 | N83: 77% | O83: 77% | P83: 65 | Q83: 80% | R83: 47% | S83: 161 | T83: 80% | U83: 76% | V83: 119 | W83: 80% | X83: 79% | Y83: 61
A84: 264 | B84: MOSELLE | C84: 44 | D84: MOSELLE NORD | E84: 557352 | F84: HETTANGE GRANDE | G84: 2.9 | H84: 62% | I84: 39% | J84: 75 | K84: 60% | L84: 52% | M84: 140 | N84: 70% | O84: 70% | P84: 29 | Q84: 78% | R84: 45% | S84: 132 | T84: 78% | U84: 74% | V84: 101 | W84: 72% | X84: 71% | Y84: 17
A85: 264 | B85: HAUT RHIN | C85: 5130 | D85: COLMAR | E85: 4143 | F85: MUNSTER | G85: 4.4 | H85: 62% | I85: 39% | J85: 76 | K85: 55% | L85: 47% | M85: 117 | N85: 73% | O85: 73% | P85: 48 | Q85: 63% | R85: 30% | S85: 23 | T85: 79% | U85: 76% | V85: 114 | W85: 87% | X85: 85% | Y85: 163
A86: 264 | B86: VOSGES | C86: 55 | D86: SAINT DIE | E86: 588186 | F86: BRUYERES | G86: 3.5 | H86: 63% | I86: 39% | J86: 77 | K86: 31% | L86: 24% | M86: 32 | N86: 83% | O86: 83% | P86: 115 | Q86: 78% | R86: 45% | S86: 139 | T86: 84% | U86: 80% | V86: 163 | W86: 82% | X86: 81% | Y86: 91
A87: 264 | B87: BAS RHIN | C87: 5006 | D87: STRASBOURG | E87: 4047 | F87: STRASBOURG CRONENBOURG | G87: 4.5 | H87: 63% | I87: 39% | J87: 78 | K87: 45% | L87: 38% | M87: 77 | N87: 76% | O87: 76% | P87: 58 | Q87: 78% | R87: 45% | S87: 141 | T87: 77% | U87: 73% | V87: 89 | W87: 83% | X87: 82% | Y87: 95
A88: 264 | B88: VOSGES | C88: 57 | D88: EPINAL | E88: 488706 | F88: VITTEL | G88: 2.7 | H88: 63% | I88: 39% | J88: 79 | K88: 35% | L88: 27% | M88: 40 | N88: 86% | O88: 86% | P88: 161 | Q88: 78% | R88: 45% | S88: 133 | T88: 77% | U88: 73% | V88: 85 | W88: 84% | X88: 82% | Y88: 106
A89: 264 | B89: MOSELLE | C89: 42 | D89: MOSELLE EST | E89: 557305 | F89: FAULQUEMONT | G89: 4.4 | H89: 63% | I89: 39% | J89: 80 | K89: 66% | L89: 58% | M89: 168 | N89: 70% | O89: 70% | P89: 27 | Q89: 79% | R89: 46% | S89: 150 | T89: 72% | U89: 68% | V89: 55 | W89: 72% | X89: 71% | Y89: 18
A90: 264 | B90: MARNE ARDENNES | C90: 6 | D90: CHALONS EN CHAMPAGNE | E90: 551103 | F90: FAGNIERES LECLERC | G90: 2.9 | H90: 63% | I90: 39% | J90: 81 | K90: 40% | L90: 33% | M90: 61 | N90: 90% | O90: 90% | P90: 198 | Q90: 83% | R90: 50% | S90: 185 | T90: 65% | U90: 62% | V90: 20 | W90: 82% | X90: 80% | Y90: 78
A91: 264 | B91: MARNE ARDENNES | C91: 2 | D91: CHARLEVILLE MEZIERES | E91: 408840 | F91: RETHEL | G91: 4.2 | H91: 63% | I91: 39% | J91: 82 | K91: 61% | L91: 54% | M91: 147 | N91: 71% | O91: 71% | P91: 37 | Q91: 77% | R91: 44% | S91: 121 | T91: 71% | U91: 67% | V91: 47 | W91: 81% | X91: 80% | Y91: 72
A92: 264 | B92: MARNE ARDENNES | C92: 2 | D92: CHARLEVILLE MEZIERES | E92: 508802 | F92: CHARLEVILLE NEVERS | G92: 2.9 | H92: 63% | I92: 39% | J92: 83 | K92: 35% | L92: 28% | M92: 41 | N92: 90% | O92: 90% | P92: 203 | Q92: 76% | R92: 43% | S92: 120 | T92: 72% | U92: 69% | V92: 60 | W92: 86% | X92: 85% | Y92: 153
A93: 264 | B93: BAS RHIN | C93: 5006 | D93: STRASBOURG | E93: 4006 | F93: STRASBOURG NEUDORF | G93: 7.9 | H93: 63% | I93: 39% | J93: 84 | K93: 18% | L93: 11% | M93: 10 | N93: 88% | O93: 88% | P93: 178 | Q93: 87% | R93: 54% | S93: 223 | T93: 78% | U93: 75% | V93: 104 | W93: 89% | X93: 88% | Y93: 212
A94: 264 | B94: MOSELLE | C94: 42 | D94: MOSELLE EST | E94: 457543 | F94: PUTTELANGE AUX LACS | G94: 2.5 | H94: 63% | I94: 39% | J94: 85 | K94: 51% | L94: 43% | M94: 103 | N94: 84% | O94: 84% | P94: 135 | Q94: 75% | R94: 42% | S94: 102 | T94: 70% | U94: 66% | V94: 41 | W94: 82% | X94: 80% | Y94: 81
A95: 264 | B95: MARNE ARDENNES | C95: 2 | D95: CHARLEVILLE MEZIERES | E95: 508833 | F95: VILLERS SEMEUSE CORA | G95: 3.4 | H95: 63% | I95: 39% | J95: 86 | K95: 69% | L95: 61% | M95: 184 | N95: 84% | O95: 84% | P95: 136 | Q95: 69% | R95: 36% | S95: 52 | T95: 62% | U95: 58% | V95: 14 | W95: 77% | X95: 76% | Y95: 35
A96: 264 | B96: MARNE ARDENNES | C96: 6 | D96: CHALONS EN CHAMPAGNE | E96: 551128 | F96: SAINTE MENEHOULD | G96: 3.3 | H96: 63% | I96: 39% | J96: 87 | K96: 36% | L96: 28% | M96: 42 | N96: 79% | O96: 79% | P96: 74 | Q96: 86% | R96: 53% | S96: 219 | T96: 72% | U96: 69% | V96: 56 | W96: 89% | X96: 87% | Y96: 207
A97: 30 | B97: BAS RHIN | C97: 5006 | D97: STRASBOURG | E97: 4027 | F97: SCHILTIGHEIM CENTRE | G97: 3.1 | H97: 63% | I97: 40% | J97: 88 | K97: 66% | L97: 59% | M97: 169 | N97: 70% | O97: 70% | P97: 30 | Q97: 66% | R97: 33% | S97: 35 | T97: 76% | U97: 72% | V97: 79 | W97: 85% | X97: 83% | Y97: 126
A98: 30 | B98: MOSELLE | C98: 45 | D98: METZ | E98: 557441 | F98: METZ PLAPPEVILLE | G98: 2.1 | H98: 63% | I98: 40% | J98: 89 | K98: 68% | L98: 61% | M98: 178 | N98: 83% | O98: 83% | P98: 124 | Q98: 43% | R98: 10% | S98: 2 | T98: 84% | U98: 80% | V98: 160 | W98: 84% | X98: 83% | Y98: 117
A99: 30 | B99: AUBE HAUTE MARNE | C99: 21 | D99: CHAUMONT | E99: 410541 | F99: LANGRES | G99: 8.2 | H99: 64% | I99: 40% | J99: 90 | K99: 42% | L99: 35% | M99: 68 | N99: 80% | O99: 80% | P99: 90 | Q99: 77% | R99: 44% | S99: 125 | T99: 77% | U99: 74% | V99: 94 | W99: 86% | X99: 85% | Y99: 147
A100: 30 | B100: VOSGES | C100: 57 | D100: EPINAL | E100: 588201 | F100: CHANTRAINE | G100: 3.6 | H100: 64% | I100: 40% | J100: 91 | K100: 48% | L100: 40% | M100: 89 | N100: 77% | O100: 77% | P100: 64 | Q100: 68% | R100: 35% | S100: 41 | T100: 85% | U100: 82% | V100: 183 | W100: 85% | X100: 84% | Y100: 132
A101: 30 | B101: MOSELLE | C101: 45 | D101: METZ | E101: 557612 | F101: SAINTE MARIE AUX CHENES | G101: 3.7 | H101: 64% | I101: 40% | J101: 92 | K101: 28% | L101: 21% | M101: 26 | N101: 96% | O101: 96% | P101: 232 | Q101: 65% | R101: 32% | S101: 29 | T101: 84% | U101: 81% | V101: 165 | W101: 90% | X101: 89% | Y101: 224
A102: 30 | B102: MOSELLE | C102: 44 | D102: MOSELLE NORD | E102: 457306 | F102: FLORANGE | G102: 4.9 | H102: 64% | I102: 40% | J102: 93 | K102: 77% | L102: 70% | M102: 230 | N102: 64% | O102: 64% | P102: 12 | Q102: 74% | R102: 41% | S102: 91 | T102: 77% | U102: 73% | V102: 93 | W102: 71% | X102: 70% | Y102: 15
A103: 30 | B103: VOSGES | C103: 57 | D103: EPINAL | E103: 588716 | F103: XERTIGNY | G103: 2.7 | H103: 64% | I103: 40% | J103: 94 | K103: 33% | L103: 26% | M103: 36 | N103: 89% | O103: 89% | P103: 193 | Q103: 75% | R103: 42% | S103: 107 | T103: 76% | U103: 73% | V103: 82 | W103: 89% | X103: 88% | Y103: 214
A104: 30 | B104: MARNE ARDENNES | C104: 11 | D104: REIMS | E104: 551314 | F104: FISMES | G104: 2.6 | H104: 64% | I104: 40% | J104: 95 | K104: 47% | L104: 40% | M104: 87 | N104: 72% | O104: 72% | P104: 42 | Q104: 80% | R104: 47% | S104: 155 | T104: 85% | U104: 81% | V104: 172 | W104: 81% | X104: 79% | Y104: 67
A105: 30 | B105: VOSGES | C105: 55 | D105: SAINT DIE | E105: 488326 | F105: GERARDMER | G105: 3.7 | H105: 64% | I105: 40% | J105: 96 | K105: 42% | L105: 35% | M105: 69 | N105: 85% | O105: 85% | P105: 153 | Q105: 69% | R105: 36% | S105: 50 | T105: 85% | U105: 81% | V105: 173 | W105: 83% | X105: 82% | Y105: 96
A106: 30 | B106: MARNE ARDENNES | C106: 11 | D106: REIMS | E106: 551306 | F106: REIMS SAINT MARCEAUX | G106: 4.5 | H106: 64% | I106: 40% | J106: 97 | K106: 56% | L106: 48% | M106: 125 | N106: 65% | O106: 65% | P106: 15 | Q106: 96% | R106: 63% | S106: 240 | T106: 72% | U106: 69% | V106: 59 | W106: 75% | X106: 74% | Y106: 26
A107: 30 | B107: MARNE ARDENNES | C107: 6 | D107: CHALONS EN CHAMPAGNE | E107: 451101 | F107: CHALONS VIVIERS | G107: 9.7 | H107: 64% | I107: 40% | J107: 98 | K107: 37% | L107: 29% | M107: 44 | N107: 83% | O107: 83% | P107: 114 | Q107: 84% | R107: 51% | S107: 197 | T107: 78% | U107: 74% | V107: 98 | W107: 84% | X107: 83% | Y107: 116
A108: 30 | B108: MEURTHE ET MOSELLE MEUSE | C108: 31 | D108: VERDUN | E108: 455151 | F108: BAR LE DUC | G108: 10.0 | H108: 64% | I108: 40% | J108: 99 | K108: 42% | L108: 35% | M108: 67 | N108: 82% | O108: 82% | P108: 108 | Q108: 77% | R108: 45% | S108: 130 | T108: 77% | U108: 74% | V108: 95 | W108: 86% | X108: 85% | Y108: 152
A109: 30 | B109: MEURTHE ET MOSELLE MEUSE | C109: 27 | D109: PONT A MOUSSON | E109: 554381 | F109: LAXOU ARISTIDE BRIAND | G109: 2.4 | H109: 64% | I109: 40% | J109: 100 | K109: 71% | L109: 64% | M109: 202 | N109: 67% | O109: 67% | P109: 21 | Q109: 86% | R109: 53% | S109: 213 | T109: 68% | U109: 65% | V109: 35 | W109: 73% | X109: 72% | Y109: 22
A110: 30 | B110: MOSELLE | C110: 42 | D110: MOSELLE EST | E110: 457617 | F110: SARREGUEMINES | G110: 7.1 | H110: 64% | I110: 40% | J110: 101 | K110: 56% | L110: 49% | M110: 127 | N110: 80% | O110: 80% | P110: 84 | Q110: 73% | R110: 40% | S110: 83 | T110: 76% | U110: 73% | V110: 84 | W110: 81% | X110: 79% | Y110: 65
A111: 30 | B111: MOSELLE | C111: 44 | D111: MOSELLE NORD | E111: 457158 | F111: YUTZ | G111: 4.3 | H111: 64% | I111: 40% | J111: 102 | K111: 66% | L111: 58% | M111: 167 | N111: 75% | O111: 75% | P111: 52 | Q111: 76% | R111: 43% | S111: 115 | T111: 66% | U111: 62% | V111: 24 | W111: 83% | X111: 82% | Y111: 101
A112: 30 | B112: HAUT RHIN | C112: 5130 | D112: COLMAR | E112: 4132 | F112: COLMAR MARAICHERS | G112: 3.7 | H112: 64% | I112: 40% | J112: 103 | K112: 44% | L112: 36% | M112: 74 | N112: 83% | O112: 83% | P112: 113 | Q112: 72% | R112: 40% | S112: 76 | T112: 77% | U112: 73% | V112: 87 | W112: 91% | X112: 89% | Y112: 229
A113: 30 | B113: VOSGES | C113: 55 | D113: SAINT DIE | E113: 588551 | F113: RAMBERVILLERS | G113: 2.6 | H113: 64% | I113: 40% | J113: 104 | K113: 32% | L113: 24% | M113: 33 | N113: 91% | O113: 91% | P113: 208 | Q113: 73% | R113: 40% | S113: 85 | T113: 94% | U113: 91% | V113: 231 | W113: 77% | X113: 75% | Y113: 33
A114: 30 | B114: MEURTHE ET MOSELLE MEUSE | C114: 27 | D114: PONT A MOUSSON | E114: 554376 | F114: LAXOU BOUFFLERS | G114: 3.1 | H114: 64% | I114: 41% | J114: 105 | K114: 80% | L114: 73% | M114: 240 | N114: 65% | O114: 65% | P114: 14 | Q114: 83% | R114: 51% | S114: 189 | T114: 73% | U114: 70% | V114: 63 | W114: 65% | X114: 64% | Y114: 9
A115: 30 | B115: VOSGES | C115: 57 | D115: EPINAL | E115: 588396 | F115: LE VAL D AJOL | G115: 2.6 | H115: 64% | I115: 41% | J115: 106 | K115: 30% | L115: 22% | M115: 28 | N115: 87% | O115: 87% | P115: 169 | Q115: 82% | R115: 49% | S115: 177 | T115: 80% | U115: 77% | V115: 125 | W115: 89% | X115: 87% | Y115: 208
A116: 30 | B116: BAS RHIN | C116: 5101 | D116: SELESTAT | E116: 4126 | F116: MUTZIG | G116: 2.7 | H116: 65% | I116: 41% | J116: 107 | K116: 63% | L116: 55% | M116: 153 | N116: 70% | O116: 70% | P116: 28 | Q116: 65% | R116: 32% | S116: 28 | T116: 86% | U116: 83% | V116: 190 | W116: 86% | X116: 84% | Y116: 138
A117: 30 | B117: MOSELLE | C117: 44 | D117: MOSELLE NORD | E117: 457192 | F117: CATTENOM | G117: 1.6 | H117: 65% | I117: 41% | J117: 108 | K117: 61% | L117: 54% | M117: 149 | N117: 76% | O117: 76% | P117: 62 | Q117: 77% | R117: 44% | S117: 123 | T117: 76% | U117: 72% | V117: 81 | W117: 79% | X117: 77% | Y117: 47
A118: 30 | B118: BAS RHIN | C118: 5060 | D118: HAGUENAU | E118: 4057 | F118: BISCHWILLER | G118: 7.1 | H118: 65% | I118: 41% | J118: 109 | K118: 45% | L118: 38% | M118: 79 | N118: 76% | O118: 76% | P118: 56 | Q118: 80% | R118: 47% | S118: 160 | T118: 77% | U118: 73% | V118: 92 | W118: 91% | X118: 90% | Y118: 230
A119: 30 | B119: MOSELLE | C119: 44 | D119: MOSELLE NORD | E119: 557347 | F119: GUENANGE | G119: 4.6 | H119: 65% | I119: 41% | J119: 110 | K119: 70% | L119: 63% | M119: 193 | N119: 68% | O119: 68% | P119: 23 | Q119: 84% | R119: 51% | S119: 198 | T119: 72% | U119: 69% | V119: 58 | W119: 76% | X119: 74% | Y119: 29
A120: 30 | B120: VOSGES | C120: 57 | D120: EPINAL | E120: 588631 | F120: THAON LES VOSGES | G120: 4.0 | H120: 65% | I120: 41% | J120: 111 | K120: 59% | L120: 51% | M120: 136 | N120: 79% | O120: 79% | P120: 78 | Q120: 83% | R120: 50% | S120: 182 | T120: 69% | U120: 65% | V120: 39 | W120: 82% | X120: 80% | Y120: 80
A121: 30 | B121: MARNE ARDENNES | C121: 2 | D121: CHARLEVILLE MEZIERES | E121: 408822 | F121: CHARLEVILLE MEZIERES | G121: 5.3 | H121: 65% | I121: 41% | J121: 112 | K121: 73% | L121: 66% | M121: 209 | N121: 86% | O121: 86% | P121: 162 | Q121: 62% | R121: 29% | S121: 22 | T121: 72% | U121: 69% | V121: 57 | W121: 78% | X121: 76% | Y121: 36
A122: 30 | B122: BAS RHIN | C122: 5006 | D122: STRASBOURG | E122: 4054 | F122: STRASBOURG MONTAGNE VERTE | G122: 2.6 | H122: 65% | I122: 41% | J122: 113 | K122: 62% | L122: 54% | M122: 150 | N122: 76% | O122: 76% | P122: 57 | Q122: 74% | R122: 41% | S122: 95 | T122: 71% | U122: 67% | V122: 49 | W122: 89% | X122: 87% | Y122: 203
A123: 30 | B123: MOSELLE | C123: 45 | D123: METZ | E123: 557444 | F123: SAINT JULIEN LES METZ | G123: 3.7 | H123: 65% | I123: 41% | J123: 114 | K123: 79% | L123: 71% | M123: 235 | N123: 74% | O123: 74% | P123: 50 | Q123: 65% | R123: 32% | S123: 34 | T123: 73% | U123: 70% | V123: 64 | W123: 81% | X123: 79% | Y123: 68
A124: 30 | B124: MARNE ARDENNES | C124: 6 | D124: CHALONS EN CHAMPAGNE | E124: 451381 | F124: SEZANNE | G124: 5.3 | H124: 65% | I124: 42% | J124: 115 | K124: 48% | L124: 41% | M124: 91 | N124: 83% | O124: 83% | P124: 118 | Q124: 69% | R124: 36% | S124: 44 | T124: 89% | U124: 86% | V124: 210 | W124: 84% | X124: 82% | Y124: 103
A125: 30 | B125: MOSELLE | C125: 42 | D125: MOSELLE EST | E125: 557503 | F125: NEUNKIRCH | G125: 3.5 | H125: 65% | I125: 42% | J125: 116 | K125: 15% | L125: 7% | M125: 6 | N125: 93% | O125: 93% | P125: 218 | Q125: 85% | R125: 52% | S125: 207 | T125: 92% | U125: 89% | V125: 222 | W125: 88% | X125: 86% | Y125: 190
A126: 30 | B126: MEURTHE ET MOSELLE MEUSE | C126: 31 | D126: VERDUN | E126: 554700 | F126: VILLERUPT | G126: 2.8 | H126: 66% | I126: 42% | J126: 117 | K126: 38% | L126: 30% | M126: 50 | N126: 82% | O126: 82% | P126: 105 | Q126: 82% | R126: 49% | S126: 171 | T126: 83% | U126: 80% | V126: 157 | W126: 89% | X126: 87% | Y126: 204
A127: 30 | B127: MEURTHE ET MOSELLE MEUSE | C127: 27 | D127: PONT A MOUSSON | E127: 454535 | F127: PONT A MOUSSON CENTRALE | G127: 5.5 | H127: 66% | I127: 42% | J127: 118 | K127: 77% | L127: 70% | M127: 231 | N127: 72% | O127: 72% | P127: 43 | Q127: 76% | R127: 43% | S127: 117 | T127: 75% | U127: 72% | V127: 73 | W127: 73% | X127: 72% | Y127: 23
A128: 30 | B128: AUBE HAUTE MARNE | C128: 14 | D128: TROYES | E128: 510513 | F128: TROYES 1ER MAI | G128: 2.2 | H128: 66% | I128: 42% | J128: 119 | K128: 75% | L128: 68% | M128: 221 | N128: 79% | O128: 79% | P128: 73 | Q128: 72% | R128: 40% | S128: 75 | T128: 64% | U128: 61% | V128: 17 | W128: 84% | X128: 83% | Y128: 115
A129: 30 | B129: MEURTHE ET MOSELLE MEUSE | C129: 27 | D129: PONT A MOUSSON | E129: 454651 | F129: TOUL | G129: 9.7 | H129: 66% | I129: 42% | J129: 120 | K129: 70% | L129: 63% | M129: 197 | N129: 83% | O129: 83% | P129: 116 | Q129: 73% | R129: 40% | S129: 86 | T129: 73% | U129: 70% | V129: 65 | W129: 76% | X129: 74% | Y129: 28
A130: 30 | B130: BAS RHIN | C130: 5060 | D130: HAGUENAU | E130: 4041 | F130: HOERDT | G130: 1.6 | H130: 66% | I130: 42% | J130: 121 | K130: 56% | L130: 48% | M130: 121 | N130: 85% | O130: 85% | P130: 148 | Q130: 60% | R130: 27% | S130: 15 | T130: 88% | U130: 84% | V130: 201 | W130: 87% | X130: 85% | Y130: 166
A131: 30 | B131: BAS RHIN | C131: 5006 | D131: STRASBOURG | E131: 4020 | F131: STRASBOURG ROBERTSAU | G131: 5.3 | H131: 66% | I131: 42% | J131: 122 | K131: 65% | L131: 57% | M131: 158 | N131: 89% | O131: 89% | P131: 188 | Q131: 47% | R131: 14% | S131: 3 | T131: 86% | U131: 82% | V131: 185 | W131: 90% | X131: 88% | Y131: 221
A132: 30 | B132: MEURTHE ET MOSELLE MEUSE | C132: 31 | D132: VERDUN | E132: 555406 | F132: LIGNY EN BARROIS | G132: 2.5 | H132: 66% | I132: 42% | J132: 123 | K132: 48% | L132: 41% | M132: 90 | N132: 80% | O132: 80% | P132: 82 | Q132: 68% | R132: 36% | S132: 43 | T132: 91% | U132: 87% | V132: 216 | W132: 89% | X132: 87% | Y132: 209
A133: 30 | B133: MEURTHE ET MOSELLE MEUSE | C133: 27 | D133: PONT A MOUSSON | E133: 554686 | F133: VEZELISE | G133: 1.9 | H133: 66% | I133: 43% | J133: 124 | K133: 51% | L133: 43% | M133: 104 | N133: 80% | O133: 80% | P133: 85 | Q133: 72% | R133: 39% | S133: 72 | T133: 86% | U133: 83% | V133: 189 | W133: 89% | X133: 87% | Y133: 205
A134: 30 | B134: BAS RHIN | C134: 5060 | D134: HAGUENAU | E134: 4085 | F134: INGWILLER | G134: 3.4 | H134: 66% | I134: 43% | J134: 125 | K134: 49% | L134: 42% | M134: 96 | N134: 84% | O134: 84% | P134: 131 | Q134: 78% | R134: 45% | S134: 131 | T134: 82% | U134: 78% | V134: 134 | W134: 85% | X134: 84% | Y134: 137
A135: 30 | B135: HAUT RHIN | C135: 5130 | D135: COLMAR | E135: 4157 | F135: NEUF BRISACH | G135: 3.3 | H135: 67% | I135: 43% | J135: 126 | K135: 56% | L135: 48% | M135: 124 | N135: 90% | O135: 90% | P135: 199 | Q135: 71% | R135: 38% | S135: 67 | T135: 74% | U135: 70% | V135: 66 | W135: 88% | X135: 87% | Y135: 191
A136: 110 | B136: MEURTHE ET MOSELLE MEUSE | C136: 26 | D136: NANCY | E136: 554116 | F136: BACCARAT | G136: 2.8 | H136: 67% | I136: 43% | J136: 127 | K136: 37% | L136: 30% | M136: 48 | N136: 79% | O136: 79% | P136: 79 | Q136: 85% | R136: 52% | S136: 211 | T136: 89% | U136: 85% | V136: 209 | W136: 88% | X136: 86% | Y136: 183
A137: 110 | B137: BAS RHIN | C137: 5006 | D137: STRASBOURG | E137: 4019 | F137: STRASBOURG ANVERS | G137: 4.6 | H137: 67% | I137: 43% | J137: 128 | K137: 69% | L137: 62% | M137: 189 | N137: 74% | O137: 74% | P137: 49 | Q137: 79% | R137: 46% | S137: 148 | T137: 78% | U137: 74% | V137: 97 | W137: 80% | X137: 79% | Y137: 62
A138: 110 | B138: VOSGES | C138: 57 | D138: EPINAL | E138: 488281 | F138: ELOYES | G138: 3.1 | H138: 67% | I138: 43% | J138: 129 | K138: 50% | L138: 42% | M138: 98 | N138: 90% | O138: 90% | P138: 194 | Q138: 65% | R138: 32% | S138: 30 | T138: 87% | U138: 84% | V138: 198 | W138: 89% | X138: 87% | Y138: 206
A139: 110 | B139: MEURTHE ET MOSELLE MEUSE | C139: 26 | D139: NANCY | E139: 554486 | F139: NANCY POINT CENTRAL | G139: 2.7 | H139: 67% | I139: 43% | J139: 130 | K139: 69% | L139: 61% | M139: 182 | N139: 86% | O139: 86% | P139: 167 | Q139: 62% | R139: 29% | S139: 18 | T139: 82% | U139: 78% | V139: 133 | W139: 82% | X139: 81% | Y139: 90
A140: 110 | B140: MEURTHE ET MOSELLE MEUSE | C140: 31 | D140: VERDUN | E140: 455298 | F140: ETAIN | G140: 0.9 | H140: 67% | I140: 43% | J140: 131 | K140: 58% | L140: 50% | M140: 132 | N140: 87% | O140: 87% | P140: 173 | Q140: 82% | R140: 49% | S140: 176 | T140: 74% | U140: 70% | V140: 69 | W140: 80% | X140: 79% | Y140: 60
A141: 110 | B141: BAS RHIN | C141: 5101 | D141: SELESTAT | E141: 4107 | F141: VILLE | G141: 2.0 | H141: 67% | I141: 44% | J141: 132 | K141: 77% | L141: 69% | M141: 225 | N141: 68% | O141: 68% | P141: 22 | Q141: 64% | R141: 32% | S141: 26 | T141: 82% | U141: 78% | V141: 135 | W141: 91% | X141: 90% | Y141: 234
A142: 110 | B142: MEURTHE ET MOSELLE MEUSE | C142: 27 | D142: PONT A MOUSSON | E142: 554416 | F142: LUDRES | G142: 3.7 | H142: 67% | I142: 44% | J142: 133 | K142: 44% | L142: 36% | M142: 75 | N142: 84% | O142: 84% | P142: 130 | Q142: 87% | R142: 54% | S142: 224 | T142: 84% | U142: 81% | V142: 168 | W142: 83% | X142: 82% | Y142: 99
A143: 110 | B143: MEURTHE ET MOSELLE MEUSE | C143: 31 | D143: VERDUN | E143: 554412 | F143: LONGUYON | G143: 2.9 | H143: 67% | I143: 44% | J143: 134 | K143: 47% | L143: 39% | M143: 86 | N143: 82% | O143: 82% | P143: 111 | Q143: 81% | R143: 48% | S143: 164 | T143: 85% | U143: 81% | V143: 176 | W143: 88% | X143: 86% | Y143: 188
A144: 110 | B144: MARNE ARDENNES | C144: 2 | D144: CHARLEVILLE MEZIERES | E144: 408806 | F144: SEDAN | G144: 7.7 | H144: 67% | I144: 44% | J144: 135 | K144: 46% | L144: 38% | M144: 80 | N144: 86% | O144: 86% | P144: 160 | Q144: 79% | R144: 46% | S144: 149 | T144: 89% | U144: 85% | V144: 207 | W144: 83% | X144: 81% | Y144: 94
A145: 110 | B145: AUBE HAUTE MARNE | C145: 21 | D145: CHAUMONT | E145: 410566 | F145: CHAUMONT HOTEL DE VILLE | G145: 10.4 | H145: 67% | I145: 44% | J145: 136 | K145: 52% | L145: 45% | M145: 107 | N145: 87% | O145: 87% | P145: 171 | Q145: 70% | R145: 37% | S145: 64 | T145: 86% | U145: 83% | V145: 191 | W145: 87% | X145: 86% | Y145: 171
A146: 110 | B146: MOSELLE | C146: 42 | D146: MOSELLE EST | E146: 457614 | F146: SARREBOURG | G146: 8.6 | H146: 68% | I146: 44% | J146: 137 | K146: 55% | L146: 48% | M146: 118 | N146: 85% | O146: 85% | P146: 145 | Q146: 78% | R146: 45% | S146: 135 | T146: 78% | U146: 74% | V146: 102 | W146: 88% | X146: 86% | Y146: 186
A147: 110 | B147: AUBE HAUTE MARNE | C147: 21 | D147: CHAUMONT | E147: 451156 | F147: SAINT DIZIER CENTRE | G147: 8.5 | H147: 68% | I147: 44% | J147: 138 | K147: 59% | L147: 51% | M147: 137 | N147: 84% | O147: 84% | P147: 129 | Q147: 79% | R147: 46% | S147: 145 | T147: 78% | U147: 74% | V147: 100 | W147: 85% | X147: 84% | Y147: 133
A148: 110 | B148: BAS RHIN | C148: 5101 | D148: SELESTAT | E148: 4007 | F148: ILLKIRCH CENTRE | G148: 6.5 | H148: 68% | I148: 44% | J148: 139 | K148: 70% | L148: 62% | M148: 192 | N148: 84% | O148: 84% | P148: 126 | Q148: 78% | R148: 45% | S148: 140 | T148: 67% | U148: 63% | V148: 28 | W148: 87% | X148: 85% | Y148: 164
A149: 110 | B149: MARNE ARDENNES | C149: 11 | D149: REIMS | E149: 551369 | F149: DAMERY | G149: 1.9 | H149: 68% | I149: 44% | J149: 140 | K149: 66% | L149: 58% | M149: 165 | N149: 70% | O149: 70% | P149: 31 | Q149: 86% | R149: 53% | S149: 216 | T149: 84% | U149: 81% | V149: 166 | W149: 79% | X149: 78% | Y149: 54
A150: 110 | B150: MOSELLE | C150: 45 | D150: METZ | E150: 557432 | F150: MAIZIERES LES METZ | G150: 2.8 | H150: 68% | I150: 44% | J150: 141 | K150: 69% | L150: 61% | M150: 183 | N150: 82% | O150: 82% | P150: 107 | Q150: 76% | R150: 43% | S150: 114 | T150: 83% | U150: 79% | V150: 153 | W150: 76% | X150: 75% | Y150: 31
A151: 110 | B151: MOSELLE | C151: 45 | D151: METZ | E151: 557440 | F151: METZ MOZART | G151: 2.7 | H151: 68% | I151: 44% | J151: 142 | K151: 64% | L151: 57% | M151: 156 | N151: 84% | O151: 84% | P151: 140 | Q151: 76% | R151: 43% | S151: 113 | T151: 77% | U151: 73% | V151: 91 | W151: 85% | X151: 83% | Y151: 122
A152: 110 | B152: VOSGES | C152: 57 | D152: EPINAL | E152: 488286 | F152: EPINAL ARISTIDE BRIAND | G152: 8.0 | H152: 68% | I152: 45% | J152: 143 | K152: 69% | L152: 62% | M152: 187 | N152: 80% | O152: 80% | P152: 91 | Q152: 69% | R152: 36% | S152: 51 | T152: 82% | U152: 79% | V152: 140 | W152: 86% | X152: 85% | Y152: 154
A153: 110 | B153: BAS RHIN | C153: 5006 | D153: STRASBOURG | E153: 4039 | F153: REICHSTETT | G153: 1.6 | H153: 68% | I153: 45% | J153: 144 | K153: 65% | L153: 57% | M153: 159 | N153: 89% | O153: 89% | P153: 187 | Q153: 69% | R153: 36% | S153: 54 | T153: 79% | U153: 76% | V153: 112 | W153: 85% | X153: 84% | Y153: 134
A154: 110 | B154: MOSELLE | C154: 45 | D154: METZ | E154: 557436 | F154: METZ CATHEDRALE | G154: 3.5 | H154: 68% | I154: 45% | J154: 145 | K154: 79% | L154: 71% | M154: 236 | N154: 83% | O154: 83% | P154: 112 | Q154: 65% | R154: 32% | S154: 33 | T154: 75% | U154: 72% | V154: 72 | W154: 86% | X154: 85% | Y154: 146
A155: 110 | B155: MEURTHE ET MOSELLE MEUSE | C155: 26 | D155: NANCY | E155: 554266 | F155: DOMBASLE SUR MEURTHE | G155: 3.2 | H155: 68% | I155: 45% | J155: 146 | K155: 69% | L155: 61% | M155: 181 | N155: 97% | O155: 97% | P155: 238 | Q155: 58% | R155: 25% | S155: 9 | T155: 82% | U155: 79% | V155: 143 | W155: 82% | X155: 81% | Y155: 89
A156: 110 | B156: MEURTHE ET MOSELLE MEUSE | C156: 27 | D156: PONT A MOUSSON | E156: 554196 | F156: CHAMPIGNEULLES | G156: 2.4 | H156: 69% | I156: 45% | J156: 147 | K156: 70% | L156: 63% | M156: 196 | N156: 88% | O156: 88% | P156: 179 | Q156: 76% | R156: 43% | S156: 109 | T156: 71% | U156: 67% | V156: 45 | W156: 84% | X156: 82% | Y156: 105
A157: 110 | B157: MEURTHE ET MOSELLE MEUSE | C157: 26 | D157: NANCY | E157: 454426 | F157: LUNEVILLE CARNOT | G157: 7.6 | H157: 69% | I157: 45% | J157: 148 | K157: 74% | L157: 67% | M157: 216 | N157: 81% | O157: 81% | P157: 98 | Q157: 69% | R157: 36% | S157: 47 | T157: 85% | U157: 81% | V157: 175 | W157: 79% | X157: 78% | Y157: 57
A158: 110 | B158: HAUT RHIN | C158: 5169 | D158: MULHOUSE | E158: 4178 | F158: SAINT LOUIS | G158: 6.4 | H158: 69% | I158: 45% | J158: 149 | K158: 68% | L158: 60% | M158: 176 | N158: 86% | O158: 86% | P158: 163 | Q158: 68% | R158: 35% | S158: 40 | T158: 79% | U158: 75% | V158: 109 | W158: 88% | X158: 87% | Y158: 195
A159: 110 | B159: BAS RHIN | C159: 5101 | D159: SELESTAT | E159: 4121 | F159: SCHIRMECK | G159: 2.8 | H159: 69% | I159: 45% | J159: 150 | K159: 54% | L159: 47% | M159: 116 | N159: 78% | O159: 78% | P159: 71 | Q159: 87% | R159: 55% | S159: 226 | T159: 87% | U159: 83% | V159: 193 | W159: 82% | X159: 80% | Y159: 82
A160: 110 | B160: VOSGES | C160: 55 | D160: SAINT DIE | E160: 588316 | F160: FRAIZE | G160: 3.6 | H160: 69% | I160: 45% | J160: 151 | K160: 59% | L160: 51% | M160: 138 | N160: 92% | O160: 92% | P160: 213 | Q160: 77% | R160: 44% | S160: 122 | T160: 75% | U160: 72% | V160: 74 | W160: 86% | X160: 84% | Y160: 141
A161: 110 | B161: AUBE HAUTE MARNE | C161: 14 | D161: TROYES | E161: 410550 | F161: BAR SUR AUBE | G161: 4.8 | H161: 69% | I161: 45% | J161: 152 | K161: 43% | L161: 35% | M161: 70 | N161: 90% | O161: 90% | P161: 200 | Q161: 85% | R161: 52% | S161: 206 | T161: 84% | U161: 81% | V161: 164 | W161: 87% | X161: 86% | Y161: 172
A162: 110 | B162: MOSELLE | C162: 42 | D162: MOSELLE EST | E162: 457258 | F162: DIEUZE | G162: 3.1 | H162: 69% | I162: 45% | J162: 153 | K162: 41% | L162: 33% | M162: 62 | N162: 87% | O162: 87% | P162: 174 | Q162: 81% | R162: 49% | S162: 169 | T162: 88% | U162: 84% | V162: 202 | W162: 91% | X162: 90% | Y162: 236
A163: 110 | B163: MARNE ARDENNES | C163: 11 | D163: REIMS | E163: 551310 | F163: REIMS CHATILLONS | G163: 4.0 | H163: 69% | I163: 45% | J163: 154 | K163: 66% | L163: 58% | M163: 166 | N163: 82% | O163: 82% | P163: 104 | Q163: 75% | R163: 42% | S163: 100 | T163: 83% | U163: 79% | V163: 147 | W163: 84% | X163: 82% | Y163: 109
A164: 110 | B164: MEURTHE ET MOSELLE MEUSE | C164: 27 | D164: PONT A MOUSSON | E164: 554496 | F164: NANCY TROIS MAISONS | G164: 2.1 | H164: 69% | I164: 45% | J164: 155 | K164: 73% | L164: 66% | M164: 208 | N164: 83% | O164: 83% | P164: 121 | Q164: 78% | R164: 45% | S164: 136 | T164: 73% | U164: 70% | V164: 62 | W164: 82% | X164: 80% | Y164: 77
A165: 110 | B165: MEURTHE ET MOSELLE MEUSE | C165: 31 | D165: VERDUN | E165: 455566 | F165: REVIGNY SUR ORNAIN | G165: 2.7 | H165: 69% | I165: 45% | J165: 156 | K165: 52% | L165: 44% | M165: 105 | N165: 86% | O165: 86% | P165: 158 | Q165: 79% | R165: 47% | S165: 153 | T165: 84% | U165: 81% | V165: 167 | W165: 88% | X165: 87% | Y165: 192
A166: 110 | B166: MEURTHE ET MOSELLE MEUSE | C166: 26 | D166: NANCY | E166: 554296 | F166: ESSEY LES NANCY | G166: 3.6 | H166: 69% | I166: 45% | J166: 157 | K166: 46% | L166: 38% | M166: 81 | N166: 86% | O166: 86% | P166: 164 | Q166: 84% | R166: 51% | S166: 192 | T166: 88% | U166: 84% | V166: 203 | W166: 87% | X166: 85% | Y166: 158
A167: 110 | B167: BAS RHIN | C167: 5006 | D167: STRASBOURG | E167: 4023 | F167: STRASBOURG VOSGES | G167: 2.7 | H167: 69% | I167: 45% | J167: 158 | K167: 75% | L167: 68% | M167: 222 | N167: 84% | O167: 84% | P167: 134 | Q167: 65% | R167: 32% | S167: 27 | T167: 83% | U167: 79% | V167: 148 | W167: 84% | X167: 83% | Y167: 114
A168: 110 | B168: MOSELLE | C168: 42 | D168: MOSELLE EST | E168: 457435 | F168: MERLEBACH | G168: 2.6 | H168: 69% | I168: 45% | J168: 159 | K168: 63% | L168: 55% | M168: 154 | N168: 87% | O168: 87% | P168: 172 | Q168: 81% | R168: 48% | S168: 167 | T168: 75% | U168: 72% | V168: 75 | W168: 85% | X168: 83% | Y168: 119
A169: 110 | B169: VOSGES | C169: 55 | D169: SAINT DIE | E169: 588461 | F169: MOYENMOUTIER | G169: 4.9 | H169: 69% | I169: 45% | J169: 160 | K169: 56% | L169: 48% | M169: 122 | N169: 80% | O169: 80% | P169: 88 | Q169: 81% | R169: 48% | S169: 165 | T169: 84% | U169: 80% | V169: 162 | W169: 90% | X169: 89% | Y169: 225
A170: 110 | B170: MOSELLE | C170: 45 | D170: METZ | E170: 557559 | F170: REMILLY | G170: 3.4 | H170: 69% | I170: 45% | J170: 161 | K170: 61% | L170: 53% | M170: 143 | N170: 88% | O170: 88% | P170: 181 | Q170: 77% | R170: 45% | S170: 129 | T170: 83% | U170: 80% | V170: 154 | W170: 81% | X170: 80% | Y170: 75
A171: 110 | B171: MEURTHE ET MOSELLE MEUSE | C171: 27 | D171: PONT A MOUSSON | E171: 554357 | F171: JOEUF | G171: 3.3 | H171: 69% | I171: 45% | J171: 162 | K171: 50% | L171: 42% | M171: 100 | N171: 87% | O171: 87% | P171: 170 | Q171: 84% | R171: 51% | S171: 200 | T171: 86% | U171: 82% | V171: 188 | W171: 85% | X171: 84% | Y171: 128
A172: 110 | B172: MOSELLE | C172: 45 | D172: METZ | E172: 557445 | F172: METZ SAINT LIVIER | G172: 2.7 | H172: 69% | I172: 45% | J172: 163 | K172: 22% | L172: 14% | M172: 15 | N172: 96% | O172: 96% | P172: 236 | Q172: 85% | R172: 52% | S172: 209 | T172: 98% | U172: 94% | V172: 241 | W172: 91% | X172: 90% | Y172: 233
A173: 110 | B173: MARNE ARDENNES | C173: 11 | D173: REIMS | E173: 451336 | F173: TINQUEUX | G173: 4.5 | H173: 69% | I173: 45% | J173: 164 | K173: 54% | L173: 46% | M173: 114 | N173: 81% | O173: 81% | P173: 100 | Q173: 95% | R173: 63% | S173: 238 | T173: 83% | U173: 79% | V173: 145 | W173: 79% | X173: 77% | Y173: 52
A174: 110 | B174: MEURTHE ET MOSELLE MEUSE | C174: 27 | D174: PONT A MOUSSON | E174: 554257 | F174: DIEULOUARD | G174: 2.7 | H174: 69% | I174: 46% | J174: 165 | K174: 53% | L174: 46% | M174: 111 | N174: 86% | O174: 86% | P174: 168 | Q174: 72% | R174: 39% | S174: 73 | T174: 87% | U174: 83% | V174: 194 | W174: 94% | X174: 92% | Y174: 247
A175: 110 | B175: MOSELLE | C175: 45 | D175: METZ | E175: 557712 | F175: WOIPPY | G175: 4.2 | H175: 69% | I175: 46% | J175: 166 | K175: 69% | L175: 62% | M175: 188 | N175: 81% | O175: 81% | P175: 94 | Q175: 79% | R175: 47% | S175: 154 | T175: 77% | U175: 73% | V175: 88 | W175: 86% | X175: 84% | Y175: 145
A176: 110 | B176: BAS RHIN | C176: 5101 | D176: SELESTAT | E176: 4109 | F176: MARCKOLSHEIM | G176: 2.7 | H176: 70% | I176: 46% | J176: 167 | K176: 57% | L176: 50% | M176: 131 | N176: 81% | O176: 81% | P176: 95 | Q176: 85% | R176: 52% | S176: 210 | T176: 83% | U176: 79% | V176: 146 | W176: 87% | X176: 86% | Y176: 176
A177: 110 | B177: VOSGES | C177: 55 | D177: SAINT DIE | E177: 488586 | F177: SAINT DIE | G177: 11.2 | H177: 70% | I177: 46% | J177: 168 | K177: 40% | L177: 32% | M177: 60 | N177: 90% | O177: 90% | P177: 202 | Q177: 82% | R177: 49% | S177: 172 | T177: 92% | U177: 89% | V177: 224 | W177: 90% | X177: 88% | Y177: 218
A178: 110 | B178: HAUT RHIN | C178: 5130 | D178: COLMAR | E178: 4130 | F178: COLMAR REPUBLIQUE | G178: 6.4 | H178: 70% | I178: 46% | J178: 169 | K178: 70% | L178: 62% | M178: 191 | N178: 86% | O178: 86% | P178: 155 | Q178: 81% | R178: 48% | S178: 163 | T178: 71% | U178: 67% | V178: 48 | W178: 87% | X178: 86% | Y178: 174
A179: 110 | B179: VOSGES | C179: 57 | D179: EPINAL | E179: 488451 | F179: MIRECOURT | G179: 3.8 | H179: 70% | I179: 46% | J179: 170 | K179: 39% | L179: 31% | M179: 56 | N179: 91% | O179: 91% | P179: 207 | Q179: 84% | R179: 51% | S179: 195 | T179: 94% | U179: 90% | V179: 228 | W179: 88% | X179: 86% | Y179: 189
A180: 110 | B180: BAS RHIN | C180: 5101 | D180: SELESTAT | E180: 4101 | F180: SELESTAT CENTRE | G180: 7.4 | H180: 70% | I180: 46% | J180: 171 | K180: 70% | L180: 62% | M180: 190 | N180: 78% | O180: 78% | P180: 68 | Q180: 82% | R180: 49% | S180: 178 | T180: 80% | U180: 76% | V180: 117 | W180: 85% | X180: 84% | Y180: 136
A181: 110 | B181: HAUT RHIN | C181: 5169 | D181: MULHOUSE | E181: 4180 | F181: RIEDISHEIM | G181: 3.3 | H181: 70% | I181: 46% | J181: 172 | K181: 55% | L181: 48% | M181: 119 | N181: 85% | O181: 85% | P181: 151 | Q181: 86% | R181: 53% | S181: 215 | T181: 80% | U181: 77% | V181: 120 | W181: 88% | X181: 87% | Y181: 199
A182: 160 | B182: MEURTHE ET MOSELLE MEUSE | C182: 26 | D182: NANCY | E182: 554166 | F182: BLAINVILLE | G182: 2.5 | H182: 70% | I182: 46% | J182: 173 | K182: 67% | L182: 60% | M182: 171 | N182: 83% | O182: 83% | P182: 117 | Q182: 80% | R182: 47% | S182: 158 | T182: 80% | U182: 77% | V182: 124 | W182: 85% | X182: 83% | Y182: 125
A183: 160 | B183: AUBE HAUTE MARNE | C183: 14 | D183: TROYES | E183: 510523 | F183: LA CHAPELLE ST LUC | G183: 4.2 | H183: 70% | I183: 46% | J183: 174 | K183: 78% | L183: 70% | M183: 232 | N183: 89% | O183: 89% | P183: 190 | Q183: 74% | R183: 41% | S183: 90 | T183: 70% | U183: 67% | V183: 43 | W183: 85% | X183: 84% | Y183: 130
A184: 160 | B184: MARNE ARDENNES | C184: 2 | D184: CHARLEVILLE MEZIERES | E184: 508815 | F184: CARIGNAN | G184: 2.7 | H184: 70% | I184: 47% | J184: 175 | K184: 56% | L184: 48% | M184: 123 | N184: 83% | O184: 83% | P184: 123 | Q184: 77% | R184: 44% | S184: 128 | T184: 94% | U184: 90% | V184: 230 | W184: 87% | X184: 86% | Y184: 181
A185: 160 | B185: MOSELLE | C185: 45 | D185: METZ | E185: 557459 | F185: MOULINS LES METZ | G185: 2.4 | H185: 70% | I185: 47% | J185: 176 | K185: 37% | L185: 30% | M185: 49 | N185: 95% | O185: 95% | P185: 231 | Q185: 88% | R185: 56% | S185: 227 | T185: 86% | U185: 82% | V185: 187 | W185: 90% | X185: 88% | Y185: 222
A186: 160 | B186: MARNE ARDENNES | C186: 11 | D186: REIMS | E186: 551309 | F186: REIMS EUROPE | G186: 2.9 | H186: 70% | I186: 47% | J186: 177 | K186: 53% | L186: 45% | M186: 108 | N186: 93% | O186: 93% | P186: 220 | Q186: 83% | R186: 50% | S186: 181 | T186: 83% | U186: 79% | V186: 152 | W186: 86% | X186: 84% | Y186: 144
A187: 160 | B187: MEURTHE ET MOSELLE MEUSE | C187: 31 | D187: VERDUN | E187: 455456 | F187: MONTMEDY | G187: 1.5 | H187: 70% | I187: 47% | J187: 178 | K187: 71% | L187: 63% | M187: 200 | N187: 84% | O187: 84% | P187: 127 | Q187: 58% | R187: 25% | S187: 10 | T187: 98% | U187: 94% | V187: 242 | W187: 87% | X187: 85% | Y187: 169
A188: 160 | B188: BAS RHIN | C188: 5060 | D188: HAGUENAU | E188: 4060 | F188: HAGUENAU HOUBLON | G188: 8.4 | H188: 70% | I188: 47% | J188: 179 | K188: 68% | L188: 60% | M188: 174 | N188: 86% | O188: 86% | P188: 156 | Q188: 75% | R188: 42% | S188: 101 | T188: 81% | U188: 78% | V188: 132 | W188: 88% | X188: 87% | Y188: 197
A189: 160 | B189: MOSELLE | C189: 45 | D189: METZ | E189: 557433 | F189: MARANGE SILVANGE | G189: 2.9 | H189: 70% | I189: 47% | J189: 180 | K189: 73% | L189: 66% | M189: 211 | N189: 85% | O189: 85% | P189: 149 | Q189: 75% | R189: 43% | S189: 108 | T189: 81% | U189: 77% | V189: 126 | W189: 83% | X189: 82% | Y189: 97
A190: 160 | B190: VOSGES | C190: 57 | D190: EPINAL | E190: 588501 | F190: NEUFCHATEAU | G190: 5.6 | H190: 71% | I190: 47% | J190: 181 | K190: 54% | L190: 46% | M190: 113 | N190: 94% | O190: 94% | P190: 227 | Q190: 77% | R190: 44% | S190: 127 | T190: 84% | U190: 80% | V190: 159 | W190: 90% | X190: 89% | Y190: 223
A191: 160 | B191: MOSELLE | C191: 44 | D191: MOSELLE NORD | E191: 557307 | F191: FONTOY | G191: 1.8 | H191: 71% | I191: 47% | J191: 182 | K191: 57% | L191: 49% | M191: 129 | N191: 90% | O191: 90% | P191: 197 | Q191: 76% | R191: 43% | S191: 116 | T191: 95% | U191: 91% | V191: 236 | W191: 81% | X191: 80% | Y191: 74
A192: 160 | B192: BAS RHIN | C192: 5060 | D192: HAGUENAU | E192: 4082 | F192: BOUXWILLER | G192: 2.4 | H192: 71% | I192: 47% | J192: 183 | K192: 48% | L192: 40% | M192: 88 | N192: 88% | O192: 88% | P192: 176 | Q192: 108% | R192: 75% | S192: 246 | T192: 74% | U192: 70% | V192: 67 | W192: 83% | X192: 81% | Y192: 92
A193: 160 | B193: AUBE HAUTE MARNE | C193: 14 | D193: TROYES | E193: 410571 | F193: ROMILLY SUR SEINE | G193: 4.8 | H193: 71% | I193: 47% | J193: 184 | K193: 53% | L193: 46% | M193: 110 | N193: 88% | O193: 88% | P193: 184 | Q193: 94% | R193: 61% | S193: 235 | T193: 80% | U193: 77% | V193: 121 | W193: 84% | X193: 83% | Y193: 110
A194: 160 | B194: HAUT RHIN | C194: 5130 | D194: COLMAR | E194: 4144 | F194: RIBEAUVILLE | G194: 4.0 | H194: 71% | I194: 47% | J194: 185 | K194: 62% | L194: 55% | M194: 152 | N194: 84% | O194: 84% | P194: 128 | Q194: 83% | R194: 50% | S194: 180 | T194: 80% | U194: 76% | V194: 118 | W194: 91% | X194: 90% | Y194: 232
A195: 160 | B195: HAUT RHIN | C195: 5130 | D195: COLMAR | E195: 4147 | F195: GUEBWILLER | G195: 4.4 | H195: 71% | I195: 47% | J195: 186 | K195: 68% | L195: 60% | M195: 175 | N195: 84% | O195: 84% | P195: 139 | Q195: 78% | R195: 45% | S195: 137 | T195: 82% | U195: 79% | V195: 144 | W195: 87% | X195: 86% | Y195: 178
A196: 160 | B196: VOSGES | C196: 57 | D196: EPINAL | E196: 588206 | F196: CHARMES | G196: 2.6 | H196: 71% | I196: 47% | J196: 187 | K196: 58% | L196: 51% | M196: 134 | N196: 94% | O196: 94% | P196: 223 | Q196: 70% | R196: 38% | S196: 66 | T196: 89% | U196: 85% | V196: 206 | W196: 89% | X196: 88% | Y196: 210
A197: 160 | B197: MARNE ARDENNES | C197: 11 | D197: REIMS | E197: 551341 | F197: REIMS JEAN JAURES | G197: 2.6 | H197: 71% | I197: 47% | J197: 188 | K197: 69% | L197: 61% | M197: 180 | N197: 85% | O197: 85% | P197: 150 | Q197: 75% | R197: 42% | S197: 105 | T197: 90% | U197: 86% | V197: 213 | W197: 82% | X197: 80% | Y197: 83
A198: 160 | B198: VOSGES | C198: 55 | D198: SAINT DIE | E198: 588386 | F198: LE THILLOT | G198: 2.1 | H198: 71% | I198: 47% | J198: 189 | K198: 51% | L198: 43% | M198: 102 | N198: 86% | O198: 86% | P198: 159 | Q198: 85% | R198: 52% | S198: 208 | T198: 91% | U198: 87% | V198: 218 | W198: 88% | X198: 87% | Y198: 198
A199: 160 | B199: BAS RHIN | C199: 5101 | D199: SELESTAT | E199: 4127 | F199: ROSHEIM | G199: 1.7 | H199: 71% | I199: 47% | J199: 190 | K199: 65% | L199: 58% | M199: 161 | N199: 88% | O199: 88% | P199: 182 | Q199: 69% | R199: 37% | S199: 57 | T199: 88% | U199: 85% | V199: 205 | W199: 90% | X199: 88% | Y199: 216
A200: 160 | B200: MARNE ARDENNES | C200: 2 | D200: CHARLEVILLE MEZIERES | E200: 508819 | F200: MOUZON | G200: 1.8 | H200: 71% | I200: 47% | J200: 191 | K200: 46% | L200: 38% | M200: 82 | N200: 102% | O200: 102% | P200: 244 | Q200: 75% | R200: 42% | S200: 98 | T200: 95% | U200: 92% | V200: 237 | W200: 83% | X200: 81% | Y200: 93
A201: 160 | B201: AUBE HAUTE MARNE | C201: 14 | D201: TROYES | E201: 510520 | F201: SAINT ANDRE LES VERGERS | G201: 3.7 | H201: 71% | I201: 47% | J201: 192 | K201: 82% | L201: 74% | M201: 242 | N201: 86% | O201: 86% | P201: 154 | Q201: 69% | R201: 36% | S201: 45 | T201: 78% | U201: 74% | V201: 99 | W201: 87% | X201: 86% | Y201: 170
A202: 160 | B202: HAUT RHIN | C202: 5169 | D202: MULHOUSE | E202: 4170 | F202: MULHOUSE REUNION | G202: 7.3 | H202: 71% | I202: 47% | J202: 193 | K202: 71% | L202: 63% | M202: 199 | N202: 83% | O202: 83% | P202: 120 | Q202: 84% | R202: 51% | S202: 196 | T202: 77% | U202: 74% | V202: 96 | W202: 86% | X202: 84% | Y202: 139
A203: 160 | B203: BAS RHIN | C203: 5060 | D203: HAGUENAU | E203: 4087 | F203: SAVERNE | G203: 6.0 | H203: 71% | I203: 48% | J203: 194 | K203: 77% | L203: 70% | M203: 228 | N203: 79% | O203: 79% | P203: 77 | Q203: 81% | R203: 48% | S203: 162 | T203: 79% | U203: 75% | V203: 106 | W203: 87% | X203: 85% | Y203: 168
... 56 more rows

Sheet AG_BANCA
B1: Accueil | H1: BAROMETRE BDD - AGENCES
H2: BANCARISATION
H3: =ACCUEIL!F7 -> 2022-05-22
H7: Ventes Nettes produits pondérés | L7: Ventes sur client non détenteur de l’univers | P7: Total Bancarisation
H8: =DATEMAJ!C8 -> au 22/05 | J8: coef | K8: ='RECAP DIRCOM'!AA4 -> 12% | L8: =DATEMAJ!C9 -> au 22/05 | N8: coef | O8: ='RECAP DIRCOM'!AE4 -> 8% | Q8: coef | R8: ='RECAP DIRCOM'!$AH$4 -> 20%
B9: Direction | C9: eds | D9: Territoire | E9: eds | F9: Agence | G9: ="ETP perf "&DATEMAJ!$C$28 -> ETP perf 22-mai | H9: VN | I9: VN / ETP | J9: % Ecart au 1er | K9: Rang | L9: VB | M9: VB / ETP | N9: % Ecart au 1er | O9: Rang | P9: Moyenne ecart au 1er | Q9: % Ecart au 1er | R9: Rang CEGEE
A10: 50 | B10: AUBE HAUTE MARNE | C10: 21 | D10: CHAUMONT | E10: 410541 | F10: LANGRES | G10: =VLOOKUP($E10,'RECAP AG'!$G$6:$CU$255,3,FALSE) -> 8.2 | H10: =VLOOKUP($E10,'RECAP AG'!$G$6:$CU$255,18,FALSE) -> 126.6 | I10: =VLOOKUP($E10,'RECAP AG'!$G$6:$CU$255,19,FALSE) -> 15.40 | J10: =VLOOKUP($E10,'RECAP AG'!$G$6:$CU$255,20,FALSE) -> 79% | K10: =VLOOKUP($E10,'RECAP AG'!$G$6:$CU$255,21,FALSE) -> 77 | L10: =VLOOKUP($E10,'RECAP AG'!$G$6:$CU$255,22,FALSE) -> 229 | M10: =VLOOKUP($E10,'RECAP AG'!$G$6:$CU$255,23,FALSE) -> 27.86 | N10: =VLOOKUP($E10,'RECAP AG'!$G$6:$CU$255,24,FALSE) -> 82% | O10: =VLOOKUP($E10,'RECAP AG'!$G$6:$CU$255,25,FALSE) -> 165 | P10: =VLOOKUP($E10,'RECAP AG'!$G$6:$CU$255,26,FALSE) -> 80% | Q10: =VLOOKUP($E10,'RECAP AG'!$G$6:$CU$255,27,FALSE) -> 80% | R10: =VLOOKUP($E10,'RECAP AG'!$G$6:$CU$255,28,FALSE) -> 90
A11: 50 | B11: AUBE HAUTE MARNE | C11: 21 | D11: CHAUMONT | E11: 410566 | F11: CHAUMONT HOTEL DE VILLE | G11: =VLOOKUP($E11,'RECAP AG'!$G$6:$CU$255,3,FALSE) -> 10.4 | H11: =VLOOKUP($E11,'RECAP AG'!$G$6:$CU$255,18,FALSE) -> 74.7 | I11: =VLOOKUP($E11,'RECAP AG'!$G$6:$CU$255,19,FALSE) -> 7.20 | J11: =VLOOKUP($E11,'RECAP AG'!$G$6:$CU$255,20,FALSE) -> 90% | K11: =VLOOKUP($E11,'RECAP AG'!$G$6:$CU$255,21,FALSE) -> 168 | L11: =VLOOKUP($E11,'RECAP AG'!$G$6:$CU$255,22,FALSE) -> 285 | M11: =VLOOKUP($E11,'RECAP AG'!$G$6:$CU$255,23,FALSE) -> 27.46 | N11: =VLOOKUP($E11,'RECAP AG'!$G$6:$CU$255,24,FALSE) -> 82% | O11: =VLOOKUP($E11,'RECAP AG'!$G$6:$CU$255,25,FALSE) -> 168 | P11: =VLOOKUP($E11,'RECAP AG'!$G$6:$CU$255,26,FALSE) -> 87% | Q11: =VLOOKUP($E11,'RECAP AG'!$G$6:$CU$255,27,FALSE) -> 87% | R11: =VLOOKUP($E11,'RECAP AG'!$G$6:$CU$255,28,FALSE) -> 171
A12: 50 | B12: AUBE HAUTE MARNE | C12: 21 | D12: CHAUMONT | E12: 510590 | F12: CHAUMONT REPUBLIQUE | G12: =VLOOKUP($E12,'RECAP AG'!$G$6:$CU$255,3,FALSE) -> 2.8 | H12: =VLOOKUP($E12,'RECAP AG'!$G$6:$CU$255,18,FALSE) -> 6.9 | I12: =VLOOKUP($E12,'RECAP AG'!$G$6:$CU$255,19,FALSE) -> 2.43 | J12: =VLOOKUP($E12,'RECAP AG'!$G$6:$CU$255,20,FALSE) -> 97% | K12: =VLOOKUP($E12,'RECAP AG'!$G$6:$CU$255,21,FALSE) -> 200 | L12: =VLOOKUP($E12,'RECAP AG'!$G$6:$CU$255,22,FALSE) -> 98 | M12: =VLOOKUP($E12,'RECAP AG'!$G$6:$CU$255,23,FALSE) -> 34.51 | N12: =VLOOKUP($E12,'RECAP AG'!$G$6:$CU$255,24,FALSE) -> 78% | O12: =VLOOKUP($E12,'RECAP AG'!$G$6:$CU$255,25,FALSE) -> 107 | P12: =VLOOKUP($E12,'RECAP AG'!$G$6:$CU$255,26,FALSE) -> 89% | Q12: =VLOOKUP($E12,'RECAP AG'!$G$6:$CU$255,27,FALSE) -> 89% | R12: =VLOOKUP($E12,'RECAP AG'!$G$6:$CU$255,28,FALSE) -> 189
A13: 50 | B13: AUBE HAUTE MARNE | C13: 21 | D13: CHAUMONT | E13: 451154 | F13: JOINVILLE | G13: =VLOOKUP($E13,'RECAP AG'!$G$6:$CU$255,3,FALSE) -> 1.8 | H13: =VLOOKUP($E13,'RECAP AG'!$G$6:$CU$255,18,FALSE) -> 29.1 | I13: =VLOOKUP($E13,'RECAP AG'!$G$6:$CU$255,19,FALSE) -> 15.82 | J13: =VLOOKUP($E13,'RECAP AG'!$G$6:$CU$255,20,FALSE) -> 79% | K13: =VLOOKUP($E13,'RECAP AG'!$G$6:$CU$255,21,FALSE) -> 73 | L13: =VLOOKUP($E13,'RECAP AG'!$G$6:$CU$255,22,FALSE) -> 79 | M13: =VLOOKUP($E13,'RECAP AG'!$G$6:$CU$255,23,FALSE) -> 42.93 | N13: =VLOOKUP($E13,'RECAP AG'!$G$6:$CU$255,24,FALSE) -> 72% | O13: =VLOOKUP($E13,'RECAP AG'!$G$6:$CU$255,25,FALSE) -> 43 | P13: =VLOOKUP($E13,'RECAP AG'!$G$6:$CU$255,26,FALSE) -> 76% | Q13: =VLOOKUP($E13,'RECAP AG'!$G$6:$CU$255,27,FALSE) -> 76% | R13: =VLOOKUP($E13,'RECAP AG'!$G$6:$CU$255,28,FALSE) -> 60
A14: 50 | B14: AUBE HAUTE MARNE | C14: 21 | D14: CHAUMONT | E14: 451156 | F14: SAINT DIZIER CENTRE | G14: =VLOOKUP($E14,'RECAP AG'!$G$6:$CU$255,3,FALSE) -> 8.5 | H14: =VLOOKUP($E14,'RECAP AG'!$G$6:$CU$255,18,FALSE) -> 73.0 | I14: =VLOOKUP($E14,'RECAP AG'!$G$6:$CU$255,19,FALSE) -> 8.60 | J14: =VLOOKUP($E14,'RECAP AG'!$G$6:$CU$255,20,FALSE) -> 88% | K14: =VLOOKUP($E14,'RECAP AG'!$G$6:$CU$255,21,FALSE) -> 154 | L14: =VLOOKUP($E14,'RECAP AG'!$G$6:$CU$255,22,FALSE) -> 303 | M14: =VLOOKUP($E14,'RECAP AG'!$G$6:$CU$255,23,FALSE) -> 35.69 | N14: =VLOOKUP($E14,'RECAP AG'!$G$6:$CU$255,24,FALSE) -> 77% | O14: =VLOOKUP($E14,'RECAP AG'!$G$6:$CU$255,25,FALSE) -> 94 | P14: =VLOOKUP($E14,'RECAP AG'!$G$6:$CU$255,26,FALSE) -> 84% | Q14: =VLOOKUP($E14,'RECAP AG'!$G$6:$CU$255,27,FALSE) -> 84% | R14: =VLOOKUP($E14,'RECAP AG'!$G$6:$CU$255,28,FALSE) -> 129
A15: 50 | B15: AUBE HAUTE MARNE | C15: 21 | D15: CHAUMONT | E15: 451151 | F15: WASSY | G15: =VLOOKUP($E15,'RECAP AG'!$G$6:$CU$255,3,FALSE) -> 2.0 | H15: =VLOOKUP($E15,'RECAP AG'!$G$6:$CU$255,18,FALSE) -> 24.9 | I15: =VLOOKUP($E15,'RECAP AG'!$G$6:$CU$255,19,FALSE) -> 12.77 | J15: =VLOOKUP($E15,'RECAP AG'!$G$6:$CU$255,20,FALSE) -> 83% | K15: =VLOOKUP($E15,'RECAP AG'!$G$6:$CU$255,21,FALSE) -> 97 | L15: =VLOOKUP($E15,'RECAP AG'!$G$6:$CU$255,22,FALSE) -> 55 | M15: =VLOOKUP($E15,'RECAP AG'!$G$6:$CU$255,23,FALSE) -> 28.21 | N15: =VLOOKUP($E15,'RECAP AG'!$G$6:$CU$255,24,FALSE) -> 82% | O15: =VLOOKUP($E15,'RECAP AG'!$G$6:$CU$255,25,FALSE) -> 159 | P15: =VLOOKUP($E15,'RECAP AG'!$G$6:$CU$255,26,FALSE) -> 82% | Q15: =VLOOKUP($E15,'RECAP AG'!$G$6:$CU$255,27,FALSE) -> 82% | R15: =VLOOKUP($E15,'RECAP AG'!$G$6:$CU$255,28,FALSE) -> 110
A16: 50 | B16: AUBE HAUTE MARNE | C16: 14 | D16: TROYES | E16: 510523 | F16: LA CHAPELLE ST LUC | G16: =VLOOKUP($E16,'RECAP AG'!$G$6:$CU$255,3,FALSE) -> 4.2 | H16: =VLOOKUP($E16,'RECAP AG'!$G$6:$CU$255,18,FALSE) -> 1.9 | I16: =VLOOKUP($E16,'RECAP AG'!$G$6:$CU$255,19,FALSE) -> 0.45 | J16: =VLOOKUP($E16,'RECAP AG'!$G$6:$CU$255,20,FALSE) -> 99% | K16: =VLOOKUP($E16,'RECAP AG'!$G$6:$CU$255,21,FALSE) -> 212 | L16: =VLOOKUP($E16,'RECAP AG'!$G$6:$CU$255,22,FALSE) -> 169 | M16: =VLOOKUP($E16,'RECAP AG'!$G$6:$CU$255,23,FALSE) -> 40.05 | N16: =VLOOKUP($E16,'RECAP AG'!$G$6:$CU$255,24,FALSE) -> 74% | O16: =VLOOKUP($E16,'RECAP AG'!$G$6:$CU$255,25,FALSE) -> 59 | P16: =VLOOKUP($E16,'RECAP AG'!$G$6:$CU$255,26,FALSE) -> 89% | Q16: =VLOOKUP($E16,'RECAP AG'!$G$6:$CU$255,27,FALSE) -> 89% | R16: =VLOOKUP($E16,'RECAP AG'!$G$6:$CU$255,28,FALSE) -> 190
A17: 50 | B17: AUBE HAUTE MARNE | C17: 14 | D17: TROYES | E17: 510530 | F17: ARCIS SUR AUBE | G17: =VLOOKUP($E17,'RECAP AG'!$G$6:$CU$255,3,FALSE) -> 3.5 | H17: =VLOOKUP($E17,'RECAP AG'!$G$6:$CU$255,18,FALSE) -> 35.5 | I17: =VLOOKUP($E17,'RECAP AG'!$G$6:$CU$255,19,FALSE) -> 10.26 | J17: =VLOOKUP($E17,'RECAP AG'!$G$6:$CU$255,20,FALSE) -> 86% | K17: =VLOOKUP($E17,'RECAP AG'!$G$6:$CU$255,21,FALSE) -> 127 | L17: =VLOOKUP($E17,'RECAP AG'!$G$6:$CU$255,22,FALSE) -> 97 | M17: =VLOOKUP($E17,'RECAP AG'!$G$6:$CU$255,23,FALSE) -> 28.03 | N17: =VLOOKUP($E17,'RECAP AG'!$G$6:$CU$255,24,FALSE) -> 82% | O17: =VLOOKUP($E17,'RECAP AG'!$G$6:$CU$255,25,FALSE) -> 161 | P17: =VLOOKUP($E17,'RECAP AG'!$G$6:$CU$255,26,FALSE) -> 84% | Q17: =VLOOKUP($E17,'RECAP AG'!$G$6:$CU$255,27,FALSE) -> 84% | R17: =VLOOKUP($E17,'RECAP AG'!$G$6:$CU$255,28,FALSE) -> 142
A18: 50 | B18: AUBE HAUTE MARNE | C18: 14 | D18: TROYES | E18: 410550 | F18: BAR SUR AUBE | G18: =VLOOKUP($E18,'RECAP AG'!$G$6:$CU$255,3,FALSE) -> 4.8 | H18: =VLOOKUP($E18,'RECAP AG'!$G$6:$CU$255,18,FALSE) -> 17.0 | I18: =VLOOKUP($E18,'RECAP AG'!$G$6:$CU$255,19,FALSE) -> 3.53 | J18: =VLOOKUP($E18,'RECAP AG'!$G$6:$CU$255,20,FALSE) -> 95% | K18: =VLOOKUP($E18,'RECAP AG'!$G$6:$CU$255,21,FALSE) -> 193 | L18: =VLOOKUP($E18,'RECAP AG'!$G$6:$CU$255,22,FALSE) -> 130 | M18: =VLOOKUP($E18,'RECAP AG'!$G$6:$CU$255,23,FALSE) -> 27.03 | N18: =VLOOKUP($E18,'RECAP AG'!$G$6:$CU$255,24,FALSE) -> 83% | O18: =VLOOKUP($E18,'RECAP AG'!$G$6:$CU$255,25,FALSE) -> 174 | P18: =VLOOKUP($E18,'RECAP AG'!$G$6:$CU$255,26,FALSE) -> 90% | Q18: =VLOOKUP($E18,'RECAP AG'!$G$6:$CU$255,27,FALSE) -> 90% | R18: =VLOOKUP($E18,'RECAP AG'!$G$6:$CU$255,28,FALSE) -> 200
A19: 50 | B19: AUBE HAUTE MARNE | C19: 14 | D19: TROYES | E19: 510556 | F19: BAR SUR SEINE | G19: =VLOOKUP($E19,'RECAP AG'!$G$6:$CU$255,3,FALSE) -> 2.7 | H19: =VLOOKUP($E19,'RECAP AG'!$G$6:$CU$255,18,FALSE) -> 0.3 | I19: =VLOOKUP($E19,'RECAP AG'!$G$6:$CU$255,19,FALSE) -> 0.11 | J19: =VLOOKUP($E19,'RECAP AG'!$G$6:$CU$255,20,FALSE) -> 100% | K19: =VLOOKUP($E19,'RECAP AG'!$G$6:$CU$255,21,FALSE) -> 215 | L19: =VLOOKUP($E19,'RECAP AG'!$G$6:$CU$255,22,FALSE) -> 66 | M19: =VLOOKUP($E19,'RECAP AG'!$G$6:$CU$255,23,FALSE) -> 24.35 | N19: =VLOOKUP($E19,'RECAP AG'!$G$6:$CU$255,24,FALSE) -> 84% | O19: =VLOOKUP($E19,'RECAP AG'!$G$6:$CU$255,25,FALSE) -> 200 | P19: =VLOOKUP($E19,'RECAP AG'!$G$6:$CU$255,26,FALSE) -> 94% | Q19: =VLOOKUP($E19,'RECAP AG'!$G$6:$CU$255,27,FALSE) -> 94% | R19: =VLOOKUP($E19,'RECAP AG'!$G$6:$CU$255,28,FALSE) -> 225
A20: 50 | B20: AUBE HAUTE MARNE | C20: 14 | D20: TROYES | E20: 510570 | F20: NOGENT SUR SEINE | G20: =VLOOKUP($E20,'RECAP AG'!$G$6:$CU$255,3,FALSE) -> 4.7 | H20: =VLOOKUP($E20,'RECAP AG'!$G$6:$CU$255,18,FALSE) -> 60.1 | I20: =VLOOKUP($E20,'RECAP AG'!$G$6:$CU$255,19,FALSE) -> 12.79 | J20: =VLOOKUP($E20,'RECAP AG'!$G$6:$CU$255,20,FALSE) -> 83% | K20: =VLOOKUP($E20,'RECAP AG'!$G$6:$CU$255,21,FALSE) -> 95 | L20: =VLOOKUP($E20,'RECAP AG'!$G$6:$CU$255,22,FALSE) -> 165 | M20: =VLOOKUP($E20,'RECAP AG'!$G$6:$CU$255,23,FALSE) -> 35.11 | N20: =VLOOKUP($E20,'RECAP AG'!$G$6:$CU$255,24,FALSE) -> 77% | O20: =VLOOKUP($E20,'RECAP AG'!$G$6:$CU$255,25,FALSE) -> 100 | P20: =VLOOKUP($E20,'RECAP AG'!$G$6:$CU$255,26,FALSE) -> 80% | Q20: =VLOOKUP($E20,'RECAP AG'!$G$6:$CU$255,27,FALSE) -> 80% | R20: =VLOOKUP($E20,'RECAP AG'!$G$6:$CU$255,28,FALSE) -> 92
A21: 50 | B21: AUBE HAUTE MARNE | C21: 14 | D21: TROYES | E21: 410571 | F21: ROMILLY SUR SEINE | G21: =VLOOKUP($E21,'RECAP AG'!$G$6:$CU$255,3,FALSE) -> 4.8 | H21: =VLOOKUP($E21,'RECAP AG'!$G$6:$CU$255,18,FALSE) -> 19.8 | I21: =VLOOKUP($E21,'RECAP AG'!$G$6:$CU$255,19,FALSE) -> 4.14 | J21: =VLOOKUP($E21,'RECAP AG'!$G$6:$CU$255,20,FALSE) -> 94% | K21: =VLOOKUP($E21,'RECAP AG'!$G$6:$CU$255,21,FALSE) -> 191 | L21: =VLOOKUP($E21,'RECAP AG'!$G$6:$CU$255,22,FALSE) -> 151 | M21: =VLOOKUP($E21,'RECAP AG'!$G$6:$CU$255,23,FALSE) -> 31.59 | N21: =VLOOKUP($E21,'RECAP AG'!$G$6:$CU$255,24,FALSE) -> 80% | O21: =VLOOKUP($E21,'RECAP AG'!$G$6:$CU$255,25,FALSE) -> 131 | P21: =VLOOKUP($E21,'RECAP AG'!$G$6:$CU$255,26,FALSE) -> 88% | Q21: =VLOOKUP($E21,'RECAP AG'!$G$6:$CU$255,27,FALSE) -> 88% | R21: =VLOOKUP($E21,'RECAP AG'!$G$6:$CU$255,28,FALSE) -> 184
A22: 50 | B22: AUBE HAUTE MARNE | C22: 14 | D22: TROYES | E22: 510520 | F22: SAINT ANDRE LES VERGERS | G22: =VLOOKUP($E22,'RECAP AG'!$G$6:$CU$255,3,FALSE) -> 3.7 | H22: =VLOOKUP($E22,'RECAP AG'!$G$6:$CU$255,18,FALSE) -> 31.1 | I22: =VLOOKUP($E22,'RECAP AG'!$G$6:$CU$255,19,FALSE) -> 8.34 | J22: =VLOOKUP($E22,'RECAP AG'!$G$6:$CU$255,20,FALSE) -> 89% | K22: =VLOOKUP($E22,'RECAP AG'!$G$6:$CU$255,21,FALSE) -> 159 | L22: =VLOOKUP($E22,'RECAP AG'!$G$6:$CU$255,22,FALSE) -> 108 | M22: =VLOOKUP($E22,'RECAP AG'!$G$6:$CU$255,23,FALSE) -> 28.95 | N22: =VLOOKUP($E22,'RECAP AG'!$G$6:$CU$255,24,FALSE) -> 81% | O22: =VLOOKUP($E22,'RECAP AG'!$G$6:$CU$255,25,FALSE) -> 150 | P22: =VLOOKUP($E22,'RECAP AG'!$G$6:$CU$255,26,FALSE) -> 86% | Q22: =VLOOKUP($E22,'RECAP AG'!$G$6:$CU$255,27,FALSE) -> 86% | R22: =VLOOKUP($E22,'RECAP AG'!$G$6:$CU$255,28,FALSE) -> 154
A23: 50 | B23: AUBE HAUTE MARNE | C23: 14 | D23: TROYES | E23: 410524 | F23: SAINT JULIEN LES VILLAS | G23: =VLOOKUP($E23,'RECAP AG'!$G$6:$CU$255,3,FALSE) -> 5.2 | H23: =VLOOKUP($E23,'RECAP AG'!$G$6:$CU$255,18,FALSE) -> 28.3 | I23: =VLOOKUP($E23,'RECAP AG'!$G$6:$CU$255,19,FALSE) -> 5.50 | J23: =VLOOKUP($E23,'RECAP AG'!$G$6:$CU$255,20,FALSE) -> 93% | K23: =VLOOKUP($E23,'RECAP AG'!$G$6:$CU$255,21,FALSE) -> 178 | L23: =VLOOKUP($E23,'RECAP AG'!$G$6:$CU$255,22,FALSE) -> 150 | M23: =VLOOKUP($E23,'RECAP AG'!$G$6:$CU$255,23,FALSE) -> 29.13 | N23: =VLOOKUP($E23,'RECAP AG'!$G$6:$CU$255,24,FALSE) -> 81% | O23: =VLOOKUP($E23,'RECAP AG'!$G$6:$CU$255,25,FALSE) -> 148 | P23: =VLOOKUP($E23,'RECAP AG'!$G$6:$CU$255,26,FALSE) -> 88% | Q23: =VLOOKUP($E23,'RECAP AG'!$G$6:$CU$255,27,FALSE) -> 88% | R23: =VLOOKUP($E23,'RECAP AG'!$G$6:$CU$255,28,FALSE) -> 180
A24: 50 | B24: AUBE HAUTE MARNE | C24: 14 | D24: TROYES | E24: 410521 | F24: SAINTE SAVINE | G24: =VLOOKUP($E24,'RECAP AG'!$G$6:$CU$255,3,FALSE) -> 4.4 | H24: =VLOOKUP($E24,'RECAP AG'!$G$6:$CU$255,18,FALSE) -> -8.5 | I24: =VLOOKUP($E24,'RECAP AG'!$G$6:$CU$255,19,FALSE) -> -1.95 | J24: =VLOOKUP($E24,'RECAP AG'!$G$6:$CU$255,20,FALSE) -> 103% | K24: =VLOOKUP($E24,'RECAP AG'!$G$6:$CU$255,21,FALSE) -> 231 | L24: =VLOOKUP($E24,'RECAP AG'!$G$6:$CU$255,22,FALSE) -> 116 | M24: =VLOOKUP($E24,'RECAP AG'!$G$6:$CU$255,23,FALSE) -> 26.67 | N24: =VLOOKUP($E24,'RECAP AG'!$G$6:$CU$255,24,FALSE) -> 83% | O24: =VLOOKUP($E24,'RECAP AG'!$G$6:$CU$255,25,FALSE) -> 177 | P24: =VLOOKUP($E24,'RECAP AG'!$G$6:$CU$255,26,FALSE) -> 95% | Q24: =VLOOKUP($E24,'RECAP AG'!$G$6:$CU$255,27,FALSE) -> 95% | R24: =VLOOKUP($E24,'RECAP AG'!$G$6:$CU$255,28,FALSE) -> 228
A25: 50 | B25: AUBE HAUTE MARNE | C25: 14 | D25: TROYES | E25: 510513 | F25: TROYES 1ER MAI | G25: =VLOOKUP($E25,'RECAP AG'!$G$6:$CU$255,3,FALSE) -> 2.2 | H25: =VLOOKUP($E25,'RECAP AG'!$G$6:$CU$255,18,FALSE) -> 20.5 | I25: =VLOOKUP($E25,'RECAP AG'!$G$6:$CU$255,19,FALSE) -> 9.40 | J25: =VLOOKUP($E25,'RECAP AG'!$G$6:$CU$255,20,FALSE) -> 87% | K25: =VLOOKUP($E25,'RECAP AG'!$G$6:$CU$255,21,FALSE) -> 140 | L25: =VLOOKUP($E25,'RECAP AG'!$G$6:$CU$255,22,FALSE) -> 116 | M25: =VLOOKUP($E25,'RECAP AG'!$G$6:$CU$255,23,FALSE) -> 53.21 | N25: =VLOOKUP($E25,'RECAP AG'!$G$6:$CU$255,24,FALSE) -> 66% | O25: =VLOOKUP($E25,'RECAP AG'!$G$6:$CU$255,25,FALSE) -> 15 | P25: =VLOOKUP($E25,'RECAP AG'!$G$6:$CU$255,26,FALSE) -> 79% | Q25: =VLOOKUP($E25,'RECAP AG'!$G$6:$CU$255,27,FALSE) -> 79% | R25: =VLOOKUP($E25,'RECAP AG'!$G$6:$CU$255,28,FALSE) -> 73
A26: 50 | B26: AUBE HAUTE MARNE | C26: 14 | D26: TROYES | E26: 410510 | F26: TROYES GAMBETTA | G26: =VLOOKUP($E26,'RECAP AG'!$G$6:$CU$255,3,FALSE) -> 8.9 | H26: =VLOOKUP($E26,'RECAP AG'!$G$6:$CU$255,18,FALSE) -> 44.1 | I26: =VLOOKUP($E26,'RECAP AG'!$G$6:$CU$255,19,FALSE) -> 4.96 | J26: =VLOOKUP($E26,'RECAP AG'!$G$6:$CU$255,20,FALSE) -> 93% | K26: =VLOOKUP($E26,'RECAP AG'!$G$6:$CU$255,21,FALSE) -> 185 | L26: =VLOOKUP($E26,'RECAP AG'!$G$6:$CU$255,22,FALSE) -> 227 | M26: =VLOOKUP($E26,'RECAP AG'!$G$6:$CU$255,23,FALSE) -> 25.51 | N26: =VLOOKUP($E26,'RECAP AG'!$G$6:$CU$255,24,FALSE) -> 83% | O26: =VLOOKUP($E26,'RECAP AG'!$G$6:$CU$255,25,FALSE) -> 187 | P26: =VLOOKUP($E26,'RECAP AG'!$G$6:$CU$255,26,FALSE) -> 89% | Q26: =VLOOKUP($E26,'RECAP AG'!$G$6:$CU$255,27,FALSE) -> 89% | R26: =VLOOKUP($E26,'RECAP AG'!$G$6:$CU$255,28,FALSE) -> 191
A27: 50 | B27: AUBE HAUTE MARNE | C27: 14 | D27: TROYES | E27: 410512 | F27: TROYES ZOLA | G27: =VLOOKUP($E27,'RECAP AG'!$G$6:$CU$255,3,FALSE) -> 5.3 | H27: =VLOOKUP($E27,'RECAP AG'!$G$6:$CU$255,18,FALSE) -> -1.3 | I27: =VLOOKUP($E27,'RECAP AG'!$G$6:$CU$255,19,FALSE) -> -0.25 | J27: =VLOOKUP($E27,'RECAP AG'!$G$6:$CU$255,20,FALSE) -> 100% | K27: =VLOOKUP($E27,'RECAP AG'!$G$6:$CU$255,21,FALSE) -> 221 | L27: =VLOOKUP($E27,'RECAP AG'!$G$6:$CU$255,22,FALSE) -> 148 | M27: =VLOOKUP($E27,'RECAP AG'!$G$6:$CU$255,23,FALSE) -> 28.19 | N27: =VLOOKUP($E27,'RECAP AG'!$G$6:$CU$255,24,FALSE) -> 82% | O27: =VLOOKUP($E27,'RECAP AG'!$G$6:$CU$255,25,FALSE) -> 160 | P27: =VLOOKUP($E27,'RECAP AG'!$G$6:$CU$255,26,FALSE) -> 93% | Q27: =VLOOKUP($E27,'RECAP AG'!$G$6:$CU$255,27,FALSE) -> 93% | R27: =VLOOKUP($E27,'RECAP AG'!$G$6:$CU$255,28,FALSE) -> 217
A28: 262 | B28: BAS RHIN | C28: 5060 | D28: HAGUENAU | E28: 4057 | F28: BISCHWILLER | G28: =VLOOKUP($E28,'RECAP AG'!$G$6:$CU$255,3,FALSE) -> 7.1 | H28: =VLOOKUP($E28,'RECAP AG'!$G$6:$CU$255,18,FALSE) -> 155.1 | I28: =VLOOKUP($E28,'RECAP AG'!$G$6:$CU$255,19,FALSE) -> 21.81 | J28: =VLOOKUP($E28,'RECAP AG'!$G$6:$CU$255,20,FALSE) -> 70% | K28: =VLOOKUP($E28,'RECAP AG'!$G$6:$CU$255,21,FALSE) -> 34 | L28: =VLOOKUP($E28,'RECAP AG'!$G$6:$CU$255,22,FALSE) -> 180 | M28: =VLOOKUP($E28,'RECAP AG'!$G$6:$CU$255,23,FALSE) -> 25.32 | N28: =VLOOKUP($E28,'RECAP AG'!$G$6:$CU$255,24,FALSE) -> 84% | O28: =VLOOKUP($E28,'RECAP AG'!$G$6:$CU$255,25,FALSE) -> 189 | P28: =VLOOKUP($E28,'RECAP AG'!$G$6:$CU$255,26,FALSE) -> 76% | Q28: =VLOOKUP($E28,'RECAP AG'!$G$6:$CU$255,27,FALSE) -> 76% | R28: =VLOOKUP($E28,'RECAP AG'!$G$6:$CU$255,28,FALSE) -> 56
A29: 262 | B29: BAS RHIN | C29: 5060 | D29: HAGUENAU | E29: 4082 | F29: BOUXWILLER | G29: =VLOOKUP($E29,'RECAP AG'!$G$6:$CU$255,3,FALSE) -> 2.4 | H29: =VLOOKUP($E29,'RECAP AG'!$G$6:$CU$255,18,FALSE) -> 14.0 | I29: =VLOOKUP($E29,'RECAP AG'!$G$6:$CU$255,19,FALSE) -> 5.86 | J29: =VLOOKUP($E29,'RECAP AG'!$G$6:$CU$255,20,FALSE) -> 92% | K29: =VLOOKUP($E29,'RECAP AG'!$G$6:$CU$255,21,FALSE) -> 175 | L29: =VLOOKUP($E29,'RECAP AG'!$G$6:$CU$255,22,FALSE) -> 68 | M29: =VLOOKUP($E29,'RECAP AG'!$G$6:$CU$255,23,FALSE) -> 28.45 | N29: =VLOOKUP($E29,'RECAP AG'!$G$6:$CU$255,24,FALSE) -> 82% | O29: =VLOOKUP($E29,'RECAP AG'!$G$6:$CU$255,25,FALSE) -> 156 | P29: =VLOOKUP($E29,'RECAP AG'!$G$6:$CU$255,26,FALSE) -> 88% | Q29: =VLOOKUP($E29,'RECAP AG'!$G$6:$CU$255,27,FALSE) -> 88% | R29: =VLOOKUP($E29,'RECAP AG'!$G$6:$CU$255,28,FALSE) -> 176
A30: 262 | B30: BAS RHIN | C30: 5060 | D30: HAGUENAU | E30: 4030 | F30: BRUMATH | G30: =VLOOKUP($E30,'RECAP AG'!$G$6:$CU$255,3,FALSE) -> 4.7 | H30: =VLOOKUP($E30,'RECAP AG'!$G$6:$CU$255,18,FALSE) -> 60.7 | I30: =VLOOKUP($E30,'RECAP AG'!$G$6:$CU$255,19,FALSE) -> 12.83 | J30: =VLOOKUP($E30,'RECAP AG'!$G$6:$CU$255,20,FALSE) -> 83% | K30: =VLOOKUP($E30,'RECAP AG'!$G$6:$CU$255,21,FALSE) -> 94 | L30: =VLOOKUP($E30,'RECAP AG'!$G$6:$CU$255,22,FALSE) -> 89 | M30: =VLOOKUP($E30,'RECAP AG'!$G$6:$CU$255,23,FALSE) -> 18.82 | N30: =VLOOKUP($E30,'RECAP AG'!$G$6:$CU$255,24,FALSE) -> 88% | O30: =VLOOKUP($E30,'RECAP AG'!$G$6:$CU$255,25,FALSE) -> 240 | P30: =VLOOKUP($E30,'RECAP AG'!$G$6:$CU$255,26,FALSE) -> 85% | Q30: =VLOOKUP($E30,'RECAP AG'!$G$6:$CU$255,27,FALSE) -> 85% | R30: =VLOOKUP($E30,'RECAP AG'!$G$6:$CU$255,28,FALSE) -> 146
A31: 262 | B31: BAS RHIN | C31: 5060 | D31: HAGUENAU | E31: 4060 | F31: HAGUENAU HOUBLON | G31: =VLOOKUP($E31,'RECAP AG'!$G$6:$CU$255,3,FALSE) -> 8.4 | H31: =VLOOKUP($E31,'RECAP AG'!$G$6:$CU$255,18,FALSE) -> 79.4 | I31: =VLOOKUP($E31,'RECAP AG'!$G$6:$CU$255,19,FALSE) -> 9.49 | J31: =VLOOKUP($E31,'RECAP AG'!$G$6:$CU$255,20,FALSE) -> 87% | K31: =VLOOKUP($E31,'RECAP AG'!$G$6:$CU$255,21,FALSE) -> 138 | L31: =VLOOKUP($E31,'RECAP AG'!$G$6:$CU$255,22,FALSE) -> 211 | M31: =VLOOKUP($E31,'RECAP AG'!$G$6:$CU$255,23,FALSE) -> 25.21 | N31: =VLOOKUP($E31,'RECAP AG'!$G$6:$CU$255,24,FALSE) -> 84% | O31: =VLOOKUP($E31,'RECAP AG'!$G$6:$CU$255,25,FALSE) -> 191 | P31: =VLOOKUP($E31,'RECAP AG'!$G$6:$CU$255,26,FALSE) -> 86% | Q31: =VLOOKUP($E31,'RECAP AG'!$G$6:$CU$255,27,FALSE) -> 86% | R31: =VLOOKUP($E31,'RECAP AG'!$G$6:$CU$255,28,FALSE) -> 156
A32: 262 | B32: BAS RHIN | C32: 5060 | D32: HAGUENAU | E32: 4092 | F32: HOCHFELDEN | G32: =VLOOKUP($E32,'RECAP AG'!$G$6:$CU$255,3,FALSE) -> 2.0 | H32: =VLOOKUP($E32,'RECAP AG'!$G$6:$CU$255,18,FALSE) -> 31.5 | I32: =VLOOKUP($E32,'RECAP AG'!$G$6:$CU$255,19,FALSE) -> 15.75 | J32: =VLOOKUP($E32,'RECAP AG'!$G$6:$CU$255,20,FALSE) -> 79% | K32: =VLOOKUP($E32,'RECAP AG'!$G$6:$CU$255,21,FALSE) -> 74 | L32: =VLOOKUP($E32,'RECAP AG'!$G$6:$CU$255,22,FALSE) -> 72 | M32: =VLOOKUP($E32,'RECAP AG'!$G$6:$CU$255,23,FALSE) -> 36.00 | N32: =VLOOKUP($E32,'RECAP AG'!$G$6:$CU$255,24,FALSE) -> 77% | O32: =VLOOKUP($E32,'RECAP AG'!$G$6:$CU$255,25,FALSE) -> 93 | P32: =VLOOKUP($E32,'RECAP AG'!$G$6:$CU$255,26,FALSE) -> 78% | Q32: =VLOOKUP($E32,'RECAP AG'!$G$6:$CU$255,27,FALSE) -> 78% | R32: =VLOOKUP($E32,'RECAP AG'!$G$6:$CU$255,28,FALSE) -> 67
A33: 262 | B33: BAS RHIN | C33: 5060 | D33: HAGUENAU | E33: 4041 | F33: HOERDT | G33: =VLOOKUP($E33,'RECAP AG'!$G$6:$CU$255,3,FALSE) -> 1.6 | H33: =VLOOKUP($E33,'RECAP AG'!$G$6:$CU$255,18,FALSE) -> 16.6 | I33: =VLOOKUP($E33,'RECAP AG'!$G$6:$CU$255,19,FALSE) -> 10.25 | J33: =VLOOKUP($E33,'RECAP AG'!$G$6:$CU$255,20,FALSE) -> 86% | K33: =VLOOKUP($E33,'RECAP AG'!$G$6:$CU$255,21,FALSE) -> 128 | L33: =VLOOKUP($E33,'RECAP AG'!$G$6:$CU$255,22,FALSE) -> 41 | M33: =VLOOKUP($E33,'RECAP AG'!$G$6:$CU$255,23,FALSE) -> 25.31 | N33: =VLOOKUP($E33,'RECAP AG'!$G$6:$CU$255,24,FALSE) -> 84% | O33: =VLOOKUP($E33,'RECAP AG'!$G$6:$CU$255,25,FALSE) -> 190 | P33: =VLOOKUP($E33,'RECAP AG'!$G$6:$CU$255,26,FALSE) -> 85% | Q33: =VLOOKUP($E33,'RECAP AG'!$G$6:$CU$255,27,FALSE) -> 85% | R33: =VLOOKUP($E33,'RECAP AG'!$G$6:$CU$255,28,FALSE) -> 148
A34: 262 | B34: BAS RHIN | C34: 5060 | D34: HAGUENAU | E34: 4085 | F34: INGWILLER | G34: =VLOOKUP($E34,'RECAP AG'!$G$6:$CU$255,3,FALSE) -> 3.4 | H34: =VLOOKUP($E34,'RECAP AG'!$G$6:$CU$255,18,FALSE) -> 35.3 | I34: =VLOOKUP($E34,'RECAP AG'!$G$6:$CU$255,19,FALSE) -> 10.32 | J34: =VLOOKUP($E34,'RECAP AG'!$G$6:$CU$255,20,FALSE) -> 86% | K34: =VLOOKUP($E34,'RECAP AG'!$G$6:$CU$255,21,FALSE) -> 126 | L34: =VLOOKUP($E34,'RECAP AG'!$G$6:$CU$255,22,FALSE) -> 103 | M34: =VLOOKUP($E34,'RECAP AG'!$G$6:$CU$255,23,FALSE) -> 30.12 | N34: =VLOOKUP($E34,'RECAP AG'!$G$6:$CU$255,24,FALSE) -> 81% | O34: =VLOOKUP($E34,'RECAP AG'!$G$6:$CU$255,25,FALSE) -> 142 | P34: =VLOOKUP($E34,'RECAP AG'!$G$6:$CU$255,26,FALSE) -> 84% | Q34: =VLOOKUP($E34,'RECAP AG'!$G$6:$CU$255,27,FALSE) -> 84% | R34: =VLOOKUP($E34,'RECAP AG'!$G$6:$CU$255,28,FALSE) -> 131
A35: 262 | B35: BAS RHIN | C35: 5060 | D35: HAGUENAU | E35: 4066 | F35: NIEDERBRONN LES BAINS | G35: =VLOOKUP($E35,'RECAP AG'!$G$6:$CU$255,3,FALSE) -> 5.6 | H35: =VLOOKUP($E35,'RECAP AG'!$G$6:$CU$255,18,FALSE) -> -16.4 | I35: =VLOOKUP($E35,'RECAP AG'!$G$6:$CU$255,19,FALSE) -> -2.94 | J35: =VLOOKUP($E35,'RECAP AG'!$G$6:$CU$255,20,FALSE) -> 104% | K35: =VLOOKUP($E35,'RECAP AG'!$G$6:$CU$255,21,FALSE) -> 233 | L35: =VLOOKUP($E35,'RECAP AG'!$G$6:$CU$255,22,FALSE) -> 139 | M35: =VLOOKUP($E35,'RECAP AG'!$G$6:$CU$255,23,FALSE) -> 24.91 | N35: =VLOOKUP($E35,'RECAP AG'!$G$6:$CU$255,24,FALSE) -> 84% | O35: =VLOOKUP($E35,'RECAP AG'!$G$6:$CU$255,25,FALSE) -> 194 | P35: =VLOOKUP($E35,'RECAP AG'!$G$6:$CU$255,26,FALSE) -> 96% | Q35: =VLOOKUP($E35,'RECAP AG'!$G$6:$CU$255,27,FALSE) -> 96% | R35: =VLOOKUP($E35,'RECAP AG'!$G$6:$CU$255,28,FALSE) -> 235
A36: 262 | B36: BAS RHIN | C36: 5060 | D36: HAGUENAU | E36: 4067 | F36: PFAFFENHOFFEN | G36: =VLOOKUP($E36,'RECAP AG'!$G$6:$CU$255,3,FALSE) -> 1.9 | H36: =VLOOKUP($E36,'RECAP AG'!$G$6:$CU$255,18,FALSE) -> 19.5 | I36: =VLOOKUP($E36,'RECAP AG'!$G$6:$CU$255,19,FALSE) -> 10.43 | J36: =VLOOKUP($E36,'RECAP AG'!$G$6:$CU$255,20,FALSE) -> 86% | K36: =VLOOKUP($E36,'RECAP AG'!$G$6:$CU$255,21,FALSE) -> 125 | L36: =VLOOKUP($E36,'RECAP AG'!$G$6:$CU$255,22,FALSE) -> 44 | M36: =VLOOKUP($E36,'RECAP AG'!$G$6:$CU$255,23,FALSE) -> 23.53 | N36: =VLOOKUP($E36,'RECAP AG'!$G$6:$CU$255,24,FALSE) -> 85% | O36: =VLOOKUP($E36,'RECAP AG'!$G$6:$CU$255,25,FALSE) -> 210 | P36: =VLOOKUP($E36,'RECAP AG'!$G$6:$CU$255,26,FALSE) -> 85% | Q36: =VLOOKUP($E36,'RECAP AG'!$G$6:$CU$255,27,FALSE) -> 85% | R36: =VLOOKUP($E36,'RECAP AG'!$G$6:$CU$255,28,FALSE) -> 152
A37: 262 | B37: BAS RHIN | C37: 5060 | D37: HAGUENAU | E37: 4095 | F37: SARRE UNION | G37: =VLOOKUP($E37,'RECAP AG'!$G$6:$CU$255,3,FALSE) -> 2.4 | H37: =VLOOKUP($E37,'RECAP AG'!$G$6:$CU$255,18,FALSE) -> 42.0 | I37: =VLOOKUP($E37,'RECAP AG'!$G$6:$CU$255,19,FALSE) -> 17.80 | J37: =VLOOKUP($E37,'RECAP AG'!$G$6:$CU$255,20,FALSE) -> 76% | K37: =VLOOKUP($E37,'RECAP AG'!$G$6:$CU$255,21,FALSE) -> 61 | L37: =VLOOKUP($E37,'RECAP AG'!$G$6:$CU$255,22,FALSE) -> 68 | M37: =VLOOKUP($E37,'RECAP AG'!$G$6:$CU$255,23,FALSE) -> 28.81 | N37: =VLOOKUP($E37,'RECAP AG'!$G$6:$CU$255,24,FALSE) -> 81% | O37: =VLOOKUP($E37,'RECAP AG'!$G$6:$CU$255,25,FALSE) -> 152 | P37: =VLOOKUP($E37,'RECAP AG'!$G$6:$CU$255,26,FALSE) -> 78% | Q37: =VLOOKUP($E37,'RECAP AG'!$G$6:$CU$255,27,FALSE) -> 78% | R37: =VLOOKUP($E37,'RECAP AG'!$G$6:$CU$255,28,FALSE) -> 69
A38: 262 | B38: BAS RHIN | C38: 5060 | D38: HAGUENAU | E38: 4087 | F38: SAVERNE | G38: =VLOOKUP($E38,'RECAP AG'!$G$6:$CU$255,3,FALSE) -> 6.0 | H38: =VLOOKUP($E38,'RECAP AG'!$G$6:$CU$255,18,FALSE) -> 107.1 | I38: =VLOOKUP($E38,'RECAP AG'!$G$6:$CU$255,19,FALSE) -> 17.94 | J38: =VLOOKUP($E38,'RECAP AG'!$G$6:$CU$255,20,FALSE) -> 76% | K38: =VLOOKUP($E38,'RECAP AG'!$G$6:$CU$255,21,FALSE) -> 60 | L38: =VLOOKUP($E38,'RECAP AG'!$G$6:$CU$255,22,FALSE) -> 148 | M38: =VLOOKUP($E38,'RECAP AG'!$G$6:$CU$255,23,FALSE) -> 24.79 | N38: =VLOOKUP($E38,'RECAP AG'!$G$6:$CU$255,24,FALSE) -> 84% | O38: =VLOOKUP($E38,'RECAP AG'!$G$6:$CU$255,25,FALSE) -> 195 | P38: =VLOOKUP($E38,'RECAP AG'!$G$6:$CU$255,26,FALSE) -> 79% | Q38: =VLOOKUP($E38,'RECAP AG'!$G$6:$CU$255,27,FALSE) -> 79% | R38: =VLOOKUP($E38,'RECAP AG'!$G$6:$CU$255,28,FALSE) -> 77
A39: 262 | B39: BAS RHIN | C39: 5060 | D39: HAGUENAU | E39: 4079 | F39: SOULTZ SOUS FORETS | G39: =VLOOKUP($E39,'RECAP AG'!$G$6:$CU$255,3,FALSE) -> 1.9 | H39: =VLOOKUP($E39,'RECAP AG'!$G$6:$CU$255,18,FALSE) -> 36.5 | I39: =VLOOKUP($E39,'RECAP AG'!$G$6:$CU$255,19,FALSE) -> 19.62 | J39: =VLOOKUP($E39,'RECAP AG'!$G$6:$CU$255,20,FALSE) -> 73% | K39: =VLOOKUP($E39,'RECAP AG'!$G$6:$CU$255,21,FALSE) -> 44 | L39: =VLOOKUP($E39,'RECAP AG'!$G$6:$CU$255,22,FALSE) -> 62 | M39: =VLOOKUP($E39,'RECAP AG'!$G$6:$CU$255,23,FALSE) -> 33.33 | N39: =VLOOKUP($E39,'RECAP AG'!$G$6:$CU$255,24,FALSE) -> 78% | O39: =VLOOKUP($E39,'RECAP AG'!$G$6:$CU$255,25,FALSE) -> 116 | P39: =VLOOKUP($E39,'RECAP AG'!$G$6:$CU$255,26,FALSE) -> 75% | Q39: =VLOOKUP($E39,'RECAP AG'!$G$6:$CU$255,27,FALSE) -> 75% | R39: =VLOOKUP($E39,'RECAP AG'!$G$6:$CU$255,28,FALSE) -> 54
A40: 262 | B40: BAS RHIN | C40: 5060 | D40: HAGUENAU | E40: 4031 | F40: TRUCHTERSHEIM | G40: =VLOOKUP($E40,'RECAP AG'!$G$6:$CU$255,3,FALSE) -> 2.3 | H40: =VLOOKUP($E40,'RECAP AG'!$G$6:$CU$255,18,FALSE) -> 37.2 | I40: =VLOOKUP($E40,'RECAP AG'!$G$6:$CU$255,19,FALSE) -> 16.17 | J40: =VLOOKUP($E40,'RECAP AG'!$G$6:$CU$255,20,FALSE) -> 78% | K40: =VLOOKUP($E40,'RECAP AG'!$G$6:$CU$255,21,FALSE) -> 69 | L40: =VLOOKUP($E40,'RECAP AG'!$G$6:$CU$255,22,FALSE) -> 44 | M40: =VLOOKUP($E40,'RECAP AG'!$G$6:$CU$255,23,FALSE) -> 19.13 | N40: =VLOOKUP($E40,'RECAP AG'!$G$6:$CU$255,24,FALSE) -> 88% | O40: =VLOOKUP($E40,'RECAP AG'!$G$6:$CU$255,25,FALSE) -> 236 | P40: =VLOOKUP($E40,'RECAP AG'!$G$6:$CU$255,26,FALSE) -> 82% | Q40: =VLOOKUP($E40,'RECAP AG'!$G$6:$CU$255,27,FALSE) -> 82% | R40: =VLOOKUP($E40,'RECAP AG'!$G$6:$CU$255,28,FALSE) -> 106
A41: 262 | B41: BAS RHIN | C41: 5060 | D41: HAGUENAU | E41: 4071 | F41: WISSEMBOURG | G41: =VLOOKUP($E41,'RECAP AG'!$G$6:$CU$255,3,FALSE) -> 6.7 | H41: =VLOOKUP($E41,'RECAP AG'!$G$6:$CU$255,18,FALSE) -> 61.2 | I41: =VLOOKUP($E41,'RECAP AG'!$G$6:$CU$255,19,FALSE) -> 9.18 | J41: =VLOOKUP($E41,'RECAP AG'!$G$6:$CU$255,20,FALSE) -> 88% | K41: =VLOOKUP($E41,'RECAP AG'!$G$6:$CU$255,21,FALSE) -> 144 | L41: =VLOOKUP($E41,'RECAP AG'!$G$6:$CU$255,22,FALSE) -> 198 | M41: =VLOOKUP($E41,'RECAP AG'!$G$6:$CU$255,23,FALSE) -> 29.69 | N41: =VLOOKUP($E41,'RECAP AG'!$G$6:$CU$255,24,FALSE) -> 81% | O41: =VLOOKUP($E41,'RECAP AG'!$G$6:$CU$255,25,FALSE) -> 144 | P41: =VLOOKUP($E41,'RECAP AG'!$G$6:$CU$255,26,FALSE) -> 85% | Q41: =VLOOKUP($E41,'RECAP AG'!$G$6:$CU$255,27,FALSE) -> 85% | R41: =VLOOKUP($E41,'RECAP AG'!$G$6:$CU$255,28,FALSE) -> 147
A42: 262 | B42: BAS RHIN | C42: 5101 | D42: SELESTAT | E42: 4113 | F42: BARR | G42: =VLOOKUP($E42,'RECAP AG'!$G$6:$CU$255,3,FALSE) -> 2.9 | H42: =VLOOKUP($E42,'RECAP AG'!$G$6:$CU$255,18,FALSE) -> 87.5 | I42: =VLOOKUP($E42,'RECAP AG'!$G$6:$CU$255,19,FALSE) -> 30.59 | J42: =VLOOKUP($E42,'RECAP AG'!$G$6:$CU$255,20,FALSE) -> 58% | K42: =VLOOKUP($E42,'RECAP AG'!$G$6:$CU$255,21,FALSE) -> 10 | L42: =VLOOKUP($E42,'RECAP AG'!$G$6:$CU$255,22,FALSE) -> 122 | M42: =VLOOKUP($E42,'RECAP AG'!$G$6:$CU$255,23,FALSE) -> 42.66 | N42: =VLOOKUP($E42,'RECAP AG'!$G$6:$CU$255,24,FALSE) -> 72% | O42: =VLOOKUP($E42,'RECAP AG'!$G$6:$CU$255,25,FALSE) -> 47 | P42: =VLOOKUP($E42,'RECAP AG'!$G$6:$CU$255,26,FALSE) -> 64% | Q42: =VLOOKUP($E42,'RECAP AG'!$G$6:$CU$255,27,FALSE) -> 64% | R42: =VLOOKUP($E42,'RECAP AG'!$G$6:$CU$255,28,FALSE) -> 11
A43: 262 | B43: BAS RHIN | C43: 5101 | D43: SELESTAT | E43: 4111 | F43: BENFELD | G43: =VLOOKUP($E43,'RECAP AG'!$G$6:$CU$255,3,FALSE) -> 2.8 | H43: =VLOOKUP($E43,'RECAP AG'!$G$6:$CU$255,18,FALSE) -> 14.5 | I43: =VLOOKUP($E43,'RECAP AG'!$G$6:$CU$255,19,FALSE) -> 5.16 | J43: =VLOOKUP($E43,'RECAP AG'!$G$6:$CU$255,20,FALSE) -> 93% | K43: =VLOOKUP($E43,'RECAP AG'!$G$6:$CU$255,21,FALSE) -> 183 | L43: =VLOOKUP($E43,'RECAP AG'!$G$6:$CU$255,22,FALSE) -> 66 | M43: =VLOOKUP($E43,'RECAP AG'!$G$6:$CU$255,23,FALSE) -> 23.49 | N43: =VLOOKUP($E43,'RECAP AG'!$G$6:$CU$255,24,FALSE) -> 85% | O43: =VLOOKUP($E43,'RECAP AG'!$G$6:$CU$255,25,FALSE) -> 211 | P43: =VLOOKUP($E43,'RECAP AG'!$G$6:$CU$255,26,FALSE) -> 90% | Q43: =VLOOKUP($E43,'RECAP AG'!$G$6:$CU$255,27,FALSE) -> 90% | R43: =VLOOKUP($E43,'RECAP AG'!$G$6:$CU$255,28,FALSE) -> 196
A44: 262 | B44: BAS RHIN | C44: 5101 | D44: SELESTAT | E44: 4104 | F44: ERSTEIN | G44: =VLOOKUP($E44,'RECAP AG'!$G$6:$CU$255,3,FALSE) -> 4.4 | H44: =VLOOKUP($E44,'RECAP AG'!$G$6:$CU$255,18,FALSE) -> 161.3 | I44: =VLOOKUP($E44,'RECAP AG'!$G$6:$CU$255,19,FALSE) -> 37.08 | J44: =VLOOKUP($E44,'RECAP AG'!$G$6:$CU$255,20,FALSE) -> 50% | K44: =VLOOKUP($E44,'RECAP AG'!$G$6:$CU$255,21,FALSE) -> 6 | L44: =VLOOKUP($E44,'RECAP AG'!$G$6:$CU$255,22,FALSE) -> 169 | M44: =VLOOKUP($E44,'RECAP AG'!$G$6:$CU$255,23,FALSE) -> 38.85 | N44: =VLOOKUP($E44,'RECAP AG'!$G$6:$CU$255,24,FALSE) -> 75% | O44: =VLOOKUP($E44,'RECAP AG'!$G$6:$CU$255,25,FALSE) -> 66 | P44: =VLOOKUP($E44,'RECAP AG'!$G$6:$CU$255,26,FALSE) -> 60% | Q44: =VLOOKUP($E44,'RECAP AG'!$G$6:$CU$255,27,FALSE) -> 60% | R44: =VLOOKUP($E44,'RECAP AG'!$G$6:$CU$255,28,FALSE) -> 8
A45: 262 | B45: BAS RHIN | C45: 5101 | D45: SELESTAT | E45: 4008 | F45: FEGERSHEIM | G45: =VLOOKUP($E45,'RECAP AG'!$G$6:$CU$255,3,FALSE) -> 2.0 | H45: =VLOOKUP($E45,'RECAP AG'!$G$6:$CU$255,18,FALSE) -> 31.6 | I45: =VLOOKUP($E45,'RECAP AG'!$G$6:$CU$255,19,FALSE) -> 15.64 | J45: =VLOOKUP($E45,'RECAP AG'!$G$6:$CU$255,20,FALSE) -> 79% | K45: =VLOOKUP($E45,'RECAP AG'!$G$6:$CU$255,21,FALSE) -> 75 | L45: =VLOOKUP($E45,'RECAP AG'!$G$6:$CU$255,22,FALSE) -> 34 | M45: =VLOOKUP($E45,'RECAP AG'!$G$6:$CU$255,23,FALSE) -> 16.83 | N45: =VLOOKUP($E45,'RECAP AG'!$G$6:$CU$255,24,FALSE) -> 89% | O45: =VLOOKUP($E45,'RECAP AG'!$G$6:$CU$255,25,FALSE) -> 242 | P45: =VLOOKUP($E45,'RECAP AG'!$G$6:$CU$255,26,FALSE) -> 83% | Q45: =VLOOKUP($E45,'RECAP AG'!$G$6:$CU$255,27,FALSE) -> 83% | R45: =VLOOKUP($E45,'RECAP AG'!$G$6:$CU$255,28,FALSE) -> 119
A46: 262 | B46: BAS RHIN | C46: 5101 | D46: SELESTAT | E46: 4007 | F46: ILLKIRCH CENTRE | G46: =VLOOKUP($E46,'RECAP AG'!$G$6:$CU$255,3,FALSE) -> 6.5 | H46: =VLOOKUP($E46,'RECAP AG'!$G$6:$CU$255,18,FALSE) -> 76.1 | I46: =VLOOKUP($E46,'RECAP AG'!$G$6:$CU$255,19,FALSE) -> 11.64 | J46: =VLOOKUP($E46,'RECAP AG'!$G$6:$CU$255,20,FALSE) -> 84% | K46: =VLOOKUP($E46,'RECAP AG'!$G$6:$CU$255,21,FALSE) -> 109 | L46: =VLOOKUP($E46,'RECAP AG'!$G$6:$CU$255,22,FALSE) -> 177 | M46: =VLOOKUP($E46,'RECAP AG'!$G$6:$CU$255,23,FALSE) -> 27.06 | N46: =VLOOKUP($E46,'RECAP AG'!$G$6:$CU$255,24,FALSE) -> 82% | O46: =VLOOKUP($E46,'RECAP AG'!$G$6:$CU$255,25,FALSE) -> 173 | P46: =VLOOKUP($E46,'RECAP AG'!$G$6:$CU$255,26,FALSE) -> 84% | Q46: =VLOOKUP($E46,'RECAP AG'!$G$6:$CU$255,27,FALSE) -> 84% | R46: =VLOOKUP($E46,'RECAP AG'!$G$6:$CU$255,28,FALSE) -> 126
A47: 262 | B47: BAS RHIN | C47: 5101 | D47: SELESTAT | E47: 4015 | F47: LINGOLSHEIM | G47: =VLOOKUP($E47,'RECAP AG'!$G$6:$CU$255,3,FALSE) -> 1.8 | H47: =VLOOKUP($E47,'RECAP AG'!$G$6:$CU$255,18,FALSE) -> -13.8 | I47: =VLOOKUP($E47,'RECAP AG'!$G$6:$CU$255,19,FALSE) -> -7.75 | J47: =VLOOKUP($E47,'RECAP AG'!$G$6:$CU$255,20,FALSE) -> 111% | K47: =VLOOKUP($E47,'RECAP AG'!$G$6:$CU$255,21,FALSE) -> 240 | L47: =VLOOKUP($E47,'RECAP AG'!$G$6:$CU$255,22,FALSE) -> 79 | M47: =VLOOKUP($E47,'RECAP AG'!$G$6:$CU$255,23,FALSE) -> 44.38 | N47: =VLOOKUP($E47,'RECAP AG'!$G$6:$CU$255,24,FALSE) -> 71% | O47: =VLOOKUP($E47,'RECAP AG'!$G$6:$CU$255,25,FALSE) -> 38 | P47: =VLOOKUP($E47,'RECAP AG'!$G$6:$CU$255,26,FALSE) -> 95% | Q47: =VLOOKUP($E47,'RECAP AG'!$G$6:$CU$255,27,FALSE) -> 95% | R47: =VLOOKUP($E47,'RECAP AG'!$G$6:$CU$255,28,FALSE) -> 229
A48: 262 | B48: BAS RHIN | C48: 5101 | D48: SELESTAT | E48: 4109 | F48: MARCKOLSHEIM | G48: =VLOOKUP($E48,'RECAP AG'!$G$6:$CU$255,3,FALSE) -> 2.7 | H48: =VLOOKUP($E48,'RECAP AG'!$G$6:$CU$255,18,FALSE) -> 37.6 | I48: =VLOOKUP($E48,'RECAP AG'!$G$6:$CU$255,19,FALSE) -> 13.72 | J48: =VLOOKUP($E48,'RECAP AG'!$G$6:$CU$255,20,FALSE) -> 81% | K48: =VLOOKUP($E48,'RECAP AG'!$G$6:$CU$255,21,FALSE) -> 87 | L48: =VLOOKUP($E48,'RECAP AG'!$G$6:$CU$255,22,FALSE) -> 81 | M48: =VLOOKUP($E48,'RECAP AG'!$G$6:$CU$255,23,FALSE) -> 29.56 | N48: =VLOOKUP($E48,'RECAP AG'!$G$6:$CU$255,24,FALSE) -> 81% | O48: =VLOOKUP($E48,'RECAP AG'!$G$6:$CU$255,25,FALSE) -> 145 | P48: =VLOOKUP($E48,'RECAP AG'!$G$6:$CU$255,26,FALSE) -> 81% | Q48: =VLOOKUP($E48,'RECAP AG'!$G$6:$CU$255,27,FALSE) -> 81% | R48: =VLOOKUP($E48,'RECAP AG'!$G$6:$CU$255,28,FALSE) -> 95
A49: 262 | B49: BAS RHIN | C49: 5101 | D49: SELESTAT | E49: 4120 | F49: WASSELONNE | G49: =VLOOKUP($E49,'RECAP AG'!$G$6:$CU$255,3,FALSE) -> 2.9 | H49: =VLOOKUP($E49,'RECAP AG'!$G$6:$CU$255,18,FALSE) -> -6.6 | I49: =VLOOKUP($E49,'RECAP AG'!$G$6:$CU$255,19,FALSE) -> -2.29 | J49: =VLOOKUP($E49,'RECAP AG'!$G$6:$CU$255,20,FALSE) -> 103% | K49: =VLOOKUP($E49,'RECAP AG'!$G$6:$CU$255,21,FALSE) -> 232 | L49: =VLOOKUP($E49,'RECAP AG'!$G$6:$CU$255,22,FALSE) -> 78 | M49: =VLOOKUP($E49,'RECAP AG'!$G$6:$CU$255,23,FALSE) -> 27.08 | N49: =VLOOKUP($E49,'RECAP AG'!$G$6:$CU$255,24,FALSE) -> 82% | O49: =VLOOKUP($E49,'RECAP AG'!$G$6:$CU$255,25,FALSE) -> 172 | P49: =VLOOKUP($E49,'RECAP AG'!$G$6:$CU$255,26,FALSE) -> 95% | Q49: =VLOOKUP($E49,'RECAP AG'!$G$6:$CU$255,27,FALSE) -> 95% | R49: =VLOOKUP($E49,'RECAP AG'!$G$6:$CU$255,28,FALSE) -> 230
